Workbook

Sheet Read First
P8: Quick Link
P9: The ESD model, user's manual, and
P10: link to import results from the SAM model
P11: are accessible here.

Sheet SAM Inputs
A1: PV DC nameplate (kW) | B1: 1998.600098
A2: DC-AC ratio | B2: 0.854103
A3: PV annual DC degradation rate | B3: 0.5
A4: Battery AC power (kW) | B4: 2106.840332
A5: Battery minimum state of charge | B5: 0.15
A6: Battery maximum state of charge | B6: 0.95
A7: Battery AC energy capacity (kWh) | B7: 8000.376457
A8: Battery round trip efficiency (%) | B8: 92.336395
A9: Battery can charge from grid | B9: 0
A10: Battery can charge from system | B10: 1
A11: Electricity load (kW) | B11: Electricity to battery from grid (kW) | C11: Electricity to battery from system (kW) | D11: Electricity to load from battery (kW) | E11: Electricity to load from system (kW) | F11: Battery state of charge (%)
A12: 67542 | B12: 0 | C12: 0 | D12: 0 | E12: 0 | F12: 50
A13: 66590 | B13: 0 | C13: 0 | D13: 0 | E13: 0 | F13: 50
A14: 66446 | B14: 0 | C14: 0 | D14: 0 | E14: 0 | F14: 50
A15: 66683 | B15: 0 | C15: 0 | D15: 0 | E15: 0 | F15: 50
A16: 66304 | B16: 0 | C16: 0 | D16: 0 | E16: 0 | F16: 50
A17: 69117 | B17: 0 | C17: 0 | D17: 0 | E17: 0 | F17: 50
A18: 71221 | B18: 0 | C18: 0 | D18: 0 | E18: 0 | F18: 50
A19: 75012 | B19: 0 | C19: 0 | D19: 0 | E19: 0 | F19: 50
A20: 75124 | B20: 0 | C20: 11.333741 | D20: 0 | E20: 0 | F20: 50.11951
A21: 76622 | B21: 0 | C21: 140.972405 | D21: 0 | E21: 0 | F21: 51.604248
A22: 75720 | B22: 0 | C22: 801.462235 | D22: 0 | E22: 0.167152 | F22: 59.998222
A23: 74654 | B23: 0 | C23: 1373.179481 | D23: 0 | E23: 0.302103 | F23: 74.286031
A24: 73863 | B24: 0 | C24: 1158.661574 | D24: 0 | E24: 0 | F24: 86.296716
A25: 74214 | B25: 0 | C25: 269.117266 | D25: 0 | E25: 0 | F25: 89.08464
A26: 75021 | B26: 0 | C26: 571.830448 | D26: 0 | E26: 137.213195 | F26: 95
A27: 74280 | B27: 0 | C27: 0 | D27: 0 | E27: 580.273541 | F27: 95
A28: 80742 | B28: 0 | C28: 0 | D28: 0 | E28: 24.428933 | F28: 95
A29: 81184 | B29: 0 | C29: 0 | D29: 54.187805 | E29: 0 | F29: 94.303124
A30: 80607 | B30: 0 | C30: 0 | D30: 0 | E30: 0 | F30: 94.303124
A31: 79467 | B31: 0 | C31: 0 | D31: 0 | E31: 0 | F31: 94.303124
A32: 79255 | B32: 0 | C32: 0 | D32: 0 | E32: 0 | F32: 94.303124
A33: 74997 | B33: 0 | C33: 0 | D33: 0 | E33: 0 | F33: 94.303124
A34: 72366 | B34: 0 | C34: 0 | D34: 0 | E34: 0 | F34: 94.303124
A35: 69123 | B35: 0 | C35: 0 | D35: 0 | E35: 0 | F35: 94.303124
A36: 69642 | B36: 0 | C36: 0 | D36: 0 | E36: 0 | F36: 94.303124
A37: 68676 | B37: 0 | C37: 0 | D37: 0 | E37: 0 | F37: 94.303124
A38: 69939 | B38: 0 | C38: 0 | D38: 0 | E38: 0 | F38: 94.303124
A39: 70354 | B39: 0 | C39: 0 | D39: 0 | E39: 0 | F39: 94.303124
A40: 73190 | B40: 0 | C40: 0 | D40: 0 | E40: 0 | F40: 94.303124
A41: 75811 | B41: 0 | C41: 0 | D41: 0 | E41: 0 | F41: 94.303124
A42: 78737 | B42: 0 | C42: 0 | D42: 0 | E42: 0 | F42: 94.303124
A43: 79307 | B43: 0 | C43: 0 | D43: 0 | E43: 0 | F43: 94.303124
A44: 80129 | B44: 0 | C44: 67.362208 | D44: 0 | E44: 161.36724 | F44: 95
A45: 77323 | B45: 0 | C45: 0 | D45: 0 | E45: 444.427159 | F45: 95
A46: 76262 | B46: 0 | C46: 0 | D46: 0 | E46: 644.366295 | F46: 95
A47: 75230 | B47: 0 | C47: 0 | D47: 0 | E47: 1151.379111 | F47: 95
A48: 73540 | B48: 0 | C48: 0 | D48: 0 | E48: 1492.914313 | F48: 95
A49: 73083 | B49: 0 | C49: 0 | D49: 0 | E49: 1344.833227 | F49: 95
A50: 72286 | B50: 0 | C50: 0 | D50: 0 | E50: 1056.801351 | F50: 95
A51: 73691 | B51: 0 | C51: 0 | D51: 0 | E51: 635.403125 | F51: 95
A52: 81388 | B52: 0 | C52: 0 | D52: 0 | E52: 30.639262 | F52: 95
A53: 82690 | B53: 0 | C53: 0 | D53: 0 | E53: 0 | F53: 95
A54: 83046 | B54: 0 | C54: 0 | D54: 0 | E54: 0 | F54: 95
A55: 83588 | B55: 0 | C55: 0 | D55: 362.491957 | E55: 0 | F55: 90.943217
A56: 80910 | B56: 0 | C56: 0 | D56: 0 | E56: 0 | F56: 90.943217
A57: 77892 | B57: 0 | C57: 0 | D57: 0 | E57: 0 | F57: 90.943217
A58: 75611 | B58: 0 | C58: 0 | D58: 0 | E58: 0 | F58: 90.943217
A59: 73499 | B59: 0 | C59: 0 | D59: 0 | E59: 0 | F59: 90.943217
A60: 73511 | B60: 0 | C60: 0 | D60: 0 | E60: 0 | F60: 90.943217
A61: 72878 | B61: 0 | C61: 0 | D61: 0 | E61: 0 | F61: 90.943217
A62: 72973 | B62: 0 | C62: 0 | D62: 0 | E62: 0 | F62: 90.943217
A63: 73049 | B63: 0 | C63: 0 | D63: 0 | E63: 0 | F63: 90.943217
A64: 73760 | B64: 0 | C64: 0 | D64: 0 | E64: 0 | F64: 90.943217
A65: 77086 | B65: 0 | C65: 0 | D65: 0 | E65: 0 | F65: 90.943217
A66: 80571 | B66: 0 | C66: 0 | D66: 0 | E66: 0 | F66: 90.943217
A67: 80459 | B67: 0 | C67: 0 | D67: 0 | E67: 0 | F67: 90.943217
A68: 79378 | B68: 0 | C68: 392.15575 | D68: 0 | E68: 179.04516 | F68: 95
A69: 78341 | B69: 0 | C69: 0 | D69: 0 | E69: 997.392761 | F69: 95
A70: 76894 | B70: 0 | C70: 0 | D70: 0 | E70: 1284.355691 | F70: 95
A71: 72977 | B71: 0 | C71: 0 | D71: 0 | E71: 1437.960186 | F71: 95
A72: 71758 | B72: 0 | C72: 0 | D72: 0 | E72: 1449.031287 | F72: 95
A73: 70764 | B73: 0 | C73: 0 | D73: 0 | E73: 1317.974902 | F73: 95
A74: 70867 | B74: 0 | C74: 0 | D74: 0 | E74: 1055.449958 | F74: 95
A75: 72554 | B75: 0 | C75: 0 | D75: 0 | E75: 636.901769 | F75: 95
A76: 77936 | B76: 0 | C76: 0 | D76: 0 | E76: 117.5353 | F76: 95
A77: 79923 | B77: 0 | C77: 0 | D77: 0 | E77: 0 | F77: 95
A78: 80892 | B78: 0 | C78: 0 | D78: 0 | E78: 0 | F78: 95
A79: 80359 | B79: 0 | C79: 0 | D79: 0 | E79: 0 | F79: 95
A80: 79129 | B80: 0 | C80: 0 | D80: 0 | E80: 0 | F80: 95
A81: 74371 | B81: 0 | C81: 0 | D81: 0 | E81: 0 | F81: 95
A82: 71679 | B82: 0 | C82: 0 | D82: 0 | E82: 0 | F82: 95
A83: 70536 | B83: 0 | C83: 0 | D83: 0 | E83: 0 | F83: 95
A84: 68079 | B84: 0 | C84: 0 | D84: 0 | E84: 0 | F84: 95
A85: 69728 | B85: 0 | C85: 0 | D85: 0 | E85: 0 | F85: 95
A86: 68984 | B86: 0 | C86: 0 | D86: 0 | E86: 0 | F86: 95
A87: 70198 | B87: 0 | C87: 0 | D87: 0 | E87: 0 | F87: 95
A88: 72011 | B88: 0 | C88: 0 | D88: 0 | E88: 0 | F88: 95
A89: 74330 | B89: 0 | C89: 0 | D89: 0 | E89: 0 | F89: 95
A90: 77685 | B90: 0 | C90: 0 | D90: 0 | E90: 0 | F90: 95
A91: 77588 | B91: 0 | C91: 0 | D91: 0 | E91: 0 | F91: 95
A92: 75738 | B92: 0 | C92: 0 | D92: 0 | E92: 581.938521 | F92: 95
A93: 74292 | B93: 0 | C93: 0 | D93: 0 | E93: 1022.614697 | F93: 95
A94: 72538 | B94: 0 | C94: 0 | D94: 0 | E94: 1316.29008 | F94: 95
A95: 69437 | B95: 0 | C95: 0 | D95: 0 | E95: 1457.562106 | F95: 95
A96: 67634 | B96: 0 | C96: 0 | D96: 0 | E96: 1474.219376 | F96: 95
A97: 68109 | B97: 0 | C97: 0 | D97: 0 | E97: 1352.043117 | F97: 95
A98: 68186 | B98: 0 | C98: 0 | D98: 0 | E98: 1080.463486 | F98: 95
A99: 68945 | B99: 0 | C99: 0 | D99: 0 | E99: 652.090826 | F99: 95
A100: 74682 | B100: 0 | C100: 0 | D100: 0 | E100: 125.232043 | F100: 95
A101: 75600 | B101: 0 | C101: 0 | D101: 0 | E101: 0 | F101: 95
A102: 76472 | B102: 0 | C102: 0 | D102: 0 | E102: 0 | F102: 95
A103: 75082 | B103: 0 | C103: 0 | D103: 0 | E103: 0 | F103: 95
A104: 73559 | B104: 0 | C104: 0 | D104: 0 | E104: 0 | F104: 95
A105: 71191 | B105: 0 | C105: 0 | D105: 0 | E105: 0 | F105: 95
A106: 68332 | B106: 0 | C106: 0 | D106: 0 | E106: 0 | F106: 95
A107: 65652 | B107: 0 | C107: 0 | D107: 0 | E107: 0 | F107: 95
A108: 65385 | B108: 0 | C108: 0 | D108: 0 | E108: 0 | F108: 95
A109: 65058 | B109: 0 | C109: 0 | D109: 0 | E109: 0 | F109: 95
A110: 65125 | B110: 0 | C110: 0 | D110: 0 | E110: 0 | F110: 95
A111: 66563 | B111: 0 | C111: 0 | D111: 0 | E111: 0 | F111: 95
A112: 67471 | B112: 0 | C112: 0 | D112: 0 | E112: 0 | F112: 95
A113: 69895 | B113: 0 | C113: 0 | D113: 0 | E113: 0 | F113: 95
A114: 72149 | B114: 0 | C114: 0 | D114: 0 | E114: 0 | F114: 95
A115: 74273 | B115: 0 | C115: 0 | D115: 0 | E115: 0 | F115: 95
A116: 72494 | B116: 0 | C116: 0 | D116: 0 | E116: 36.414117 | F116: 95
A117: 71506 | B117: 0 | C117: 0 | D117: 0 | E117: 252.345314 | F117: 95
A118: 68803 | B118: 0 | C118: 0 | D118: 0 | E118: 1152.367609 | F118: 95
A119: 65942 | B119: 0 | C119: 0 | D119: 0 | E119: 1088.57834 | F119: 95
A120: 65781 | B120: 0 | C120: 0 | D120: 0 | E120: 1234.953973 | F120: 95
A121: 66260 | B121: 0 | C121: 0 | D121: 0 | E121: 343.484893 | F121: 95
A122: 65710 | B122: 0 | C122: 0 | D122: 0 | E122: 143.092228 | F122: 95
A123: 66499 | B123: 0 | C123: 0 | D123: 0 | E123: 635.912295 | F123: 95
A124: 71570 | B124: 0 | C124: 0 | D124: 0 | E124: 120.766426 | F124: 95
A125: 73073 | B125: 0 | C125: 0 | D125: 0 | E125: 0 | F125: 95
A126: 71978 | B126: 0 | C126: 0 | D126: 0 | E126: 0 | F126: 95
A127: 71235 | B127: 0 | C127: 0 | D127: 0 | E127: 0 | F127: 95
A128: 69517 | B128: 0 | C128: 0 | D128: 0 | E128: 0 | F128: 95
A129: 66193 | B129: 0 | C129: 0 | D129: 0 | E129: 0 | F129: 95
A130: 63759 | B130: 0 | C130: 0 | D130: 0 | E130: 0 | F130: 95
A131: 62564 | B131: 0 | C131: 0 | D131: 0 | E131: 0 | F131: 95
A132: 61550 | B132: 0 | C132: 0 | D132: 0 | E132: 0 | F132: 95
A133: 61674 | B133: 0 | C133: 0 | D133: 0 | E133: 0 | F133: 95
A134: 60086 | B134: 0 | C134: 0 | D134: 0 | E134: 0 | F134: 95
A135: 61009 | B135: 0 | C135: 0 | D135: 0 | E135: 0 | F135: 95
A136: 61832 | B136: 0 | C136: 0 | D136: 0 | E136: 0 | F136: 95
A137: 64178 | B137: 0 | C137: 0 | D137: 0 | E137: 0 | F137: 95
A138: 65506 | B138: 0 | C138: 0 | D138: 0 | E138: 0 | F138: 95
A139: 67634 | B139: 0 | C139: 0 | D139: 0 | E139: 0 | F139: 95
A140: 67162 | B140: 0 | C140: 0 | D140: 0 | E140: 450.319726 | F140: 95
A141: 68078 | B141: 0 | C141: 0 | D141: 0 | E141: 807.387855 | F141: 95
A142: 68182 | B142: 0 | C142: 0 | D142: 0 | E142: 609.448234 | F142: 95
A143: 67169 | B143: 0 | C143: 0 | D143: 0 | E143: 1170.495052 | F143: 95
A144: 67606 | B144: 0 | C144: 0 | D144: 0 | E144: 1285.005925 | F144: 95
A145: 67367 | B145: 0 | C145: 0 | D145: 0 | E145: 1157.882663 | F145: 95
A146: 68192 | B146: 0 | C146: 0 | D146: 0 | E146: 1051.621862 | F146: 95
A147: 68311 | B147: 0 | C147: 0 | D147: 0 | E147: 653.704989 | F147: 95
A148: 70674 | B148: 0 | C148: 0 | D148: 0 | E148: 54.296861 | F148: 95
A149: 73132 | B149: 0 | C149: 0 | D149: 0 | E149: 0 | F149: 95
A150: 70989 | B150: 0 | C150: 0 | D150: 0 | E150: 0 | F150: 95
A151: 69793 | B151: 0 | C151: 0 | D151: 0 | E151: 0 | F151: 95
A152: 69637 | B152: 0 | C152: 0 | D152: 0 | E152: 0 | F152: 95
A153: 65706 | B153: 0 | C153: 0 | D153: 0 | E153: 0 | F153: 95
A154: 63161 | B154: 0 | C154: 0 | D154: 0 | E154: 0 | F154: 95
A155: 62495 | B155: 0 | C155: 0 | D155: 0 | E155: 0 | F155: 95
A156: 62574 | B156: 0 | C156: 0 | D156: 0 | E156: 0 | F156: 95
A157: 61841 | B157: 0 | C157: 0 | D157: 0 | E157: 0 | F157: 95
A158: 62752 | B158: 0 | C158: 0 | D158: 0 | E158: 0 | F158: 95
A159: 62020 | B159: 0 | C159: 0 | D159: 0 | E159: 0 | F159: 95
A160: 65766 | B160: 0 | C160: 0 | D160: 0 | E160: 0 | F160: 95
A161: 67053 | B161: 0 | C161: 0 | D161: 0 | E161: 0 | F161: 95
A162: 69647 | B162: 0 | C162: 0 | D162: 0 | E162: 0 | F162: 95
A163: 70804 | B163: 0 | C163: 0 | D163: 0 | E163: 0 | F163: 95
A164: 69606 | B164: 0 | C164: 0 | D164: 0 | E164: 519.144336 | F164: 95
A165: 69600 | B165: 0 | C165: 0 | D165: 0 | E165: 933.479018 | F165: 95
A166: 68063 | B166: 0 | C166: 0 | D166: 0 | E166: 1198.139331 | F166: 95
A167: 67088 | B167: 0 | C167: 0 | D167: 0 | E167: 1343.163566 | F167: 95
A168: 67612 | B168: 0 | C168: 0 | D168: 0 | E168: 1364.628901 | F168: 95
A169: 66983 | B169: 0 | C169: 0 | D169: 0 | E169: 1258.853703 | F169: 95
A170: 64641 | B170: 0 | C170: 0 | D170: 0 | E170: 1002.533439 | F170: 95
A171: 66604 | B171: 0 | C171: 0 | D171: 0 | E171: 619.735637 | F171: 95
A172: 71599 | B172: 0 | C172: 0 | D172: 0 | E172: 128.71227 | F172: 95
A173: 72972 | B173: 0 | C173: 0 | D173: 0 | E173: 0 | F173: 95
A174: 72886 | B174: 0 | C174: 0 | D174: 0 | E174: 0 | F174: 95
A175: 72367 | B175: 0 | C175: 0 | D175: 0 | E175: 0 | F175: 95
A176: 69701 | B176: 0 | C176: 0 | D176: 0 | E176: 0 | F176: 95
A177: 66953 | B177: 0 | C177: 0 | D177: 0 | E177: 0 | F177: 95
A178: 64953 | B178: 0 | C178: 0 | D178: 0 | E178: 0 | F178: 95
A179: 64798 | B179: 0 | C179: 0 | D179: 0 | E179: 0 | F179: 95
A180: 63096 | B180: 0 | C180: 0 | D180: 0 | E180: 0 | F180: 95
A181: 64083 | B181: 0 | C181: 0 | D181: 0 | E181: 0 | F181: 95
A182: 63703 | B182: 0 | C182: 0 | D182: 0 | E182: 0 | F182: 95
A183: 65102 | B183: 0 | C183: 0 | D183: 0 | E183: 0 | F183: 95
A184: 67537 | B184: 0 | C184: 0 | D184: 0 | E184: 0 | F184: 95
A185: 69509 | B185: 0 | C185: 0 | D185: 0 | E185: 0 | F185: 95
A186: 72792 | B186: 0 | C186: 0 | D186: 0 | E186: 0 | F186: 95
A187: 70351 | B187: 0 | C187: 0 | D187: 0 | E187: 0 | F187: 95
A188: 68215 | B188: 0 | C188: 0 | D188: 0 | E188: 517.644313 | F188: 95
A189: 66097 | B189: 0 | C189: 0 | D189: 0 | E189: 929.178383 | F189: 95
A190: 65110 | B190: 0 | C190: 0 | D190: 0 | E190: 1194.743632 | F190: 95
A191: 62693 | B191: 0 | C191: 0 | D191: 0 | E191: 1330.815537 | F191: 95
A192: 63304 | B192: 0 | C192: 0 | D192: 0 | E192: 975.966623 | F192: 95
A193: 61607 | B193: 0 | C193: 0 | D193: 0 | E193: 455.449232 | F193: 95
A194: 61852 | B194: 0 | C194: 0 | D194: 0 | E194: 28.255478 | F194: 95
A195: 62395 | B195: 0 | C195: 0 | D195: 0 | E195: 121.986096 | F195: 95
A196: 68015 | B196: 0 | C196: 0 | D196: 0 | E196: 8.384252 | F196: 95
A197: 70334 | B197: 0 | C197: 0 | D197: 0 | E197: 0 | F197: 95
A198: 70718 | B198: 0 | C198: 0 | D198: 0 | E198: 0 | F198: 95
A199: 69957 | B199: 0 | C199: 0 | D199: 0 | E199: 0 | F199: 95
A200: 70414 | B200: 0 | C200: 0 | D200: 0 | E200: 0 | F200: 95
... 8571 more rows

Sheet General Inputs
B2: VALUE STACK SCENARIO
B4: Select Value Stack | C4: 3 | D4: =HYPERLINK("#"&ADDRESS(ROW(),COLUMN()-1),CHAR(128)) -> Ä | E4: Value Stream | F4: Qty Achieved | H4: Utility benefits and costs | I4: -
E5: Coinc. Pk Demand Reduction | F5: =CP_demandreduction+CP_PVReduction -> 12,357 | G5: kWh/yr | H5: ROI | I5: =C55 -> 12%
B6: Battery operation | E6: Local Demand Reduction | F6: =LocalDemandReduction -> 11,110 | G6: kW/yr | H6: NPV | I6: =C56 -> $347,860
B7: Charging Decision | C7: =IF(AND('SAM Inputs'!B9=0,'SAM Inputs'!B10=1),"Solar",IF(AND('SAM Inputs'!B9=1,'SAM Inputs'!B10=1),"Solar & Grid","Error")) -> Solar | E7: Energy Arbitrage | F7: =EnergyArbitrage_kWh -> 826,773 | G7: kWh/yr | H7: B/C | I7: =C57 -> 1.12
E8: Ancilary Services | F8: =Anc_Svc_hrs -> 0 | G8: hrs
B10: Value Stack Priority | C10: 1 | D10: 2 | E10: 3 | F10: 4 | G10: 5 | H10: 6 | I10: 7 | J10: 8
B11: 1st | C11: Local Demand | D11: Local Demand | E11: Local Demand | F11: Local Demand | G11: CP Demand | H11: CP Demand | I11: CP Demand | J11: CP Demand
B12: 2nd | C12: Energy Arbitrage | D12: Ancillary Services | E12: CP Demand | F12: CP Demand | G12: Local Demand | H12: Local Demand | I12: Energy Arbitrage | J12: Ancillary Services
B13: 3rd | C13: Ancillary Services | D13: Energy Arbitrage | E13: Energy Arbitrage | F13: Ancillary Services | G13: Energy Arbitrage | H13: Ancillary Services | I13: Ancillary Services | J13: Energy Arbitrage
B15: GENERAL INPUTS
B16: Description
B18: Yellow Boxes: Inputs that must match SAM | E18: Green Boxes: User Inputs | H18: Red Boxes: Calculated
B20: PV system | E20: Load Profile Year | F20: 2020 | H20: Energy Arbitrage TOU | I20: =IF($C$4=4,"No",IF($C$4=6,"No","Yes")) -> Yes
B21: PV Size (DC) | C21: ='SAM Inputs'!B1 -> 1,999 | D21: kW DC | H21: TOU on-peak definition | I21: Late afternoon peak (all year) | J21: =HYPERLINK("#"&ADDRESS(ROW(),COLUMN()-1),CHAR(128)) -> Ä
B22: DC/AC Ratio | C22: ='SAM Inputs'!B2 -> 0.9 | E22: Wholesale Energy/Demand Costs | H22: TOU Day Selection | I22: Weekdays | J22: =HYPERLINK("#"&ADDRESS(ROW(),COLUMN()-1),CHAR(128)) -> Ä
B23: PV degradation rate | C23: ='SAM Inputs'!B3/100 -> 0.5% | D23: /yr | E23: Wholesale energy cost 1 | F23: 0.040 | G23: $/kWh
B24: PV first year energy | C24: =SUM('Time Series Data'!U7:'Time Series Data'!U8766) -> 3,108,372 | D24: kWh | E24: Wholesale energy cost 2 (Off Pk) | F24: 0.028 | G24: $/kWh | H24: General Financial parameters | I24: -
B25: Total AC Capacity (Battery + PV) | C25: =PV_nameplate/C22 -> 2,340 | D25: kW AC | E25: Electricity cost escalation rate | F25: 2.0% | G25: /yr | H25: Inflation rate | I25: 0.025 | J25: /yr
E26: Utility local demand charge | F26: 10.25 | G26: $/kW | H26: Utility's nominal discount rate | I26: 0.070 | J26: /yr
B27: Battery system | C27: Yes | D27: =HYPERLINK("#"&ADDRESS(ROW(),COLUMN()-1),CHAR(128)) -> Ä | E27: Utility demand escalation rate | F27: 1.0% | G27: /yr | H27: Utility's nominal cost of capital | I27: 0.060 | J27: /yr
B28: Battery power (AC) | C28: ='SAM Inputs'!B4 -> 2,107 | D28: kW AC | E28: Utility coincident peak charge | F28: 3.00 | G28: $/kW | H28: REC price | I28: 0.002 | J28: $/kWh
B29: Min State of Charge | C29: ='SAM Inputs'!B5 -> 0.15
B30: Max State of Charge | C30: ='SAM Inputs'!B6 -> 0.95 | E30: Frequency regulation | F30: =IF($C$4=3,"No",IF($C$4=5,"No","Yes")) -> No | H30: ADDITIONAL VALUE STREAMS
B31: Battery capacity (AC) | C31: ='SAM Inputs'!B7 -> 8,000 | D31: kWh AC | E31: Capacity Payment | F31: $0.011 | G31: $/kW-hr | H31: Infrastructure Deferral | I31: Yes | J31: =HYPERLINK("#"&ADDRESS(ROW(),COLUMN()-1),CHAR(128)) -> Ä
B32: Round Trip Efficiency | C32: ='SAM Inputs'!B8/100 -> 0.92 | E32: Nominal Price Decline | F32: 5% | G32: % per yr | H32: Est. Capital Cost (today) | I32: $1,000,000
B33: Effective Battery capacity (AC) | C33: =(C30-C29)*C31 -> 6,400 | D33: kWh AC | E33: Hours per day Available | F33: 24 | G33: Hrs | H33: Years Deferred | I33: 5 | J33: yrs
E34: Operation Day Selection | F34: Weekends | G34: =HYPERLINK("#"&ADDRESS(ROW(),COLUMN()-1),CHAR(128)) -> Ä | H34: NPV of Deferral | I34: =Calculations!AC33 -> $154,546
B35: Energy System Contract Prices
B36: PV PPA price | C36: 0.040 | D36: $/kWh | E36: Coincident Peak Inputs | F36: =IF($C$4=1,"No",IF($C$4=2,"No","Yes")) -> Yes | H36: Microgrid system | I36: No | J36: =HYPERLINK("#"&ADDRESS(ROW(),COLUMN()-1),CHAR(128)) -> Ä
B37: Battery ESA price | C37: 0.045 | D37: $/kWh | E37: Date of Peak | F37: Hr of Peak | H37: Controller Unit Cost | I37: $300,000 | J37: $/MW
B38: Contract price escalator | C38: 0 | D38: /yr | E38: 2020-01-02 | F38: 09:00:00 | G38: =HYPERLINK("#"&ADDRESS(ROW(),COLUMN()-1),CHAR(128)) -> Ä | H38: Total capital cost | I38: =I37*BatteryPower/1000 -> $632,052
B39: PPA + ESA Price | C39: =PPACostPerKWh+BatteryESACostPerKWh -> 0.085 | D39: $/kWh | E39: 2020-02-08 | F39: 06:00:00 | G39: =HYPERLINK("#"&ADDRESS(ROW(),COLUMN()-1),CHAR(128)) -> Ä
E40: 2020-03-13 | F40: 18:00:00 | G40: Ä | H40: Resiliency Capability | I40: =IF(MicrogridFlag="Yes","Yes","No") -> No
B41: Battery Degradation and Lifetime | E41: 2020-04-01 | F41: 18:00:00 | G41: Ä | H41: Outage duration | I41: 6 | J41: hrs
B42: Calendar degradation rate | C42: 1.0% | D42: % / yr | E42: 2020-05-12 | F42: 18:00:00 | G42: Ä | H42: Peak Lost Load | I42: 1500 | J42: kW
B43: End of Life (% of initial cap) | C43: 80% | E43: 2020-06-12 | F43: 18:00:00 | G43: Ä | H43: Ave Lost Load | I43: 750 | J43: kW
B44: Turnovers to reach 90% of capacity | C44: 1,300 | E44: 2020-07-12 | F44: 18:00:00 | G44: Ä | H44: Total kWh of Outage | I44: =I43*I41 -> 4500 | J44: kWh
B45: Cycle degradation rate | C45: =0.1/C44*C47 -> 1.0% | D45: % / yr | E45: 2020-08-12 | F45: 18:00:00 | G45: Ä | H45: % of Pk Lost Load Battery Can Meet | I45: =IF(MicrogridFlag="yes",BatteryPower/I42,"Need Microgrid") -> Need Microgrid
B46: Battery Throughput Per Year | C46: =Battery_Throughput_kWh -> 1,041,295 | D46: kWh/yr | E46: 2020-09-12 | F46: 18:00:00 | G46: Ä | H46: % of Outage Battery Can Meet | I46: =IF(MicrogridFlag="yes",Effective_Battery_Capacity/I44,"Need Microgrid") -> Need Microgrid
B47: Battery Turnovers per Year | C47: =C46/C31 -> 130 | D47: /yr | E47: 2020-10-12 | F47: 06:00:00 | G47: Ä
B48: Battery Bank Lifetime | C48: =(1-BatteryEOL)/(CycleDegradationRate+CalendarDegradationRate) -> 10.0 | D48: years | E48: 2020-11-12 | F48: 06:00:00 | G48: Ä
E49: 2020-12-12 | F49: 06:00:00 | G49: =HYPERLINK("#"&ADDRESS(ROW(),COLUMN()-1),CHAR(128)) -> Ä
B52: RESULTS
B54: Utility benefits and costs | C54: -
B55: ROI | C55: =(C58+C59)/(-C59) -> 12%
B56: NPV | C56: =$C$59+$C$58 -> $347,860
B57: B/C | C57: =$C$58/-$C$59 -> 1.12
B58: Benefits | C58: =SUMIF(Calculations!$X$33:$AG$33, ">0") -> $3,298,053
B59: Costs | C59: =SUMIF(Calculations!$X$33:$AG$33,"<0") -> -$2,950,193
B85: GAP ANALYSIS TOOLS
C93: Select Below | D93: Viewing Only - Don't Change
B94: Gap Analysis Input Variable | C94: Utility local demand charge | D94: =_xlfn.SWITCH(Gap_Input, "Battery ESA Price", BatteryESACostPerKWh,"PV PPA Price", PPACostPerKWh,"Wholesale energy cost 1",WholesaleEnergyCost_1,"Wholesale energy cost 2 (Off Pk)",WholesaleEnergyCost_2,"Utility local demand charge",UtilityDemandCost,"Utility coincident peak charge",EEUtilityConcidentPeakCost,"Freq Reg Capacity Payment",Anc_Svc_Price,"Infrastructure Years Deferred",EEYrsDeferred,"Infrastructure Capital Cost",InfCapCost) -> $10.250
B95: Gap Analysis Target Metric | C95: ROI | D95: =_xlfn.SWITCH(Gap_Target,"ROI",ProjectROI,"NPV",ProjectNPV) -> 0.12
B98: Click Here to go to: SENSITIVITY ANALYSIS

Sheet Sensitivity
S3: Options
G4: =VLOOKUP(T5,A25:B36,2,FALSE) -> Battery ESA Price ($/kWh)
F5: =T7 -> NPV | G5: 0.042 | H5: 0.044 | I5: 0.045 | J5: 0.046 | K5: 0.048 | S5: Independent Variable #1 | T5: Battery ESA Price | U5: =HYPERLINK("#"&ADDRESS(ROW(),COLUMN()-1),CHAR(128)) -> Ä
E6: =VLOOKUP(T6,A25:B36,2,FALSE) -> PV PPA Price ($/kWh) | F6: 0.038 | G6: $370,326 | H6: $323,470 | I6: $276,614 | J6: $229,758 | K6: $182,902 | S6: Independent Variable #2 | T6: PV PPA Price | U6: =HYPERLINK("#"&ADDRESS(ROW(),COLUMN()-1),CHAR(128)) -> Ä
F7: 0.039 | G7: $328,676 | H7: $281,820 | I7: $234,964 | J7: $188,108 | K7: $141,252 | S7: Metric | T7: NPV | U7: =HYPERLINK("#"&ADDRESS(ROW(),COLUMN()-1),CHAR(128)) -> Ä
F8: 0.040 | G8: $287,026 | H8: $240,170 | I8: $193,314 | J8: $146,458 | K8: $99,602
F9: 0.041 | G9: $245,377 | H9: $198,521 | I9: $151,665 | J9: $104,809 | K9: $57,953
F10: 0.042 | G10: $203,727 | H10: $156,871 | I10: $110,015 | J10: $63,159 | K10: $16,303 | T10: Step Change
S11: =T5 -> Battery ESA Price | T11: 3%
S12: =T6 -> PV PPA Price | T12: 3%
S14: Number of Steps | T14: 5 | U14: =HYPERLINK("#"&ADDRESS(ROW(),COLUMN()-1),CHAR(128)) -> Ä
A25: Battery ESA Price | B25: Battery ESA Price ($/kWh)
A26: PV PPA Price | B26: PV PPA Price ($/kWh)
A27: Wholesale energy cost 1 | B27: Wholesale energy cost 1 ($/kWh)
A28: Wholesale energy cost 2 (Off Pk) | B28: Wholesale energy cost 2 (Off Pk) ($/kWh)
A29: Utility local demand charge | B29: Utility local demand charge ($/kW)
A30: Utility coincident peak charge | B30: Utility coincident peak charge ($/kW)
A31: Ancillary Services Price = "Capacity payment" | B31: Capacity payment ($/kW-hr)
A32: Infrastructure Years Deferred | B32: Infrastructure Years Deferred (years)
A33: Infrastructure Capital Cost | B33: Infrastructure Capital Cost ($)
A34: Inflation Rate | B34: Inflation Rate (%)
A35: REC Price | B35: REC Price ($/kWh)
A36: Nominal Price decline | B36: Nominal Price decline (%/yr)

Sheet Value Stacking Basis
B2: Charging Scenario (solar =1, solar+grid = 2) | C2: Scenario Reference | D2: Local Demand Reduction (kW) | E2: Coincident Pk Demand Reduction (kW) | F2: Energy Arbitrage moved (kWh) | G2: Ancillary services provided (kW-h) | H2: Ancillary services provided (hrs) | J2: Battery Throughput (kWh) | O2: Solar Energy to Grid | P2: Solar Energy to grid On Peak (NO EA) | Q2: Solar Energy to Grid Off Peak (NO EA) | R2: Solar Energy Moved for EA
B3: =VLOOKUP('General Inputs'!$C$7,Values!$K$13:$L$14,2) -> 1 | C3: ='General Inputs'!$C$4 -> 3 | D3: =IF($B$3=1,VLOOKUP($C$3,$B$10:$F$17,2),VLOOKUP($C$3,$H$10:$L$17,2)) -> 11,110 | E3: =IF($B$3=1,VLOOKUP($C$3,$B$10:$F$17,3),VLOOKUP($C$3,$H$10:$L$17,3)) -> 11,790 | F3: =IF($B$3=1,VLOOKUP($C$3,$B$10:$F$17,4),VLOOKUP($C$3,$H$10:$L$17,4)) -> 826,773 | G3: =IF($B$3=1,VLOOKUP($C$3,$B$10:$F$17,5),VLOOKUP($C$3,$H$10:$L$17,5)) -> 0 | H3: =IF($B$3=1,VLOOKUP($C$3,$B$10:$F$17,5),VLOOKUP($C$3,$H$10:$L$17,5))/BatteryPower -> 0 | J3: =SUM(D4:G4) -> 1,041,295 | O3: =IF($B$3=1,VLOOKUP($C$3,$O$10:$V$17,8),VLOOKUP($C$3,$O$22:$V$29,8)) -> 3,024,806 | P3: =IF($B$3=1,VLOOKUP($C$3,$O$10:$V$17,6),VLOOKUP($C$3,$O$22:$V$29,6)) -> 1,321,376 | Q3: =IF($B$3=1,VLOOKUP($C$3,$O$10:$V$17,7),VLOOKUP($C$3,$O$22:$V$29,7)) -> 1,703,430 | R3: =IF($B$3=1,VLOOKUP($C$3,$O$10:$V$17,5),VLOOKUP($C$3,$O$22:$V$29,5)) -> 826,773 | T3: Total kWh
B4: Energy throughput (kWh) | D4: =IF($B$3=1,VLOOKUP($C$3,$B$22:$F$29,2),VLOOKUP($C$3,$H$22:$L$29,2)) -> 126,702 | E4: =IF($B$3=1,VLOOKUP($C$3,$B$22:$F$29,3),VLOOKUP($C$3,$H$22:$L$29,3)) -> 19,201 | F4: =IF($B$3=1,VLOOKUP($C$3,$B$22:$F$29,4),VLOOKUP($C$3,$H$22:$L$29,4)) -> 895,392 | G4: =IF($B$3=1,VLOOKUP($C$3,$B$22:$F$29,5),VLOOKUP($C$3,$H$22:$L$29,5)) -> 0 | T4: =PVFirstYearEnergy -> 3,108,371.86
B7: Solar Only | H7: Solar & Grid
B8: Annually | C8: Local Demand Reduction | D8: Coincident Pk Demand Reduction | E8: Energy Arbitrage moved | F8: Ancillary services provided | H8: Annually | I8: Local Demand Reduction | J8: Coincident Pk Demand Reduction | K8: Energy Arbitrage moved | L8: Ancillary services provided | O8: Solar Only | P8: on peak (no TOU) | Q8: off peak | R8: On peak (moved from Off) | S8: On - from Off | T8: Totals | W8: Non EA
B9: Scenario | C9: kW | D9: kW | E9: kWh | F9: kW-h | H9: Scenario | I9: kW | J9: kW | K9: kWh | L9: kW-h | O9: Scenario | P9: Local | Q9: Local | R9: CP | S9: EA | T9: ON | U9: OFF | V9: Grid | W9: ON Peak
B10: 1 | C10: =SUM($I$37:$I$48)-SUM($J$37:$J$48) -> 11,110 | D10: 0 | E10: =SUM('Time Series Data'!CN7:CN372) -> 833,854 | F10: =SUM('Time Series Data'!CO7:CO372)*BatteryPower -> 3,236,107 | H10: 1 | I10: =SUM($I$37:$I$48)-SUM($J$37:$J$48) -> 11,110 | J10: 0 | K10: =SUM('Time Series Data'!EH7:EH372) -> 1,203,257 | L10: =SUM('Time Series Data'!EI7:EI372)*BatteryPower -> 3,691,184 | O10: 1 | P10: =SUM('Time Series Data'!AX7:AX372) -> 477,503.42 | Q10: =(SUM('Time Series Data'!O7:O8790)+SUM('Time Series Data'!N7:N8790))-P10 -> 2,617,393.40 | R10: 0.00 | S10: =E10 -> 833,854.19 | T10: =S10+P10 -> 1,311,357.62 | U10: =Q10-E22 -> 1,714,332.16 | V10: =T10+U10 -> 3,025,689.78 | W10: =P10 -> 477,503.42
B11: 2 | C11: =SUM($I$37:$I$48)-SUM($J$37:$J$48) -> 11,110 | D11: 0 | E11: =SUM('Time Series Data'!CU7:CU372) -> 833,854 | F11: =SUM('Time Series Data'!CQ7:CQ372)*BatteryPower -> 3,236,107 | H11: 2 | I11: =SUM($I$37:$I$48)-SUM($J$37:$J$48) -> 11,110 | J11: 0 | K11: =SUM('Time Series Data'!EN7:EN372) -> 1,203,257 | L11: =SUM('Time Series Data'!EK7:EK372)*BatteryPower -> 3,691,184 | O11: 2 | P11: =P10 -> 477,503.42 | Q11: =Q10 -> 2,617,393.40 | R11: 0.00 | S11: 833,854.19 | T11: =S11+P11 -> 1,311,357.62 | U11: =Q11-E23 -> 1,714,332.16 | V11: 3,025,689.78 | W11: =P11 -> 477,503.42
B12: 3 | C12: =SUM($I$37:$I$48)-SUM($J$37:$J$48) -> 11,110 | D12: =SUM('Time Series Data'!CW7:CW372) -> 11,790 | E12: =SUM('Time Series Data'!DA7:DA372) -> 826,773 | F12: 0 | H12: 3 | I12: =SUM($I$37:$I$48)-SUM($J$37:$J$48) -> 11,110 | J12: =SUM('Time Series Data'!EP7:EP372) -> 16,003 | K12: =SUM('Time Series Data'!ES7:ES372) -> 1,184,056 | L12: 0 | O12: 3 | P12: =P10 -> 477,503.42 | Q12: =Q10 -> 2,617,393.40 | R12: =SUMIF('Time Series Data'!CB7:CB372,">0",'Time Series Data'!AY7:AY372) -> 18,571.04 | S12: 826,772.58 | T12: =S12+P12+R12*Rndtrp_eff-((D24-R12)-(D24-R12)*Rndtrp_eff) -> 1,321,375.57 | U12: =Q12-E24-R12 -> 1,703,430.48 | V12: 3,024,806.04 | W12: =T12-S12 -> 494,602.99
B13: 4 | C13: =SUM($I$37:$I$48)-SUM($J$37:$J$48) -> 11,110 | D13: =SUM('Time Series Data'!DC7:DC372) -> 11,790 | E13: 0 | F13: =SUM('Time Series Data'!DD7:DD372)*BatteryPower -> 3,134,978 | H13: 4 | I13: =SUM($I$37:$I$48)-SUM($J$37:$J$48) -> 11,110 | J13: =SUM('Time Series Data'!EU7:EU372) -> 16,003 | K13: 0 | L13: =SUM('Time Series Data'!EV7:EV372)*BatteryPower -> 3,590,056 | O13: 4 | P13: =(SUM('Time Series Data'!O7:O8790)+SUM('Time Series Data'!N7:N8790)) -> 3,094,896.82 | Q13: 0.00 | R13: =D25*Rndtrp_eff -> 17,729.42 | S13: 0.00 | T13: =P13-(D25-R13) -> 3,093,425.34 | U13: 0.00 | V13: 3,093,425.34 | W13: =T13 -> 3,093,425.34
B14: 5 | C14: =SUM($I$54:$I$65)-SUM($J$54:$J$65) -> 10,359 | D14: =SUM('Time Series Data'!$DF$7:$DF$372) -> 25,282 | E14: =SUM('Time Series Data'!DK7:DK372) -> 807,780 | F14: 0 | H14: 5 | I14: =SUM($I$71:$I$82)-SUM($J$71:$J$82) -> 10,560 | J14: =SUM('Time Series Data'!EX7:EX372) -> 25,282 | K14: =SUM('Time Series Data'!FB7:FB372) -> 1,184,056 | L14: 0 | O14: 5 | P14: =SUM('Time Series Data'!AZ7:AZ372) -> 457,377.00 | Q14: =(SUM('Time Series Data'!AE7:AE8790)+SUM('Time Series Data'!AB7:AB8790))-P14 -> 2,506,544.00 | R14: See left - CP & Local | S14: 807,780.26 | T14: =S14+P14 -> 1,265,157.25 | U14: =Q14-E26 -> 1,631,720.75 | V14: 2,896,878.00 | W14: =P14 -> 457,377.00
B15: 6 | C15: =SUM($I$54:$I$65)-SUM($J$54:$J$65) -> 10,359 | D15: =SUM('Time Series Data'!DM7:DM372) -> 25,282 | E15: 0 | F15: =SUM('Time Series Data'!DP7:DP372)*BatteryPower -> 3,033,850 | H15: 6 | I15: =SUM($I$71:$I$82)-SUM($J$71:$J$82) -> 10,560 | J15: =SUM('Time Series Data'!FD7:FD372) -> 25,282 | K15: 0 | L15: =SUM('Time Series Data'!FF7:FF372)*BatteryPower -> 3,640,620 | O15: 6 | P15: =P14+Q14 -> 2,963,921.00 | Q15: 0.00 | R15: See left - CP & Local | S15: 0.00 | T15: =S15+P15 -> 2,963,921.00 | U15: 0.00 | V15: 2,963,921.00 | W15: =P15 -> 2,963,921.00
B16: 7 | C16: 0 | D16: =SUM('Time Series Data'!DR7:DR372) -> 25,282 | E16: =SUM('Time Series Data'!DU7:DU372) -> 1,382,555 | F16: =SUM('Time Series Data'!DV7:DV372)*BatteryPower -> 5,056,417 | H16: 7 | I16: 0 | J16: =SUM('Time Series Data'!FH7:FH372) -> 25,282 | K16: =SUM('Time Series Data'!FK7:FK372) -> 1,625,676 | L16: =SUM('Time Series Data'!FL7:FL372)*BatteryPower -> 5,056,417 | O16: 7 | P16: 0.00 | Q16: 0.00 | R16: =SUM('Time Series Data'!BB7:BB372) -> 10,534.20 | S16: 1,382,555.20 | T16: =SUM('Time Series Data'!BA7:BA372)+S16+R16 -> 1,864,819.99 | U16: =SUM('Time Series Data'!$AR$7:$AR$372)-SUM('Time Series Data'!$BA$7:$BA$372)-E28-R16/Rndtrp_eff-((SUM('Time Series Data'!$X$7:$X$8790)-R16)/Rndtrp_eff-(SUM('Time Series Data'!$X$7:$X$8790)-R16)) -> 1,122,509.54 | V16: 2,987,329.52 | W16: =SUM('Time Series Data'!BA7:BA372)+R16 -> 482,264.79
B17: 8 | C17: 0 | D17: =SUM('Time Series Data'!DX7:DX372) -> 25,282 | E17: =SUM('Time Series Data'!EB7:EB372) -> 1,382,555 | F17: =SUM('Time Series Data'!DY7:DY372)*BatteryPower -> 5,056,417 | H17: 8 | I17: 0 | J17: =SUM('Time Series Data'!FN7:FN372) -> 25,282 | K17: =SUM('Time Series Data'!FR7:FR372) -> 1,625,676 | L17: =SUM('Time Series Data'!FO7:FO372)*BatteryPower -> 5,056,417 | O17: 8 | P17: 0.00 | Q17: 0.00 | R17: =R16 -> 10,534.20 | S17: 1,382,555.20 | T17: =SUM('Time Series Data'!BA7:BA372)+S17+R17 -> 1,864,819.99 | U17: =SUM('Time Series Data'!$AR$7:$AR$372)-SUM('Time Series Data'!$BA$7:$BA$372)-E29-R17/Rndtrp_eff-((SUM('Time Series Data'!$X$7:$X$8790)-R17)/Rndtrp_eff-(SUM('Time Series Data'!$X$7:$X$8790)-R17)) -> 1,122,509.54 | V17: 2,987,329.52 | W17: =SUM('Time Series Data'!BA7:BA372)+R17 -> 482,264.79
B19: Solar Only | H19: Solar & Grid
B20: Annually | C20: Local Demand Reduction | D20: Coincident Pk Demand Reduction | E20: Energy Arbitrage moved | F20: Ancillary services provided | H20: Annually | I20: Local Demand Reduction | J20: Coincident Pk Demand Reduction | K20: Energy Arbitrage moved | L20: Ancillary services provided | O20: Solar & Grid | P20: on peak (no TOU) | Q20: off peak | R20: On peak (moved from Off) | S20: On - from Off | T20: Totals | W20: Non EA
B21: Scenario | C21: kWh | D21: kWh | E21: kWh | F21: kWh | H21: Scenario | I21: kWh | J21: kWh | K21: kWh | L21: kWh | O21: Scenario | P21: Local | Q21: Local | R21: CP | S21: EA | T21: ON | U21: OFF | V21: Grid | W21: ON Peak
B22: 1 | C22: =SUM('Time Series Data'!T7:T8766) -> 126,702 | D22: 0 | E22: =E10/Rndtrp_eff -> 903,061 | F22: =F10/BatteryPower*Effective_Battery_Capacity*Freq_Reg_EnergyUse -> 1,966,173 | H22: 1 | I22: =SUM('Time Series Data'!T7:T8766) -> 126,702 | J22: 0 | K22: =K10/Rndtrp_eff -> 1,303,123 | L22: =L10/BatteryPower*Effective_Battery_Capacity*Freq_Reg_EnergyUse -> 2,242,666 | O22: 1 | P22: =SUM('Time Series Data'!BD7:BD372) -> 477,503.42 | Q22: =(SUM('Time Series Data'!O7:O8790)+SUM('Time Series Data'!N7:N8790)*Batt_PV_Perc)-P22 -> 2,617,393.39 | R22: 0.00 | S22: =IF(WholesaleEnergyCost_2>PPACostPerKWh,(SUM('Time Series Data'!$BE$7:$BE$372)/K22)*K22,0) -> 0.00 | T22: =P22+S22*Rndtrp_eff -> 477,503.42 | U22: =Q22-S22 -> 2,617,393.39 | V22: =T22+U22 -> 3,094,896.82
B23: 2 | C23: =SUM('Time Series Data'!T7:T8766) -> 126,702 | D23: 0 | E23: =E11/Rndtrp_eff -> 903,061 | F23: =F11/BatteryPower*Effective_Battery_Capacity*Freq_Reg_EnergyUse -> 1,966,173 | H23: 2 | I23: =SUM('Time Series Data'!T7:T8766) -> 126,702 | J23: 0 | K23: =K11/Rndtrp_eff -> 1,303,123 | L23: =L11/BatteryPower*Effective_Battery_Capacity*Freq_Reg_EnergyUse -> 2,242,666 | O23: 2 | P23: =P22 -> 477,503.42 | Q23: =Q22 -> 2,617,393.39 | R23: 0.00 | S23: =IF(WholesaleEnergyCost_2>PPACostPerKWh,(SUMIF('Time Series Data'!$EK$7:$EK$372,"<>"&Anc_Svc_DailyHrs,'Time Series Data'!$BE$7:$BE$372)/K23)*K23,0) -> 0.00 | T23: =P23+S23*Rndtrp_eff -> 477,503.42 | U23: =Q23-S23 -> 2,617,393.39 | V23: =T23+U23 -> 3,094,896.82
B24: 3 | C24: =SUM('Time Series Data'!T7:T8766) -> 126,702 | D24: =SUMIF('Time Series Data'!CB7:CB372,">0",'Time Series Data'!AU7:AU372) -> 19,201 | E24: =E12/Rndtrp_eff -> 895,392 | F24: 0 | H24: 3 | I24: =SUM('Time Series Data'!T7:T8766) -> 126,702 | J24: =SUMIF('Time Series Data'!BV7:BV372,1,'Time Series Data'!CC7:CC372)*Effective_Battery_Capacity/Rndtrp_eff -> 34,658 | K24: =K12/Rndtrp_eff -> 1,282,328 | L24: 0 | O24: 3 | P24: =P22 -> 477,503.42 | Q24: =Q22 -> 2,617,393.39 | R24: =IF(WholesaleEnergyCost_2>PPACostPerKWh,SUM('Time Series Data'!$BF$7:$BF$372),0)+IF(WholesaleEnergyCost_1>PPACostPerKWh,SUM('Time Series Data'!$BG$7:$BG$372),0) -> 0.00 | S24: =IF(WholesaleEnergyCost_2>PPACostPerKWh,(SUMIF('Time Series Data'!$DA$7:$DA$372,">0",'Time Series Data'!$BE$7:$BE$372)/K24)*K24,0) -> 0.00 | T24: =P24+(S24+R24)*Rndtrp_eff -> 477,503.42 | U24: =Q24-S24-R24 -> 2,617,393.39 | V24: =T24+U24 -> 3,094,896.82
B25: 4 | C25: =SUM('Time Series Data'!T7:T8766) -> 126,702 | D25: =SUMIF('Time Series Data'!CB7:CB372,">0",'Time Series Data'!AU7:AU372) -> 19,201 | E25: 0 | F25: =F13/BatteryPower*Effective_Battery_Capacity*Freq_Reg_EnergyUse -> 1,904,730 | H25: 4 | I25: =SUM('Time Series Data'!T7:T8766) -> 126,702 | J25: =SUMIF('Time Series Data'!BV7:BV372,1,'Time Series Data'!CC7:CC372)*Effective_Battery_Capacity/Rndtrp_eff -> 34,658 | K25: 0 | L25: =L13/BatteryPower*Effective_Battery_Capacity*Freq_Reg_EnergyUse -> 2,181,223 | O25: 4 | P25: =(SUM('Time Series Data'!O7:O8790)+SUM('Time Series Data'!N7:N8790)*Batt_PV_Perc) -> 3,094,896.82 | Q25: 0.00 | R25: =IF(WholesaleEnergyCost_2>PPACostPerKWh,(SUMIFS('Time Series Data'!$BH$7:$BH$372,'Time Series Data'!BV7:BV372,1,'Time Series Data'!CC7:CC372,1)/J25)*J25,0) -> 0.00 | S25: 0.00 | T25: =P25-(R25-(R25*Rndtrp_eff)) -> 3,094,896.82 | U25: 0.00 | V25: 3,094,896.82
B26: 5 | C26: =SUM('Time Series Data'!AW7:AW372)/Rndtrp_eff -> 105,095 | D26: =COUNTIF('Time Series Data'!$DF$7:$DF$372,">0")*Effective_Battery_Capacity/Rndtrp_eff -> 83,178 | E26: =E14/Rndtrp_eff -> 874,823 | F26: 0 | H26: 5 | I26: =SUM('Time Series Data'!AV7:AV372)/Rndtrp_eff -> 109,389 | J26: =COUNTIF('Time Series Data'!EX7:EX372,">0")*Effective_Battery_Capacity/Rndtrp_eff -> 83,178 | K26: =K14/Rndtrp_eff -> 1,282,328 | L26: 0 | O26: 5 | P26: =SUMIF('Time Series Data'!I7:I8790,0,'Time Series Data'!Y7:Y8790)*Batt_PV_Perc -> 9,385.06 | Q26: =SUMIF('Time Series Data'!I7:I8790,1,'Time Series Data'!Y7:Y8790)*Batt_PV_Perc -> 91,621.06 | R26: =(SUMIF('Time Series Data'!I7:I8790,0,'Time Series Data'!X7:X8790))/SUM('Time Series Data'!X7:X8790)*J26*Rndtrp_eff*((SUM('Time Series Data'!BP7:BP372)/J26)+IF(WholesaleEnergyCost_1>PPACostPerKWh,(SUM('Time Series Data'!BQ7:BQ372)/J26),0)) -> 0.00 | S26: =SUM('Time Series Data'!BL7:BL372) -> 0.00 | T26: =S26*Rndtrp_eff+R26+P26+SUM('Time Series Data'!BN7:BN372) -> 652,102.45 | U26: =SUM('Time Series Data'!BM7:BM372)+Q26 -> 2,444,395.06 | V26: 3,096,497.51
B27: 6 | C27: =SUM('Time Series Data'!AW7:AW372)/Rndtrp_eff -> 105,095 | D27: =COUNTIF('Time Series Data'!$DM$7:$DM$372,">0")*Effective_Battery_Capacity/Rndtrp_eff -> 83,178 | E27: 0 | F27: =F15/BatteryPower*Effective_Battery_Capacity*Freq_Reg_EnergyUse -> 1,843,287 | H27: 6 | I27: =SUM('Time Series Data'!AV7:AV372)/Rndtrp_eff -> 109,389 | J27: =COUNTIF('Time Series Data'!FD7:FD372,">0")*Effective_Battery_Capacity/Rndtrp_eff -> 83,178 | K27: 0 | L27: =L15/BatteryPower*Effective_Battery_Capacity*Freq_Reg_EnergyUse -> 2,211,944 | O27: 6 | P27: =Batt_PV_Perc*SUM('Time Series Data'!Y7:Y8766) -> 101,006.12 | Q27: 0.00 | R27: =SUM('Time Series Data'!BP7:BP372)+SUM('Time Series Data'!BQ7:BQ372) -> 0.00 | S27: 0.00 | T27: =SUM('Time Series Data'!AG7:AG8790)-(R27-R27*Rndtrp_eff)+P27 -> 3,096,497.51 | U27: 0.00 | V27: 3,096,497.51
B28: 7 | C28: 0 | D28: =COUNTIF('Time Series Data'!$DR$7:$DR$372,">0")*Effective_Battery_Capacity/Rndtrp_eff -> 83,178 | E28: =E16/Rndtrp_eff -> 1,497,303 | F28: =F16/BatteryPower*Effective_Battery_Capacity*Freq_Reg_EnergyUse -> 3,072,145 | H28: 7 | I28: 0 | J28: =COUNTIF('Time Series Data'!FH7:FH372,">0")*Effective_Battery_Capacity/Rndtrp_eff -> 83,178 | K28: =K16/Rndtrp_eff -> 1,760,602 | L28: =L16/BatteryPower*Effective_Battery_Capacity*Freq_Reg_EnergyUse -> 3,072,145 | O28: 7 | P28: 0.00 | Q28: 0.00 | R28: =R26 -> 0.00 | S28: =IF(WholesaleEnergyCost_2>PPACostPerKWh,SUMIF('Time Series Data'!$FK$7:$FK$372,">0",'Time Series Data'!$BS$7:$BS$372),0) -> 0.00 | T28: =SUMIF('Time Series Data'!I7:I8790,0,'Time Series Data'!U7:U8790)+(R28+S28)*Rndtrp_eff -> 645,223.62 | U28: =SUMIF('Time Series Data'!I7:I8790,1,'Time Series Data'!U7:U8790)-(R28+S28) -> 2,463,148.24 | V28: 3,108,371.86
B29: 8 | C29: 0 | D29: =COUNTIF('Time Series Data'!$DX$7:$DX$372,">0")*Effective_Battery_Capacity/Rndtrp_eff -> 83,178 | E29: =E17/Rndtrp_eff -> 1,497,303 | F29: =F17/BatteryPower*Effective_Battery_Capacity*Freq_Reg_EnergyUse -> 3,072,145 | H29: 8 | I29: 0 | J29: =COUNTIF('Time Series Data'!FN7:FN372,">0")*Effective_Battery_Capacity/Rndtrp_eff -> 83,178 | K29: =K17/Rndtrp_eff -> 1,760,602 | L29: =L17/BatteryPower*Effective_Battery_Capacity*Freq_Reg_EnergyUse -> 3,072,145 | O29: 8 | P29: 0.00 | Q29: 0.00 | R29: =R28 -> 0.00 | S29: =S28 -> 0.00 | T29: =T28 -> 645,223.62 | U29: =U28 -> 2,463,148.24 | V29: 3,108,371.86
O31: Assumption - AS does not shoft energy interhourly, also all energy from this is assumed to be grid based, even when system is charged by solar only since it is not known when the AS will operate
H33: All
H34: Scenarios 1-4
C35: Energy Arbitrage | E35: Ancillary Services | H35: Local Calculations
B36: Month | C36: Month | D36: Selection | E36: Month | F36: Selection | H36: Month | I36: Peak Demand (kW) | J36: New Peak (kW) | K36: date old peak | L36: date new peak | M36: Solar at CP (kW) | O36: CP Solar Reduction (kW)
B37: 1 | C37: January | D37: =VLOOKUP('General Inputs'!I22,Values!$K$4:$L$10,2,FALSE) -> 3 | E37: January | F37: =VLOOKUP('General Inputs'!F34,Values!$N$4:$O$12,2,FALSE) -> 2 | H37: 1 | I37: =_xlfn.MAXIFS('Time Series Data'!$K$7:$K$8766,'Time Series Data'!$E$7:$E$8766,H37) -> 83588 | J37: =_xlfn.MAXIFS('Time Series Data'!$V$7:$V$8766,'Time Series Data'!$E$7:$E$8766,H37) -> 83226 | K37: =INDEX('Time Series Data'!$C$7:$C$8766,MATCH(1,('Time Series Data'!$E$7:$E$8766=H37)*('Time Series Data'!$K$7:$K$8766=I37),0),1) -> 2020-01-02 | L37: =INDEX('Time Series Data'!$C$7:$C$8766,MATCH(1,('Time Series Data'!$E$7:$E$8766=H37)*('Time Series Data'!$V$7:$V$8766=J37),0),1) -> 2020-01-02 | M37: =INDEX('Time Series Data'!$O$7:$O$8766,MATCH(1,('Time Series Data'!$E$7:$E$8766=H37)*('Time Series Data'!$F$7:$F$8766=DAY('General Inputs'!E38))*('Time Series Data'!$G$7:$G$8766=HOUR('General Inputs'!F38)),0),1) -> 444 | O37: =IF(AND($B$3=1,$C$3>=3),SUM(M37:M48),SUM(M54:M65)) -> 567.65
B38: 2 | C38: February | D38: =D37 -> 3 | E38: February | F38: =F37 -> 2 | H38: 2 | I38: =_xlfn.MAXIFS('Time Series Data'!$K$7:$K$8766,'Time Series Data'!$E$7:$E$8766,H38) -> 74915 | J38: =_xlfn.MAXIFS('Time Series Data'!$V$7:$V$8766,'Time Series Data'!$E$7:$E$8766,H38) -> 73062 | K38: =INDEX('Time Series Data'!$C$7:$C$8766,MATCH(1,('Time Series Data'!$E$7:$E$8766=H38)*('Time Series Data'!$K$7:$K$8766=I38),0),1) -> 2020-02-08 | L38: =INDEX('Time Series Data'!$C$7:$C$8766,MATCH(1,('Time Series Data'!$E$7:$E$8766=H38)*('Time Series Data'!$V$7:$V$8766=J38),0),1) -> 2020-02-08 | M38: =INDEX('Time Series Data'!$O$7:$O$8766,MATCH(1,('Time Series Data'!$E$7:$E$8766=H38)*('Time Series Data'!$F$7:$F$8766=DAY('General Inputs'!E39))*('Time Series Data'!$G$7:$G$8766=HOUR('General Inputs'!F39)),0),1) -> 0
B39: 3 | C39: March | D39: =D38 -> 3 | E39: March | F39: =F38 -> 2 | H39: 3 | I39: =_xlfn.MAXIFS('Time Series Data'!$K$7:$K$8766,'Time Series Data'!$E$7:$E$8766,H39) -> 72247 | J39: =_xlfn.MAXIFS('Time Series Data'!$V$7:$V$8766,'Time Series Data'!$E$7:$E$8766,H39) -> 70972 | K39: =INDEX('Time Series Data'!$C$7:$C$8766,MATCH(1,('Time Series Data'!$E$7:$E$8766=H39)*('Time Series Data'!$K$7:$K$8766=I39),0),1) -> 2020-03-13 | L39: =INDEX('Time Series Data'!$C$7:$C$8766,MATCH(1,('Time Series Data'!$E$7:$E$8766=H39)*('Time Series Data'!$V$7:$V$8766=J39),0),1) -> 2020-03-13 | M39: =INDEX('Time Series Data'!$O$7:$O$8766,MATCH(1,('Time Series Data'!$E$7:$E$8766=H39)*('Time Series Data'!$F$7:$F$8766=DAY('General Inputs'!E40))*('Time Series Data'!$G$7:$G$8766=HOUR('General Inputs'!F40)),0),1) -> 0
B40: 4 | C40: April | D40: 3 | E40: April | F40: 2 | H40: 4 | I40: =_xlfn.MAXIFS('Time Series Data'!$K$7:$K$8766,'Time Series Data'!$E$7:$E$8766,H40) -> 61885 | J40: =_xlfn.MAXIFS('Time Series Data'!$V$7:$V$8766,'Time Series Data'!$E$7:$E$8766,H40) -> 60731 | K40: =INDEX('Time Series Data'!$C$7:$C$8766,MATCH(1,('Time Series Data'!$E$7:$E$8766=H40)*('Time Series Data'!$K$7:$K$8766=I40),0),1) -> 2020-04-01 | L40: =INDEX('Time Series Data'!$C$7:$C$8766,MATCH(1,('Time Series Data'!$E$7:$E$8766=H40)*('Time Series Data'!$V$7:$V$8766=J40),0),1) -> 2020-04-01 | M40: =INDEX('Time Series Data'!$O$7:$O$8766,MATCH(1,('Time Series Data'!$E$7:$E$8766=H40)*('Time Series Data'!$F$7:$F$8766=DAY('General Inputs'!E41))*('Time Series Data'!$G$7:$G$8766=HOUR('General Inputs'!F41)),0),1) -> 0
B41: 5 | C41: May | D41: 3 | E41: May | F41: 2 | H41: 5 | I41: =_xlfn.MAXIFS('Time Series Data'!$K$7:$K$8766,'Time Series Data'!$E$7:$E$8766,H41) -> 58001 | J41: =_xlfn.MAXIFS('Time Series Data'!$V$7:$V$8766,'Time Series Data'!$E$7:$E$8766,H41) -> 57428 | K41: =INDEX('Time Series Data'!$C$7:$C$8766,MATCH(1,('Time Series Data'!$E$7:$E$8766=H41)*('Time Series Data'!$K$7:$K$8766=I41),0),1) -> 2020-05-21 | L41: =INDEX('Time Series Data'!$C$7:$C$8766,MATCH(1,('Time Series Data'!$E$7:$E$8766=H41)*('Time Series Data'!$V$7:$V$8766=J41),0),1) -> 2020-05-21 | M41: =INDEX('Time Series Data'!$O$7:$O$8766,MATCH(1,('Time Series Data'!$E$7:$E$8766=H41)*('Time Series Data'!$F$7:$F$8766=DAY('General Inputs'!E42))*('Time Series Data'!$G$7:$G$8766=HOUR('General Inputs'!F42)),0),1) -> 29
B42: 6 | C42: June | D42: 3 | E42: June | F42: 2 | H42: 6 | I42: =_xlfn.MAXIFS('Time Series Data'!$K$7:$K$8766,'Time Series Data'!$E$7:$E$8766,H42) -> 54026 | J42: =_xlfn.MAXIFS('Time Series Data'!$V$7:$V$8766,'Time Series Data'!$E$7:$E$8766,H42) -> 53204 | K42: =INDEX('Time Series Data'!$C$7:$C$8766,MATCH(1,('Time Series Data'!$E$7:$E$8766=H42)*('Time Series Data'!$K$7:$K$8766=I42),0),1) -> 2020-06-30 | L42: =INDEX('Time Series Data'!$C$7:$C$8766,MATCH(1,('Time Series Data'!$E$7:$E$8766=H42)*('Time Series Data'!$V$7:$V$8766=J42),0),1) -> 2020-06-30 | M42: =INDEX('Time Series Data'!$O$7:$O$8766,MATCH(1,('Time Series Data'!$E$7:$E$8766=H42)*('Time Series Data'!$F$7:$F$8766=DAY('General Inputs'!E43))*('Time Series Data'!$G$7:$G$8766=HOUR('General Inputs'!F43)),0),1) -> 71
B43: 7 | C43: July | D43: 3 | E43: July | F43: 2 | H43: 7 | I43: =_xlfn.MAXIFS('Time Series Data'!$K$7:$K$8766,'Time Series Data'!$E$7:$E$8766,H43) -> 57580 | J43: =_xlfn.MAXIFS('Time Series Data'!$V$7:$V$8766,'Time Series Data'!$E$7:$E$8766,H43) -> 56570 | K43: =INDEX('Time Series Data'!$C$7:$C$8766,MATCH(1,('Time Series Data'!$E$7:$E$8766=H43)*('Time Series Data'!$K$7:$K$8766=I43),0),1) -> 2020-07-18 | L43: =INDEX('Time Series Data'!$C$7:$C$8766,MATCH(1,('Time Series Data'!$E$7:$E$8766=H43)*('Time Series Data'!$V$7:$V$8766=J43),0),1) -> 2020-07-18 | M43: =INDEX('Time Series Data'!$O$7:$O$8766,MATCH(1,('Time Series Data'!$E$7:$E$8766=H43)*('Time Series Data'!$F$7:$F$8766=DAY('General Inputs'!E44))*('Time Series Data'!$G$7:$G$8766=HOUR('General Inputs'!F44)),0),1) -> 0
B44: 8 | C44: August | D44: 3 | E44: August | F44: 2 | H44: 8 | I44: =_xlfn.MAXIFS('Time Series Data'!$K$7:$K$8766,'Time Series Data'!$E$7:$E$8766,H44) -> 56300 | J44: =_xlfn.MAXIFS('Time Series Data'!$V$7:$V$8766,'Time Series Data'!$E$7:$E$8766,H44) -> 55084 | K44: =INDEX('Time Series Data'!$C$7:$C$8766,MATCH(1,('Time Series Data'!$E$7:$E$8766=H44)*('Time Series Data'!$K$7:$K$8766=I44),0),1) -> 2020-08-08 | L44: =INDEX('Time Series Data'!$C$7:$C$8766,MATCH(1,('Time Series Data'!$E$7:$E$8766=H44)*('Time Series Data'!$V$7:$V$8766=J44),0),1) -> 2020-08-13 | M44: =INDEX('Time Series Data'!$O$7:$O$8766,MATCH(1,('Time Series Data'!$E$7:$E$8766=H44)*('Time Series Data'!$F$7:$F$8766=DAY('General Inputs'!E45))*('Time Series Data'!$G$7:$G$8766=HOUR('General Inputs'!F45)),0),1) -> 23
B45: 9 | C45: September | D45: 3 | E45: September | F45: 2 | H45: 9 | I45: =_xlfn.MAXIFS('Time Series Data'!$K$7:$K$8766,'Time Series Data'!$E$7:$E$8766,H45) -> 55237 | J45: =_xlfn.MAXIFS('Time Series Data'!$V$7:$V$8766,'Time Series Data'!$E$7:$E$8766,H45) -> 54405 | K45: =INDEX('Time Series Data'!$C$7:$C$8766,MATCH(1,('Time Series Data'!$E$7:$E$8766=H45)*('Time Series Data'!$K$7:$K$8766=I45),0),1) -> 2020-09-05 | L45: =INDEX('Time Series Data'!$C$7:$C$8766,MATCH(1,('Time Series Data'!$E$7:$E$8766=H45)*('Time Series Data'!$V$7:$V$8766=J45),0),1) -> 2020-09-05 | M45: =INDEX('Time Series Data'!$O$7:$O$8766,MATCH(1,('Time Series Data'!$E$7:$E$8766=H45)*('Time Series Data'!$F$7:$F$8766=DAY('General Inputs'!E46))*('Time Series Data'!$G$7:$G$8766=HOUR('General Inputs'!F46)),0),1) -> 0
B46: 10 | C46: October | D46: 3 | E46: October | F46: 2 | H46: 10 | I46: =_xlfn.MAXIFS('Time Series Data'!$K$7:$K$8766,'Time Series Data'!$E$7:$E$8766,H46) -> 68309 | J46: =_xlfn.MAXIFS('Time Series Data'!$V$7:$V$8766,'Time Series Data'!$E$7:$E$8766,H46) -> 66908 | K46: =INDEX('Time Series Data'!$C$7:$C$8766,MATCH(1,('Time Series Data'!$E$7:$E$8766=H46)*('Time Series Data'!$K$7:$K$8766=I46),0),1) -> 2020-10-31 | L46: =INDEX('Time Series Data'!$C$7:$C$8766,MATCH(1,('Time Series Data'!$E$7:$E$8766=H46)*('Time Series Data'!$V$7:$V$8766=J46),0),1) -> 2020-10-31 | M46: =INDEX('Time Series Data'!$O$7:$O$8766,MATCH(1,('Time Series Data'!$E$7:$E$8766=H46)*('Time Series Data'!$F$7:$F$8766=DAY('General Inputs'!E47))*('Time Series Data'!$G$7:$G$8766=HOUR('General Inputs'!F47)),0),1) -> 0
B47: 11 | C47: November | D47: 3 | E47: November | F47: 2 | H47: 11 | I47: =_xlfn.MAXIFS('Time Series Data'!$K$7:$K$8766,'Time Series Data'!$E$7:$E$8766,H47) -> 74721 | J47: =_xlfn.MAXIFS('Time Series Data'!$V$7:$V$8766,'Time Series Data'!$E$7:$E$8766,H47) -> 74719 | K47: =INDEX('Time Series Data'!$C$7:$C$8766,MATCH(1,('Time Series Data'!$E$7:$E$8766=H47)*('Time Series Data'!$K$7:$K$8766=I47),0),1) -> 2020-11-26 | L47: =INDEX('Time Series Data'!$C$7:$C$8766,MATCH(1,('Time Series Data'!$E$7:$E$8766=H47)*('Time Series Data'!$V$7:$V$8766=J47),0),1) -> 2020-11-26 | M47: =INDEX('Time Series Data'!$O$7:$O$8766,MATCH(1,('Time Series Data'!$E$7:$E$8766=H47)*('Time Series Data'!$F$7:$F$8766=DAY('General Inputs'!E48))*('Time Series Data'!$G$7:$G$8766=HOUR('General Inputs'!F48)),0),1) -> 0
B48: 12 | C48: December | D48: 3 | E48: December | F48: 2 | H48: 12 | I48: =_xlfn.MAXIFS('Time Series Data'!$K$7:$K$8766,'Time Series Data'!$E$7:$E$8766,H48) -> 83037 | J48: =_xlfn.MAXIFS('Time Series Data'!$V$7:$V$8766,'Time Series Data'!$E$7:$E$8766,H48) -> 82429 | K48: =INDEX('Time Series Data'!$C$7:$C$8766,MATCH(1,('Time Series Data'!$E$7:$E$8766=H48)*('Time Series Data'!$K$7:$K$8766=I48),0),1) -> 2020-12-30 | L48: =INDEX('Time Series Data'!$C$7:$C$8766,MATCH(1,('Time Series Data'!$E$7:$E$8766=H48)*('Time Series Data'!$V$7:$V$8766=J48),0),1) -> 2020-12-30 | M48: =INDEX('Time Series Data'!$O$7:$O$8766,MATCH(1,('Time Series Data'!$E$7:$E$8766=H48)*('Time Series Data'!$F$7:$F$8766=DAY('General Inputs'!E49))*('Time Series Data'!$G$7:$G$8766=HOUR('General Inputs'!F49)),0),1) -> 0
H50: Solar Only
H51: Scenarios 5-8
H52: Local Calculations
H53: Month | I53: Peak Demand (kW) | J53: New Peak (kW) | K53: date old peak | L53: date new peak | M53: Solar at CP (kW)
H54: 1 | I54: =_xlfn.MAXIFS('Time Series Data'!$K$7:$K$8766,'Time Series Data'!$E$7:$E$8766,H54) -> 83588 | J54: =_xlfn.MAXIFS('Time Series Data'!$AF$7:$AF$8766,'Time Series Data'!$E$7:$E$8766,H54) -> 83588 | K54: =INDEX('Time Series Data'!$C$7:$C$8766,MATCH(1,('Time Series Data'!$E$7:$E$8766=H54)*('Time Series Data'!$K$7:$K$8766=I54),0),1) -> 2020-01-02 | L54: =INDEX('Time Series Data'!$C$7:$C$8766,MATCH(1,('Time Series Data'!$E$7:$E$8766=H54)*('Time Series Data'!$AF$7:$AF$8766=J54),0),1) -> 2020-01-02 | M54: =INDEX('Time Series Data'!$U$7:$U$8766,MATCH(1,('Time Series Data'!$E$7:$E$8766=H37)*('Time Series Data'!$F$7:$F$8766=DAY('General Inputs'!E38))*('Time Series Data'!$G$7:$G$8766=HOUR('General Inputs'!F38)),0),1) -> 444
H55: 2 | I55: =_xlfn.MAXIFS('Time Series Data'!$K$7:$K$8766,'Time Series Data'!$E$7:$E$8766,H55) -> 74915 | J55: =_xlfn.MAXIFS('Time Series Data'!$AF$7:$AF$8766,'Time Series Data'!$E$7:$E$8766,H55) -> 73061 | K55: =INDEX('Time Series Data'!$C$7:$C$8766,MATCH(1,('Time Series Data'!$E$7:$E$8766=H55)*('Time Series Data'!$K$7:$K$8766=I55),0),1) -> 2020-02-08 | L55: =INDEX('Time Series Data'!$C$7:$C$8766,MATCH(1,('Time Series Data'!$E$7:$E$8766=H55)*('Time Series Data'!$AF$7:$AF$8766=J55),0),1) -> 2020-02-19 | M55: =INDEX('Time Series Data'!$U$7:$U$8766,MATCH(1,('Time Series Data'!$E$7:$E$8766=H38)*('Time Series Data'!$F$7:$F$8766=DAY('General Inputs'!E39))*('Time Series Data'!$G$7:$G$8766=HOUR('General Inputs'!F39)),0),1) -> 0
H56: 3 | I56: =_xlfn.MAXIFS('Time Series Data'!$K$7:$K$8766,'Time Series Data'!$E$7:$E$8766,H56) -> 72247 | J56: =_xlfn.MAXIFS('Time Series Data'!$AF$7:$AF$8766,'Time Series Data'!$E$7:$E$8766,H56) -> 70140 | K56: =INDEX('Time Series Data'!$C$7:$C$8766,MATCH(1,('Time Series Data'!$E$7:$E$8766=H56)*('Time Series Data'!$K$7:$K$8766=I56),0),1) -> 2020-03-13 | L56: =INDEX('Time Series Data'!$C$7:$C$8766,MATCH(1,('Time Series Data'!$E$7:$E$8766=H56)*('Time Series Data'!$AF$7:$AF$8766=J56),0),1) -> 2020-03-13 | M56: =INDEX('Time Series Data'!$U$7:$U$8766,MATCH(1,('Time Series Data'!$E$7:$E$8766=H39)*('Time Series Data'!$F$7:$F$8766=DAY('General Inputs'!E40))*('Time Series Data'!$G$7:$G$8766=HOUR('General Inputs'!F40)),0),1) -> 0
H57: 4 | I57: =_xlfn.MAXIFS('Time Series Data'!$K$7:$K$8766,'Time Series Data'!$E$7:$E$8766,H57) -> 61885 | J57: =_xlfn.MAXIFS('Time Series Data'!$AF$7:$AF$8766,'Time Series Data'!$E$7:$E$8766,H57) -> 61885 | K57: =INDEX('Time Series Data'!$C$7:$C$8766,MATCH(1,('Time Series Data'!$E$7:$E$8766=H57)*('Time Series Data'!$K$7:$K$8766=I57),0),1) -> 2020-04-01 | L57: =INDEX('Time Series Data'!$C$7:$C$8766,MATCH(1,('Time Series Data'!$E$7:$E$8766=H57)*('Time Series Data'!$AF$7:$AF$8766=J57),0),1) -> 2020-04-01 | M57: =INDEX('Time Series Data'!$U$7:$U$8766,MATCH(1,('Time Series Data'!$E$7:$E$8766=H40)*('Time Series Data'!$F$7:$F$8766=DAY('General Inputs'!E41))*('Time Series Data'!$G$7:$G$8766=HOUR('General Inputs'!F41)),0),1) -> 0
H58: 5 | I58: =_xlfn.MAXIFS('Time Series Data'!$K$7:$K$8766,'Time Series Data'!$E$7:$E$8766,H58) -> 58001 | J58: =_xlfn.MAXIFS('Time Series Data'!$AF$7:$AF$8766,'Time Series Data'!$E$7:$E$8766,H58) -> 57428 | K58: =INDEX('Time Series Data'!$C$7:$C$8766,MATCH(1,('Time Series Data'!$E$7:$E$8766=H58)*('Time Series Data'!$K$7:$K$8766=I58),0),1) -> 2020-05-21 | L58: =INDEX('Time Series Data'!$C$7:$C$8766,MATCH(1,('Time Series Data'!$E$7:$E$8766=H58)*('Time Series Data'!$AF$7:$AF$8766=J58),0),1) -> 2020-05-21 | M58: =INDEX('Time Series Data'!$U$7:$U$8766,MATCH(1,('Time Series Data'!$E$7:$E$8766=H41)*('Time Series Data'!$F$7:$F$8766=DAY('General Inputs'!E42))*('Time Series Data'!$G$7:$G$8766=HOUR('General Inputs'!F42)),0),1) -> 29
H59: 6 | I59: =_xlfn.MAXIFS('Time Series Data'!$K$7:$K$8766,'Time Series Data'!$E$7:$E$8766,H59) -> 54026 | J59: =_xlfn.MAXIFS('Time Series Data'!$AF$7:$AF$8766,'Time Series Data'!$E$7:$E$8766,H59) -> 53204 | K59: =INDEX('Time Series Data'!$C$7:$C$8766,MATCH(1,('Time Series Data'!$E$7:$E$8766=H59)*('Time Series Data'!$K$7:$K$8766=I59),0),1) -> 2020-06-30 | L59: =INDEX('Time Series Data'!$C$7:$C$8766,MATCH(1,('Time Series Data'!$E$7:$E$8766=H59)*('Time Series Data'!$AF$7:$AF$8766=J59),0),1) -> 2020-06-30 | M59: =INDEX('Time Series Data'!$U$7:$U$8766,MATCH(1,('Time Series Data'!$E$7:$E$8766=H42)*('Time Series Data'!$F$7:$F$8766=DAY('General Inputs'!E43))*('Time Series Data'!$G$7:$G$8766=HOUR('General Inputs'!F43)),0),1) -> 71
H60: 7 | I60: =_xlfn.MAXIFS('Time Series Data'!$K$7:$K$8766,'Time Series Data'!$E$7:$E$8766,H60) -> 57580 | J60: =_xlfn.MAXIFS('Time Series Data'!$AF$7:$AF$8766,'Time Series Data'!$E$7:$E$8766,H60) -> 56570 | K60: =INDEX('Time Series Data'!$C$7:$C$8766,MATCH(1,('Time Series Data'!$E$7:$E$8766=H60)*('Time Series Data'!$K$7:$K$8766=I60),0),1) -> 2020-07-18 | L60: =INDEX('Time Series Data'!$C$7:$C$8766,MATCH(1,('Time Series Data'!$E$7:$E$8766=H60)*('Time Series Data'!$AF$7:$AF$8766=J60),0),1) -> 2020-07-18 | M60: =INDEX('Time Series Data'!$U$7:$U$8766,MATCH(1,('Time Series Data'!$E$7:$E$8766=H43)*('Time Series Data'!$F$7:$F$8766=DAY('General Inputs'!E44))*('Time Series Data'!$G$7:$G$8766=HOUR('General Inputs'!F44)),0),1) -> 0
H61: 8 | I61: =_xlfn.MAXIFS('Time Series Data'!$K$7:$K$8766,'Time Series Data'!$E$7:$E$8766,H61) -> 56300 | J61: =_xlfn.MAXIFS('Time Series Data'!$AF$7:$AF$8766,'Time Series Data'!$E$7:$E$8766,H61) -> 55152 | K61: =INDEX('Time Series Data'!$C$7:$C$8766,MATCH(1,('Time Series Data'!$E$7:$E$8766=H61)*('Time Series Data'!$K$7:$K$8766=I61),0),1) -> 2020-08-08 | L61: =INDEX('Time Series Data'!$C$7:$C$8766,MATCH(1,('Time Series Data'!$E$7:$E$8766=H61)*('Time Series Data'!$AF$7:$AF$8766=J61),0),1) -> 2020-08-13 | M61: =INDEX('Time Series Data'!$U$7:$U$8766,MATCH(1,('Time Series Data'!$E$7:$E$8766=H44)*('Time Series Data'!$F$7:$F$8766=DAY('General Inputs'!E45))*('Time Series Data'!$G$7:$G$8766=HOUR('General Inputs'!F45)),0),1) -> 23
H62: 9 | I62: =_xlfn.MAXIFS('Time Series Data'!$K$7:$K$8766,'Time Series Data'!$E$7:$E$8766,H62) -> 55237 | J62: =_xlfn.MAXIFS('Time Series Data'!$AF$7:$AF$8766,'Time Series Data'!$E$7:$E$8766,H62) -> 54405 | K62: =INDEX('Time Series Data'!$C$7:$C$8766,MATCH(1,('Time Series Data'!$E$7:$E$8766=H62)*('Time Series Data'!$K$7:$K$8766=I62),0),1) -> 2020-09-05 | L62: =INDEX('Time Series Data'!$C$7:$C$8766,MATCH(1,('Time Series Data'!$E$7:$E$8766=H62)*('Time Series Data'!$AF$7:$AF$8766=J62),0),1) -> 2020-09-05 | M62: =INDEX('Time Series Data'!$U$7:$U$8766,MATCH(1,('Time Series Data'!$E$7:$E$8766=H45)*('Time Series Data'!$F$7:$F$8766=DAY('General Inputs'!E46))*('Time Series Data'!$G$7:$G$8766=HOUR('General Inputs'!F46)),0),1) -> 0
H63: 10 | I63: =_xlfn.MAXIFS('Time Series Data'!$K$7:$K$8766,'Time Series Data'!$E$7:$E$8766,H63) -> 68309 | J63: =_xlfn.MAXIFS('Time Series Data'!$AF$7:$AF$8766,'Time Series Data'!$E$7:$E$8766,H63) -> 66908 | K63: =INDEX('Time Series Data'!$C$7:$C$8766,MATCH(1,('Time Series Data'!$E$7:$E$8766=H63)*('Time Series Data'!$K$7:$K$8766=I63),0),1) -> 2020-10-31 | L63: =INDEX('Time Series Data'!$C$7:$C$8766,MATCH(1,('Time Series Data'!$E$7:$E$8766=H63)*('Time Series Data'!$AF$7:$AF$8766=J63),0),1) -> 2020-10-31 | M63: =INDEX('Time Series Data'!$U$7:$U$8766,MATCH(1,('Time Series Data'!$E$7:$E$8766=H46)*('Time Series Data'!$F$7:$F$8766=DAY('General Inputs'!E47))*('Time Series Data'!$G$7:$G$8766=HOUR('General Inputs'!F47)),0),1) -> 69
H64: 11 | I64: =_xlfn.MAXIFS('Time Series Data'!$K$7:$K$8766,'Time Series Data'!$E$7:$E$8766,H64) -> 74721 | J64: =_xlfn.MAXIFS('Time Series Data'!$AF$7:$AF$8766,'Time Series Data'!$E$7:$E$8766,H64) -> 74719 | K64: =INDEX('Time Series Data'!$C$7:$C$8766,MATCH(1,('Time Series Data'!$E$7:$E$8766=H64)*('Time Series Data'!$K$7:$K$8766=I64),0),1) -> 2020-11-26 | L64: =INDEX('Time Series Data'!$C$7:$C$8766,MATCH(1,('Time Series Data'!$E$7:$E$8766=H64)*('Time Series Data'!$AF$7:$AF$8766=J64),0),1) -> 2020-11-26 | M64: =INDEX('Time Series Data'!$U$7:$U$8766,MATCH(1,('Time Series Data'!$E$7:$E$8766=H47)*('Time Series Data'!$F$7:$F$8766=DAY('General Inputs'!E48))*('Time Series Data'!$G$7:$G$8766=HOUR('General Inputs'!F48)),0),1) -> 0
H65: 12 | I65: =_xlfn.MAXIFS('Time Series Data'!$K$7:$K$8766,'Time Series Data'!$E$7:$E$8766,H65) -> 83037 | J65: =_xlfn.MAXIFS('Time Series Data'!$AF$7:$AF$8766,'Time Series Data'!$E$7:$E$8766,H65) -> 82429 | K65: =INDEX('Time Series Data'!$C$7:$C$8766,MATCH(1,('Time Series Data'!$E$7:$E$8766=H65)*('Time Series Data'!$K$7:$K$8766=I65),0),1) -> 2020-12-30 | L65: =INDEX('Time Series Data'!$C$7:$C$8766,MATCH(1,('Time Series Data'!$E$7:$E$8766=H65)*('Time Series Data'!$AF$7:$AF$8766=J65),0),1) -> 2020-12-30 | M65: =INDEX('Time Series Data'!$U$7:$U$8766,MATCH(1,('Time Series Data'!$E$7:$E$8766=H48)*('Time Series Data'!$F$7:$F$8766=DAY('General Inputs'!E49))*('Time Series Data'!$G$7:$G$8766=HOUR('General Inputs'!F49)),0),1) -> 0
H67: Solar + Grid
H68: Scenarios 5-8
H69: Local Calculations
H70: Month | I70: Peak Demand (kW) | J70: New Peak (kW) | K70: date old peak | L70: date new peak | M70: Solar at CP (kW)
H71: 1 | I71: =_xlfn.MAXIFS('Time Series Data'!$K$7:$K$8766,'Time Series Data'!$E$7:$E$8766,H71) -> 83588 | J71: =_xlfn.MAXIFS('Time Series Data'!$AH$7:$AH$8766,'Time Series Data'!$E$7:$E$8766,H71) -> 83588 | K71: =INDEX('Time Series Data'!$C$7:$C$8766,MATCH(1,('Time Series Data'!$E$7:$E$8766=H71)*('Time Series Data'!$K$7:$K$8766=I71),0),1) -> 2020-01-02 | L71: =INDEX('Time Series Data'!$C$7:$C$8766,MATCH(1,('Time Series Data'!$E$7:$E$8766=H71)*('Time Series Data'!$AH$7:$AH$8766=J71),0),1) -> 2020-01-02 | M71: =M54 -> 444
H72: 2 | I72: =_xlfn.MAXIFS('Time Series Data'!$K$7:$K$8766,'Time Series Data'!$E$7:$E$8766,H72) -> 74915 | J72: =_xlfn.MAXIFS('Time Series Data'!$AH$7:$AH$8766,'Time Series Data'!$E$7:$E$8766,H72) -> 73061 | K72: =INDEX('Time Series Data'!$C$7:$C$8766,MATCH(1,('Time Series Data'!$E$7:$E$8766=H72)*('Time Series Data'!$K$7:$K$8766=I72),0),1) -> 2020-02-08 | L72: =INDEX('Time Series Data'!$C$7:$C$8766,MATCH(1,('Time Series Data'!$E$7:$E$8766=H72)*('Time Series Data'!$AH$7:$AH$8766=J72),0),1) -> 2020-02-19 | M72: =M55 -> 0
H73: 3 | I73: =_xlfn.MAXIFS('Time Series Data'!$K$7:$K$8766,'Time Series Data'!$E$7:$E$8766,H73) -> 72247 | J73: =_xlfn.MAXIFS('Time Series Data'!$AH$7:$AH$8766,'Time Series Data'!$E$7:$E$8766,H73) -> 70140 | K73: =INDEX('Time Series Data'!$C$7:$C$8766,MATCH(1,('Time Series Data'!$E$7:$E$8766=H73)*('Time Series Data'!$K$7:$K$8766=I73),0),1) -> 2020-03-13 | L73: =INDEX('Time Series Data'!$C$7:$C$8766,MATCH(1,('Time Series Data'!$E$7:$E$8766=H73)*('Time Series Data'!$AH$7:$AH$8766=J73),0),1) -> 2020-03-13 | M73: 0
H74: 4 | I74: =_xlfn.MAXIFS('Time Series Data'!$K$7:$K$8766,'Time Series Data'!$E$7:$E$8766,H74) -> 61885 | J74: =_xlfn.MAXIFS('Time Series Data'!$AH$7:$AH$8766,'Time Series Data'!$E$7:$E$8766,H74) -> 61752 | K74: =INDEX('Time Series Data'!$C$7:$C$8766,MATCH(1,('Time Series Data'!$E$7:$E$8766=H74)*('Time Series Data'!$K$7:$K$8766=I74),0),1) -> 2020-04-01 | L74: =INDEX('Time Series Data'!$C$7:$C$8766,MATCH(1,('Time Series Data'!$E$7:$E$8766=H74)*('Time Series Data'!$AH$7:$AH$8766=J74),0),1) -> 2020-04-01 | M74: 0
H75: 5 | I75: =_xlfn.MAXIFS('Time Series Data'!$K$7:$K$8766,'Time Series Data'!$E$7:$E$8766,H75) -> 58001 | J75: =_xlfn.MAXIFS('Time Series Data'!$AH$7:$AH$8766,'Time Series Data'!$E$7:$E$8766,H75) -> 57428 | K75: =INDEX('Time Series Data'!$C$7:$C$8766,MATCH(1,('Time Series Data'!$E$7:$E$8766=H75)*('Time Series Data'!$K$7:$K$8766=I75),0),1) -> 2020-05-21 | L75: =INDEX('Time Series Data'!$C$7:$C$8766,MATCH(1,('Time Series Data'!$E$7:$E$8766=H75)*('Time Series Data'!$AH$7:$AH$8766=J75),0),1) -> 2020-05-21 | M75: 29
H76: 6 | I76: =_xlfn.MAXIFS('Time Series Data'!$K$7:$K$8766,'Time Series Data'!$E$7:$E$8766,H76) -> 54026 | J76: =_xlfn.MAXIFS('Time Series Data'!$AH$7:$AH$8766,'Time Series Data'!$E$7:$E$8766,H76) -> 53204 | K76: =INDEX('Time Series Data'!$C$7:$C$8766,MATCH(1,('Time Series Data'!$E$7:$E$8766=H76)*('Time Series Data'!$K$7:$K$8766=I76),0),1) -> 2020-06-30 | L76: =INDEX('Time Series Data'!$C$7:$C$8766,MATCH(1,('Time Series Data'!$E$7:$E$8766=H76)*('Time Series Data'!$AH$7:$AH$8766=J76),0),1) -> 2020-06-30 | M76: 71
H77: 7 | I77: =_xlfn.MAXIFS('Time Series Data'!$K$7:$K$8766,'Time Series Data'!$E$7:$E$8766,H77) -> 57580 | J77: =_xlfn.MAXIFS('Time Series Data'!$AH$7:$AH$8766,'Time Series Data'!$E$7:$E$8766,H77) -> 56570 | K77: =INDEX('Time Series Data'!$C$7:$C$8766,MATCH(1,('Time Series Data'!$E$7:$E$8766=H77)*('Time Series Data'!$K$7:$K$8766=I77),0),1) -> 2020-07-18 | L77: =INDEX('Time Series Data'!$C$7:$C$8766,MATCH(1,('Time Series Data'!$E$7:$E$8766=H77)*('Time Series Data'!$AH$7:$AH$8766=J77),0),1) -> 2020-07-18 | M77: 0
H78: 8 | I78: =_xlfn.MAXIFS('Time Series Data'!$K$7:$K$8766,'Time Series Data'!$E$7:$E$8766,H78) -> 56300 | J78: =_xlfn.MAXIFS('Time Series Data'!$AH$7:$AH$8766,'Time Series Data'!$E$7:$E$8766,H78) -> 55084 | K78: =INDEX('Time Series Data'!$C$7:$C$8766,MATCH(1,('Time Series Data'!$E$7:$E$8766=H78)*('Time Series Data'!$K$7:$K$8766=I78),0),1) -> 2020-08-08 | L78: =INDEX('Time Series Data'!$C$7:$C$8766,MATCH(1,('Time Series Data'!$E$7:$E$8766=H78)*('Time Series Data'!$AH$7:$AH$8766=J78),0),1) -> 2020-08-13 | M78: 23
H79: 9 | I79: =_xlfn.MAXIFS('Time Series Data'!$K$7:$K$8766,'Time Series Data'!$E$7:$E$8766,H79) -> 55237 | J79: =_xlfn.MAXIFS('Time Series Data'!$AH$7:$AH$8766,'Time Series Data'!$E$7:$E$8766,H79) -> 54405 | K79: =INDEX('Time Series Data'!$C$7:$C$8766,MATCH(1,('Time Series Data'!$E$7:$E$8766=H79)*('Time Series Data'!$K$7:$K$8766=I79),0),1) -> 2020-09-05 | L79: =INDEX('Time Series Data'!$C$7:$C$8766,MATCH(1,('Time Series Data'!$E$7:$E$8766=H79)*('Time Series Data'!$AH$7:$AH$8766=J79),0),1) -> 2020-09-05 | M79: 0
H80: 10 | I80: =_xlfn.MAXIFS('Time Series Data'!$K$7:$K$8766,'Time Series Data'!$E$7:$E$8766,H80) -> 68309 | J80: =_xlfn.MAXIFS('Time Series Data'!$AH$7:$AH$8766,'Time Series Data'!$E$7:$E$8766,H80) -> 66908 | K80: =INDEX('Time Series Data'!$C$7:$C$8766,MATCH(1,('Time Series Data'!$E$7:$E$8766=H80)*('Time Series Data'!$K$7:$K$8766=I80),0),1) -> 2020-10-31 | L80: =INDEX('Time Series Data'!$C$7:$C$8766,MATCH(1,('Time Series Data'!$E$7:$E$8766=H80)*('Time Series Data'!$AH$7:$AH$8766=J80),0),1) -> 2020-10-31 | M80: 69
H81: 11 | I81: =_xlfn.MAXIFS('Time Series Data'!$K$7:$K$8766,'Time Series Data'!$E$7:$E$8766,H81) -> 74721 | J81: =_xlfn.MAXIFS('Time Series Data'!$AH$7:$AH$8766,'Time Series Data'!$E$7:$E$8766,H81) -> 74719 | K81: =INDEX('Time Series Data'!$C$7:$C$8766,MATCH(1,('Time Series Data'!$E$7:$E$8766=H81)*('Time Series Data'!$K$7:$K$8766=I81),0),1) -> 2020-11-26 | L81: =INDEX('Time Series Data'!$C$7:$C$8766,MATCH(1,('Time Series Data'!$E$7:$E$8766=H81)*('Time Series Data'!$AH$7:$AH$8766=J81),0),1) -> 2020-11-26 | M81: 0
H82: 12 | I82: =_xlfn.MAXIFS('Time Series Data'!$K$7:$K$8766,'Time Series Data'!$E$7:$E$8766,H82) -> 83037 | J82: =_xlfn.MAXIFS('Time Series Data'!$AH$7:$AH$8766,'Time Series Data'!$E$7:$E$8766,H82) -> 82429 | K82: =INDEX('Time Series Data'!$C$7:$C$8766,MATCH(1,('Time Series Data'!$E$7:$E$8766=H82)*('Time Series Data'!$K$7:$K$8766=I82),0),1) -> 2020-12-30 | L82: =INDEX('Time Series Data'!$C$7:$C$8766,MATCH(1,('Time Series Data'!$E$7:$E$8766=H82)*('Time Series Data'!$AH$7:$AH$8766=J82),0),1) -> 2020-12-30 | M82: 0

Sheet Calculations
D1: =IF(EEBatteryFlag="yes",1,0) -> 1 | Z1: =IF(OR(value_stack=7,value_stack=8),0,1) -> 1 | AA1: =IF(OR(value_stack=1,value_stack=2),0,1) -> 1 | AC1: =IF(InfrastructureFlag="yes",1,0) -> 1 | AE1: =IF(Arbitrage_Flag="yes",1,0) -> 1 | AF1: =IF(Anc_Svc_Flag="yes",1,0) -> 0 | AG1: =IF(MicrogridFlag="Yes",1,0) -> 0
G2: Electricity benefits | Q2: Electricity costs | Y2: Utility's cashflows
A3: Year | C3: Year | D3: Battery | E3: Battery Bank Life | F3: CumulativeBattery Capacity loss (%) | G3: PV generation (kWh) | H3: Utility avoided On-Peak wholesale energy due to PV (kWh) | I3: Utility avoided Off-Peak wholesale energy due to PV (kWh) | J3: Total avoided Energy | K3: Utility avoided local demand peak (kW) | L3: Utility avoided coincident peak due to PV (kW) | M3: Utility avoided coincident peak due to battery (kW) | N3: Energy Arbitrage (kWh) | O3: Ancillary Services (kW-h) | Q3: Utility wholesale energy cost 1 ($/kWh) | R3: Utility wholesale energy cost 2 ($/kWh) | S3: Utility energy cost for PPA /ESA ($/kWh) | T3: Utility demand cost [nominal] ($/kW) | U3: Utility coincident peak cost ($/kW) | V3: Value of Ancillary Services ($/kW-h) | X3: PPA energy cost | Y3: Avoided wholesale energy costs (PV) | Z3: Avoided local demand cost (PV/Batt) | AA3: Avoided coincident peak cost (PV) | AB3: Avoided coincident peak cost (Batt) | AC3: Infrastructure Deferral Value | AD3: Value of RECs (PV) | AE3: Revenue from Energy Arbitrage (Batt) | AF3: Revenue from Ancillary Services (Batt) | AG3: Microgrid Capital Costs | AH3: Utility's cashflow | AI3: Utility's cummulative cashflow
A4: 0 | C4: =Load_Profile_Year -> 2020 | AC4: =(InfCapCost-InfCapCost*((1+EEInflationRate)/(1+NominalCostOfCapital))^EEYrsDeferred)*AC1 -> $154,546 | AG4: =-Microgrid_Cap_Cost*AG$1 -> $0 | AH4: =SUM(X4:AG4) -> $154,546 | AI4: =AH4 -> $154,546
A5: 1 | C5: =C4+1 -> 2021 | D5: =D$1 -> 1 | E5: 1 | F5: =(CalendarDegradationRate+CycleDegradationRate)*(E5) -> 2.00% | G5: =PVFirstYearEnergy*(1-PV_DegradationRate)^(EEYear-1) -> 3,108,372 | H5: ='Value Stacking Basis'!$P$3*(1-PV_DegradationRate)^(EEYear-1) -> 1,321,376 | I5: ='Value Stacking Basis'!$Q$3*(1-PV_DegradationRate)^(EEYear-1) -> 1,703,430 | J5: =SUM(H5:I5) -> 3,024,806 | K5: =LocalDemandReduction*(1-F5)*EEBattery -> 10,888 | L5: =SUM(CP_PVReduction)*(1-PV_DegradationRate)^(EEYear-1) -> 568 | M5: =CP_demandreduction*(1-F5)*EEBattery -> 11,554 | N5: =EnergyArbitrage_kWh*(1-F5)*EEBattery -> 810,227 | O5: =Anc_svc_provided___kW_h -> 0 | Q5: =WholesaleEnergyCost_1*(1+EEElectricityEscalationRate)^(EEYear-1) -> $0.040 | R5: =WholesaleEnergyCost_2*(1+EEElectricityEscalationRate)^(EEYear-1) -> $0.028 | S5: =EnergyContractPrice*(1+ContractEscalator)^(EEYear-1) -> $0.085 | T5: =EEUtilityDemandCost*(1+DemandEscalationRt)^(EEYear-1) -> $10.25 | U5: =EEUtilityConcidentPeakCost*(1+DemandEscalationRt)^(EEYear-1) -> $3.00 | V5: =Anc_Svc_Price*EXP(-AncSvcDeclineRt*A5) -> $0.010 | X5: =-S5*G5 -> -$264,212 | Y5: =H5*Q5+I5*R5-AE5 -> $90,828 | Z5: =T5*K5*$Z$1 -> $111,597 | AA5: =U5*L5*$AA$1 -> $1,703 | AB5: =U5*M5 -> $34,661 | AC5: $0 | AD5: =EERECPrice*J5 -> $6,050 | AE5: =(Q5-R5)*N5 -> $9,723 | AF5: =O5*V5*$AF$1 -> $0 | AG5: $0 | AH5: -$9,650 | AI5: =AH5+AI4 -> $144,896
A6: =A5+1 -> 2 | C6: =C5+1 -> 2022 | D6: =D$1 -> 1 | E6: =IF(E5<Battery_Lifetime,E5+1,1) -> 2 | F6: 4.00% | G6: 3,092,830 | H6: ='Value Stacking Basis'!$P$3*(1-PV_DegradationRate)^(EEYear-1) -> 1,314,769 | I6: ='Value Stacking Basis'!$Q$3*(1-PV_DegradationRate)^(EEYear-1) -> 1,694,913 | J6: =SUM(H6:I6) -> 3,009,682 | K6: 10,665 | L6: 565 | M6: 11,318 | N6: 793,682 | O6: 0 | Q6: $0.041 | R6: $0.029 | S6: $0.085 | T6: $10.35 | U6: $3.03 | V6: $0.010 | X6: -$262,891 | Y6: =H6*Q6+I6*R6-AE6 -> $92,335 | Z6: =T6*K6*$Z$1 -> $110,412 | AA6: =U6*L6*$AA$1 -> $1,711 | AB6: $34,293 | AC6: $0 | AD6: $6,019 | AE6: $9,715 | AF6: =O6*V6*$AF$1 -> $0 | AG6: $0 | AH6: -$8,406 | AI6: =AH6+AI5 -> $136,490
A7: 3 | C7: 2023 | D7: 1 | E7: 3 | F7: 6.00% | G7: 3,077,366 | H7: ='Value Stacking Basis'!$P$3*(1-PV_DegradationRate)^(EEYear-1) -> 1,308,195 | I7: ='Value Stacking Basis'!$Q$3*(1-PV_DegradationRate)^(EEYear-1) -> 1,686,439 | J7: 2,994,634 | K7: 10,443 | L7: 562 | M7: 11,082 | N7: 777,137 | O7: 0 | Q7: $0.042 | R7: $0.029 | S7: $0.085 | T7: $10.46 | U7: $3.06 | V7: $0.009 | X7: -$261,576 | Y7: $93,867 | Z7: $109,191 | AA7: $1,720 | AB7: $33,914 | AC7: $0 | AD7: $5,989 | AE7: $9,702 | AF7: $0 | AG7: $0 | AH7: -$7,193 | AI7: $129,298
A8: 4 | C8: 2024 | D8: 1 | E8: 4 | F8: 8.00% | G8: 3,061,979 | H8: ='Value Stacking Basis'!$P$3*(1-PV_DegradationRate)^(EEYear-1) -> 1,301,654 | I8: ='Value Stacking Basis'!$Q$3*(1-PV_DegradationRate)^(EEYear-1) -> 1,678,007 | J8: 2,979,660 | K8: 10,221 | L8: 559 | M8: 10,846 | N8: 760,591 | O8: 0 | Q8: $0.042 | R8: $0.030 | S8: $0.085 | T8: $10.56 | U8: $3.09 | V8: $0.009 | X8: -$260,268 | Y8: $95,427 | Z8: $107,935 | AA8: $1,728 | AB8: $33,523 | AC8: $0 | AD8: $5,959 | AE8: $9,686 | AF8: $0 | AG8: $0 | AH8: -$6,009 | AI8: $123,289
A9: 5 | C9: 2025 | D9: 1 | E9: 5 | F9: 10.01% | G9: 3,046,669 | H9: ='Value Stacking Basis'!$P$3*(1-PV_DegradationRate)^(EEYear-1) -> 1,295,146 | I9: ='Value Stacking Basis'!$Q$3*(1-PV_DegradationRate)^(EEYear-1) -> 1,669,617 | J9: 2,964,762 | K9: 9,998 | L9: 556 | M9: 10,610 | N9: 744,046 | O9: 0 | Q9: $0.043 | R9: $0.030 | S9: $0.085 | T9: $10.67 | U9: $3.12 | V9: $0.009 | X9: -$258,967 | Y9: $97,015 | Z9: $106,643 | AA9: $1,737 | AB9: $33,122 | AC9: $0 | AD9: $5,930 | AE9: $9,665 | AF9: $0 | AG9: $0 | AH9: -$4,856 | AI9: $118,432
A10: 6 | C10: 2026 | D10: 1 | E10: 6 | F10: 12.01% | G10: 3,031,436 | H10: ='Value Stacking Basis'!$P$3*(1-PV_DegradationRate)^(EEYear-1) -> 1,288,670 | I10: ='Value Stacking Basis'!$Q$3*(1-PV_DegradationRate)^(EEYear-1) -> 1,661,268 | J10: 2,949,938 | K10: 9,776 | L10: 554 | M10: 10,374 | N10: 727,500 | O10: 0 | Q10: $0.044 | R10: $0.031 | S10: $0.085 | T10: $10.77 | U10: $3.15 | V10: $0.008 | X10: -$257,672 | Y10: $98,630 | Z10: $105,314 | AA10: $1,746 | AB10: $32,709 | AC10: $0 | AD10: $5,900 | AE10: $9,639 | AF10: $0 | AG10: $0 | AH10: -$3,734 | AI10: $114,698
A11: 7 | C11: 2027 | D11: 1 | E11: 7 | F11: 14.01% | G11: 3,016,279 | H11: ='Value Stacking Basis'!$P$3*(1-PV_DegradationRate)^(EEYear-1) -> 1,282,227 | I11: ='Value Stacking Basis'!$Q$3*(1-PV_DegradationRate)^(EEYear-1) -> 1,652,962 | J11: 2,935,189 | K11: 9,554 | L11: 551 | M11: 10,138 | N11: 710,955 | O11: 0 | Q11: $0.045 | R11: $0.032 | S11: $0.085 | T11: $10.88 | U11: $3.18 | V11: $0.008 | X11: -$256,384 | Y11: $100,274 | Z11: $103,948 | AA11: $1,754 | AB11: $32,285 | AC11: $0 | AD11: $5,870 | AE11: $9,608 | AF11: $0 | AG11: $0 | AH11: -$2,644 | AI11: $112,055
A12: 8 | C12: 2028 | D12: 1 | E12: 8 | F12: 16.01% | G12: 3,001,197 | H12: ='Value Stacking Basis'!$P$3*(1-PV_DegradationRate)^(EEYear-1) -> 1,275,815 | I12: ='Value Stacking Basis'!$Q$3*(1-PV_DegradationRate)^(EEYear-1) -> 1,644,697 | J12: 2,920,513 | K12: 9,331 | L12: 548 | M12: 9,902 | N12: 694,410 | O12: 0 | Q12: $0.046 | R12: $0.032 | S12: $0.085 | T12: $10.99 | U12: $3.22 | V12: $0.007 | X12: -$255,102 | Y12: $101,947 | Z12: $102,545 | AA12: $1,763 | AB12: $31,849 | AC12: $0 | AD12: $5,841 | AE12: $9,572 | AF12: $0 | AG12: $0 | AH12: -$1,585 | AI12: $110,470
A13: 9 | C13: 2029 | D13: 1 | E13: 9 | F13: 18.01% | G13: 2,986,191 | H13: ='Value Stacking Basis'!$P$3*(1-PV_DegradationRate)^(EEYear-1) -> 1,269,436 | I13: ='Value Stacking Basis'!$Q$3*(1-PV_DegradationRate)^(EEYear-1) -> 1,636,474 | J13: 2,905,910 | K13: 9,109 | L13: 545 | M13: 9,666 | N13: 677,864 | O13: 0 | Q13: $0.047 | R13: $0.033 | S13: $0.085 | T13: $11.10 | U13: $3.25 | V13: $0.007 | X13: -$253,826 | Y13: $103,650 | Z13: $101,102 | AA13: $1,772 | AB13: $31,401 | AC13: $0 | AD13: $5,812 | AE13: $9,531 | AF13: $0 | AG13: $0 | AH13: -$559 | AI13: $109,911
A14: 10 | C14: 2030 | D14: 1 | E14: 10 | F14: 20.01% | G14: 2,971,260 | H14: ='Value Stacking Basis'!$P$3*(1-PV_DegradationRate)^(EEYear-1) -> 1,263,089 | I14: ='Value Stacking Basis'!$Q$3*(1-PV_DegradationRate)^(EEYear-1) -> 1,628,291 | J14: 2,891,381 | K14: 8,887 | L14: 543 | M14: 9,430 | N14: 661,319 | O14: 0 | Q14: $0.048 | R14: $0.033 | S14: $0.085 | T14: $11.21 | U14: $3.28 | V14: $0.007 | X14: -$252,557 | Y14: $105,383 | Z14: $99,621 | AA14: $1,780 | AB14: $30,941 | AC14: $0 | AD14: $5,783 | AE14: $9,484 | AF14: $0 | AG14: $0 | AH14: $435 | AI14: $110,346
A15: 11 | C15: 2031 | D15: 1 | E15: 1 | F15: 2.00% | G15: 2,956,404 | H15: ='Value Stacking Basis'!$P$3*(1-PV_DegradationRate)^(EEYear-1) -> 1,256,774 | I15: ='Value Stacking Basis'!$Q$3*(1-PV_DegradationRate)^(EEYear-1) -> 1,620,150 | J15: 2,876,924 | K15: 10,888 | L15: 540 | M15: 11,554 | N15: 810,227 | O15: 0 | Q15: $0.049 | R15: $0.034 | S15: $0.085 | T15: $11.32 | U15: $3.31 | V15: $0.006 | X15: -$251,294 | Y15: $104,727 | Z15: $123,273 | AA15: $1,789 | AB15: $38,287 | AC15: $0 | AD15: $5,754 | AE15: $11,852 | AF15: $0 | AG15: $0 | AH15: $34,388 | AI15: $144,734
A16: 12 | C16: 2032 | D16: 1 | E16: 2 | F16: 4.00% | G16: 2,941,622 | H16: ='Value Stacking Basis'!$P$3*(1-PV_DegradationRate)^(EEYear-1) -> 1,250,490 | I16: ='Value Stacking Basis'!$Q$3*(1-PV_DegradationRate)^(EEYear-1) -> 1,612,049 | J16: 2,862,539 | K16: 10,665 | L16: 537 | M16: 11,318 | N16: 793,682 | O16: 0 | Q16: $0.050 | R16: $0.035 | S16: $0.085 | T16: $11.44 | U16: $3.35 | V16: $0.006 | X16: -$250,038 | Y16: $106,474 | Z16: $121,963 | AA16: $1,798 | AB16: $37,880 | AC16: $0 | AD16: $5,725 | AE16: $11,842 | AF16: $0 | AG16: $0 | AH16: $35,645 | AI16: $180,378
A17: 13 | C17: 2033 | D17: 1 | E17: 3 | F17: 6.00% | G17: 2,926,914 | H17: ='Value Stacking Basis'!$P$3*(1-PV_DegradationRate)^(EEYear-1) -> 1,244,237 | I17: ='Value Stacking Basis'!$Q$3*(1-PV_DegradationRate)^(EEYear-1) -> 1,603,989 | J17: 2,848,226 | K17: 10,443 | L17: 535 | M17: 11,082 | N17: 777,137 | O17: 0 | Q17: $0.051 | R17: $0.036 | S17: $0.085 | T17: $11.55 | U17: $3.38 | V17: $0.006 | X17: -$248,788 | Y17: $108,251 | Z17: $120,615 | AA17: $1,807 | AB17: $37,462 | AC17: $0 | AD17: $5,696 | AE17: $11,827 | AF17: $0 | AG17: $0 | AH17: $36,871 | AI17: $217,249
A18: 14 | C18: 2034 | D18: 1 | E18: 4 | F18: 8.00% | G18: 2,912,279 | H18: ='Value Stacking Basis'!$P$3*(1-PV_DegradationRate)^(EEYear-1) -> 1,238,016 | I18: ='Value Stacking Basis'!$Q$3*(1-PV_DegradationRate)^(EEYear-1) -> 1,595,969 | J18: 2,833,985 | K18: 10,221 | L18: 532 | M18: 10,846 | N18: 760,591 | O18: 0 | Q18: $0.052 | R18: $0.036 | S18: $0.085 | T18: $11.67 | U18: $3.41 | V18: $0.005 | X18: -$247,544 | Y18: $110,061 | Z18: $119,228 | AA18: $1,816 | AB18: $37,031 | AC18: $0 | AD18: $5,668 | AE18: $11,807 | AF18: $0 | AG18: $0 | AH18: $38,066 | AI18: $255,315
A19: 15 | C19: 2035 | D19: 1 | E19: 5 | F19: 10.01% | G19: 2,897,718 | H19: ='Value Stacking Basis'!$P$3*(1-PV_DegradationRate)^(EEYear-1) -> 1,231,826 | I19: ='Value Stacking Basis'!$Q$3*(1-PV_DegradationRate)^(EEYear-1) -> 1,587,989 | J19: 2,819,815 | K19: 9,998 | L19: 529 | M19: 10,610 | N19: 744,046 | O19: 0 | Q19: $0.053 | R19: $0.037 | S19: $0.085 | T19: $11.78 | U19: $3.45 | V19: $0.005 | X19: -$246,306 | Y19: $111,903 | Z19: $117,800 | AA19: $1,825 | AB19: $36,587 | AC19: $0 | AD19: $5,640 | AE19: $11,781 | AF19: $0 | AG19: $0 | AH19: $39,230 | AI19: $294,545
A20: 16 | C20: 2036 | D20: 1 | E20: 6 | F20: 12.01% | G20: 2,883,229 | H20: ='Value Stacking Basis'!$P$3*(1-PV_DegradationRate)^(EEYear-1) -> 1,225,667 | I20: ='Value Stacking Basis'!$Q$3*(1-PV_DegradationRate)^(EEYear-1) -> 1,580,049 | J20: 2,805,716 | K20: 9,776 | L20: 527 | M20: 10,374 | N20: 727,500 | O20: 0 | Q20: $0.054 | R20: $0.038 | S20: $0.085 | T20: $11.90 | U20: $3.48 | V20: $0.005 | X20: -$245,074 | Y20: $113,777 | Z20: $116,333 | AA20: $1,834 | AB20: $36,132 | AC20: $0 | AD20: $5,611 | AE20: $11,749 | AF20: $0 | AG20: $0 | AH20: $40,361 | AI20: $334,906
A21: 17 | C21: 2037 | D21: 1 | E21: 7 | F21: 14.01% | G21: 2,868,813 | H21: ='Value Stacking Basis'!$P$3*(1-PV_DegradationRate)^(EEYear-1) -> 1,219,539 | I21: ='Value Stacking Basis'!$Q$3*(1-PV_DegradationRate)^(EEYear-1) -> 1,572,149 | J21: 2,791,688 | K21: 9,554 | L21: 524 | M21: 10,138 | N21: 710,955 | O21: 0 | Q21: $0.055 | R21: $0.038 | S21: $0.085 | T21: $12.02 | U21: $3.52 | V21: $0.005 | X21: -$243,849 | Y21: $115,685 | Z21: $114,824 | AA21: $1,843 | AB21: $35,663 | AC21: $0 | AD21: $5,583 | AE21: $11,712 | AF21: $0 | AG21: $0 | AH21: $41,461 | AI21: $376,367
A22: 18 | C22: 2038 | D22: 1 | E22: 8 | F22: 16.01% | G22: 2,854,469 | H22: ='Value Stacking Basis'!$P$3*(1-PV_DegradationRate)^(EEYear-1) -> 1,213,441 | I22: ='Value Stacking Basis'!$Q$3*(1-PV_DegradationRate)^(EEYear-1) -> 1,564,288 | J22: 2,777,729 | K22: 9,331 | L22: 521 | M22: 9,902 | N22: 694,410 | O22: 0 | Q22: $0.056 | R22: $0.039 | S22: $0.085 | T22: $12.14 | U22: $3.55 | V22: $0.004 | X22: -$242,630 | Y22: $117,627 | Z22: $113,273 | AA22: $1,852 | AB22: $35,181 | AC22: $0 | AD22: $5,555 | AE22: $11,668 | AF22: $0 | AG22: $0 | AH22: $42,527 | AI22: $418,894
A23: 19 | C23: 2039 | D23: 1 | E23: 9 | F23: 18.01% | G23: 2,840,197 | H23: ='Value Stacking Basis'!$P$3*(1-PV_DegradationRate)^(EEYear-1) -> 1,207,374 | I23: ='Value Stacking Basis'!$Q$3*(1-PV_DegradationRate)^(EEYear-1) -> 1,556,467 | J23: 2,763,841 | K23: 9,109 | L23: 519 | M23: 9,666 | N23: 677,864 | O23: 0 | Q23: $0.057 | R23: $0.040 | S23: $0.085 | T23: $12.26 | U23: $3.59 | V23: $0.004 | X23: -$241,417 | Y23: $119,604 | Z23: $111,680 | AA23: $1,861 | AB23: $34,686 | AC23: $0 | AD23: $5,528 | AE23: $11,618 | AF23: $0 | AG23: $0 | AH23: $43,560 | AI23: $462,454
A24: 20 | C24: 2040 | D24: 1 | E24: 10 | F24: 20.01% | G24: 2,825,996 | H24: ='Value Stacking Basis'!$P$3*(1-PV_DegradationRate)^(EEYear-1) -> 1,201,337 | I24: ='Value Stacking Basis'!$Q$3*(1-PV_DegradationRate)^(EEYear-1) -> 1,548,684 | J24: 2,750,021 | K24: 8,887 | L24: 516 | M24: 9,430 | N24: 661,319 | O24: 0 | Q24: $0.058 | R24: $0.041 | S24: $0.085 | T24: $12.38 | U24: $3.62 | V24: $0.004 | X24: -$240,210 | Y24: $121,616 | Z24: $110,044 | AA24: $1,870 | AB24: $34,178 | AC24: $0 | AD24: $5,500 | AE24: $11,561 | AF24: $0 | AG24: $0 | AH24: $44,559 | AI24: $507,014
A25: 21 | C25: 2041 | D25: 1 | E25: 1 | F25: 2.00% | G25: 2,811,866 | H25: ='Value Stacking Basis'!$P$3*(1-PV_DegradationRate)^(EEYear-1) -> 1,195,330 | I25: ='Value Stacking Basis'!$Q$3*(1-PV_DegradationRate)^(EEYear-1) -> 1,540,941 | J25: 2,736,271 | K25: 10,888 | L25: 514 | M25: 11,554 | N25: 810,227 | O25: 0 | Q25: $0.059 | R25: $0.042 | S25: $0.085 | T25: $12.51 | U25: $3.66 | V25: $0.004 | X25: -$239,009 | Y25: $120,714 | Z25: $136,170 | AA25: $1,880 | AB25: $42,293 | AC25: $0 | AD25: $5,473 | AE25: $14,447 | AF25: $0 | AG25: $0 | AH25: $81,968 | AI25: $588,981
A26: 22 | C26: 2042 | D26: 1 | E26: 2 | F26: 4.00% | G26: 2,797,806 | H26: ='Value Stacking Basis'!$P$3*(1-PV_DegradationRate)^(EEYear-1) -> 1,189,354 | I26: ='Value Stacking Basis'!$Q$3*(1-PV_DegradationRate)^(EEYear-1) -> 1,533,236 | J26: 2,722,590 | K26: 10,665 | L26: 511 | M26: 11,318 | N26: 793,682 | O26: 0 | Q26: $0.061 | R26: $0.042 | S26: $0.085 | T26: $12.63 | U26: $3.70 | V26: $0.004 | X26: -$237,814 | Y26: $122,740 | Z26: $134,723 | AA26: $1,889 | AB26: $41,843 | AC26: $0 | AD26: $5,445 | AE26: $14,435 | AF26: $0 | AG26: $0 | AH26: $83,262 | AI26: $672,244
A27: 23 | C27: 2043 | D27: 1 | E27: 3 | F27: 6.00% | G27: 2,783,817 | H27: ='Value Stacking Basis'!$P$3*(1-PV_DegradationRate)^(EEYear-1) -> 1,183,407 | I27: ='Value Stacking Basis'!$Q$3*(1-PV_DegradationRate)^(EEYear-1) -> 1,525,570 | J27: 2,708,977 | K27: 10,443 | L27: 508 | M27: 11,082 | N27: 777,137 | O27: 0 | Q27: $0.062 | R27: $0.043 | S27: $0.085 | T27: $12.76 | U27: $3.73 | V27: $0.003 | X27: -$236,624 | Y27: $124,802 | Z27: $133,234 | AA27: $1,898 | AB27: $41,381 | AC27: $0 | AD27: $5,418 | AE27: $14,417 | AF27: $0 | AG27: $0 | AH27: $84,526 | AI27: $756,769
A28: 24 | C28: 2044 | D28: 1 | E28: 4 | F28: 8.00% | G28: 2,769,898 | H28: ='Value Stacking Basis'!$P$3*(1-PV_DegradationRate)^(EEYear-1) -> 1,177,490 | I28: ='Value Stacking Basis'!$Q$3*(1-PV_DegradationRate)^(EEYear-1) -> 1,517,942 | J28: 2,695,432 | K28: 10,221 | L28: 506 | M28: 10,846 | N28: 760,591 | O28: 0 | Q28: $0.063 | R28: $0.044 | S28: $0.085 | T28: $12.89 | U28: $3.77 | V28: $0.003 | X28: -$235,441 | Y28: $126,901 | Z28: $131,701 | AA28: $1,908 | AB28: $40,905 | AC28: $0 | AD28: $5,391 | AE28: $14,393 | AF28: $0 | AG28: $0 | AH28: $85,757 | AI28: $842,526
A29: 25 | C29: 2045 | D29: 1 | E29: 5 | F29: 10.01% | G29: 2,756,049 | H29: ='Value Stacking Basis'!$P$3*(1-PV_DegradationRate)^(EEYear-1) -> 1,171,602 | I29: ='Value Stacking Basis'!$Q$3*(1-PV_DegradationRate)^(EEYear-1) -> 1,510,353 | J29: 2,681,955 | K29: 9,998 | L29: 503 | M29: 10,610 | N29: 744,046 | O29: 0 | Q29: $0.064 | R29: $0.045 | S29: $0.085 | T29: $13.01 | U29: $3.81 | V29: $0.003 | X29: -$234,264 | Y29: $129,038 | Z29: $130,125 | AA29: $1,917 | AB29: $40,415 | AC29: $0 | AD29: $5,364 | AE29: $14,361 | AF29: $0 | AG29: $0 | AH29: $86,956 | AI29: $929,482
V33: NPV Calculation | X33: =X4+NPV(UtilityDiscountRt,X5:X29) -> -$2,950,193 | Y33: $1,213,216 | Z33: $1,310,104 | AA33: $20,722 | AB33: $406,903 | AC33: =AC4+NPV(UtilityDiscountRt,AC5:AC29) -> $154,546 | AD33: $67,550 | AE33: $125,011 | AF33: $0 | AG33: $0 | AH33: $347,860

Sheet Time Series Data
CK1: Solar Only | EF1: Solar & Grid
O2: Sum | CL2: General Demand | CR2: General Demand | CX2: General Demand | DD2: General Demand | DG2: CP Demand | DN2: CP Demand | DS2: CP Demand | DY2: CP Demand | EG2: General Demand | EL2: General Demand | EQ2: General Demand | EV2: General Demand | EY2: CP Demand | FE2: CP Demand | FI2: CP Demand | FO2: CP Demand
O3: =SUM(O7:O8790) -> 2,981,670 | CG3: Esssential Days | CK3: Scenario 1 | CL3: Energy Arbitrage | CQ3: Scenario 2 | CR3: Ancillary Services | CW3: Scenario 3 | CX3: CP Demand | DC3: Scenario 4 | DD3: CP Demand | DF3: Scenario 5 | DG3: General Demand | DM3: Scenario 6 | DN3: General Demand | DR3: Scenario 7 | DS3: Energy Arbitrage | DX3: Scenario 8 | DY3: Ancillary Services | EF3: Scenario 1 | EG3: Energy Arbitrage | EK3: Scenario 2 | EL3: Ancillary Services | EP3: Scenario 3 | EQ3: CP Demand | EU3: Scenario 4 | EV3: CP Demand | EX3: Scenario 5 | EY3: General Demand | FD3: Scenario 6 | FE3: General Demand | FH3: Scenario 7 | FI3: Energy Arbitrage | FN3: Scenario 8 | FO3: Ancillary Services
B4: SAM Data | J4: SAM Data | V4: Scenarios 1-4 | Y4: Scenarios 5-8 | AT4: Scenario 3&4 | AV4: Scen 5&6 | AX4: Scen 1-4 | AY4: Scen 3-4 | AZ4: Scen 5-6 | BA4: Scen 7-8 | BD4: Scen 1-4 | BI4: Scen 5 | BN4: Scen 5 | BS4: Scen 7&8 | CB4: Scen 3&4 | CC4: Scen 3&4 | CG4: =365-SUM(CG7:CG371) -> 18 | CL4: Ancillary Services | CR4: Energy Arbitrage | CX4: Energy Arbitrage | DD4: Ancillary Services | DG4: Energy Arbitrage | DN4: Ancillary Services | DS4: Ancillary Services | DY4: Energy Arbitrage | EG4: Ancillary Services | EL4: Energy Arbitrage | EQ4: Energy Arbitrage | EV4: Ancillary Services | EY4: Energy Arbitrage | FE4: Ancillary Services | FI4: Ancillary Services | FO4: Energy Arbitrage
H5: Calculated | T5: Calculated | X5: Both | AA5: Solar Only | AG5: Solar + Grid | AT5: solar only | AV5: Solar + Grid | AW5: Solar Only | BD5: Solar + Grid | BN5: Solar + Grid
B6: Date & Time | C6: Date | D6: Utility Load Profile | E6: Month | F6: Day | G6: Hour | H6: Weekday value | I6: Energy Arbitrage | K6: Load from SAM (should match utility load) | L6: Battery Charging From Grid (kW) | M6: Battery Charging From Solar (kW) | N6: Battery Discharging to Load (kW) | O6: Solar Contribution to Load (kW) | P6: Battery State of Charge (%) | T6: Total Battery Charging (kW) | U6: Total Solar Generation (kW) | V6: New Net Load (kW) | W6: Solar generation essential to peak reduction | X6: CP Battery operation only for CP onlyScen 7-8 | Y6: CP - Local Demand Batt. Op. - Baseline | Z6: CP Batt. Op. Day of (all charging) | AA6: CP Batt. Op. w/ Day Before Reductions | AB6: CP Batt. Op. w/ Day Before & After Reductions | AC6: CP - Solar Generation to Load Baseline (kW) | AD6: CP - Solar Generation to Load w/ Day before reduction (kW) | AE6: CP - Solar Generation to Load w/ Day before & after reduction (kW) | AF6: CP New Load | AG6: CP - Solar Generation to Load (kW) | AH6: CP New Load | AL6: Offset | AM6: Date | AN6: Weekday Dummy | AO6: Battery Energy Charging from Solar | AP6: Battery Energy Charged from Grid | AQ6: Battery Energy Discharged | AR6: All Solar Geneation | AS6: Total Solar Generation EA (kWh) | AT6: Solar Energy Available before CP dispatch (CP 2nd) | AU6: Energy moved by battery for CP (kWh) | AV6: CP Battery Energy Discharged For General Demand (kWh) | AW6: CP Battery Energy Discharged for General Demand (kWh) | AX6: SAM - On peak Energy to grid | AY6: Off peak Energy moved for CP - 2nd | AZ6: SAM&CP - On peak Energy to grid | BA6: All solar generation on peak | BB6: CP on peak discharge | BD6: SAM - On peak Energy to grid | BE6: Off Peak Kwh For EA moving | BF6: Off peak Energy moved for CP - 2nd | BG6: On peak Energy moved for CP - 2nd | BH6: Potential Solar peak Energy moved for CP - 2nd | BI6: Off Peak local (after CP) battery charging energy | BJ6: On Peak local (after CP) battery charging energy | BK6: EA potential Off Peak solar energy charging battery | BN6: On peak remaining Solar to grid | BO6: All solar before CP (scenario 6) | BP6: All off peak solar before CP (scenario 7&8) | BQ6: All on peak solar before CP | BR6: All Local (after CP) battery charging energy | BS6: All non CP off peak Energy for EA | BV6: CP Peak | BW6: Solar Charging Battery Dummy | BX6: Grid Charging Battery Dummy | BY6: Charging Dummy | BZ6: Discharging Dummy | CA6: charge/discharge Dummy | CB6: Non Demand Battery Available (Solar Only) | CC6: Non Demand Battery Available (Solar + Grid) | CD6: Non CP Demand Battery Available | CE6: Energy Arbitrage Selection Dummy | CF6: Ancillary Services Selection Dummy | CG6: Solar Generation Essential to Local Demand Reduction | CK6: Remaining Solar Energy (Arbitrage) | CL6: All Days Energy Arbitrage Energy | CM6: Weekday only Energy Arbitrage | CN6: Energy Arbitrage Used | CO6: Hours Remaining for Ancillary services (kW-h) | CQ6: Ancillary Services (Based on input) | CR6: Remaining Solar Energy | CS6: All Days Energy Arbitrage Energy | CT6: Weekday only Energy Arbitrage | CU6: Energy Arbitrage Used | CW6: CP Battery output | CX6: Remaining Solar Energy | CY6: All Days Energy Arbitrage Energy | CZ6: Weekday only Energy Arbitrage | DA6: Energy Arbitrage Used | DC6: CP Battery output | DD6: Ancillary Services (Based on input) | DF6: CP Battery Use (Demand Reduction -kW) | DG6: Non CP Battery Use (Energy - kWh) | DH6: Remaining Solar Energy for EA | DI6: All Days Energy Arbitrage Energy | DJ6: Weekday only Energy Arbitrage | DK6: Energy Arbitrage Used | DM6: CP Battery Use (Demand Reduction -kW) | DN6: Non CP Battery Use (Energy - kWh) | DO6: Remaining Solar Energy for AS | DP6: Hours Remaining for Ancillary services (kW-h) | DR6: CP Battery Use (Demand Reduction -kW) | DS6: All Days Energy Arbitrage Energy | DT6: Weekday only Energy Arbitrage | DU6: Energy Arbitrage Used | DV6: Hours Remaining for Ancillary services (kW-h) | DX6: CP Battery Use (Demand Reduction -kW) | DY6: Hours Remaining for Ancillary services (kW-h) | DZ6: All Days Energy Arbitrage Energy | EA6: Weekday only Energy Arbitrage | EB6: Energy Arbitrage Used | EF6: All Days Energy Arbitrage Energy | EG6: Weekday only Energy Arbitrage | EH6: Energy Arbitrage Used | EI6: Hours Remaining for Ancillary services (kW-h) | EK6: Ancillary Services (Based on input) | EL6: All Days Energy Arbitrage Energy | EM6: Weekday only Energy Arbitrage | EN6: Energy Arbitrage Used | EP6: CP Battery output | EQ6: All Days Energy Arbitrage Energy | ER6: Weekday only Energy Arbitrage | ES6: Energy Arbitrage Used | EU6: CP Battery output | EV6: Ancillary Services (Based on input) | EX6: CP Battery Use | EY6: Non CP Battery Use | EZ6: All Days Energy Arbitrage Energy | FA6: Weekday only Energy Arbitrage | FB6: Energy Arbitrage Used | FD6: CP Battery Use | FE6: Non CP Battery Use | FF6: Hours Remaining for Ancillary services (kW-h) | FH6: CP Demand | FI6: All Days Energy Arbitrage Energy | FJ6: Weekday only Energy Arbitrage | FK6: Energy Arbitrage Used | FL6: Hours Remaining for Ancillary services (kW-h) | FN6: CP Demand | FO6: Hours Remaining for Ancillary services (kW-h) | FP6: All Days Energy Arbitrage Energy | FQ6: Weekday only Energy Arbitrage | FR6: Energy Arbitrage Used
B7: =DATE(Load_Profile_Year,E7,F7)+TIME(G7,0,0) -> 2020-01-01 | C7: =DATE(YEAR(B7),MONTH(B7),DAY(B7)) -> 2020-01-01 | D7: =K7 -> 67,542 | E7: 1 | F7: 1 | G7: 0 | H7: =WEEKDAY(C7,2) -> 3 | I7: =INDEX(Values!$V$6:$AG$29,'Time Series Data'!G7+1,'Time Series Data'!E7) -> 1 | J7: 0.5 | K7: ='SAM Inputs'!A12:F8771 -> 67542 | L7: 0 | M7: 0 | N7: 0 | O7: 0 | P7: 50 | T7: =L7+M7 -> 0.00 | U7: =O7+M7 -> 0.00 | V7: =D7-N7-O7 -> 67,542 | W7: =IF(V7+O7>VLOOKUP(E7,'Coincident Peak'!$C$22:$I$33,7),0,1) -> 1 | X7: =IF((AND(E7=MONTH(VLOOKUP('Time Series Data'!E7,'Coincident Peak'!$C$5:$D$16,2)),F7=DAY(VLOOKUP('Time Series Data'!E7,'Coincident Peak'!$C$5:$D$16,2)),IF(AND(G7<=HOUR(VLOOKUP('Time Series Data'!E7,'Coincident Peak'!$C$5:$E$16,3))+Values!$E$5,G7>=HOUR(VLOOKUP('Time Series Data'!E7,'Coincident Peak'!$C$5:$E$16,3))-Values!$E$5),"TRUE","FALSE"))),BatteryPower,0) -> 0.00 | Y7: =IF((AND(E7=MONTH(VLOOKUP('Time Series Data'!E7,'Coincident Peak'!$C$5:$D$16,2)),F7=DAY(VLOOKUP('Time Series Data'!E7,'Coincident Peak'!$C$5:$D$16,2)))),0,N7) -> 0.00 | Z7: =IF((AND(E7=MONTH(VLOOKUP('Time Series Data'!E7,'Coincident Peak'!$C$5:$D$16,2)),F7=DAY(VLOOKUP('Time Series Data'!E7,'Coincident Peak'!$C$5:$D$16,2)),IF(AND(G7<=HOUR(VLOOKUP('Time Series Data'!E7,'Coincident Peak'!$C$5:$E$16,3))+Values!$E$5,G7>=HOUR(VLOOKUP('Time Series Data'!E7,'Coincident Peak'!$C$5:$E$16,3))-Values!$E$5),"TRUE","FALSE"))),BatteryPower,Y7) -> 0.00 | AA7: =IF((AND(E7=MONTH(VLOOKUP('Time Series Data'!E7,'Coincident Peak'!$C$5:$D$16,2)),F7=DAY(VLOOKUP('Time Series Data'!E7,'Coincident Peak'!$C$5:$D$16,2))-1)),VLOOKUP(E7,'Coincident Peak'!$C$5:$N$16,11)*Z7,Z7) -> 0.00 | AB7: =IF((AND(E7=MONTH(VLOOKUP('Time Series Data'!E7,'Coincident Peak'!$C$5:$D$16,2)),F7=DAY(VLOOKUP('Time Series Data'!E7,'Coincident Peak'!$C$5:$D$16,2))+1)),VLOOKUP(E7,'Coincident Peak'!$C$5:$N$16,12)*AA7,AA7) -> 0.00 | AC7: =IF((AND(E7=MONTH(VLOOKUP('Time Series Data'!E7,'Coincident Peak'!$C$5:$D$16,2)),F7=DAY(VLOOKUP('Time Series Data'!E7,'Coincident Peak'!$C$5:$D$16,2)))),0,O7) -> 0.00 | AD7: =IF((AND(E7=MONTH(VLOOKUP('Time Series Data'!E7,'Coincident Peak'!$C$5:$D$16,2)),F7=DAY(VLOOKUP('Time Series Data'!E7,'Coincident Peak'!$C$5:$D$16,2))-1)),VLOOKUP(E7,'Coincident Peak'!$C$5:$N$16,11)*AC7,AC7) -> 0.00 | AE7: =IF((AND(E7=MONTH(VLOOKUP('Time Series Data'!E7,'Coincident Peak'!$C$5:$D$16,2)),F7=DAY(VLOOKUP('Time Series Data'!E7,'Coincident Peak'!$C$5:$D$16,2))+1)),VLOOKUP(E7,'Coincident Peak'!$C$5:$N$16,12)*AD7,AD7) -> 0.00 | AF7: =K7-AB7-AE7 -> 67,542 | AG7: =IF((AND(E7=MONTH(VLOOKUP('Time Series Data'!E7,'Coincident Peak'!$C$5:$D$16,2)),F7=DAY(VLOOKUP('Time Series Data'!E7,'Coincident Peak'!$C$5:$D$16,2)))),U7,O7) -> 0.00 | AH7: =K7-Z7-AG7 -> 67,542 | AL7: 0 | AM7: =OFFSET($C$7,24*AL7,0) -> 2020-01-01 | AN7: =IF(WEEKDAY(AM7,2)<6,1,0) -> 1 | AO7: =SUMIFS($M$7:$M$8790,$F$7:$F$8790,DAY(AM7),$E$7:$E$8790,MONTH(AM7)) -> 4,326.56 | AP7: =SUMIFS($L$7:$L$8790,$F$7:$F$8790,DAY(AM7),$E$7:$E$8790,MONTH(AM7)) -> 0 | AQ7: =SUMIFS($N$7:$N$8790,$F$7:$F$8790,DAY(AM7),$E$7:$E$8790,MONTH(AM7)) -> 54.19 | AR7: =SUMIFS($U$7:$U$8790,$F$7:$F$8790,DAY(AM7),$E$7:$E$8790,MONTH(AM7)) -> 5,068.94 | AS7: =SUMIFS($U$7:$U$8790,$F$7:$F$8790,DAY(AM7),$E$7:$E$8790,MONTH(AM7),$I$7:$I$8790,1)*Rndtrp_eff -> 3,467.41 | AT7: =IF(ISNA(MATCH(AM7,'Coincident Peak'!$D$5:$D$16,0))=TRUE,0,SUMIFS($O$7:$O$8790,$F$7:$F$8790,DAY(AM7),$E$7:$E$8790,MONTH(AM7),$G$7:$G$8790,"<"&HOUR(VLOOKUP(AM7,'Coincident Peak'!$D$5:$E$16,2))-Values!$E$5)) -> 0 | AU7: =IF(AT7*Rndtrp_eff>Effective_Battery_Capacity,Effective_Battery_Capacity,AT7) -> 0 | AV7: =SUMIFS($Z$7:$Z$8790,$F$7:$F$8790,DAY(AM7),$E$7:$E$8790,MONTH(AM7))*(1-BV7) -> 54 | AW7: =SUMIFS($AB$7:$AB$8790,$F$7:$F$8790,DAY(AM7),$E$7:$E$8790,MONTH(AM7))*(1-BV7) -> 54 | AX7: =IF($CE7=1,SUMIFS($N$7:$N$8790,$F$7:$F$8790,DAY(AM7),$E$7:$E$8790,MONTH(AM7)),IF($CE7=2,SUMIFS($N$7:$N$8790,$F$7:$F$8790,DAY(AM7),$E$7:$E$8790,MONTH(AM7),$I$7:$I$8790,0),AN7*SUMIFS($N$7:$N$8790,$F$7:$F$8790,DAY(AM7),$E$7:$E$8790,MONTH(AM7),$I$7:$I$8790,0)))+IF($CE7=1,SUMIFS($O$7:$O$8790,$F$7:$F$8790,DAY(AM7),$E$7:$E$8790,MONTH(AM7)),IF($CE7=2,SUMIFS($O$7:$O$8790,$F$7:$F$8790,DAY(AM7),$E$7:$E$8790,MONTH(AM7),$I$7:$I$8790,0),AN7*SUMIFS($O$7:$O$8790,$F$7:$F$8790,DAY(AM7),$E$7:$E$8790,MONTH(AM7),$I$7:$I$8790,0))) -> 796 | AY7: =IF(ISNA(MATCH(AM7,'Coincident Peak'!$D$5:$D$16,0))=TRUE,0,SUMIFS($O$7:$O$8790,$F$7:$F$8790,DAY(AM7),$E$7:$E$8790,MONTH(AM7),$G$7:$G$8790,"<"&HOUR(VLOOKUP(AM7,'Coincident Peak'!$D$5:$E$16,2))-Values!$E$5,$I$7:$I$8790,1)) -> 0 | AZ7: =IF($CE7=1,SUMIFS($AB$7:$AB$8790,$F$7:$F$8790,DAY(AM7),$E$7:$E$8790,MONTH(AM7)),IF($CE7=2,SUMIFS($AB$7:$AB$8790,$F$7:$F$8790,DAY(AM7),$E$7:$E$8790,MONTH(AM7),$I$7:$I$8790,0),AN7*SUMIFS($AB$7:$AB$8790,$F$7:$F$8790,DAY(AM7),$E$7:$E$8790,MONTH(AM7),$I$7:$I$8790,0)))+IF($CE7=1,SUMIFS($AE$7:$AE$8790,$F$7:$F$8790,DAY(AM7),$E$7:$E$8790,MONTH(AM7)),IF($CE7=2,SUMIFS($AE$7:$AE$8790,$F$7:$F$8790,DAY(AM7),$E$7:$E$8790,MONTH(AM7),$I$7:$I$8790,0),AN7*SUMIFS($AE$7:$AE$8790,$F$7:$F$8790,DAY(AM7),$E$7:$E$8790,MONTH(AM7),$I$7:$I$8790,0))) -> 796 | BA7: =IF($CE7=1,SUMIFS($U$7:$U$8790,$F$7:$F$8790,DAY(AM7),$E$7:$E$8790,MONTH(AM7)),IF($CE7=2,SUMIFS($U$7:$U$8790,$F$7:$F$8790,DAY(AM7),$E$7:$E$8790,MONTH(AM7),$I$7:$I$8790,0),AN7*SUMIFS($U$7:$U$8790,$F$7:$F$8790,DAY(AM7),$E$7:$E$8790,MONTH(AM7),$I$7:$I$8790,0))) -> 1,314 | BB7: =IF($CE7=1,SUMIFS($X$7:$X$8790,$F$7:$F$8790,DAY(AM7),$E$7:$E$8790,MONTH(AM7)),IF($CE7=2,SUMIFS($X$7:$X$8790,$F$7:$F$8790,DAY(AM7),$E$7:$E$8790,MONTH(AM7),$I$7:$I$8790,0),AN7*SUMIFS($X$7:$X$8790,$F$7:$F$8790,DAY(AM7),$E$7:$E$8790,MONTH(AM7),$I$7:$I$8790,0))) -> 0 | BD7: =(IF($CE7=1,SUMIFS($N$7:$N$8790,$F$7:$F$8790,DAY(AM7),$E$7:$E$8790,MONTH(AM7)),IF($CE7=2,SUMIFS($N$7:$N$8790,$F$7:$F$8790,DAY(AM7),$E$7:$E$8790,MONTH(AM7),$I$7:$I$8790,0),AN7*SUMIFS($N$7:$N$8790,$F$7:$F$8790,DAY(AM7),$E$7:$E$8790,MONTH(AM7),$I$7:$I$8790,0))))*Batt_PV_Perc+IF($CE7=1,SUMIFS($O$7:$O$8790,$F$7:$F$8790,DAY(AM7),$E$7:$E$8790,MONTH(AM7)),IF($CE7=2,SUMIFS($O$7:$O$8790,$F$7:$F$8790,DAY(AM7),$E$7:$E$8790,MONTH(AM7),$I$7:$I$8790,0),AN7*SUMIFS($O$7:$O$8790,$F$7:$F$8790,DAY(AM7),$E$7:$E$8790,MONTH(AM7),$I$7:$I$8790,0))) -> 796 | BE7: =IF((IF($CE7=1,SUMIFS($O$7:$O$8790,$F$7:$F$8790,DAY(AM7),$E$7:$E$8790,MONTH(AM7)),IF($CE7=2,SUMIFS($O$7:$O$8790,$F$7:$F$8790,DAY(AM7),$E$7:$E$8790,MONTH(AM7),$I$7:$I$8790,1),AN7*SUMIFS($O$7:$O$8790,$F$7:$F$8790,DAY(AM7),$E$7:$E$8790,MONTH(AM7),$I$7:$I$8790,1))))>(Effective_Battery_Capacity/Rndtrp_eff),(Effective_Battery_Capacity/Rndtrp_eff),IF($CE7=1,SUMIFS($O$7:$O$8790,$F$7:$F$8790,DAY(AM7),$E$7:$E$8790,MONTH(AM7)),IF($CE7=2,SUMIFS($O$7:$O$8790,$F$7:$F$8790,DAY(AM7),$E$7:$E$8790,MONTH(AM7),$I$7:$I$8790,1),AN7*SUMIFS($O$7:$O$8790,$F$7:$F$8790,DAY(AM7),$E$7:$E$8790,MONTH(AM7),$I$7:$I$8790,1)))) -> 0 | BF7: =IF(AY7>(Effective_Battery_Capacity/Rndtrp_eff),(Effective_Battery_Capacity/Rndtrp_eff),AY7) -> 0 | BG7: =IF(IF(ISNA(MATCH(AM7,'Coincident Peak'!$D$5:$D$16,0))=TRUE,0,SUMIFS($O$7:$O$8790,$F$7:$F$8790,DAY(AM7),$E$7:$E$8790,MONTH(AM7),$G$7:$G$8790,"<"&HOUR(VLOOKUP(AM7,'Coincident Peak'!$D$5:$E$16,2))-Values!$E$5,$I$7:$I$8790,0))>(Effective_Battery_Capacity/Rndtrp_eff),(Effective_Battery_Capacity/Rndtrp_eff),IF(ISNA(MATCH(AM7,'Coincident Peak'!$D$5:$D$16,0))=TRUE,0,SUMIFS($O$7:$O$8790,$F$7:$F$8790,DAY(AM7),$E$7:$E$8790,MONTH(AM7),$G$7:$G$8790,"<"&HOUR(VLOOKUP(AM7,'Coincident Peak'!$D$5:$E$16,2))-Values!$E$5,$I$7:$I$8790,0))) -> 0 | BH7: =IF((IF(ISNA(MATCH(AM7,'Coincident Peak'!$D$5:$D$16,0))=TRUE,0,SUMIFS($O$7:$O$8790,$F$7:$F$8790,DAY(AM7),$E$7:$E$8790,MONTH(AM7),$G$7:$G$8790,"<"&HOUR(VLOOKUP(AM7,'Coincident Peak'!$D$5:$E$16,2))-Values!$E$5)))>(Effective_Battery_Capacity/Rndtrp_eff),(Effective_Battery_Capacity/Rndtrp_eff),(IF(ISNA(MATCH(AM7,'Coincident Peak'!$D$5:$D$16,0))=TRUE,0,SUMIFS($O$7:$O$8790,$F$7:$F$8790,DAY(AM7),$E$7:$E$8790,MONTH(AM7),$G$7:$G$8790,"<"&HOUR(VLOOKUP(AM7,'Coincident Peak'!$D$5:$E$16,2))-Values!$E$5)))) -> 0 | BI7: =SUMIFS($M$7:$M$8790,$F$7:$F$8790,DAY(AM7),$E$7:$E$8790,MONTH(AM7),$I$7:$I$8790,1)*CD7 -> 3,755 | BJ7: =SUMIFS($M$7:$M$8790,$F$7:$F$8790,DAY(AM7),$E$7:$E$8790,MONTH(AM7),$I$7:$I$8790,0)*CD7 -> 572 | BK7: =IF(WholesaleEnergyCost_2>PPACostPerKWh,(IF((SUMIFS('Time Series Data'!$AG$7:$AG$8790,'Time Series Data'!$I$7:$I$8790,1,$F$7:$F$8790,DAY(AM7),$E$7:$E$8790,MONTH(AM7))-BP7)>(Effective_Battery_Capacity/Rndtrp_eff),(Effective_Battery_Capacity/Rndtrp_eff),(SUMIFS('Time Series Data'!$AG$7:$AG$8790,'Time Series Data'!$I$7:$I$8790,1,$F$7:$F$8790,DAY(AM7),$E$7:$E$8790,MONTH(AM7))))-BP7),0) -> 0 | BL7: =IF(FB7>0,BK7,0) -> 0 | BM7: =SUMIFS('Time Series Data'!$AG$7:$AG$8790,$F$7:$F$8790,DAY(AM7),$E$7:$E$8790,MONTH(AM7),'Time Series Data'!$I$7:$I$8790,1)-BL7-BP7 -> 0 | BN7: =SUMIFS('Time Series Data'!$AG$7:$AG$8790,'Time Series Data'!$I$7:$I$8790,0,$F$7:$F$8790,DAY(AM7),$E$7:$E$8790,MONTH(AM7))-BQ7 -> 742 | BO7: =IF((IF(ISNA(MATCH(AM7,'Coincident Peak'!$D$5:$D$16,0))=TRUE,0,SUMIFS($U$7:$U$8790,$F$7:$F$8790,DAY(AM7),$E$7:$E$8790,MONTH(AM7),$G$7:$G$8790,"<"&HOUR(VLOOKUP(AM7,'Coincident Peak'!$D$5:$E$16,2))-Values!$E$5)))>(Effective_Battery_Capacity/Rndtrp_eff),(Effective_Battery_Capacity/Rndtrp_eff),(IF(ISNA(MATCH(AM7,'Coincident Peak'!$D$5:$D$16,0))=TRUE,0,SUMIFS($U$7:$U$8790,$F$7:$F$8790,DAY(AM7),$E$7:$E$8790,MONTH(AM7),$G$7:$G$8790,"<"&HOUR(VLOOKUP(AM7,'Coincident Peak'!$D$5:$E$16,2))-Values!$E$5)))) -> 0 | BP7: =IF(WholesaleEnergyCost_2>PPACostPerKWh,(IF((IF(ISNA(MATCH(AM7,'Coincident Peak'!$D$5:$D$16,0))=TRUE,0,SUMIFS($U$7:$U$8790,$F$7:$F$8790,DAY(AM7),$E$7:$E$8790,MONTH(AM7),$G$7:$G$8790,"<"&HOUR(VLOOKUP(AM7,'Coincident Peak'!$D$5:$E$16,2))-Values!$E$5,$I$7:$I$8790,1)))>(Effective_Battery_Capacity/Rndtrp_eff),(Effective_Battery_Capacity/Rndtrp_eff),(IF(ISNA(MATCH(AM7,'Coincident Peak'!$D$5:$D$16,0))=TRUE,0,SUMIFS($U$7:$U$8790,$F$7:$F$8790,DAY(AM7),$E$7:$E$8790,MONTH(AM7),$G$7:$G$8790,"<"&HOUR(VLOOKUP(AM7,'Coincident Peak'!$D$5:$E$16,2))-Values!$E$5,$I$7:$I$8790,1))))),0) -> 0 | BQ7: =IF(WholesaleEnergyCost_1>PPACostPerKWh,(IF((IF(ISNA(MATCH(AM7,'Coincident Peak'!$D$5:$D$16,0))=TRUE,0,SUMIFS($U$7:$U$8790,$F$7:$F$8790,DAY(AM7),$E$7:$E$8790,MONTH(AM7),$G$7:$G$8790,"<"&HOUR(VLOOKUP(AM7,'Coincident Peak'!$D$5:$E$16,2))-Values!$E$5,$I$7:$I$8790,0)))>(Effective_Battery_Capacity/Rndtrp_eff),(Effective_Battery_Capacity/Rndtrp_eff),(IF(ISNA(MATCH(AM7,'Coincident Peak'!$D$5:$D$16,0))=TRUE,0,SUMIFS($U$7:$U$8790,$F$7:$F$8790,DAY(AM7),$E$7:$E$8790,MONTH(AM7),$G$7:$G$8790,"<"&HOUR(VLOOKUP(AM7,'Coincident Peak'!$D$5:$E$16,2))-Values!$E$5,$I$7:$I$8790,0))))),0) -> 0 | BR7: =SUMIFS($M$7:$M$8790,$F$7:$F$8790,DAY(AM7),$E$7:$E$8790,MONTH(AM7))*CD7 -> 4,327 | BS7: =IF((SUMIFS($U$7:$U$8790,$F$7:$F$8790,DAY(AM7),$E$7:$E$8790,MONTH(AM7),$I$7:$I$8790,1)*CD7)>(Effective_Battery_Capacity/Rndtrp_eff),(Effective_Battery_Capacity/Rndtrp_eff),(SUMIFS($U$7:$U$8790,$F$7:$F$8790,DAY(AM7),$E$7:$E$8790,MONTH(AM7),$I$7:$I$8790,1)*CD7)) -> 3,755 | BT7: =SUMIFS($Y$7:$Y$8790,$F$7:$F$8790,DAY(AM7),$E$7:$E$8790,MONTH(AM7)) -> 54 | BV7: =IF(ISNA(MATCH(AM7,'Coincident Peak'!$D$5:$D$16,0))=TRUE,0,1) -> 0 | BW7: =COUNTIF(AO7,">0") -> 1 | BX7: =COUNTIF(AP7,">0") -> 0 | BY7: =SUM(BW7:BX7) -> 1 | BZ7: =COUNTIF(AQ7,">0") -> 1 | CA7: =IF(AO7+AQ7>1,1,0) -> 1 | CB7: =IF(OR(BZ7 =1,BZ8=1),0,1) -> 0 | CC7: =IF(BZ7=1,0,1) -> 0 | CD7: =IF(ISNA(MATCH(AM7,'Coincident Peak'!$D$5:$D$16,0))=TRUE,1,0) -> 1 | CE7: =VLOOKUP(MONTH($AM7),'Value Stacking Basis'!$B$37:$D$48,3) -> 3 | CF7: =VLOOKUP(MONTH($AM7),'Value Stacking Basis'!$B$37:$F$48,5) -> 2 | CG7: =IF(SUMIFS($W$7:$W$8766,$F$7:$F$8766,DAY(AM7),$E$7:$E$8766,MONTH(AM7))<24,0,1) -> 1 | CK7: =$CB7*$CG7*SUMIFS($O:$O,$F:$F,DAY($AM7),$E:$E,MONTH($AM7),$I:$I,1)*Rndtrp_eff -> 0 | CL7: =IF(CK7>Effective_Battery_Capacity,Effective_Battery_Capacity,CK7) -> 0 | CM7: =IF(CK7>Effective_Battery_Capacity,Effective_Battery_Capacity,CK7)*$AN7 -> 0 | CN7: =IF($CE7=1,0,IF($CE7=2,CL7,CM7)) -> 0 | CO7: =IF(CN7>0,0,IF($CF7=1,0,IF($CF7=2,Anc_Svc_DailyHrs*(1-$AN7),IF($CF7=3,Anc_Svc_DailyHrs*$AN7,0))))*$CB7 -> 0 | CQ7: =IF($CF7=1,0,IF($CF7=2,Anc_Svc_DailyHrs*(1-$AN7),IF($CF7=3,Anc_Svc_DailyHrs*$AN7,0)))*$CB7 -> 0 | CR7: =IF($CQ7=0,1,0)*$CB7*$CG7*SUMIFS($O:$O,$F:$F,DAY($AM7),$E:$E,MONTH($AM7),$I:$I,1)*Rndtrp_eff -> 0 | CS7: =IF(CR7>Effective_Battery_Capacity,Effective_Battery_Capacity,CR7) -> 0 | CT7: =IF(CR7>Effective_Battery_Capacity,Effective_Battery_Capacity,CR7)*$AN7 -> 0 | CU7: =IF($CE7=1,0,IF($CE7=2,CS7,CT7)) -> 0 | CW7: =IF($BV7=0,0,IF($CB7=0,INDEX('Time Series Data'!N$7:N$8790,MATCH(1,(MONTH($AM7)='Time Series Data'!$E$7:$E$8790)*(DAY($AM7)='Time Series Data'!$F$7:$F$8790)*(HOUR(VLOOKUP('Time Series Data'!$AM7,'Coincident Peak'!$D$5:$I$16,2))='Time Series Data'!$G$7:$G$8790),0)),IF(($AT7*Rndtrp_eff)>Effective_Battery_Capacity,BatteryPower,(($AT7*Rndtrp_eff)/Effective_Battery_Capacity)*BatteryPower))) -> 0 | CX7: =$CD7*$CB7*$CG7*SUMIFS($O:$O,$F:$F,DAY($AM7),$E:$E,MONTH($AM7),$I:$I,1)*Rndtrp_eff -> 0 | CY7: =IF(CX7>Effective_Battery_Capacity,Effective_Battery_Capacity,CX7) -> 0 | CZ7: =IF(CX7>=Effective_Battery_Capacity,Effective_Battery_Capacity,CX7)*$AN7 -> 0 | DA7: =IF($CE7=1,0,IF($CE7=2,CY7,CZ7)) -> 0 | DC7: =IF($BV7=0,0,IF($CB7=0,INDEX('Time Series Data'!N$7:N$8790,MATCH(1,(MONTH($AM7)='Time Series Data'!$E$7:$E$8790)*(DAY($AM7)='Time Series Data'!$F$7:$F$8790)*(HOUR(VLOOKUP('Time Series Data'!$AM7,'Coincident Peak'!$D$5:$I$16,2))='Time Series Data'!$G$7:$G$8790),0)),IF(($AT7*Rndtrp_eff)>Effective_Battery_Capacity,BatteryPower,(($AT7*Rndtrp_eff)/Effective_Battery_Capacity)*BatteryPower))) -> 0 | DD7: =IF(DC7>0,0,IF($CF7=1,0,IF($CF7=2,Anc_Svc_DailyHrs*(1-$AN7),IF($CF7=3,Anc_Svc_DailyHrs*$AN7,0))))*$CB7 -> 0 | DF7: =BatteryPower*$BV7 -> 0 | DG7: =$AW7 -> 54 | DH7: =$CB7*$CD7*SUMIFS($AE:$AE,$F:$F,DAY($AM7),$E:$E,MONTH($AM7),$I:$I,1)*Rndtrp_eff -> 0 | DI7: =IF(DH7>Effective_Battery_Capacity,Effective_Battery_Capacity,DH7) -> 0 | DJ7: =IF(DH7>Effective_Battery_Capacity,Effective_Battery_Capacity,DH7)*$AN7 -> 0 | DK7: =IF($CE7=1,0,IF($CE7=2,DI7,DJ7)) -> 0 | DM7: =BatteryPower*$BV7 -> 0 | DN7: =$AW7 -> 54 | DO7: =$CB7*$CD7*SUMIFS($AE:$AE,$F:$F,DAY($AM7),$E:$E,MONTH($AM7),$I:$I,1)*Rndtrp_eff -> 0 | DP7: =IF((DO7)=0,0,IF($CF7=1,0,IF($CF7=2,Anc_Svc_DailyHrs*(1-$AN7),IF($CF7=3,Anc_Svc_DailyHrs*$AN7,0)))) -> 0 | DR7: =BatteryPower*$BV7 -> 0 | DS7: =IF($AS7>Effective_Battery_Capacity,Effective_Battery_Capacity,$AS7)*$CD7 -> 3,467.41 | DT7: =IF($AS7>Effective_Battery_Capacity,Effective_Battery_Capacity,$AS7)*$CD7*$AN7 -> 3,467.41 | DU7: =IF($CE7=1,0,IF($CE7=2,DS7,DT7)) -> 3,467.41 | DV7: =IF(DU7>0,0,IF($CF7=1,0,IF($CF7=2,Anc_Svc_DailyHrs*(1-$AN7),IF($CF7=3,Anc_Svc_DailyHrs*$AN7,0))))*$CD7 -> 0 | DX7: =BatteryPower*$BV7 -> 0 | DY7: =IF($CF7=1,0,IF($CF7=2,Anc_Svc_DailyHrs*(1-$AN7),IF($CF7=3,Anc_Svc_DailyHrs*$AN7,0)))*$CD7 -> 0 | DZ7: =IF(DY7>0,0,IF($AS7>Effective_Battery_Capacity,Effective_Battery_Capacity,$AS7))*$CD7 -> 3,467.41 | EA7: =IF(DY7>0,0,IF($AS7>Effective_Battery_Capacity,Effective_Battery_Capacity,$AS7))*$CD7*$AN7 -> 3,467.41 | EB7: =IF($CE7=1,0,IF($CE7=2,DZ7,EA7)) -> 3,467.41 | EF7: =$CC7*Effective_Battery_Capacity -> 0 | EG7: =$CC7*Effective_Battery_Capacity*$AN7 -> 0 | EH7: =IF($CE7=1,0,IF($CE7=2,EF7,EG7)) -> 0 | EI7: =IF(EH7>0,0,IF($CF7=1,0,IF($CF7=2,Anc_Svc_DailyHrs*(1-$AN7),IF($CF7=3,Anc_Svc_DailyHrs*$AN7,0))))*$CC7 -> 0 | EK7: =IF($CF7=1,0,IF($CF7=2,Anc_Svc_DailyHrs*(1-$AN7),IF($CF7=3,Anc_Svc_DailyHrs*$AN7,0)))*$CC7 -> 0 | EL7: =IF(EK7=0,$CC7*Effective_Battery_Capacity,0) -> 0 | EM7: =IF(EK7=0,$CC7*Effective_Battery_Capacity,0)*$AN7 -> 0 | EN7: =IF($CE7=1,0,IF($CE7=2,EL7,EM7)) -> 0 | EP7: =IF($BV7=0,0,IF($CC7=0,VLOOKUP('Time Series Data'!$AM7,'Coincident Peak'!$D$5:$I$16,3),BatteryPower)) -> 0 | EQ7: =$CD7*$CC7*Effective_Battery_Capacity -> 0 | ER7: =$CD7*$CC7*Effective_Battery_Capacity*$AN7 -> 0 | ES7: =IF($CE7=1,0,IF($CE7=2,EQ7,ER7)) -> 0 | EU7: =IF($BV7=0,0,IF($CC7=0,VLOOKUP('Time Series Data'!$AM7,'Coincident Peak'!$D$5:$I$16,3),BatteryPower)) -> 0 | EV7: =IF(EU7>0,0,IF($CF7=1,0,IF($CF7=2,Anc_Svc_DailyHrs*(1-$AN7),IF($CF7=3,Anc_Svc_DailyHrs*$AN7,0))))*$CC7 -> 0 | EX7: =BatteryPower*$BV7 -> 0 | EY7: =IF(EX7=0,$AV7,0) -> 54.19 | EZ7: =$CD7*$CC7*Effective_Battery_Capacity -> 0 | FA7: =$CD7*$CC7*$AN7*Effective_Battery_Capacity -> 0 | FB7: =IF($CE7=1,0,IF($CE7=2,EZ7,FA7)) -> 0 | FD7: =BatteryPower*$BV7 -> 0 | FE7: =EY7 -> 54.19 | FF7: =IF((FE7)>0,0,IF($CF7=1,0,IF($CF7=2,Anc_Svc_DailyHrs*(1-$AN7),IF($CF7=3,Anc_Svc_DailyHrs*$AN7,0))))*$CD7 -> 0 | FH7: =BatteryPower*$BV7 -> 0 | FI7: =$CD7*Effective_Battery_Capacity -> 6,400.30 | FJ7: =$CD7*Effective_Battery_Capacity*$AN7 -> 6,400.30 | FK7: =IF($CE7=1,0,IF($CE7=2,FI7,FJ7)) -> 6,400.30 | FL7: =IF(FK7>0,0,IF($CF7=1,0,IF($CF7=2,Anc_Svc_DailyHrs*(1-$AN7),IF($CF7=3,Anc_Svc_DailyHrs*$AN7,0))))*$CD7 -> 0 | FN7: =BatteryPower*$BV7 -> 0 | FO7: =IF($CF7=1,0,IF($CF7=2,Anc_Svc_DailyHrs*(1-$AN7),IF($CF7=3,Anc_Svc_DailyHrs*$AN7,0)))*$CD7 -> 0 | FP7: =IF(FO7>0,0,$CD7*Effective_Battery_Capacity)*$CD7 -> 6,400.30 | FQ7: =IF(FO7>0,0,$CD7*Effective_Battery_Capacity)*$CD7*$AN7 -> 6,400.30 | FR7: =IF($CE7=1,0,IF($CE7=2,FP7,FQ7)) -> 6,400.30
B8: =DATE(Load_Profile_Year,E8,F8)+TIME(G8,0,0) -> 2020-01-01T01:00:00 | C8: 2020-01-01 | D8: =K8 -> 66,590 | E8: 1 | F8: 1 | G8: 1 | H8: 3 | I8: =INDEX(Values!$V$6:$AG$29,'Time Series Data'!G8+1,'Time Series Data'!E8) -> 1 | J8: 1.5 | K8: 66590 | L8: 0 | M8: 0 | N8: 0 | O8: 0 | P8: 50 | T8: 0.00 | U8: =O8+M8 -> 0.00 | V8: 66,590 | W8: =IF(V8+O8>VLOOKUP(E8,'Coincident Peak'!$C$22:$I$33,7),0,1) -> 1 | X8: =IF((AND(E8=MONTH(VLOOKUP('Time Series Data'!E8,'Coincident Peak'!$C$5:$D$16,2)),F8=DAY(VLOOKUP('Time Series Data'!E8,'Coincident Peak'!$C$5:$D$16,2)),IF(AND(G8<=HOUR(VLOOKUP('Time Series Data'!E8,'Coincident Peak'!$C$5:$E$16,3))+Values!$E$5,G8>=HOUR(VLOOKUP('Time Series Data'!E8,'Coincident Peak'!$C$5:$E$16,3))-Values!$E$5),"TRUE","FALSE"))),BatteryPower,0) -> 0.00 | Y8: =IF((AND(E8=MONTH(VLOOKUP('Time Series Data'!E8,'Coincident Peak'!$C$5:$D$16,2)),F8=DAY(VLOOKUP('Time Series Data'!E8,'Coincident Peak'!$C$5:$D$16,2)))),0,N8) -> 0.00 | Z8: =IF((AND(E8=MONTH(VLOOKUP('Time Series Data'!E8,'Coincident Peak'!$C$5:$D$16,2)),F8=DAY(VLOOKUP('Time Series Data'!E8,'Coincident Peak'!$C$5:$D$16,2)),IF(AND(G8<=HOUR(VLOOKUP('Time Series Data'!E8,'Coincident Peak'!$C$5:$E$16,3))+Values!$E$5,G8>=HOUR(VLOOKUP('Time Series Data'!E8,'Coincident Peak'!$C$5:$E$16,3))-Values!$E$5),"TRUE","FALSE"))),BatteryPower,Y8) -> 0.00 | AA8: =IF((AND(E8=MONTH(VLOOKUP('Time Series Data'!E8,'Coincident Peak'!$C$5:$D$16,2)),F8=DAY(VLOOKUP('Time Series Data'!E8,'Coincident Peak'!$C$5:$D$16,2))-1)),VLOOKUP(E8,'Coincident Peak'!$C$5:$N$16,11)*Z8,Z8) -> 0.00 | AB8: =IF((AND(E8=MONTH(VLOOKUP('Time Series Data'!E8,'Coincident Peak'!$C$5:$D$16,2)),F8=DAY(VLOOKUP('Time Series Data'!E8,'Coincident Peak'!$C$5:$D$16,2))+1)),VLOOKUP(E8,'Coincident Peak'!$C$5:$N$16,12)*AA8,AA8) -> 0.00 | AC8: =IF((AND(E8=MONTH(VLOOKUP('Time Series Data'!E8,'Coincident Peak'!$C$5:$D$16,2)),F8=DAY(VLOOKUP('Time Series Data'!E8,'Coincident Peak'!$C$5:$D$16,2)))),0,O8) -> 0.00 | AD8: =IF((AND(E8=MONTH(VLOOKUP('Time Series Data'!E8,'Coincident Peak'!$C$5:$D$16,2)),F8=DAY(VLOOKUP('Time Series Data'!E8,'Coincident Peak'!$C$5:$D$16,2))-1)),VLOOKUP(E8,'Coincident Peak'!$C$5:$N$16,11)*AC8,AC8) -> 0.00 | AE8: =IF((AND(E8=MONTH(VLOOKUP('Time Series Data'!E8,'Coincident Peak'!$C$5:$D$16,2)),F8=DAY(VLOOKUP('Time Series Data'!E8,'Coincident Peak'!$C$5:$D$16,2))+1)),VLOOKUP(E8,'Coincident Peak'!$C$5:$N$16,12)*AD8,AD8) -> 0.00 | AF8: 66,590 | AG8: =IF((AND(E8=MONTH(VLOOKUP('Time Series Data'!E8,'Coincident Peak'!$C$5:$D$16,2)),F8=DAY(VLOOKUP('Time Series Data'!E8,'Coincident Peak'!$C$5:$D$16,2)))),U8,O8) -> 0.00 | AH8: =K8-Z8-AG8 -> 66,590 | AL8: 1 | AM8: 2020-01-02 | AN8: 1 | AO8: 67.36 | AP8: 0 | AQ8: 362.49 | AR8: 7,029.49 | AS8: 4,899.97 | AT8: =IF(ISNA(MATCH(AM8,'Coincident Peak'!$D$5:$D$16,0))=TRUE,0,SUMIFS($O$7:$O$8790,$F$7:$F$8790,DAY(AM8),$E$7:$E$8790,MONTH(AM8),$G$7:$G$8790,"<"&HOUR(VLOOKUP(AM8,'Coincident Peak'!$D$5:$E$16,2))-Values!$E$5)) -> 0 | AU8: 0 | AV8: 0 | AW8: 0 | AX8: 1,723 | AY8: =IF(ISNA(MATCH(AM8,'Coincident Peak'!$D$5:$D$16,0))=TRUE,0,SUMIFS($O$7:$O$8790,$F$7:$F$8790,DAY(AM8),$E$7:$E$8790,MONTH(AM8),$G$7:$G$8790,"<"&HOUR(VLOOKUP(AM8,'Coincident Peak'!$D$5:$E$16,2))-Values!$E$5,$I$7:$I$8790,1)) -> 0 | AZ8: 0 | BA8: 1,723 | BB8: 0 | BD8: 1,723 | BE8: 5,239 | BF8: 0 | BG8: =IF(IF(ISNA(MATCH(AM8,'Coincident Peak'!$D$5:$D$16,0))=TRUE,0,SUMIFS($O$7:$O$8790,$F$7:$F$8790,DAY(AM8),$E$7:$E$8790,MONTH(AM8),$G$7:$G$8790,"<"&HOUR(VLOOKUP(AM8,'Coincident Peak'!$D$5:$E$16,2))-Values!$E$5,$I$7:$I$8790,0))>(Effective_Battery_Capacity/Rndtrp_eff),(Effective_Battery_Capacity/Rndtrp_eff),IF(ISNA(MATCH(AM8,'Coincident Peak'!$D$5:$D$16,0))=TRUE,0,SUMIFS($O$7:$O$8790,$F$7:$F$8790,DAY(AM8),$E$7:$E$8790,MONTH(AM8),$G$7:$G$8790,"<"&HOUR(VLOOKUP(AM8,'Coincident Peak'!$D$5:$E$16,2))-Values!$E$5,$I$7:$I$8790,0))) -> 0 | BH8: =IF((IF(ISNA(MATCH(AM8,'Coincident Peak'!$D$5:$D$16,0))=TRUE,0,SUMIFS($O$7:$O$8790,$F$7:$F$8790,DAY(AM8),$E$7:$E$8790,MONTH(AM8),$G$7:$G$8790,"<"&HOUR(VLOOKUP(AM8,'Coincident Peak'!$D$5:$E$16,2))-Values!$E$5)))>(Effective_Battery_Capacity/Rndtrp_eff),(Effective_Battery_Capacity/Rndtrp_eff),(IF(ISNA(MATCH(AM8,'Coincident Peak'!$D$5:$D$16,0))=TRUE,0,SUMIFS($O$7:$O$8790,$F$7:$F$8790,DAY(AM8),$E$7:$E$8790,MONTH(AM8),$G$7:$G$8790,"<"&HOUR(VLOOKUP(AM8,'Coincident Peak'!$D$5:$E$16,2))-Values!$E$5)))) -> 0 | BI8: 0 | BJ8: 0 | BK8: =IF(WholesaleEnergyCost_2>PPACostPerKWh,(IF((SUMIFS('Time Series Data'!$AG$7:$AG$8790,'Time Series Data'!$I$7:$I$8790,1,$F$7:$F$8790,DAY(AM8),$E$7:$E$8790,MONTH(AM8))-BP8)>(Effective_Battery_Capacity/Rndtrp_eff),(Effective_Battery_Capacity/Rndtrp_eff),(SUMIFS('Time Series Data'!$AG$7:$AG$8790,'Time Series Data'!$I$7:$I$8790,1,$F$7:$F$8790,DAY(AM8),$E$7:$E$8790,MONTH(AM8))))-BP8),0) -> 0 | BL8: 0 | BM8: =SUMIFS('Time Series Data'!$AG$7:$AG$8790,$F$7:$F$8790,DAY(AM8),$E$7:$E$8790,MONTH(AM8),'Time Series Data'!$I$7:$I$8790,1)-BL8-BP8 -> 5,307 | BN8: =SUMIFS('Time Series Data'!$AG$7:$AG$8790,'Time Series Data'!$I$7:$I$8790,0,$F$7:$F$8790,DAY(AM8),$E$7:$E$8790,MONTH(AM8))-BQ8 -> 1,723 | BO8: =IF((IF(ISNA(MATCH(AM8,'Coincident Peak'!$D$5:$D$16,0))=TRUE,0,SUMIFS($U$7:$U$8790,$F$7:$F$8790,DAY(AM8),$E$7:$E$8790,MONTH(AM8),$G$7:$G$8790,"<"&HOUR(VLOOKUP(AM8,'Coincident Peak'!$D$5:$E$16,2))-Values!$E$5)))>(Effective_Battery_Capacity/Rndtrp_eff),(Effective_Battery_Capacity/Rndtrp_eff),(IF(ISNA(MATCH(AM8,'Coincident Peak'!$D$5:$D$16,0))=TRUE,0,SUMIFS($U$7:$U$8790,$F$7:$F$8790,DAY(AM8),$E$7:$E$8790,MONTH(AM8),$G$7:$G$8790,"<"&HOUR(VLOOKUP(AM8,'Coincident Peak'!$D$5:$E$16,2))-Values!$E$5)))) -> 0 | BP8: =IF(WholesaleEnergyCost_2>PPACostPerKWh,(IF((IF(ISNA(MATCH(AM8,'Coincident Peak'!$D$5:$D$16,0))=TRUE,0,SUMIFS($U$7:$U$8790,$F$7:$F$8790,DAY(AM8),$E$7:$E$8790,MONTH(AM8),$G$7:$G$8790,"<"&HOUR(VLOOKUP(AM8,'Coincident Peak'!$D$5:$E$16,2))-Values!$E$5,$I$7:$I$8790,1)))>(Effective_Battery_Capacity/Rndtrp_eff),(Effective_Battery_Capacity/Rndtrp_eff),(IF(ISNA(MATCH(AM8,'Coincident Peak'!$D$5:$D$16,0))=TRUE,0,SUMIFS($U$7:$U$8790,$F$7:$F$8790,DAY(AM8),$E$7:$E$8790,MONTH(AM8),$G$7:$G$8790,"<"&HOUR(VLOOKUP(AM8,'Coincident Peak'!$D$5:$E$16,2))-Values!$E$5,$I$7:$I$8790,1))))),0) -> 0 | BQ8: =IF(WholesaleEnergyCost_1>PPACostPerKWh,(IF((IF(ISNA(MATCH(AM8,'Coincident Peak'!$D$5:$D$16,0))=TRUE,0,SUMIFS($U$7:$U$8790,$F$7:$F$8790,DAY(AM8),$E$7:$E$8790,MONTH(AM8),$G$7:$G$8790,"<"&HOUR(VLOOKUP(AM8,'Coincident Peak'!$D$5:$E$16,2))-Values!$E$5,$I$7:$I$8790,0)))>(Effective_Battery_Capacity/Rndtrp_eff),(Effective_Battery_Capacity/Rndtrp_eff),(IF(ISNA(MATCH(AM8,'Coincident Peak'!$D$5:$D$16,0))=TRUE,0,SUMIFS($U$7:$U$8790,$F$7:$F$8790,DAY(AM8),$E$7:$E$8790,MONTH(AM8),$G$7:$G$8790,"<"&HOUR(VLOOKUP(AM8,'Coincident Peak'!$D$5:$E$16,2))-Values!$E$5,$I$7:$I$8790,0))))),0) -> 0 | BR8: 0 | BS8: 0 | BT8: 0 | BV8: =IF(ISNA(MATCH(AM8,'Coincident Peak'!$D$5:$D$16,0))=TRUE,0,1) -> 1 | BW8: 1 | BX8: 0 | BY8: 1 | BZ8: 1 | CA8: 1 | CB8: 0 | CC8: =IF(BZ8=1,0,1) -> 0 | CD8: =IF(ISNA(MATCH(AM8,'Coincident Peak'!$D$5:$D$16,0))=TRUE,1,0) -> 0 | CE8: =VLOOKUP(MONTH($AM8),'Value Stacking Basis'!$B$37:$D$48,3) -> 3 | CF8: =VLOOKUP(MONTH($AM8),'Value Stacking Basis'!$B$37:$F$48,5) -> 2 | CG8: 1 | CK8: 0 | CL8: 0 | CM8: 0 | CN8: 0 | CO8: 0 | CQ8: 0 | CR8: 0 | CS8: 0 | CT8: 0 | CU8: 0 | CW8: =IF($BV8=0,0,IF($CB8=0,INDEX('Time Series Data'!N$7:N$8790,MATCH(1,(MONTH($AM8)='Time Series Data'!$E$7:$E$8790)*(DAY($AM8)='Time Series Data'!$F$7:$F$8790)*(HOUR(VLOOKUP('Time Series Data'!$AM8,'Coincident Peak'!$D$5:$I$16,2))='Time Series Data'!$G$7:$G$8790),0)),IF(($AT8*Rndtrp_eff)>Effective_Battery_Capacity,BatteryPower,(($AT8*Rndtrp_eff)/Effective_Battery_Capacity)*BatteryPower))) -> 0 | CX8: 0 | CY8: 0 | CZ8: 0 | DA8: 0 | DC8: =IF($BV8=0,0,IF($CB8=0,INDEX('Time Series Data'!N$7:N$8790,MATCH(1,(MONTH($AM8)='Time Series Data'!$E$7:$E$8790)*(DAY($AM8)='Time Series Data'!$F$7:$F$8790)*(HOUR(VLOOKUP('Time Series Data'!$AM8,'Coincident Peak'!$D$5:$I$16,2))='Time Series Data'!$G$7:$G$8790),0)),IF(($AT8*Rndtrp_eff)>Effective_Battery_Capacity,BatteryPower,(($AT8*Rndtrp_eff)/Effective_Battery_Capacity)*BatteryPower))) -> 0 | DD8: 0 | DF8: 2,107 | DG8: =$AW8 -> 0 | DH8: 0 | DI8: =IF(DH8>Effective_Battery_Capacity,Effective_Battery_Capacity,DH8) -> 0 | DJ8: 0 | DK8: 0 | DM8: 2,107 | DN8: =$AW8 -> 0 | DO8: 0 | DP8: 0 | DR8: 2,107 | DS8: 0 | DT8: 0 | DU8: =IF($CE8=1,0,IF($CE8=2,DS8,DT8)) -> 0 | DV8: 0 | DX8: 2,107 | DY8: 0 | DZ8: 0 | EA8: 0 | EB8: =IF($CE8=1,0,IF($CE8=2,DZ8,EA8)) -> 0 | EF8: 0 | EG8: 0 | EH8: 0 | EI8: 0 | EK8: 0 | EL8: 0 | EM8: 0 | EN8: 0 | EP8: =IF($BV8=0,0,IF($CC8=0,VLOOKUP('Time Series Data'!$AM8,'Coincident Peak'!$D$5:$I$16,3),BatteryPower)) -> 0 | EQ8: 0 | ER8: 0 | ES8: 0 | EU8: =IF($BV8=0,0,IF($CC8=0,VLOOKUP('Time Series Data'!$AM8,'Coincident Peak'!$D$5:$I$16,3),BatteryPower)) -> 0 | EV8: 0 | EX8: 2,106.84 | EY8: =IF(EX8=0,$AV8,0) -> 0 | EZ8: 0 | FA8: 0 | FB8: =IF($CE8=1,0,IF($CE8=2,EZ8,FA8)) -> 0 | FD8: 2,106.84 | FE8: =EY8 -> 0 | FF8: 0 | FH8: 2,106.84 | FI8: 0 | FJ8: 0 | FK8: =IF($CE8=1,0,IF($CE8=2,FI8,FJ8)) -> 0 | FL8: 0 | FN8: 2,106.84 | FO8: 0 | FP8: 0 | FQ8: 0 | FR8: =IF($CE8=1,0,IF($CE8=2,FP8,FQ8)) -> 0
B9: =DATE(Load_Profile_Year,E9,F9)+TIME(G9,0,0) -> 2020-01-01T02:00:00 | C9: 2020-01-01 | D9: 66,446 | E9: 1 | F9: 1 | G9: 2 | H9: 3 | I9: =INDEX(Values!$V$6:$AG$29,'Time Series Data'!G9+1,'Time Series Data'!E9) -> 1 | J9: 2.5 | K9: 66446 | L9: 0 | M9: 0 | N9: 0 | O9: 0 | P9: 50 | T9: 0.00 | U9: 0.00 | V9: 66,446 | W9: =IF(V9+O9>VLOOKUP(E9,'Coincident Peak'!$C$22:$I$33,7),0,1) -> 1 | X9: =IF((AND(E9=MONTH(VLOOKUP('Time Series Data'!E9,'Coincident Peak'!$C$5:$D$16,2)),F9=DAY(VLOOKUP('Time Series Data'!E9,'Coincident Peak'!$C$5:$D$16,2)),IF(AND(G9<=HOUR(VLOOKUP('Time Series Data'!E9,'Coincident Peak'!$C$5:$E$16,3))+Values!$E$5,G9>=HOUR(VLOOKUP('Time Series Data'!E9,'Coincident Peak'!$C$5:$E$16,3))-Values!$E$5),"TRUE","FALSE"))),BatteryPower,0) -> 0.00 | Y9: =IF((AND(E9=MONTH(VLOOKUP('Time Series Data'!E9,'Coincident Peak'!$C$5:$D$16,2)),F9=DAY(VLOOKUP('Time Series Data'!E9,'Coincident Peak'!$C$5:$D$16,2)))),0,N9) -> 0.00 | Z9: =IF((AND(E9=MONTH(VLOOKUP('Time Series Data'!E9,'Coincident Peak'!$C$5:$D$16,2)),F9=DAY(VLOOKUP('Time Series Data'!E9,'Coincident Peak'!$C$5:$D$16,2)),IF(AND(G9<=HOUR(VLOOKUP('Time Series Data'!E9,'Coincident Peak'!$C$5:$E$16,3))+Values!$E$5,G9>=HOUR(VLOOKUP('Time Series Data'!E9,'Coincident Peak'!$C$5:$E$16,3))-Values!$E$5),"TRUE","FALSE"))),BatteryPower,Y9) -> 0.00 | AA9: =IF((AND(E9=MONTH(VLOOKUP('Time Series Data'!E9,'Coincident Peak'!$C$5:$D$16,2)),F9=DAY(VLOOKUP('Time Series Data'!E9,'Coincident Peak'!$C$5:$D$16,2))-1)),VLOOKUP(E9,'Coincident Peak'!$C$5:$N$16,11)*Z9,Z9) -> 0.00 | AB9: =IF((AND(E9=MONTH(VLOOKUP('Time Series Data'!E9,'Coincident Peak'!$C$5:$D$16,2)),F9=DAY(VLOOKUP('Time Series Data'!E9,'Coincident Peak'!$C$5:$D$16,2))+1)),VLOOKUP(E9,'Coincident Peak'!$C$5:$N$16,12)*AA9,AA9) -> 0.00 | AC9: =IF((AND(E9=MONTH(VLOOKUP('Time Series Data'!E9,'Coincident Peak'!$C$5:$D$16,2)),F9=DAY(VLOOKUP('Time Series Data'!E9,'Coincident Peak'!$C$5:$D$16,2)))),0,O9) -> 0.00 | AD9: =IF((AND(E9=MONTH(VLOOKUP('Time Series Data'!E9,'Coincident Peak'!$C$5:$D$16,2)),F9=DAY(VLOOKUP('Time Series Data'!E9,'Coincident Peak'!$C$5:$D$16,2))-1)),VLOOKUP(E9,'Coincident Peak'!$C$5:$N$16,11)*AC9,AC9) -> 0.00 | AE9: =IF((AND(E9=MONTH(VLOOKUP('Time Series Data'!E9,'Coincident Peak'!$C$5:$D$16,2)),F9=DAY(VLOOKUP('Time Series Data'!E9,'Coincident Peak'!$C$5:$D$16,2))+1)),VLOOKUP(E9,'Coincident Peak'!$C$5:$N$16,12)*AD9,AD9) -> 0.00 | AF9: 66,446 | AG9: =IF((AND(E9=MONTH(VLOOKUP('Time Series Data'!E9,'Coincident Peak'!$C$5:$D$16,2)),F9=DAY(VLOOKUP('Time Series Data'!E9,'Coincident Peak'!$C$5:$D$16,2)))),U9,O9) -> 0.00 | AH9: 66,446 | AL9: 2 | AM9: 2020-01-03 | AN9: 1 | AO9: 392.16 | AP9: 0 | AQ9: 0 | AR9: 8,867.80 | AS9: 6,517.02 | AT9: =IF(ISNA(MATCH(AM9,'Coincident Peak'!$D$5:$D$16,0))=TRUE,0,SUMIFS($O$7:$O$8790,$F$7:$F$8790,DAY(AM9),$E$7:$E$8790,MONTH(AM9),$G$7:$G$8790,"<"&HOUR(VLOOKUP(AM9,'Coincident Peak'!$D$5:$E$16,2))-Values!$E$5)) -> 0 | AU9: 0 | AV9: 0 | AW9: 0 | AX9: 1,810 | AY9: =IF(ISNA(MATCH(AM9,'Coincident Peak'!$D$5:$D$16,0))=TRUE,0,SUMIFS($O$7:$O$8790,$F$7:$F$8790,DAY(AM9),$E$7:$E$8790,MONTH(AM9),$G$7:$G$8790,"<"&HOUR(VLOOKUP(AM9,'Coincident Peak'!$D$5:$E$16,2))-Values!$E$5,$I$7:$I$8790,1)) -> 0 | AZ9: 1,810 | BA9: 1,810 | BB9: 0 | BD9: 1,810 | BE9: 6,666 | BF9: 0 | BG9: =IF(IF(ISNA(MATCH(AM9,'Coincident Peak'!$D$5:$D$16,0))=TRUE,0,SUMIFS($O$7:$O$8790,$F$7:$F$8790,DAY(AM9),$E$7:$E$8790,MONTH(AM9),$G$7:$G$8790,"<"&HOUR(VLOOKUP(AM9,'Coincident Peak'!$D$5:$E$16,2))-Values!$E$5,$I$7:$I$8790,0))>(Effective_Battery_Capacity/Rndtrp_eff),(Effective_Battery_Capacity/Rndtrp_eff),IF(ISNA(MATCH(AM9,'Coincident Peak'!$D$5:$D$16,0))=TRUE,0,SUMIFS($O$7:$O$8790,$F$7:$F$8790,DAY(AM9),$E$7:$E$8790,MONTH(AM9),$G$7:$G$8790,"<"&HOUR(VLOOKUP(AM9,'Coincident Peak'!$D$5:$E$16,2))-Values!$E$5,$I$7:$I$8790,0))) -> 0 | BH9: =IF((IF(ISNA(MATCH(AM9,'Coincident Peak'!$D$5:$D$16,0))=TRUE,0,SUMIFS($O$7:$O$8790,$F$7:$F$8790,DAY(AM9),$E$7:$E$8790,MONTH(AM9),$G$7:$G$8790,"<"&HOUR(VLOOKUP(AM9,'Coincident Peak'!$D$5:$E$16,2))-Values!$E$5)))>(Effective_Battery_Capacity/Rndtrp_eff),(Effective_Battery_Capacity/Rndtrp_eff),(IF(ISNA(MATCH(AM9,'Coincident Peak'!$D$5:$D$16,0))=TRUE,0,SUMIFS($O$7:$O$8790,$F$7:$F$8790,DAY(AM9),$E$7:$E$8790,MONTH(AM9),$G$7:$G$8790,"<"&HOUR(VLOOKUP(AM9,'Coincident Peak'!$D$5:$E$16,2))-Values!$E$5)))) -> 0 | BI9: 392 | BJ9: 0 | BK9: =IF(WholesaleEnergyCost_2>PPACostPerKWh,(IF((SUMIFS('Time Series Data'!$AG$7:$AG$8790,'Time Series Data'!$I$7:$I$8790,1,$F$7:$F$8790,DAY(AM9),$E$7:$E$8790,MONTH(AM9))-BP9)>(Effective_Battery_Capacity/Rndtrp_eff),(Effective_Battery_Capacity/Rndtrp_eff),(SUMIFS('Time Series Data'!$AG$7:$AG$8790,'Time Series Data'!$I$7:$I$8790,1,$F$7:$F$8790,DAY(AM9),$E$7:$E$8790,MONTH(AM9))))-BP9),0) -> 0 | BL9: 0 | BM9: =SUMIFS('Time Series Data'!$AG$7:$AG$8790,$F$7:$F$8790,DAY(AM9),$E$7:$E$8790,MONTH(AM9),'Time Series Data'!$I$7:$I$8790,1)-BL9-BP9 -> 6,666 | BN9: =SUMIFS('Time Series Data'!$AG$7:$AG$8790,'Time Series Data'!$I$7:$I$8790,0,$F$7:$F$8790,DAY(AM9),$E$7:$E$8790,MONTH(AM9))-BQ9 -> 1,810 | BO9: =IF((IF(ISNA(MATCH(AM9,'Coincident Peak'!$D$5:$D$16,0))=TRUE,0,SUMIFS($U$7:$U$8790,$F$7:$F$8790,DAY(AM9),$E$7:$E$8790,MONTH(AM9),$G$7:$G$8790,"<"&HOUR(VLOOKUP(AM9,'Coincident Peak'!$D$5:$E$16,2))-Values!$E$5)))>(Effective_Battery_Capacity/Rndtrp_eff),(Effective_Battery_Capacity/Rndtrp_eff),(IF(ISNA(MATCH(AM9,'Coincident Peak'!$D$5:$D$16,0))=TRUE,0,SUMIFS($U$7:$U$8790,$F$7:$F$8790,DAY(AM9),$E$7:$E$8790,MONTH(AM9),$G$7:$G$8790,"<"&HOUR(VLOOKUP(AM9,'Coincident Peak'!$D$5:$E$16,2))-Values!$E$5)))) -> 0 | BP9: =IF(WholesaleEnergyCost_2>PPACostPerKWh,(IF((IF(ISNA(MATCH(AM9,'Coincident Peak'!$D$5:$D$16,0))=TRUE,0,SUMIFS($U$7:$U$8790,$F$7:$F$8790,DAY(AM9),$E$7:$E$8790,MONTH(AM9),$G$7:$G$8790,"<"&HOUR(VLOOKUP(AM9,'Coincident Peak'!$D$5:$E$16,2))-Values!$E$5,$I$7:$I$8790,1)))>(Effective_Battery_Capacity/Rndtrp_eff),(Effective_Battery_Capacity/Rndtrp_eff),(IF(ISNA(MATCH(AM9,'Coincident Peak'!$D$5:$D$16,0))=TRUE,0,SUMIFS($U$7:$U$8790,$F$7:$F$8790,DAY(AM9),$E$7:$E$8790,MONTH(AM9),$G$7:$G$8790,"<"&HOUR(VLOOKUP(AM9,'Coincident Peak'!$D$5:$E$16,2))-Values!$E$5,$I$7:$I$8790,1))))),0) -> 0 | BQ9: =IF(WholesaleEnergyCost_1>PPACostPerKWh,(IF((IF(ISNA(MATCH(AM9,'Coincident Peak'!$D$5:$D$16,0))=TRUE,0,SUMIFS($U$7:$U$8790,$F$7:$F$8790,DAY(AM9),$E$7:$E$8790,MONTH(AM9),$G$7:$G$8790,"<"&HOUR(VLOOKUP(AM9,'Coincident Peak'!$D$5:$E$16,2))-Values!$E$5,$I$7:$I$8790,0)))>(Effective_Battery_Capacity/Rndtrp_eff),(Effective_Battery_Capacity/Rndtrp_eff),(IF(ISNA(MATCH(AM9,'Coincident Peak'!$D$5:$D$16,0))=TRUE,0,SUMIFS($U$7:$U$8790,$F$7:$F$8790,DAY(AM9),$E$7:$E$8790,MONTH(AM9),$G$7:$G$8790,"<"&HOUR(VLOOKUP(AM9,'Coincident Peak'!$D$5:$E$16,2))-Values!$E$5,$I$7:$I$8790,0))))),0) -> 0 | BR9: 392 | BS9: 6,932 | BT9: 0 | BV9: =IF(ISNA(MATCH(AM9,'Coincident Peak'!$D$5:$D$16,0))=TRUE,0,1) -> 0 | BW9: 1 | BX9: 0 | BY9: 1 | BZ9: 0 | CA9: 1 | CB9: 1 | CC9: 1 | CD9: =IF(ISNA(MATCH(AM9,'Coincident Peak'!$D$5:$D$16,0))=TRUE,1,0) -> 1 | CE9: =VLOOKUP(MONTH($AM9),'Value Stacking Basis'!$B$37:$D$48,3) -> 3 | CF9: =VLOOKUP(MONTH($AM9),'Value Stacking Basis'!$B$37:$F$48,5) -> 2 | CG9: 1 | CK9: 6,154.92 | CL9: 6,154.92 | CM9: 6,154.92 | CN9: 6,154.92 | CO9: 0 | CQ9: 0 | CR9: 6,154.92 | CS9: 6,154.92 | CT9: 6,154.92 | CU9: 6,154.92 | CW9: =IF($BV9=0,0,IF($CB9=0,INDEX('Time Series Data'!N$7:N$8790,MATCH(1,(MONTH($AM9)='Time Series Data'!$E$7:$E$8790)*(DAY($AM9)='Time Series Data'!$F$7:$F$8790)*(HOUR(VLOOKUP('Time Series Data'!$AM9,'Coincident Peak'!$D$5:$I$16,2))='Time Series Data'!$G$7:$G$8790),0)),IF(($AT9*Rndtrp_eff)>Effective_Battery_Capacity,BatteryPower,(($AT9*Rndtrp_eff)/Effective_Battery_Capacity)*BatteryPower))) -> 0 | CX9: 6,154.92 | CY9: 6,154.92 | CZ9: 6,154.92 | DA9: 6,154.92 | DC9: =IF($BV9=0,0,IF($CB9=0,INDEX('Time Series Data'!N$7:N$8790,MATCH(1,(MONTH($AM9)='Time Series Data'!$E$7:$E$8790)*(DAY($AM9)='Time Series Data'!$F$7:$F$8790)*(HOUR(VLOOKUP('Time Series Data'!$AM9,'Coincident Peak'!$D$5:$I$16,2))='Time Series Data'!$G$7:$G$8790),0)),IF(($AT9*Rndtrp_eff)>Effective_Battery_Capacity,BatteryPower,(($AT9*Rndtrp_eff)/Effective_Battery_Capacity)*BatteryPower))) -> 0 | DD9: 0 | DF9: 0 | DG9: 0 | DH9: 6,155 | DI9: 6,154.92 | DJ9: 6,154.92 | DK9: 6,154.92 | DM9: 0 | DN9: 0 | DO9: 6,155 | DP9: 0 | DR9: 0 | DS9: 6,400.30 | DT9: 6,400.30 | DU9: 6,400.30 | DV9: 0 | DX9: 0 | DY9: 0 | DZ9: 6,400.30 | EA9: 6,400.30 | EB9: 6,400.30 | EF9: 6,400.30 | EG9: 6,400.30 | EH9: 6,400.30 | EI9: 0 | EK9: 0 | EL9: 6,400.30 | EM9: 6,400.30 | EN9: 6,400.30 | EP9: =IF($BV9=0,0,IF($CC9=0,VLOOKUP('Time Series Data'!$AM9,'Coincident Peak'!$D$5:$I$16,3),BatteryPower)) -> 0 | EQ9: 6,400.30 | ER9: 6,400.30 | ES9: 6,400.30 | EU9: =IF($BV9=0,0,IF($CC9=0,VLOOKUP('Time Series Data'!$AM9,'Coincident Peak'!$D$5:$I$16,3),BatteryPower)) -> 0 | EV9: 0 | EX9: 0 | EY9: 0 | EZ9: 6,400.30 | FA9: 6,400.30 | FB9: 6,400.30 | FD9: 0 | FE9: 0 | FF9: 0 | FH9: 0 | FI9: 6,400.30 | FJ9: 6,400.30 | FK9: 6,400.30 | FL9: 0 | FN9: 0 | FO9: 0 | FP9: 6,400.30 | FQ9: 6,400.30 | FR9: 6,400.30
B10: =DATE(Load_Profile_Year,E10,F10)+TIME(G10,0,0) -> 2020-01-01T03:00:00 | C10: 2020-01-01 | D10: 66,683 | E10: 1 | F10: 1 | G10: 3 | H10: 3 | I10: =INDEX(Values!$V$6:$AG$29,'Time Series Data'!G10+1,'Time Series Data'!E10) -> 1 | J10: 3.5 | K10: 66683 | L10: 0 | M10: 0 | N10: 0 | O10: 0 | P10: 50 | T10: 0.00 | U10: 0.00 | V10: 66,683 | W10: =IF(V10+O10>VLOOKUP(E10,'Coincident Peak'!$C$22:$I$33,7),0,1) -> 1 | X10: =IF((AND(E10=MONTH(VLOOKUP('Time Series Data'!E10,'Coincident Peak'!$C$5:$D$16,2)),F10=DAY(VLOOKUP('Time Series Data'!E10,'Coincident Peak'!$C$5:$D$16,2)),IF(AND(G10<=HOUR(VLOOKUP('Time Series Data'!E10,'Coincident Peak'!$C$5:$E$16,3))+Values!$E$5,G10>=HOUR(VLOOKUP('Time Series Data'!E10,'Coincident Peak'!$C$5:$E$16,3))-Values!$E$5),"TRUE","FALSE"))),BatteryPower,0) -> 0.00 | Y10: =IF((AND(E10=MONTH(VLOOKUP('Time Series Data'!E10,'Coincident Peak'!$C$5:$D$16,2)),F10=DAY(VLOOKUP('Time Series Data'!E10,'Coincident Peak'!$C$5:$D$16,2)))),0,N10) -> 0.00 | Z10: =IF((AND(E10=MONTH(VLOOKUP('Time Series Data'!E10,'Coincident Peak'!$C$5:$D$16,2)),F10=DAY(VLOOKUP('Time Series Data'!E10,'Coincident Peak'!$C$5:$D$16,2)),IF(AND(G10<=HOUR(VLOOKUP('Time Series Data'!E10,'Coincident Peak'!$C$5:$E$16,3))+Values!$E$5,G10>=HOUR(VLOOKUP('Time Series Data'!E10,'Coincident Peak'!$C$5:$E$16,3))-Values!$E$5),"TRUE","FALSE"))),BatteryPower,Y10) -> 0.00 | AA10: =IF((AND(E10=MONTH(VLOOKUP('Time Series Data'!E10,'Coincident Peak'!$C$5:$D$16,2)),F10=DAY(VLOOKUP('Time Series Data'!E10,'Coincident Peak'!$C$5:$D$16,2))-1)),VLOOKUP(E10,'Coincident Peak'!$C$5:$N$16,11)*Z10,Z10) -> 0.00 | AB10: =IF((AND(E10=MONTH(VLOOKUP('Time Series Data'!E10,'Coincident Peak'!$C$5:$D$16,2)),F10=DAY(VLOOKUP('Time Series Data'!E10,'Coincident Peak'!$C$5:$D$16,2))+1)),VLOOKUP(E10,'Coincident Peak'!$C$5:$N$16,12)*AA10,AA10) -> 0.00 | AC10: =IF((AND(E10=MONTH(VLOOKUP('Time Series Data'!E10,'Coincident Peak'!$C$5:$D$16,2)),F10=DAY(VLOOKUP('Time Series Data'!E10,'Coincident Peak'!$C$5:$D$16,2)))),0,O10) -> 0.00 | AD10: =IF((AND(E10=MONTH(VLOOKUP('Time Series Data'!E10,'Coincident Peak'!$C$5:$D$16,2)),F10=DAY(VLOOKUP('Time Series Data'!E10,'Coincident Peak'!$C$5:$D$16,2))-1)),VLOOKUP(E10,'Coincident Peak'!$C$5:$N$16,11)*AC10,AC10) -> 0.00 | AE10: =IF((AND(E10=MONTH(VLOOKUP('Time Series Data'!E10,'Coincident Peak'!$C$5:$D$16,2)),F10=DAY(VLOOKUP('Time Series Data'!E10,'Coincident Peak'!$C$5:$D$16,2))+1)),VLOOKUP(E10,'Coincident Peak'!$C$5:$N$16,12)*AD10,AD10) -> 0.00 | AF10: 66,683 | AG10: =IF((AND(E10=MONTH(VLOOKUP('Time Series Data'!E10,'Coincident Peak'!$C$5:$D$16,2)),F10=DAY(VLOOKUP('Time Series Data'!E10,'Coincident Peak'!$C$5:$D$16,2)))),U10,O10) -> 0.00 | AH10: 66,683 | AL10: 3 | AM10: 2020-01-04 | AN10: 0 | AO10: 0 | AP10: 0 | AQ10: 0 | AR10: 9,062.45 | AS10: 6,652.53 | AT10: =IF(ISNA(MATCH(AM10,'Coincident Peak'!$D$5:$D$16,0))=TRUE,0,SUMIFS($O$7:$O$8790,$F$7:$F$8790,DAY(AM10),$E$7:$E$8790,MONTH(AM10),$G$7:$G$8790,"<"&HOUR(VLOOKUP(AM10,'Coincident Peak'!$D$5:$E$16,2))-Values!$E$5)) -> 0 | AU10: 0 | AV10: 0 | AW10: 0 | AX10: 0 | AY10: =IF(ISNA(MATCH(AM10,'Coincident Peak'!$D$5:$D$16,0))=TRUE,0,SUMIFS($O$7:$O$8790,$F$7:$F$8790,DAY(AM10),$E$7:$E$8790,MONTH(AM10),$G$7:$G$8790,"<"&HOUR(VLOOKUP(AM10,'Coincident Peak'!$D$5:$E$16,2))-Values!$E$5,$I$7:$I$8790,1)) -> 0 | AZ10: 0 | BA10: 0 | BB10: 0 | BD10: 0 | BE10: 0 | BF10: 0 | BG10: =IF(IF(ISNA(MATCH(AM10,'Coincident Peak'!$D$5:$D$16,0))=TRUE,0,SUMIFS($O$7:$O$8790,$F$7:$F$8790,DAY(AM10),$E$7:$E$8790,MONTH(AM10),$G$7:$G$8790,"<"&HOUR(VLOOKUP(AM10,'Coincident Peak'!$D$5:$E$16,2))-Values!$E$5,$I$7:$I$8790,0))>(Effective_Battery_Capacity/Rndtrp_eff),(Effective_Battery_Capacity/Rndtrp_eff),IF(ISNA(MATCH(AM10,'Coincident Peak'!$D$5:$D$16,0))=TRUE,0,SUMIFS($O$7:$O$8790,$F$7:$F$8790,DAY(AM10),$E$7:$E$8790,MONTH(AM10),$G$7:$G$8790,"<"&HOUR(VLOOKUP(AM10,'Coincident Peak'!$D$5:$E$16,2))-Values!$E$5,$I$7:$I$8790,0))) -> 0 | BH10: =IF((IF(ISNA(MATCH(AM10,'Coincident Peak'!$D$5:$D$16,0))=TRUE,0,SUMIFS($O$7:$O$8790,$F$7:$F$8790,DAY(AM10),$E$7:$E$8790,MONTH(AM10),$G$7:$G$8790,"<"&HOUR(VLOOKUP(AM10,'Coincident Peak'!$D$5:$E$16,2))-Values!$E$5)))>(Effective_Battery_Capacity/Rndtrp_eff),(Effective_Battery_Capacity/Rndtrp_eff),(IF(ISNA(MATCH(AM10,'Coincident Peak'!$D$5:$D$16,0))=TRUE,0,SUMIFS($O$7:$O$8790,$F$7:$F$8790,DAY(AM10),$E$7:$E$8790,MONTH(AM10),$G$7:$G$8790,"<"&HOUR(VLOOKUP(AM10,'Coincident Peak'!$D$5:$E$16,2))-Values!$E$5)))) -> 0 | BI10: 0 | BJ10: 0 | BK10: =IF(WholesaleEnergyCost_2>PPACostPerKWh,(IF((SUMIFS('Time Series Data'!$AG$7:$AG$8790,'Time Series Data'!$I$7:$I$8790,1,$F$7:$F$8790,DAY(AM10),$E$7:$E$8790,MONTH(AM10))-BP10)>(Effective_Battery_Capacity/Rndtrp_eff),(Effective_Battery_Capacity/Rndtrp_eff),(SUMIFS('Time Series Data'!$AG$7:$AG$8790,'Time Series Data'!$I$7:$I$8790,1,$F$7:$F$8790,DAY(AM10),$E$7:$E$8790,MONTH(AM10))))-BP10),0) -> 0 | BL10: 0 | BM10: =SUMIFS('Time Series Data'!$AG$7:$AG$8790,$F$7:$F$8790,DAY(AM10),$E$7:$E$8790,MONTH(AM10),'Time Series Data'!$I$7:$I$8790,1)-BL10-BP10 -> 7,205 | BN10: =SUMIFS('Time Series Data'!$AG$7:$AG$8790,'Time Series Data'!$I$7:$I$8790,0,$F$7:$F$8790,DAY(AM10),$E$7:$E$8790,MONTH(AM10))-BQ10 -> 1,858 | BO10: =IF((IF(ISNA(MATCH(AM10,'Coincident Peak'!$D$5:$D$16,0))=TRUE,0,SUMIFS($U$7:$U$8790,$F$7:$F$8790,DAY(AM10),$E$7:$E$8790,MONTH(AM10),$G$7:$G$8790,"<"&HOUR(VLOOKUP(AM10,'Coincident Peak'!$D$5:$E$16,2))-Values!$E$5)))>(Effective_Battery_Capacity/Rndtrp_eff),(Effective_Battery_Capacity/Rndtrp_eff),(IF(ISNA(MATCH(AM10,'Coincident Peak'!$D$5:$D$16,0))=TRUE,0,SUMIFS($U$7:$U$8790,$F$7:$F$8790,DAY(AM10),$E$7:$E$8790,MONTH(AM10),$G$7:$G$8790,"<"&HOUR(VLOOKUP(AM10,'Coincident Peak'!$D$5:$E$16,2))-Values!$E$5)))) -> 0 | BP10: =IF(WholesaleEnergyCost_2>PPACostPerKWh,(IF((IF(ISNA(MATCH(AM10,'Coincident Peak'!$D$5:$D$16,0))=TRUE,0,SUMIFS($U$7:$U$8790,$F$7:$F$8790,DAY(AM10),$E$7:$E$8790,MONTH(AM10),$G$7:$G$8790,"<"&HOUR(VLOOKUP(AM10,'Coincident Peak'!$D$5:$E$16,2))-Values!$E$5,$I$7:$I$8790,1)))>(Effective_Battery_Capacity/Rndtrp_eff),(Effective_Battery_Capacity/Rndtrp_eff),(IF(ISNA(MATCH(AM10,'Coincident Peak'!$D$5:$D$16,0))=TRUE,0,SUMIFS($U$7:$U$8790,$F$7:$F$8790,DAY(AM10),$E$7:$E$8790,MONTH(AM10),$G$7:$G$8790,"<"&HOUR(VLOOKUP(AM10,'Coincident Peak'!$D$5:$E$16,2))-Values!$E$5,$I$7:$I$8790,1))))),0) -> 0 | BQ10: =IF(WholesaleEnergyCost_1>PPACostPerKWh,(IF((IF(ISNA(MATCH(AM10,'Coincident Peak'!$D$5:$D$16,0))=TRUE,0,SUMIFS($U$7:$U$8790,$F$7:$F$8790,DAY(AM10),$E$7:$E$8790,MONTH(AM10),$G$7:$G$8790,"<"&HOUR(VLOOKUP(AM10,'Coincident Peak'!$D$5:$E$16,2))-Values!$E$5,$I$7:$I$8790,0)))>(Effective_Battery_Capacity/Rndtrp_eff),(Effective_Battery_Capacity/Rndtrp_eff),(IF(ISNA(MATCH(AM10,'Coincident Peak'!$D$5:$D$16,0))=TRUE,0,SUMIFS($U$7:$U$8790,$F$7:$F$8790,DAY(AM10),$E$7:$E$8790,MONTH(AM10),$G$7:$G$8790,"<"&HOUR(VLOOKUP(AM10,'Coincident Peak'!$D$5:$E$16,2))-Values!$E$5,$I$7:$I$8790,0))))),0) -> 0 | BR10: 0 | BS10: 6,932 | BT10: 0 | BV10: =IF(ISNA(MATCH(AM10,'Coincident Peak'!$D$5:$D$16,0))=TRUE,0,1) -> 0 | BW10: 0 | BX10: 0 | BY10: 0 | BZ10: 0 | CA10: 0 | CB10: 1 | CC10: 1 | CD10: =IF(ISNA(MATCH(AM10,'Coincident Peak'!$D$5:$D$16,0))=TRUE,1,0) -> 1 | CE10: =VLOOKUP(MONTH($AM10),'Value Stacking Basis'!$B$37:$D$48,3) -> 3 | CF10: =VLOOKUP(MONTH($AM10),'Value Stacking Basis'!$B$37:$F$48,5) -> 2 | CG10: 1 | CK10: 6,652.53 | CL10: 6,400.30 | CM10: 0 | CN10: 0 | CO10: 24.00 | CQ10: 24.00 | CR10: 0 | CS10: 0 | CT10: 0 | CU10: 0 | CW10: =IF($BV10=0,0,IF($CB10=0,INDEX('Time Series Data'!N$7:N$8790,MATCH(1,(MONTH($AM10)='Time Series Data'!$E$7:$E$8790)*(DAY($AM10)='Time Series Data'!$F$7:$F$8790)*(HOUR(VLOOKUP('Time Series Data'!$AM10,'Coincident Peak'!$D$5:$I$16,2))='Time Series Data'!$G$7:$G$8790),0)),IF(($AT10*Rndtrp_eff)>Effective_Battery_Capacity,BatteryPower,(($AT10*Rndtrp_eff)/Effective_Battery_Capacity)*BatteryPower))) -> 0 | CX10: 6,652.53 | CY10: 6,400.30 | CZ10: 0 | DA10: 0 | DC10: =IF($BV10=0,0,IF($CB10=0,INDEX('Time Series Data'!N$7:N$8790,MATCH(1,(MONTH($AM10)='Time Series Data'!$E$7:$E$8790)*(DAY($AM10)='Time Series Data'!$F$7:$F$8790)*(HOUR(VLOOKUP('Time Series Data'!$AM10,'Coincident Peak'!$D$5:$I$16,2))='Time Series Data'!$G$7:$G$8790),0)),IF(($AT10*Rndtrp_eff)>Effective_Battery_Capacity,BatteryPower,(($AT10*Rndtrp_eff)/Effective_Battery_Capacity)*BatteryPower))) -> 0 | DD10: 24.00 | DF10: 0 | DG10: 0 | DH10: 6,653 | DI10: 6,400.30 | DJ10: 0 | DK10: 0 | DM10: 0 | DN10: 0 | DO10: 6,653 | DP10: 24 | DR10: 0 | DS10: 6,400.30 | DT10: 0 | DU10: 0 | DV10: 24.00 | DX10: 0 | DY10: 24.00 | DZ10: 0 | EA10: 0 | EB10: 0 | EF10: 6,400.30 | EG10: 0 | EH10: 0 | EI10: 24.00 | EK10: 24.00 | EL10: 0 | EM10: 0 | EN10: 0 | EP10: =IF($BV10=0,0,IF($CC10=0,VLOOKUP('Time Series Data'!$AM10,'Coincident Peak'!$D$5:$I$16,3),BatteryPower)) -> 0 | EQ10: 6,400.30 | ER10: 0 | ES10: 0 | EU10: =IF($BV10=0,0,IF($CC10=0,VLOOKUP('Time Series Data'!$AM10,'Coincident Peak'!$D$5:$I$16,3),BatteryPower)) -> 0 | EV10: 24.00 | EX10: 0 | EY10: 0 | EZ10: 6,400.30 | FA10: 0 | FB10: 0 | FD10: 0 | FE10: 0 | FF10: 24 | FH10: 0 | FI10: 6,400.30 | FJ10: 0 | FK10: 0 | FL10: 24.00 | FN10: 0 | FO10: 24.00 | FP10: 0 | FQ10: 0 | FR10: 0
B11: =DATE(Load_Profile_Year,E11,F11)+TIME(G11,0,0) -> 2020-01-01T04:00:00 | C11: 2020-01-01 | D11: 66,304 | E11: 1 | F11: 1 | G11: 4 | H11: 3 | I11: =INDEX(Values!$V$6:$AG$29,'Time Series Data'!G11+1,'Time Series Data'!E11) -> 1 | J11: 4.5 | K11: 66304 | L11: 0 | M11: 0 | N11: 0 | O11: 0 | P11: 50 | T11: 0.00 | U11: 0.00 | V11: 66,304 | W11: =IF(V11+O11>VLOOKUP(E11,'Coincident Peak'!$C$22:$I$33,7),0,1) -> 1 | X11: =IF((AND(E11=MONTH(VLOOKUP('Time Series Data'!E11,'Coincident Peak'!$C$5:$D$16,2)),F11=DAY(VLOOKUP('Time Series Data'!E11,'Coincident Peak'!$C$5:$D$16,2)),IF(AND(G11<=HOUR(VLOOKUP('Time Series Data'!E11,'Coincident Peak'!$C$5:$E$16,3))+Values!$E$5,G11>=HOUR(VLOOKUP('Time Series Data'!E11,'Coincident Peak'!$C$5:$E$16,3))-Values!$E$5),"TRUE","FALSE"))),BatteryPower,0) -> 0.00 | Y11: =IF((AND(E11=MONTH(VLOOKUP('Time Series Data'!E11,'Coincident Peak'!$C$5:$D$16,2)),F11=DAY(VLOOKUP('Time Series Data'!E11,'Coincident Peak'!$C$5:$D$16,2)))),0,N11) -> 0.00 | Z11: =IF((AND(E11=MONTH(VLOOKUP('Time Series Data'!E11,'Coincident Peak'!$C$5:$D$16,2)),F11=DAY(VLOOKUP('Time Series Data'!E11,'Coincident Peak'!$C$5:$D$16,2)),IF(AND(G11<=HOUR(VLOOKUP('Time Series Data'!E11,'Coincident Peak'!$C$5:$E$16,3))+Values!$E$5,G11>=HOUR(VLOOKUP('Time Series Data'!E11,'Coincident Peak'!$C$5:$E$16,3))-Values!$E$5),"TRUE","FALSE"))),BatteryPower,Y11) -> 0.00 | AA11: =IF((AND(E11=MONTH(VLOOKUP('Time Series Data'!E11,'Coincident Peak'!$C$5:$D$16,2)),F11=DAY(VLOOKUP('Time Series Data'!E11,'Coincident Peak'!$C$5:$D$16,2))-1)),VLOOKUP(E11,'Coincident Peak'!$C$5:$N$16,11)*Z11,Z11) -> 0.00 | AB11: =IF((AND(E11=MONTH(VLOOKUP('Time Series Data'!E11,'Coincident Peak'!$C$5:$D$16,2)),F11=DAY(VLOOKUP('Time Series Data'!E11,'Coincident Peak'!$C$5:$D$16,2))+1)),VLOOKUP(E11,'Coincident Peak'!$C$5:$N$16,12)*AA11,AA11) -> 0.00 | AC11: =IF((AND(E11=MONTH(VLOOKUP('Time Series Data'!E11,'Coincident Peak'!$C$5:$D$16,2)),F11=DAY(VLOOKUP('Time Series Data'!E11,'Coincident Peak'!$C$5:$D$16,2)))),0,O11) -> 0.00 | AD11: =IF((AND(E11=MONTH(VLOOKUP('Time Series Data'!E11,'Coincident Peak'!$C$5:$D$16,2)),F11=DAY(VLOOKUP('Time Series Data'!E11,'Coincident Peak'!$C$5:$D$16,2))-1)),VLOOKUP(E11,'Coincident Peak'!$C$5:$N$16,11)*AC11,AC11) -> 0.00 | AE11: =IF((AND(E11=MONTH(VLOOKUP('Time Series Data'!E11,'Coincident Peak'!$C$5:$D$16,2)),F11=DAY(VLOOKUP('Time Series Data'!E11,'Coincident Peak'!$C$5:$D$16,2))+1)),VLOOKUP(E11,'Coincident Peak'!$C$5:$N$16,12)*AD11,AD11) -> 0.00 | AF11: 66,304 | AG11: =IF((AND(E11=MONTH(VLOOKUP('Time Series Data'!E11,'Coincident Peak'!$C$5:$D$16,2)),F11=DAY(VLOOKUP('Time Series Data'!E11,'Coincident Peak'!$C$5:$D$16,2)))),U11,O11) -> 0.00 | AH11: 66,304 | AL11: 4 | AM11: 2020-01-05 | AN11: 0 | AO11: 0 | AP11: 0 | AQ11: 0 | AR11: 5,007.92 | AS11: 3,793.31 | AT11: =IF(ISNA(MATCH(AM11,'Coincident Peak'!$D$5:$D$16,0))=TRUE,0,SUMIFS($O$7:$O$8790,$F$7:$F$8790,DAY(AM11),$E$7:$E$8790,MONTH(AM11),$G$7:$G$8790,"<"&HOUR(VLOOKUP(AM11,'Coincident Peak'!$D$5:$E$16,2))-Values!$E$5)) -> 0 | AU11: 0 | AV11: 0 | AW11: 0 | AX11: 0 | AY11: =IF(ISNA(MATCH(AM11,'Coincident Peak'!$D$5:$D$16,0))=TRUE,0,SUMIFS($O$7:$O$8790,$F$7:$F$8790,DAY(AM11),$E$7:$E$8790,MONTH(AM11),$G$7:$G$8790,"<"&HOUR(VLOOKUP(AM11,'Coincident Peak'!$D$5:$E$16,2))-Values!$E$5,$I$7:$I$8790,1)) -> 0 | AZ11: 0 | BA11: 0 | BB11: 0 | BD11: 0 | BE11: 0 | BF11: 0 | BG11: =IF(IF(ISNA(MATCH(AM11,'Coincident Peak'!$D$5:$D$16,0))=TRUE,0,SUMIFS($O$7:$O$8790,$F$7:$F$8790,DAY(AM11),$E$7:$E$8790,MONTH(AM11),$G$7:$G$8790,"<"&HOUR(VLOOKUP(AM11,'Coincident Peak'!$D$5:$E$16,2))-Values!$E$5,$I$7:$I$8790,0))>(Effective_Battery_Capacity/Rndtrp_eff),(Effective_Battery_Capacity/Rndtrp_eff),IF(ISNA(MATCH(AM11,'Coincident Peak'!$D$5:$D$16,0))=TRUE,0,SUMIFS($O$7:$O$8790,$F$7:$F$8790,DAY(AM11),$E$7:$E$8790,MONTH(AM11),$G$7:$G$8790,"<"&HOUR(VLOOKUP(AM11,'Coincident Peak'!$D$5:$E$16,2))-Values!$E$5,$I$7:$I$8790,0))) -> 0 | BH11: =IF((IF(ISNA(MATCH(AM11,'Coincident Peak'!$D$5:$D$16,0))=TRUE,0,SUMIFS($O$7:$O$8790,$F$7:$F$8790,DAY(AM11),$E$7:$E$8790,MONTH(AM11),$G$7:$G$8790,"<"&HOUR(VLOOKUP(AM11,'Coincident Peak'!$D$5:$E$16,2))-Values!$E$5)))>(Effective_Battery_Capacity/Rndtrp_eff),(Effective_Battery_Capacity/Rndtrp_eff),(IF(ISNA(MATCH(AM11,'Coincident Peak'!$D$5:$D$16,0))=TRUE,0,SUMIFS($O$7:$O$8790,$F$7:$F$8790,DAY(AM11),$E$7:$E$8790,MONTH(AM11),$G$7:$G$8790,"<"&HOUR(VLOOKUP(AM11,'Coincident Peak'!$D$5:$E$16,2))-Values!$E$5)))) -> 0 | BI11: 0 | BJ11: 0 | BK11: =IF(WholesaleEnergyCost_2>PPACostPerKWh,(IF((SUMIFS('Time Series Data'!$AG$7:$AG$8790,'Time Series Data'!$I$7:$I$8790,1,$F$7:$F$8790,DAY(AM11),$E$7:$E$8790,MONTH(AM11))-BP11)>(Effective_Battery_Capacity/Rndtrp_eff),(Effective_Battery_Capacity/Rndtrp_eff),(SUMIFS('Time Series Data'!$AG$7:$AG$8790,'Time Series Data'!$I$7:$I$8790,1,$F$7:$F$8790,DAY(AM11),$E$7:$E$8790,MONTH(AM11))))-BP11),0) -> 0 | BL11: 0 | BM11: =SUMIFS('Time Series Data'!$AG$7:$AG$8790,$F$7:$F$8790,DAY(AM11),$E$7:$E$8790,MONTH(AM11),'Time Series Data'!$I$7:$I$8790,1)-BL11-BP11 -> 4,108 | BN11: =SUMIFS('Time Series Data'!$AG$7:$AG$8790,'Time Series Data'!$I$7:$I$8790,0,$F$7:$F$8790,DAY(AM11),$E$7:$E$8790,MONTH(AM11))-BQ11 -> 900 | BO11: =IF((IF(ISNA(MATCH(AM11,'Coincident Peak'!$D$5:$D$16,0))=TRUE,0,SUMIFS($U$7:$U$8790,$F$7:$F$8790,DAY(AM11),$E$7:$E$8790,MONTH(AM11),$G$7:$G$8790,"<"&HOUR(VLOOKUP(AM11,'Coincident Peak'!$D$5:$E$16,2))-Values!$E$5)))>(Effective_Battery_Capacity/Rndtrp_eff),(Effective_Battery_Capacity/Rndtrp_eff),(IF(ISNA(MATCH(AM11,'Coincident Peak'!$D$5:$D$16,0))=TRUE,0,SUMIFS($U$7:$U$8790,$F$7:$F$8790,DAY(AM11),$E$7:$E$8790,MONTH(AM11),$G$7:$G$8790,"<"&HOUR(VLOOKUP(AM11,'Coincident Peak'!$D$5:$E$16,2))-Values!$E$5)))) -> 0 | BP11: =IF(WholesaleEnergyCost_2>PPACostPerKWh,(IF((IF(ISNA(MATCH(AM11,'Coincident Peak'!$D$5:$D$16,0))=TRUE,0,SUMIFS($U$7:$U$8790,$F$7:$F$8790,DAY(AM11),$E$7:$E$8790,MONTH(AM11),$G$7:$G$8790,"<"&HOUR(VLOOKUP(AM11,'Coincident Peak'!$D$5:$E$16,2))-Values!$E$5,$I$7:$I$8790,1)))>(Effective_Battery_Capacity/Rndtrp_eff),(Effective_Battery_Capacity/Rndtrp_eff),(IF(ISNA(MATCH(AM11,'Coincident Peak'!$D$5:$D$16,0))=TRUE,0,SUMIFS($U$7:$U$8790,$F$7:$F$8790,DAY(AM11),$E$7:$E$8790,MONTH(AM11),$G$7:$G$8790,"<"&HOUR(VLOOKUP(AM11,'Coincident Peak'!$D$5:$E$16,2))-Values!$E$5,$I$7:$I$8790,1))))),0) -> 0 | BQ11: =IF(WholesaleEnergyCost_1>PPACostPerKWh,(IF((IF(ISNA(MATCH(AM11,'Coincident Peak'!$D$5:$D$16,0))=TRUE,0,SUMIFS($U$7:$U$8790,$F$7:$F$8790,DAY(AM11),$E$7:$E$8790,MONTH(AM11),$G$7:$G$8790,"<"&HOUR(VLOOKUP(AM11,'Coincident Peak'!$D$5:$E$16,2))-Values!$E$5,$I$7:$I$8790,0)))>(Effective_Battery_Capacity/Rndtrp_eff),(Effective_Battery_Capacity/Rndtrp_eff),(IF(ISNA(MATCH(AM11,'Coincident Peak'!$D$5:$D$16,0))=TRUE,0,SUMIFS($U$7:$U$8790,$F$7:$F$8790,DAY(AM11),$E$7:$E$8790,MONTH(AM11),$G$7:$G$8790,"<"&HOUR(VLOOKUP(AM11,'Coincident Peak'!$D$5:$E$16,2))-Values!$E$5,$I$7:$I$8790,0))))),0) -> 0 | BR11: 0 | BS11: 4,108 | BT11: 0 | BV11: =IF(ISNA(MATCH(AM11,'Coincident Peak'!$D$5:$D$16,0))=TRUE,0,1) -> 0 | BW11: 0 | BX11: 0 | BY11: 0 | BZ11: 0 | CA11: 0 | CB11: 1 | CC11: 1 | CD11: =IF(ISNA(MATCH(AM11,'Coincident Peak'!$D$5:$D$16,0))=TRUE,1,0) -> 1 | CE11: =VLOOKUP(MONTH($AM11),'Value Stacking Basis'!$B$37:$D$48,3) -> 3 | CF11: =VLOOKUP(MONTH($AM11),'Value Stacking Basis'!$B$37:$F$48,5) -> 2 | CG11: 1 | CK11: 3,793.31 | CL11: 3,793.31 | CM11: 0 | CN11: 0 | CO11: 24.00 | CQ11: 24.00 | CR11: 0 | CS11: 0 | CT11: 0 | CU11: 0 | CW11: =IF($BV11=0,0,IF($CB11=0,INDEX('Time Series Data'!N$7:N$8790,MATCH(1,(MONTH($AM11)='Time Series Data'!$E$7:$E$8790)*(DAY($AM11)='Time Series Data'!$F$7:$F$8790)*(HOUR(VLOOKUP('Time Series Data'!$AM11,'Coincident Peak'!$D$5:$I$16,2))='Time Series Data'!$G$7:$G$8790),0)),IF(($AT11*Rndtrp_eff)>Effective_Battery_Capacity,BatteryPower,(($AT11*Rndtrp_eff)/Effective_Battery_Capacity)*BatteryPower))) -> 0 | CX11: 3,793.31 | CY11: 3,793.31 | CZ11: 0 | DA11: 0 | DC11: =IF($BV11=0,0,IF($CB11=0,INDEX('Time Series Data'!N$7:N$8790,MATCH(1,(MONTH($AM11)='Time Series Data'!$E$7:$E$8790)*(DAY($AM11)='Time Series Data'!$F$7:$F$8790)*(HOUR(VLOOKUP('Time Series Data'!$AM11,'Coincident Peak'!$D$5:$I$16,2))='Time Series Data'!$G$7:$G$8790),0)),IF(($AT11*Rndtrp_eff)>Effective_Battery_Capacity,BatteryPower,(($AT11*Rndtrp_eff)/Effective_Battery_Capacity)*BatteryPower))) -> 0 | DD11: 24.00 | DF11: 0 | DG11: 0 | DH11: 3,793 | DI11: 3,793.31 | DJ11: 0 | DK11: 0 | DM11: 0 | DN11: 0 | DO11: 3,793 | DP11: 24 | DR11: 0 | DS11: 3,793.31 | DT11: 0 | DU11: 0 | DV11: 24.00 | DX11: 0 | DY11: 24.00 | DZ11: 0 | EA11: 0 | EB11: 0 | EF11: 6,400.30 | EG11: 0 | EH11: 0 | EI11: 24.00 | EK11: 24.00 | EL11: 0 | EM11: 0 | EN11: 0 | EP11: =IF($BV11=0,0,IF($CC11=0,VLOOKUP('Time Series Data'!$AM11,'Coincident Peak'!$D$5:$I$16,3),BatteryPower)) -> 0 | EQ11: 6,400.30 | ER11: 0 | ES11: 0 | EU11: =IF($BV11=0,0,IF($CC11=0,VLOOKUP('Time Series Data'!$AM11,'Coincident Peak'!$D$5:$I$16,3),BatteryPower)) -> 0 | EV11: 24.00 | EX11: 0 | EY11: 0 | EZ11: 6,400.30 | FA11: 0 | FB11: 0 | FD11: 0 | FE11: 0 | FF11: 24 | FH11: 0 | FI11: 6,400.30 | FJ11: 0 | FK11: 0 | FL11: 24.00 | FN11: 0 | FO11: 24.00 | FP11: 0 | FQ11: 0 | FR11: 0
B12: =DATE(Load_Profile_Year,E12,F12)+TIME(G12,0,0) -> 2020-01-01T05:00:00 | C12: 2020-01-01 | D12: 69,117 | E12: 1 | F12: 1 | G12: 5 | H12: 3 | I12: =INDEX(Values!$V$6:$AG$29,'Time Series Data'!G12+1,'Time Series Data'!E12) -> 1 | J12: 5.5 | K12: 69117 | L12: 0 | M12: 0 | N12: 0 | O12: 0 | P12: 50 | T12: 0.00 | U12: 0.00 | V12: 69,117 | W12: =IF(V12+O12>VLOOKUP(E12,'Coincident Peak'!$C$22:$I$33,7),0,1) -> 1 | X12: =IF((AND(E12=MONTH(VLOOKUP('Time Series Data'!E12,'Coincident Peak'!$C$5:$D$16,2)),F12=DAY(VLOOKUP('Time Series Data'!E12,'Coincident Peak'!$C$5:$D$16,2)),IF(AND(G12<=HOUR(VLOOKUP('Time Series Data'!E12,'Coincident Peak'!$C$5:$E$16,3))+Values!$E$5,G12>=HOUR(VLOOKUP('Time Series Data'!E12,'Coincident Peak'!$C$5:$E$16,3))-Values!$E$5),"TRUE","FALSE"))),BatteryPower,0) -> 0.00 | Y12: =IF((AND(E12=MONTH(VLOOKUP('Time Series Data'!E12,'Coincident Peak'!$C$5:$D$16,2)),F12=DAY(VLOOKUP('Time Series Data'!E12,'Coincident Peak'!$C$5:$D$16,2)))),0,N12) -> 0.00 | Z12: =IF((AND(E12=MONTH(VLOOKUP('Time Series Data'!E12,'Coincident Peak'!$C$5:$D$16,2)),F12=DAY(VLOOKUP('Time Series Data'!E12,'Coincident Peak'!$C$5:$D$16,2)),IF(AND(G12<=HOUR(VLOOKUP('Time Series Data'!E12,'Coincident Peak'!$C$5:$E$16,3))+Values!$E$5,G12>=HOUR(VLOOKUP('Time Series Data'!E12,'Coincident Peak'!$C$5:$E$16,3))-Values!$E$5),"TRUE","FALSE"))),BatteryPower,Y12) -> 0.00 | AA12: =IF((AND(E12=MONTH(VLOOKUP('Time Series Data'!E12,'Coincident Peak'!$C$5:$D$16,2)),F12=DAY(VLOOKUP('Time Series Data'!E12,'Coincident Peak'!$C$5:$D$16,2))-1)),VLOOKUP(E12,'Coincident Peak'!$C$5:$N$16,11)*Z12,Z12) -> 0.00 | AB12: =IF((AND(E12=MONTH(VLOOKUP('Time Series Data'!E12,'Coincident Peak'!$C$5:$D$16,2)),F12=DAY(VLOOKUP('Time Series Data'!E12,'Coincident Peak'!$C$5:$D$16,2))+1)),VLOOKUP(E12,'Coincident Peak'!$C$5:$N$16,12)*AA12,AA12) -> 0.00 | AC12: =IF((AND(E12=MONTH(VLOOKUP('Time Series Data'!E12,'Coincident Peak'!$C$5:$D$16,2)),F12=DAY(VLOOKUP('Time Series Data'!E12,'Coincident Peak'!$C$5:$D$16,2)))),0,O12) -> 0.00 | AD12: =IF((AND(E12=MONTH(VLOOKUP('Time Series Data'!E12,'Coincident Peak'!$C$5:$D$16,2)),F12=DAY(VLOOKUP('Time Series Data'!E12,'Coincident Peak'!$C$5:$D$16,2))-1)),VLOOKUP(E12,'Coincident Peak'!$C$5:$N$16,11)*AC12,AC12) -> 0.00 | AE12: =IF((AND(E12=MONTH(VLOOKUP('Time Series Data'!E12,'Coincident Peak'!$C$5:$D$16,2)),F12=DAY(VLOOKUP('Time Series Data'!E12,'Coincident Peak'!$C$5:$D$16,2))+1)),VLOOKUP(E12,'Coincident Peak'!$C$5:$N$16,12)*AD12,AD12) -> 0.00 | AF12: 69,117 | AG12: =IF((AND(E12=MONTH(VLOOKUP('Time Series Data'!E12,'Coincident Peak'!$C$5:$D$16,2)),F12=DAY(VLOOKUP('Time Series Data'!E12,'Coincident Peak'!$C$5:$D$16,2)))),U12,O12) -> 0.00 | AH12: 69,117 | AL12: 5 | AM12: 2020-01-06 | AN12: 1 | AO12: 0 | AP12: 0 | AQ12: 0 | AR12: 7,240.16 | AS12: 5,060.53 | AT12: =IF(ISNA(MATCH(AM12,'Coincident Peak'!$D$5:$D$16,0))=TRUE,0,SUMIFS($O$7:$O$8790,$F$7:$F$8790,DAY(AM12),$E$7:$E$8790,MONTH(AM12),$G$7:$G$8790,"<"&HOUR(VLOOKUP(AM12,'Coincident Peak'!$D$5:$E$16,2))-Values!$E$5)) -> 0 | AU12: 0 | AV12: 0 | AW12: 0 | AX12: 1,760 | AY12: =IF(ISNA(MATCH(AM12,'Coincident Peak'!$D$5:$D$16,0))=TRUE,0,SUMIFS($O$7:$O$8790,$F$7:$F$8790,DAY(AM12),$E$7:$E$8790,MONTH(AM12),$G$7:$G$8790,"<"&HOUR(VLOOKUP(AM12,'Coincident Peak'!$D$5:$E$16,2))-Values!$E$5,$I$7:$I$8790,1)) -> 0 | AZ12: 1,760 | BA12: 1,760 | BB12: 0 | BD12: 1,760 | BE12: 5,481 | BF12: 0 | BG12: =IF(IF(ISNA(MATCH(AM12,'Coincident Peak'!$D$5:$D$16,0))=TRUE,0,SUMIFS($O$7:$O$8790,$F$7:$F$8790,DAY(AM12),$E$7:$E$8790,MONTH(AM12),$G$7:$G$8790,"<"&HOUR(VLOOKUP(AM12,'Coincident Peak'!$D$5:$E$16,2))-Values!$E$5,$I$7:$I$8790,0))>(Effective_Battery_Capacity/Rndtrp_eff),(Effective_Battery_Capacity/Rndtrp_eff),IF(ISNA(MATCH(AM12,'Coincident Peak'!$D$5:$D$16,0))=TRUE,0,SUMIFS($O$7:$O$8790,$F$7:$F$8790,DAY(AM12),$E$7:$E$8790,MONTH(AM12),$G$7:$G$8790,"<"&HOUR(VLOOKUP(AM12,'Coincident Peak'!$D$5:$E$16,2))-Values!$E$5,$I$7:$I$8790,0))) -> 0 | BH12: =IF((IF(ISNA(MATCH(AM12,'Coincident Peak'!$D$5:$D$16,0))=TRUE,0,SUMIFS($O$7:$O$8790,$F$7:$F$8790,DAY(AM12),$E$7:$E$8790,MONTH(AM12),$G$7:$G$8790,"<"&HOUR(VLOOKUP(AM12,'Coincident Peak'!$D$5:$E$16,2))-Values!$E$5)))>(Effective_Battery_Capacity/Rndtrp_eff),(Effective_Battery_Capacity/Rndtrp_eff),(IF(ISNA(MATCH(AM12,'Coincident Peak'!$D$5:$D$16,0))=TRUE,0,SUMIFS($O$7:$O$8790,$F$7:$F$8790,DAY(AM12),$E$7:$E$8790,MONTH(AM12),$G$7:$G$8790,"<"&HOUR(VLOOKUP(AM12,'Coincident Peak'!$D$5:$E$16,2))-Values!$E$5)))) -> 0 | BI12: 0 | BJ12: 0 | BK12: =IF(WholesaleEnergyCost_2>PPACostPerKWh,(IF((SUMIFS('Time Series Data'!$AG$7:$AG$8790,'Time Series Data'!$I$7:$I$8790,1,$F$7:$F$8790,DAY(AM12),$E$7:$E$8790,MONTH(AM12))-BP12)>(Effective_Battery_Capacity/Rndtrp_eff),(Effective_Battery_Capacity/Rndtrp_eff),(SUMIFS('Time Series Data'!$AG$7:$AG$8790,'Time Series Data'!$I$7:$I$8790,1,$F$7:$F$8790,DAY(AM12),$E$7:$E$8790,MONTH(AM12))))-BP12),0) -> 0 | BL12: 0 | BM12: =SUMIFS('Time Series Data'!$AG$7:$AG$8790,$F$7:$F$8790,DAY(AM12),$E$7:$E$8790,MONTH(AM12),'Time Series Data'!$I$7:$I$8790,1)-BL12-BP12 -> 5,481 | BN12: =SUMIFS('Time Series Data'!$AG$7:$AG$8790,'Time Series Data'!$I$7:$I$8790,0,$F$7:$F$8790,DAY(AM12),$E$7:$E$8790,MONTH(AM12))-BQ12 -> 1,760 | BO12: =IF((IF(ISNA(MATCH(AM12,'Coincident Peak'!$D$5:$D$16,0))=TRUE,0,SUMIFS($U$7:$U$8790,$F$7:$F$8790,DAY(AM12),$E$7:$E$8790,MONTH(AM12),$G$7:$G$8790,"<"&HOUR(VLOOKUP(AM12,'Coincident Peak'!$D$5:$E$16,2))-Values!$E$5)))>(Effective_Battery_Capacity/Rndtrp_eff),(Effective_Battery_Capacity/Rndtrp_eff),(IF(ISNA(MATCH(AM12,'Coincident Peak'!$D$5:$D$16,0))=TRUE,0,SUMIFS($U$7:$U$8790,$F$7:$F$8790,DAY(AM12),$E$7:$E$8790,MONTH(AM12),$G$7:$G$8790,"<"&HOUR(VLOOKUP(AM12,'Coincident Peak'!$D$5:$E$16,2))-Values!$E$5)))) -> 0 | BP12: =IF(WholesaleEnergyCost_2>PPACostPerKWh,(IF((IF(ISNA(MATCH(AM12,'Coincident Peak'!$D$5:$D$16,0))=TRUE,0,SUMIFS($U$7:$U$8790,$F$7:$F$8790,DAY(AM12),$E$7:$E$8790,MONTH(AM12),$G$7:$G$8790,"<"&HOUR(VLOOKUP(AM12,'Coincident Peak'!$D$5:$E$16,2))-Values!$E$5,$I$7:$I$8790,1)))>(Effective_Battery_Capacity/Rndtrp_eff),(Effective_Battery_Capacity/Rndtrp_eff),(IF(ISNA(MATCH(AM12,'Coincident Peak'!$D$5:$D$16,0))=TRUE,0,SUMIFS($U$7:$U$8790,$F$7:$F$8790,DAY(AM12),$E$7:$E$8790,MONTH(AM12),$G$7:$G$8790,"<"&HOUR(VLOOKUP(AM12,'Coincident Peak'!$D$5:$E$16,2))-Values!$E$5,$I$7:$I$8790,1))))),0) -> 0 | BQ12: =IF(WholesaleEnergyCost_1>PPACostPerKWh,(IF((IF(ISNA(MATCH(AM12,'Coincident Peak'!$D$5:$D$16,0))=TRUE,0,SUMIFS($U$7:$U$8790,$F$7:$F$8790,DAY(AM12),$E$7:$E$8790,MONTH(AM12),$G$7:$G$8790,"<"&HOUR(VLOOKUP(AM12,'Coincident Peak'!$D$5:$E$16,2))-Values!$E$5,$I$7:$I$8790,0)))>(Effective_Battery_Capacity/Rndtrp_eff),(Effective_Battery_Capacity/Rndtrp_eff),(IF(ISNA(MATCH(AM12,'Coincident Peak'!$D$5:$D$16,0))=TRUE,0,SUMIFS($U$7:$U$8790,$F$7:$F$8790,DAY(AM12),$E$7:$E$8790,MONTH(AM12),$G$7:$G$8790,"<"&HOUR(VLOOKUP(AM12,'Coincident Peak'!$D$5:$E$16,2))-Values!$E$5,$I$7:$I$8790,0))))),0) -> 0 | BR12: 0 | BS12: 5,481 | BT12: 0 | BV12: =IF(ISNA(MATCH(AM12,'Coincident Peak'!$D$5:$D$16,0))=TRUE,0,1) -> 0 | BW12: 0 | BX12: 0 | BY12: 0 | BZ12: 0 | CA12: 0 | CB12: 1 | CC12: 1 | CD12: =IF(ISNA(MATCH(AM12,'Coincident Peak'!$D$5:$D$16,0))=TRUE,1,0) -> 1 | CE12: =VLOOKUP(MONTH($AM12),'Value Stacking Basis'!$B$37:$D$48,3) -> 3 | CF12: =VLOOKUP(MONTH($AM12),'Value Stacking Basis'!$B$37:$F$48,5) -> 2 | CG12: 1 | CK12: 5,060.53 | CL12: 5,060.53 | CM12: 5,060.53 | CN12: 5,060.53 | CO12: 0 | CQ12: 0 | CR12: 5,060.53 | CS12: 5,060.53 | CT12: 5,060.53 | CU12: 5,060.53 | CW12: =IF($BV12=0,0,IF($CB12=0,INDEX('Time Series Data'!N$7:N$8790,MATCH(1,(MONTH($AM12)='Time Series Data'!$E$7:$E$8790)*(DAY($AM12)='Time Series Data'!$F$7:$F$8790)*(HOUR(VLOOKUP('Time Series Data'!$AM12,'Coincident Peak'!$D$5:$I$16,2))='Time Series Data'!$G$7:$G$8790),0)),IF(($AT12*Rndtrp_eff)>Effective_Battery_Capacity,BatteryPower,(($AT12*Rndtrp_eff)/Effective_Battery_Capacity)*BatteryPower))) -> 0 | CX12: 5,060.53 | CY12: 5,060.53 | CZ12: 5,060.53 | DA12: 5,060.53 | DC12: =IF($BV12=0,0,IF($CB12=0,INDEX('Time Series Data'!N$7:N$8790,MATCH(1,(MONTH($AM12)='Time Series Data'!$E$7:$E$8790)*(DAY($AM12)='Time Series Data'!$F$7:$F$8790)*(HOUR(VLOOKUP('Time Series Data'!$AM12,'Coincident Peak'!$D$5:$I$16,2))='Time Series Data'!$G$7:$G$8790),0)),IF(($AT12*Rndtrp_eff)>Effective_Battery_Capacity,BatteryPower,(($AT12*Rndtrp_eff)/Effective_Battery_Capacity)*BatteryPower))) -> 0 | DD12: 0 | DF12: 0 | DG12: 0 | DH12: 5,061 | DI12: 5,060.53 | DJ12: 5,060.53 | DK12: 5,060.53 | DM12: 0 | DN12: 0 | DO12: 5,061 | DP12: 0 | DR12: 0 | DS12: 5,060.53 | DT12: 5,060.53 | DU12: 5,060.53 | DV12: 0 | DX12: 0 | DY12: 0 | DZ12: 5,060.53 | EA12: 5,060.53 | EB12: 5,060.53 | EF12: 6,400.30 | EG12: 6,400.30 | EH12: 6,400.30 | EI12: 0 | EK12: 0 | EL12: 6,400.30 | EM12: 6,400.30 | EN12: 6,400.30 | EP12: =IF($BV12=0,0,IF($CC12=0,VLOOKUP('Time Series Data'!$AM12,'Coincident Peak'!$D$5:$I$16,3),BatteryPower)) -> 0 | EQ12: 6,400.30 | ER12: 6,400.30 | ES12: 6,400.30 | EU12: =IF($BV12=0,0,IF($CC12=0,VLOOKUP('Time Series Data'!$AM12,'Coincident Peak'!$D$5:$I$16,3),BatteryPower)) -> 0 | EV12: 0 | EX12: 0 | EY12: 0 | EZ12: 6,400.30 | FA12: 6,400.30 | FB12: 6,400.30 | FD12: 0 | FE12: 0 | FF12: 0 | FH12: 0 | FI12: 6,400.30 | FJ12: 6,400.30 | FK12: 6,400.30 | FL12: 0 | FN12: 0 | FO12: 0 | FP12: 6,400.30 | FQ12: 6,400.30 | FR12: 6,400.30
B13: =DATE(Load_Profile_Year,E13,F13)+TIME(G13,0,0) -> 2020-01-01T06:00:00 | C13: 2020-01-01 | D13: 71,221 | E13: 1 | F13: 1 | G13: 6 | H13: 3 | I13: =INDEX(Values!$V$6:$AG$29,'Time Series Data'!G13+1,'Time Series Data'!E13) -> 1 | J13: 6.5 | K13: 71221 | L13: 0 | M13: 0 | N13: 0 | O13: 0 | P13: 50 | T13: 0.00 | U13: 0.00 | V13: 71,221 | W13: =IF(V13+O13>VLOOKUP(E13,'Coincident Peak'!$C$22:$I$33,7),0,1) -> 1 | X13: =IF((AND(E13=MONTH(VLOOKUP('Time Series Data'!E13,'Coincident Peak'!$C$5:$D$16,2)),F13=DAY(VLOOKUP('Time Series Data'!E13,'Coincident Peak'!$C$5:$D$16,2)),IF(AND(G13<=HOUR(VLOOKUP('Time Series Data'!E13,'Coincident Peak'!$C$5:$E$16,3))+Values!$E$5,G13>=HOUR(VLOOKUP('Time Series Data'!E13,'Coincident Peak'!$C$5:$E$16,3))-Values!$E$5),"TRUE","FALSE"))),BatteryPower,0) -> 0.00 | Y13: =IF((AND(E13=MONTH(VLOOKUP('Time Series Data'!E13,'Coincident Peak'!$C$5:$D$16,2)),F13=DAY(VLOOKUP('Time Series Data'!E13,'Coincident Peak'!$C$5:$D$16,2)))),0,N13) -> 0.00 | Z13: =IF((AND(E13=MONTH(VLOOKUP('Time Series Data'!E13,'Coincident Peak'!$C$5:$D$16,2)),F13=DAY(VLOOKUP('Time Series Data'!E13,'Coincident Peak'!$C$5:$D$16,2)),IF(AND(G13<=HOUR(VLOOKUP('Time Series Data'!E13,'Coincident Peak'!$C$5:$E$16,3))+Values!$E$5,G13>=HOUR(VLOOKUP('Time Series Data'!E13,'Coincident Peak'!$C$5:$E$16,3))-Values!$E$5),"TRUE","FALSE"))),BatteryPower,Y13) -> 0.00 | AA13: =IF((AND(E13=MONTH(VLOOKUP('Time Series Data'!E13,'Coincident Peak'!$C$5:$D$16,2)),F13=DAY(VLOOKUP('Time Series Data'!E13,'Coincident Peak'!$C$5:$D$16,2))-1)),VLOOKUP(E13,'Coincident Peak'!$C$5:$N$16,11)*Z13,Z13) -> 0.00 | AB13: =IF((AND(E13=MONTH(VLOOKUP('Time Series Data'!E13,'Coincident Peak'!$C$5:$D$16,2)),F13=DAY(VLOOKUP('Time Series Data'!E13,'Coincident Peak'!$C$5:$D$16,2))+1)),VLOOKUP(E13,'Coincident Peak'!$C$5:$N$16,12)*AA13,AA13) -> 0.00 | AC13: =IF((AND(E13=MONTH(VLOOKUP('Time Series Data'!E13,'Coincident Peak'!$C$5:$D$16,2)),F13=DAY(VLOOKUP('Time Series Data'!E13,'Coincident Peak'!$C$5:$D$16,2)))),0,O13) -> 0.00 | AD13: =IF((AND(E13=MONTH(VLOOKUP('Time Series Data'!E13,'Coincident Peak'!$C$5:$D$16,2)),F13=DAY(VLOOKUP('Time Series Data'!E13,'Coincident Peak'!$C$5:$D$16,2))-1)),VLOOKUP(E13,'Coincident Peak'!$C$5:$N$16,11)*AC13,AC13) -> 0.00 | AE13: =IF((AND(E13=MONTH(VLOOKUP('Time Series Data'!E13,'Coincident Peak'!$C$5:$D$16,2)),F13=DAY(VLOOKUP('Time Series Data'!E13,'Coincident Peak'!$C$5:$D$16,2))+1)),VLOOKUP(E13,'Coincident Peak'!$C$5:$N$16,12)*AD13,AD13) -> 0.00 | AF13: 71,221 | AG13: =IF((AND(E13=MONTH(VLOOKUP('Time Series Data'!E13,'Coincident Peak'!$C$5:$D$16,2)),F13=DAY(VLOOKUP('Time Series Data'!E13,'Coincident Peak'!$C$5:$D$16,2)))),U13,O13) -> 0.00 | AH13: 71,221 | AL13: 6 | AM13: 2020-01-07 | AN13: 1 | AO13: 0 | AP13: 0 | AQ13: 0 | AR13: 8,368.39 | AS13: 6,110.28 | AT13: =IF(ISNA(MATCH(AM13,'Coincident Peak'!$D$5:$D$16,0))=TRUE,0,SUMIFS($O$7:$O$8790,$F$7:$F$8790,DAY(AM13),$E$7:$E$8790,MONTH(AM13),$G$7:$G$8790,"<"&HOUR(VLOOKUP(AM13,'Coincident Peak'!$D$5:$E$16,2))-Values!$E$5)) -> 0 | AU13: 0 | AV13: 0 | AW13: 0 | AX13: 1,751 | AY13: =IF(ISNA(MATCH(AM13,'Coincident Peak'!$D$5:$D$16,0))=TRUE,0,SUMIFS($O$7:$O$8790,$F$7:$F$8790,DAY(AM13),$E$7:$E$8790,MONTH(AM13),$G$7:$G$8790,"<"&HOUR(VLOOKUP(AM13,'Coincident Peak'!$D$5:$E$16,2))-Values!$E$5,$I$7:$I$8790,1)) -> 0 | AZ13: 1,751 | BA13: 1,751 | BB13: 0 | BD13: 1,751 | BE13: 6,617 | BF13: 0 | BG13: =IF(IF(ISNA(MATCH(AM13,'Coincident Peak'!$D$5:$D$16,0))=TRUE,0,SUMIFS($O$7:$O$8790,$F$7:$F$8790,DAY(AM13),$E$7:$E$8790,MONTH(AM13),$G$7:$G$8790,"<"&HOUR(VLOOKUP(AM13,'Coincident Peak'!$D$5:$E$16,2))-Values!$E$5,$I$7:$I$8790,0))>(Effective_Battery_Capacity/Rndtrp_eff),(Effective_Battery_Capacity/Rndtrp_eff),IF(ISNA(MATCH(AM13,'Coincident Peak'!$D$5:$D$16,0))=TRUE,0,SUMIFS($O$7:$O$8790,$F$7:$F$8790,DAY(AM13),$E$7:$E$8790,MONTH(AM13),$G$7:$G$8790,"<"&HOUR(VLOOKUP(AM13,'Coincident Peak'!$D$5:$E$16,2))-Values!$E$5,$I$7:$I$8790,0))) -> 0 | BH13: =IF((IF(ISNA(MATCH(AM13,'Coincident Peak'!$D$5:$D$16,0))=TRUE,0,SUMIFS($O$7:$O$8790,$F$7:$F$8790,DAY(AM13),$E$7:$E$8790,MONTH(AM13),$G$7:$G$8790,"<"&HOUR(VLOOKUP(AM13,'Coincident Peak'!$D$5:$E$16,2))-Values!$E$5)))>(Effective_Battery_Capacity/Rndtrp_eff),(Effective_Battery_Capacity/Rndtrp_eff),(IF(ISNA(MATCH(AM13,'Coincident Peak'!$D$5:$D$16,0))=TRUE,0,SUMIFS($O$7:$O$8790,$F$7:$F$8790,DAY(AM13),$E$7:$E$8790,MONTH(AM13),$G$7:$G$8790,"<"&HOUR(VLOOKUP(AM13,'Coincident Peak'!$D$5:$E$16,2))-Values!$E$5)))) -> 0 | BI13: 0 | BJ13: 0 | BK13: =IF(WholesaleEnergyCost_2>PPACostPerKWh,(IF((SUMIFS('Time Series Data'!$AG$7:$AG$8790,'Time Series Data'!$I$7:$I$8790,1,$F$7:$F$8790,DAY(AM13),$E$7:$E$8790,MONTH(AM13))-BP13)>(Effective_Battery_Capacity/Rndtrp_eff),(Effective_Battery_Capacity/Rndtrp_eff),(SUMIFS('Time Series Data'!$AG$7:$AG$8790,'Time Series Data'!$I$7:$I$8790,1,$F$7:$F$8790,DAY(AM13),$E$7:$E$8790,MONTH(AM13))))-BP13),0) -> 0 | BL13: 0 | BM13: =SUMIFS('Time Series Data'!$AG$7:$AG$8790,$F$7:$F$8790,DAY(AM13),$E$7:$E$8790,MONTH(AM13),'Time Series Data'!$I$7:$I$8790,1)-BL13-BP13 -> 6,617 | BN13: =SUMIFS('Time Series Data'!$AG$7:$AG$8790,'Time Series Data'!$I$7:$I$8790,0,$F$7:$F$8790,DAY(AM13),$E$7:$E$8790,MONTH(AM13))-BQ13 -> 1,751 | BO13: =IF((IF(ISNA(MATCH(AM13,'Coincident Peak'!$D$5:$D$16,0))=TRUE,0,SUMIFS($U$7:$U$8790,$F$7:$F$8790,DAY(AM13),$E$7:$E$8790,MONTH(AM13),$G$7:$G$8790,"<"&HOUR(VLOOKUP(AM13,'Coincident Peak'!$D$5:$E$16,2))-Values!$E$5)))>(Effective_Battery_Capacity/Rndtrp_eff),(Effective_Battery_Capacity/Rndtrp_eff),(IF(ISNA(MATCH(AM13,'Coincident Peak'!$D$5:$D$16,0))=TRUE,0,SUMIFS($U$7:$U$8790,$F$7:$F$8790,DAY(AM13),$E$7:$E$8790,MONTH(AM13),$G$7:$G$8790,"<"&HOUR(VLOOKUP(AM13,'Coincident Peak'!$D$5:$E$16,2))-Values!$E$5)))) -> 0 | BP13: =IF(WholesaleEnergyCost_2>PPACostPerKWh,(IF((IF(ISNA(MATCH(AM13,'Coincident Peak'!$D$5:$D$16,0))=TRUE,0,SUMIFS($U$7:$U$8790,$F$7:$F$8790,DAY(AM13),$E$7:$E$8790,MONTH(AM13),$G$7:$G$8790,"<"&HOUR(VLOOKUP(AM13,'Coincident Peak'!$D$5:$E$16,2))-Values!$E$5,$I$7:$I$8790,1)))>(Effective_Battery_Capacity/Rndtrp_eff),(Effective_Battery_Capacity/Rndtrp_eff),(IF(ISNA(MATCH(AM13,'Coincident Peak'!$D$5:$D$16,0))=TRUE,0,SUMIFS($U$7:$U$8790,$F$7:$F$8790,DAY(AM13),$E$7:$E$8790,MONTH(AM13),$G$7:$G$8790,"<"&HOUR(VLOOKUP(AM13,'Coincident Peak'!$D$5:$E$16,2))-Values!$E$5,$I$7:$I$8790,1))))),0) -> 0 | BQ13: =IF(WholesaleEnergyCost_1>PPACostPerKWh,(IF((IF(ISNA(MATCH(AM13,'Coincident Peak'!$D$5:$D$16,0))=TRUE,0,SUMIFS($U$7:$U$8790,$F$7:$F$8790,DAY(AM13),$E$7:$E$8790,MONTH(AM13),$G$7:$G$8790,"<"&HOUR(VLOOKUP(AM13,'Coincident Peak'!$D$5:$E$16,2))-Values!$E$5,$I$7:$I$8790,0)))>(Effective_Battery_Capacity/Rndtrp_eff),(Effective_Battery_Capacity/Rndtrp_eff),(IF(ISNA(MATCH(AM13,'Coincident Peak'!$D$5:$D$16,0))=TRUE,0,SUMIFS($U$7:$U$8790,$F$7:$F$8790,DAY(AM13),$E$7:$E$8790,MONTH(AM13),$G$7:$G$8790,"<"&HOUR(VLOOKUP(AM13,'Coincident Peak'!$D$5:$E$16,2))-Values!$E$5,$I$7:$I$8790,0))))),0) -> 0 | BR13: 0 | BS13: 6,617 | BT13: 0 | BV13: =IF(ISNA(MATCH(AM13,'Coincident Peak'!$D$5:$D$16,0))=TRUE,0,1) -> 0 | BW13: 0 | BX13: 0 | BY13: 0 | BZ13: 0 | CA13: 0 | CB13: 1 | CC13: 1 | CD13: =IF(ISNA(MATCH(AM13,'Coincident Peak'!$D$5:$D$16,0))=TRUE,1,0) -> 1 | CE13: =VLOOKUP(MONTH($AM13),'Value Stacking Basis'!$B$37:$D$48,3) -> 3 | CF13: =VLOOKUP(MONTH($AM13),'Value Stacking Basis'!$B$37:$F$48,5) -> 2 | CG13: 1 | CK13: 6,110.28 | CL13: 6,110.28 | CM13: 6,110.28 | CN13: 6,110.28 | CO13: 0 | CQ13: 0 | CR13: 6,110.28 | CS13: 6,110.28 | CT13: 6,110.28 | CU13: 6,110.28 | CW13: =IF($BV13=0,0,IF($CB13=0,INDEX('Time Series Data'!N$7:N$8790,MATCH(1,(MONTH($AM13)='Time Series Data'!$E$7:$E$8790)*(DAY($AM13)='Time Series Data'!$F$7:$F$8790)*(HOUR(VLOOKUP('Time Series Data'!$AM13,'Coincident Peak'!$D$5:$I$16,2))='Time Series Data'!$G$7:$G$8790),0)),IF(($AT13*Rndtrp_eff)>Effective_Battery_Capacity,BatteryPower,(($AT13*Rndtrp_eff)/Effective_Battery_Capacity)*BatteryPower))) -> 0 | CX13: 6,110.28 | CY13: 6,110.28 | CZ13: 6,110.28 | DA13: 6,110.28 | DC13: =IF($BV13=0,0,IF($CB13=0,INDEX('Time Series Data'!N$7:N$8790,MATCH(1,(MONTH($AM13)='Time Series Data'!$E$7:$E$8790)*(DAY($AM13)='Time Series Data'!$F$7:$F$8790)*(HOUR(VLOOKUP('Time Series Data'!$AM13,'Coincident Peak'!$D$5:$I$16,2))='Time Series Data'!$G$7:$G$8790),0)),IF(($AT13*Rndtrp_eff)>Effective_Battery_Capacity,BatteryPower,(($AT13*Rndtrp_eff)/Effective_Battery_Capacity)*BatteryPower))) -> 0 | DD13: 0 | DF13: 0 | DG13: 0 | DH13: 6,110 | DI13: 6,110.28 | DJ13: 6,110.28 | DK13: 6,110.28 | DM13: 0 | DN13: 0 | DO13: 6,110 | DP13: 0 | DR13: 0 | DS13: 6,110.28 | DT13: 6,110.28 | DU13: 6,110.28 | DV13: 0 | DX13: 0 | DY13: 0 | DZ13: 6,110.28 | EA13: 6,110.28 | EB13: 6,110.28 | EF13: 6,400.30 | EG13: 6,400.30 | EH13: 6,400.30 | EI13: 0 | EK13: 0 | EL13: 6,400.30 | EM13: 6,400.30 | EN13: 6,400.30 | EP13: =IF($BV13=0,0,IF($CC13=0,VLOOKUP('Time Series Data'!$AM13,'Coincident Peak'!$D$5:$I$16,3),BatteryPower)) -> 0 | EQ13: 6,400.30 | ER13: 6,400.30 | ES13: 6,400.30 | EU13: =IF($BV13=0,0,IF($CC13=0,VLOOKUP('Time Series Data'!$AM13,'Coincident Peak'!$D$5:$I$16,3),BatteryPower)) -> 0 | EV13: 0 | EX13: 0 | EY13: 0 | EZ13: 6,400.30 | FA13: 6,400.30 | FB13: 6,400.30 | FD13: 0 | FE13: 0 | FF13: 0 | FH13: 0 | FI13: 6,400.30 | FJ13: 6,400.30 | FK13: 6,400.30 | FL13: 0 | FN13: 0 | FO13: 0 | FP13: 6,400.30 | FQ13: 6,400.30 | FR13: 6,400.30
B14: =DATE(Load_Profile_Year,E14,F14)+TIME(G14,0,0) -> 2020-01-01T07:00:00 | C14: 2020-01-01 | D14: 75,012 | E14: 1 | F14: 1 | G14: 7 | H14: 3 | I14: =INDEX(Values!$V$6:$AG$29,'Time Series Data'!G14+1,'Time Series Data'!E14) -> 1 | J14: 7.5 | K14: 75012 | L14: 0 | M14: 0 | N14: 0 | O14: 0 | P14: 50 | T14: 0.00 | U14: 0.00 | V14: 75,012 | W14: =IF(V14+O14>VLOOKUP(E14,'Coincident Peak'!$C$22:$I$33,7),0,1) -> 1 | X14: =IF((AND(E14=MONTH(VLOOKUP('Time Series Data'!E14,'Coincident Peak'!$C$5:$D$16,2)),F14=DAY(VLOOKUP('Time Series Data'!E14,'Coincident Peak'!$C$5:$D$16,2)),IF(AND(G14<=HOUR(VLOOKUP('Time Series Data'!E14,'Coincident Peak'!$C$5:$E$16,3))+Values!$E$5,G14>=HOUR(VLOOKUP('Time Series Data'!E14,'Coincident Peak'!$C$5:$E$16,3))-Values!$E$5),"TRUE","FALSE"))),BatteryPower,0) -> 0.00 | Y14: =IF((AND(E14=MONTH(VLOOKUP('Time Series Data'!E14,'Coincident Peak'!$C$5:$D$16,2)),F14=DAY(VLOOKUP('Time Series Data'!E14,'Coincident Peak'!$C$5:$D$16,2)))),0,N14) -> 0.00 | Z14: =IF((AND(E14=MONTH(VLOOKUP('Time Series Data'!E14,'Coincident Peak'!$C$5:$D$16,2)),F14=DAY(VLOOKUP('Time Series Data'!E14,'Coincident Peak'!$C$5:$D$16,2)),IF(AND(G14<=HOUR(VLOOKUP('Time Series Data'!E14,'Coincident Peak'!$C$5:$E$16,3))+Values!$E$5,G14>=HOUR(VLOOKUP('Time Series Data'!E14,'Coincident Peak'!$C$5:$E$16,3))-Values!$E$5),"TRUE","FALSE"))),BatteryPower,Y14) -> 0.00 | AA14: =IF((AND(E14=MONTH(VLOOKUP('Time Series Data'!E14,'Coincident Peak'!$C$5:$D$16,2)),F14=DAY(VLOOKUP('Time Series Data'!E14,'Coincident Peak'!$C$5:$D$16,2))-1)),VLOOKUP(E14,'Coincident Peak'!$C$5:$N$16,11)*Z14,Z14) -> 0.00 | AB14: =IF((AND(E14=MONTH(VLOOKUP('Time Series Data'!E14,'Coincident Peak'!$C$5:$D$16,2)),F14=DAY(VLOOKUP('Time Series Data'!E14,'Coincident Peak'!$C$5:$D$16,2))+1)),VLOOKUP(E14,'Coincident Peak'!$C$5:$N$16,12)*AA14,AA14) -> 0.00 | AC14: =IF((AND(E14=MONTH(VLOOKUP('Time Series Data'!E14,'Coincident Peak'!$C$5:$D$16,2)),F14=DAY(VLOOKUP('Time Series Data'!E14,'Coincident Peak'!$C$5:$D$16,2)))),0,O14) -> 0.00 | AD14: =IF((AND(E14=MONTH(VLOOKUP('Time Series Data'!E14,'Coincident Peak'!$C$5:$D$16,2)),F14=DAY(VLOOKUP('Time Series Data'!E14,'Coincident Peak'!$C$5:$D$16,2))-1)),VLOOKUP(E14,'Coincident Peak'!$C$5:$N$16,11)*AC14,AC14) -> 0.00 | AE14: =IF((AND(E14=MONTH(VLOOKUP('Time Series Data'!E14,'Coincident Peak'!$C$5:$D$16,2)),F14=DAY(VLOOKUP('Time Series Data'!E14,'Coincident Peak'!$C$5:$D$16,2))+1)),VLOOKUP(E14,'Coincident Peak'!$C$5:$N$16,12)*AD14,AD14) -> 0.00 | AF14: 75,012 | AG14: =IF((AND(E14=MONTH(VLOOKUP('Time Series Data'!E14,'Coincident Peak'!$C$5:$D$16,2)),F14=DAY(VLOOKUP('Time Series Data'!E14,'Coincident Peak'!$C$5:$D$16,2)))),U14,O14) -> 0.00 | AH14: 75,012 | AL14: 7 | AM14: 2020-01-08 | AN14: 1 | AO14: 0 | AP14: 0 | AQ14: 0 | AR14: 5,562.42 | AS14: 4,989.67 | AT14: =IF(ISNA(MATCH(AM14,'Coincident Peak'!$D$5:$D$16,0))=TRUE,0,SUMIFS($O$7:$O$8790,$F$7:$F$8790,DAY(AM14),$E$7:$E$8790,MONTH(AM14),$G$7:$G$8790,"<"&HOUR(VLOOKUP(AM14,'Coincident Peak'!$D$5:$E$16,2))-Values!$E$5)) -> 0 | AU14: 0 | AV14: 0 | AW14: 0 | AX14: 159 | AY14: =IF(ISNA(MATCH(AM14,'Coincident Peak'!$D$5:$D$16,0))=TRUE,0,SUMIFS($O$7:$O$8790,$F$7:$F$8790,DAY(AM14),$E$7:$E$8790,MONTH(AM14),$G$7:$G$8790,"<"&HOUR(VLOOKUP(AM14,'Coincident Peak'!$D$5:$E$16,2))-Values!$E$5,$I$7:$I$8790,1)) -> 0 | AZ14: 159 | BA14: 159 | BB14: 0 | BD14: 159 | BE14: 5,404 | BF14: 0 | BG14: =IF(IF(ISNA(MATCH(AM14,'Coincident Peak'!$D$5:$D$16,0))=TRUE,0,SUMIFS($O$7:$O$8790,$F$7:$F$8790,DAY(AM14),$E$7:$E$8790,MONTH(AM14),$G$7:$G$8790,"<"&HOUR(VLOOKUP(AM14,'Coincident Peak'!$D$5:$E$16,2))-Values!$E$5,$I$7:$I$8790,0))>(Effective_Battery_Capacity/Rndtrp_eff),(Effective_Battery_Capacity/Rndtrp_eff),IF(ISNA(MATCH(AM14,'Coincident Peak'!$D$5:$D$16,0))=TRUE,0,SUMIFS($O$7:$O$8790,$F$7:$F$8790,DAY(AM14),$E$7:$E$8790,MONTH(AM14),$G$7:$G$8790,"<"&HOUR(VLOOKUP(AM14,'Coincident Peak'!$D$5:$E$16,2))-Values!$E$5,$I$7:$I$8790,0))) -> 0 | BH14: =IF((IF(ISNA(MATCH(AM14,'Coincident Peak'!$D$5:$D$16,0))=TRUE,0,SUMIFS($O$7:$O$8790,$F$7:$F$8790,DAY(AM14),$E$7:$E$8790,MONTH(AM14),$G$7:$G$8790,"<"&HOUR(VLOOKUP(AM14,'Coincident Peak'!$D$5:$E$16,2))-Values!$E$5)))>(Effective_Battery_Capacity/Rndtrp_eff),(Effective_Battery_Capacity/Rndtrp_eff),(IF(ISNA(MATCH(AM14,'Coincident Peak'!$D$5:$D$16,0))=TRUE,0,SUMIFS($O$7:$O$8790,$F$7:$F$8790,DAY(AM14),$E$7:$E$8790,MONTH(AM14),$G$7:$G$8790,"<"&HOUR(VLOOKUP(AM14,'Coincident Peak'!$D$5:$E$16,2))-Values!$E$5)))) -> 0 | BI14: 0 | BJ14: 0 | BK14: =IF(WholesaleEnergyCost_2>PPACostPerKWh,(IF((SUMIFS('Time Series Data'!$AG$7:$AG$8790,'Time Series Data'!$I$7:$I$8790,1,$F$7:$F$8790,DAY(AM14),$E$7:$E$8790,MONTH(AM14))-BP14)>(Effective_Battery_Capacity/Rndtrp_eff),(Effective_Battery_Capacity/Rndtrp_eff),(SUMIFS('Time Series Data'!$AG$7:$AG$8790,'Time Series Data'!$I$7:$I$8790,1,$F$7:$F$8790,DAY(AM14),$E$7:$E$8790,MONTH(AM14))))-BP14),0) -> 0 | BL14: 0 | BM14: =SUMIFS('Time Series Data'!$AG$7:$AG$8790,$F$7:$F$8790,DAY(AM14),$E$7:$E$8790,MONTH(AM14),'Time Series Data'!$I$7:$I$8790,1)-BL14-BP14 -> 5,404 | BN14: =SUMIFS('Time Series Data'!$AG$7:$AG$8790,'Time Series Data'!$I$7:$I$8790,0,$F$7:$F$8790,DAY(AM14),$E$7:$E$8790,MONTH(AM14))-BQ14 -> 159 | BO14: =IF((IF(ISNA(MATCH(AM14,'Coincident Peak'!$D$5:$D$16,0))=TRUE,0,SUMIFS($U$7:$U$8790,$F$7:$F$8790,DAY(AM14),$E$7:$E$8790,MONTH(AM14),$G$7:$G$8790,"<"&HOUR(VLOOKUP(AM14,'Coincident Peak'!$D$5:$E$16,2))-Values!$E$5)))>(Effective_Battery_Capacity/Rndtrp_eff),(Effective_Battery_Capacity/Rndtrp_eff),(IF(ISNA(MATCH(AM14,'Coincident Peak'!$D$5:$D$16,0))=TRUE,0,SUMIFS($U$7:$U$8790,$F$7:$F$8790,DAY(AM14),$E$7:$E$8790,MONTH(AM14),$G$7:$G$8790,"<"&HOUR(VLOOKUP(AM14,'Coincident Peak'!$D$5:$E$16,2))-Values!$E$5)))) -> 0 | BP14: =IF(WholesaleEnergyCost_2>PPACostPerKWh,(IF((IF(ISNA(MATCH(AM14,'Coincident Peak'!$D$5:$D$16,0))=TRUE,0,SUMIFS($U$7:$U$8790,$F$7:$F$8790,DAY(AM14),$E$7:$E$8790,MONTH(AM14),$G$7:$G$8790,"<"&HOUR(VLOOKUP(AM14,'Coincident Peak'!$D$5:$E$16,2))-Values!$E$5,$I$7:$I$8790,1)))>(Effective_Battery_Capacity/Rndtrp_eff),(Effective_Battery_Capacity/Rndtrp_eff),(IF(ISNA(MATCH(AM14,'Coincident Peak'!$D$5:$D$16,0))=TRUE,0,SUMIFS($U$7:$U$8790,$F$7:$F$8790,DAY(AM14),$E$7:$E$8790,MONTH(AM14),$G$7:$G$8790,"<"&HOUR(VLOOKUP(AM14,'Coincident Peak'!$D$5:$E$16,2))-Values!$E$5,$I$7:$I$8790,1))))),0) -> 0 | BQ14: =IF(WholesaleEnergyCost_1>PPACostPerKWh,(IF((IF(ISNA(MATCH(AM14,'Coincident Peak'!$D$5:$D$16,0))=TRUE,0,SUMIFS($U$7:$U$8790,$F$7:$F$8790,DAY(AM14),$E$7:$E$8790,MONTH(AM14),$G$7:$G$8790,"<"&HOUR(VLOOKUP(AM14,'Coincident Peak'!$D$5:$E$16,2))-Values!$E$5,$I$7:$I$8790,0)))>(Effective_Battery_Capacity/Rndtrp_eff),(Effective_Battery_Capacity/Rndtrp_eff),(IF(ISNA(MATCH(AM14,'Coincident Peak'!$D$5:$D$16,0))=TRUE,0,SUMIFS($U$7:$U$8790,$F$7:$F$8790,DAY(AM14),$E$7:$E$8790,MONTH(AM14),$G$7:$G$8790,"<"&HOUR(VLOOKUP(AM14,'Coincident Peak'!$D$5:$E$16,2))-Values!$E$5,$I$7:$I$8790,0))))),0) -> 0 | BR14: 0 | BS14: 5,404 | BT14: 0 | BV14: =IF(ISNA(MATCH(AM14,'Coincident Peak'!$D$5:$D$16,0))=TRUE,0,1) -> 0 | BW14: 0 | BX14: 0 | BY14: 0 | BZ14: 0 | CA14: 0 | CB14: 1 | CC14: 1 | CD14: =IF(ISNA(MATCH(AM14,'Coincident Peak'!$D$5:$D$16,0))=TRUE,1,0) -> 1 | CE14: =VLOOKUP(MONTH($AM14),'Value Stacking Basis'!$B$37:$D$48,3) -> 3 | CF14: =VLOOKUP(MONTH($AM14),'Value Stacking Basis'!$B$37:$F$48,5) -> 2 | CG14: 1 | CK14: 4,989.67 | CL14: 4,989.67 | CM14: 4,989.67 | CN14: 4,989.67 | CO14: 0 | CQ14: 0 | CR14: 4,989.67 | CS14: 4,989.67 | CT14: 4,989.67 | CU14: 4,989.67 | CW14: =IF($BV14=0,0,IF($CB14=0,INDEX('Time Series Data'!N$7:N$8790,MATCH(1,(MONTH($AM14)='Time Series Data'!$E$7:$E$8790)*(DAY($AM14)='Time Series Data'!$F$7:$F$8790)*(HOUR(VLOOKUP('Time Series Data'!$AM14,'Coincident Peak'!$D$5:$I$16,2))='Time Series Data'!$G$7:$G$8790),0)),IF(($AT14*Rndtrp_eff)>Effective_Battery_Capacity,BatteryPower,(($AT14*Rndtrp_eff)/Effective_Battery_Capacity)*BatteryPower))) -> 0 | CX14: 4,989.67 | CY14: 4,989.67 | CZ14: 4,989.67 | DA14: 4,989.67 | DC14: =IF($BV14=0,0,IF($CB14=0,INDEX('Time Series Data'!N$7:N$8790,MATCH(1,(MONTH($AM14)='Time Series Data'!$E$7:$E$8790)*(DAY($AM14)='Time Series Data'!$F$7:$F$8790)*(HOUR(VLOOKUP('Time Series Data'!$AM14,'Coincident Peak'!$D$5:$I$16,2))='Time Series Data'!$G$7:$G$8790),0)),IF(($AT14*Rndtrp_eff)>Effective_Battery_Capacity,BatteryPower,(($AT14*Rndtrp_eff)/Effective_Battery_Capacity)*BatteryPower))) -> 0 | DD14: 0 | DF14: 0 | DG14: 0 | DH14: 4,990 | DI14: 4,989.67 | DJ14: 4,989.67 | DK14: 4,989.67 | DM14: 0 | DN14: 0 | DO14: 4,990 | DP14: 0 | DR14: 0 | DS14: 4,989.67 | DT14: 4,989.67 | DU14: 4,989.67 | DV14: 0 | DX14: 0 | DY14: 0 | DZ14: 4,989.67 | EA14: 4,989.67 | EB14: 4,989.67 | EF14: 6,400.30 | EG14: 6,400.30 | EH14: 6,400.30 | EI14: 0 | EK14: 0 | EL14: 6,400.30 | EM14: 6,400.30 | EN14: 6,400.30 | EP14: =IF($BV14=0,0,IF($CC14=0,VLOOKUP('Time Series Data'!$AM14,'Coincident Peak'!$D$5:$I$16,3),BatteryPower)) -> 0 | EQ14: 6,400.30 | ER14: 6,400.30 | ES14: 6,400.30 | EU14: =IF($BV14=0,0,IF($CC14=0,VLOOKUP('Time Series Data'!$AM14,'Coincident Peak'!$D$5:$I$16,3),BatteryPower)) -> 0 | EV14: 0 | EX14: 0 | EY14: 0 | EZ14: 6,400.30 | FA14: 6,400.30 | FB14: 6,400.30 | FD14: 0 | FE14: 0 | FF14: 0 | FH14: 0 | FI14: 6,400.30 | FJ14: 6,400.30 | FK14: 6,400.30 | FL14: 0 | FN14: 0 | FO14: 0 | FP14: 6,400.30 | FQ14: 6,400.30 | FR14: 6,400.30
B15: =DATE(Load_Profile_Year,E15,F15)+TIME(G15,0,0) -> 2020-01-01T08:00:00 | C15: 2020-01-01 | D15: 75,124 | E15: 1 | F15: 1 | G15: 8 | H15: 3 | I15: =INDEX(Values!$V$6:$AG$29,'Time Series Data'!G15+1,'Time Series Data'!E15) -> 1 | J15: 8.5 | K15: 75124 | L15: 0 | M15: 11.333741 | N15: 0 | O15: 0 | P15: 50.11951 | T15: 11.33 | U15: 11.33 | V15: 75,124 | W15: =IF(V15+O15>VLOOKUP(E15,'Coincident Peak'!$C$22:$I$33,7),0,1) -> 1 | X15: =IF((AND(E15=MONTH(VLOOKUP('Time Series Data'!E15,'Coincident Peak'!$C$5:$D$16,2)),F15=DAY(VLOOKUP('Time Series Data'!E15,'Coincident Peak'!$C$5:$D$16,2)),IF(AND(G15<=HOUR(VLOOKUP('Time Series Data'!E15,'Coincident Peak'!$C$5:$E$16,3))+Values!$E$5,G15>=HOUR(VLOOKUP('Time Series Data'!E15,'Coincident Peak'!$C$5:$E$16,3))-Values!$E$5),"TRUE","FALSE"))),BatteryPower,0) -> 0.00 | Y15: =IF((AND(E15=MONTH(VLOOKUP('Time Series Data'!E15,'Coincident Peak'!$C$5:$D$16,2)),F15=DAY(VLOOKUP('Time Series Data'!E15,'Coincident Peak'!$C$5:$D$16,2)))),0,N15) -> 0.00 | Z15: =IF((AND(E15=MONTH(VLOOKUP('Time Series Data'!E15,'Coincident Peak'!$C$5:$D$16,2)),F15=DAY(VLOOKUP('Time Series Data'!E15,'Coincident Peak'!$C$5:$D$16,2)),IF(AND(G15<=HOUR(VLOOKUP('Time Series Data'!E15,'Coincident Peak'!$C$5:$E$16,3))+Values!$E$5,G15>=HOUR(VLOOKUP('Time Series Data'!E15,'Coincident Peak'!$C$5:$E$16,3))-Values!$E$5),"TRUE","FALSE"))),BatteryPower,Y15) -> 0.00 | AA15: =IF((AND(E15=MONTH(VLOOKUP('Time Series Data'!E15,'Coincident Peak'!$C$5:$D$16,2)),F15=DAY(VLOOKUP('Time Series Data'!E15,'Coincident Peak'!$C$5:$D$16,2))-1)),VLOOKUP(E15,'Coincident Peak'!$C$5:$N$16,11)*Z15,Z15) -> 0.00 | AB15: =IF((AND(E15=MONTH(VLOOKUP('Time Series Data'!E15,'Coincident Peak'!$C$5:$D$16,2)),F15=DAY(VLOOKUP('Time Series Data'!E15,'Coincident Peak'!$C$5:$D$16,2))+1)),VLOOKUP(E15,'Coincident Peak'!$C$5:$N$16,12)*AA15,AA15) -> 0.00 | AC15: =IF((AND(E15=MONTH(VLOOKUP('Time Series Data'!E15,'Coincident Peak'!$C$5:$D$16,2)),F15=DAY(VLOOKUP('Time Series Data'!E15,'Coincident Peak'!$C$5:$D$16,2)))),0,O15) -> 0.00 | AD15: =IF((AND(E15=MONTH(VLOOKUP('Time Series Data'!E15,'Coincident Peak'!$C$5:$D$16,2)),F15=DAY(VLOOKUP('Time Series Data'!E15,'Coincident Peak'!$C$5:$D$16,2))-1)),VLOOKUP(E15,'Coincident Peak'!$C$5:$N$16,11)*AC15,AC15) -> 0.00 | AE15: =IF((AND(E15=MONTH(VLOOKUP('Time Series Data'!E15,'Coincident Peak'!$C$5:$D$16,2)),F15=DAY(VLOOKUP('Time Series Data'!E15,'Coincident Peak'!$C$5:$D$16,2))+1)),VLOOKUP(E15,'Coincident Peak'!$C$5:$N$16,12)*AD15,AD15) -> 0.00 | AF15: 75,124 | AG15: =IF((AND(E15=MONTH(VLOOKUP('Time Series Data'!E15,'Coincident Peak'!$C$5:$D$16,2)),F15=DAY(VLOOKUP('Time Series Data'!E15,'Coincident Peak'!$C$5:$D$16,2)))),U15,O15) -> 0.00 | AH15: 75,124 | AL15: 8 | AM15: 2020-01-09 | AN15: 1 | AO15: 0 | AP15: 0 | AQ15: 0 | AR15: 1,756.52 | AS15: 1,480.47 | AT15: =IF(ISNA(MATCH(AM15,'Coincident Peak'!$D$5:$D$16,0))=TRUE,0,SUMIFS($O$7:$O$8790,$F$7:$F$8790,DAY(AM15),$E$7:$E$8790,MONTH(AM15),$G$7:$G$8790,"<"&HOUR(VLOOKUP(AM15,'Coincident Peak'!$D$5:$E$16,2))-Values!$E$5)) -> 0 | AU15: 0 | AV15: 0 | AW15: 0 | AX15: 153 | AY15: =IF(ISNA(MATCH(AM15,'Coincident Peak'!$D$5:$D$16,0))=TRUE,0,SUMIFS($O$7:$O$8790,$F$7:$F$8790,DAY(AM15),$E$7:$E$8790,MONTH(AM15),$G$7:$G$8790,"<"&HOUR(VLOOKUP(AM15,'Coincident Peak'!$D$5:$E$16,2))-Values!$E$5,$I$7:$I$8790,1)) -> 0 | AZ15: 153 | BA15: 153 | BB15: 0 | BD15: 153 | BE15: 1,603 | BF15: 0 | BG15: =IF(IF(ISNA(MATCH(AM15,'Coincident Peak'!$D$5:$D$16,0))=TRUE,0,SUMIFS($O$7:$O$8790,$F$7:$F$8790,DAY(AM15),$E$7:$E$8790,MONTH(AM15),$G$7:$G$8790,"<"&HOUR(VLOOKUP(AM15,'Coincident Peak'!$D$5:$E$16,2))-Values!$E$5,$I$7:$I$8790,0))>(Effective_Battery_Capacity/Rndtrp_eff),(Effective_Battery_Capacity/Rndtrp_eff),IF(ISNA(MATCH(AM15,'Coincident Peak'!$D$5:$D$16,0))=TRUE,0,SUMIFS($O$7:$O$8790,$F$7:$F$8790,DAY(AM15),$E$7:$E$8790,MONTH(AM15),$G$7:$G$8790,"<"&HOUR(VLOOKUP(AM15,'Coincident Peak'!$D$5:$E$16,2))-Values!$E$5,$I$7:$I$8790,0))) -> 0 | BH15: =IF((IF(ISNA(MATCH(AM15,'Coincident Peak'!$D$5:$D$16,0))=TRUE,0,SUMIFS($O$7:$O$8790,$F$7:$F$8790,DAY(AM15),$E$7:$E$8790,MONTH(AM15),$G$7:$G$8790,"<"&HOUR(VLOOKUP(AM15,'Coincident Peak'!$D$5:$E$16,2))-Values!$E$5)))>(Effective_Battery_Capacity/Rndtrp_eff),(Effective_Battery_Capacity/Rndtrp_eff),(IF(ISNA(MATCH(AM15,'Coincident Peak'!$D$5:$D$16,0))=TRUE,0,SUMIFS($O$7:$O$8790,$F$7:$F$8790,DAY(AM15),$E$7:$E$8790,MONTH(AM15),$G$7:$G$8790,"<"&HOUR(VLOOKUP(AM15,'Coincident Peak'!$D$5:$E$16,2))-Values!$E$5)))) -> 0 | BI15: 0 | BJ15: 0 | BK15: =IF(WholesaleEnergyCost_2>PPACostPerKWh,(IF((SUMIFS('Time Series Data'!$AG$7:$AG$8790,'Time Series Data'!$I$7:$I$8790,1,$F$7:$F$8790,DAY(AM15),$E$7:$E$8790,MONTH(AM15))-BP15)>(Effective_Battery_Capacity/Rndtrp_eff),(Effective_Battery_Capacity/Rndtrp_eff),(SUMIFS('Time Series Data'!$AG$7:$AG$8790,'Time Series Data'!$I$7:$I$8790,1,$F$7:$F$8790,DAY(AM15),$E$7:$E$8790,MONTH(AM15))))-BP15),0) -> 0 | BL15: 0 | BM15: =SUMIFS('Time Series Data'!$AG$7:$AG$8790,$F$7:$F$8790,DAY(AM15),$E$7:$E$8790,MONTH(AM15),'Time Series Data'!$I$7:$I$8790,1)-BL15-BP15 -> 1,603 | BN15: =SUMIFS('Time Series Data'!$AG$7:$AG$8790,'Time Series Data'!$I$7:$I$8790,0,$F$7:$F$8790,DAY(AM15),$E$7:$E$8790,MONTH(AM15))-BQ15 -> 153 | BO15: =IF((IF(ISNA(MATCH(AM15,'Coincident Peak'!$D$5:$D$16,0))=TRUE,0,SUMIFS($U$7:$U$8790,$F$7:$F$8790,DAY(AM15),$E$7:$E$8790,MONTH(AM15),$G$7:$G$8790,"<"&HOUR(VLOOKUP(AM15,'Coincident Peak'!$D$5:$E$16,2))-Values!$E$5)))>(Effective_Battery_Capacity/Rndtrp_eff),(Effective_Battery_Capacity/Rndtrp_eff),(IF(ISNA(MATCH(AM15,'Coincident Peak'!$D$5:$D$16,0))=TRUE,0,SUMIFS($U$7:$U$8790,$F$7:$F$8790,DAY(AM15),$E$7:$E$8790,MONTH(AM15),$G$7:$G$8790,"<"&HOUR(VLOOKUP(AM15,'Coincident Peak'!$D$5:$E$16,2))-Values!$E$5)))) -> 0 | BP15: =IF(WholesaleEnergyCost_2>PPACostPerKWh,(IF((IF(ISNA(MATCH(AM15,'Coincident Peak'!$D$5:$D$16,0))=TRUE,0,SUMIFS($U$7:$U$8790,$F$7:$F$8790,DAY(AM15),$E$7:$E$8790,MONTH(AM15),$G$7:$G$8790,"<"&HOUR(VLOOKUP(AM15,'Coincident Peak'!$D$5:$E$16,2))-Values!$E$5,$I$7:$I$8790,1)))>(Effective_Battery_Capacity/Rndtrp_eff),(Effective_Battery_Capacity/Rndtrp_eff),(IF(ISNA(MATCH(AM15,'Coincident Peak'!$D$5:$D$16,0))=TRUE,0,SUMIFS($U$7:$U$8790,$F$7:$F$8790,DAY(AM15),$E$7:$E$8790,MONTH(AM15),$G$7:$G$8790,"<"&HOUR(VLOOKUP(AM15,'Coincident Peak'!$D$5:$E$16,2))-Values!$E$5,$I$7:$I$8790,1))))),0) -> 0 | BQ15: =IF(WholesaleEnergyCost_1>PPACostPerKWh,(IF((IF(ISNA(MATCH(AM15,'Coincident Peak'!$D$5:$D$16,0))=TRUE,0,SUMIFS($U$7:$U$8790,$F$7:$F$8790,DAY(AM15),$E$7:$E$8790,MONTH(AM15),$G$7:$G$8790,"<"&HOUR(VLOOKUP(AM15,'Coincident Peak'!$D$5:$E$16,2))-Values!$E$5,$I$7:$I$8790,0)))>(Effective_Battery_Capacity/Rndtrp_eff),(Effective_Battery_Capacity/Rndtrp_eff),(IF(ISNA(MATCH(AM15,'Coincident Peak'!$D$5:$D$16,0))=TRUE,0,SUMIFS($U$7:$U$8790,$F$7:$F$8790,DAY(AM15),$E$7:$E$8790,MONTH(AM15),$G$7:$G$8790,"<"&HOUR(VLOOKUP(AM15,'Coincident Peak'!$D$5:$E$16,2))-Values!$E$5,$I$7:$I$8790,0))))),0) -> 0 | BR15: 0 | BS15: 1,603 | BT15: 0 | BV15: =IF(ISNA(MATCH(AM15,'Coincident Peak'!$D$5:$D$16,0))=TRUE,0,1) -> 0 | BW15: 0 | BX15: 0 | BY15: 0 | BZ15: 0 | CA15: 0 | CB15: 1 | CC15: 1 | CD15: =IF(ISNA(MATCH(AM15,'Coincident Peak'!$D$5:$D$16,0))=TRUE,1,0) -> 1 | CE15: =VLOOKUP(MONTH($AM15),'Value Stacking Basis'!$B$37:$D$48,3) -> 3 | CF15: =VLOOKUP(MONTH($AM15),'Value Stacking Basis'!$B$37:$F$48,5) -> 2 | CG15: 1 | CK15: 1,480.47 | CL15: 1,480.47 | CM15: 1,480.47 | CN15: 1,480.47 | CO15: 0 | CQ15: 0 | CR15: 1,480.47 | CS15: 1,480.47 | CT15: 1,480.47 | CU15: 1,480.47 | CW15: =IF($BV15=0,0,IF($CB15=0,INDEX('Time Series Data'!N$7:N$8790,MATCH(1,(MONTH($AM15)='Time Series Data'!$E$7:$E$8790)*(DAY($AM15)='Time Series Data'!$F$7:$F$8790)*(HOUR(VLOOKUP('Time Series Data'!$AM15,'Coincident Peak'!$D$5:$I$16,2))='Time Series Data'!$G$7:$G$8790),0)),IF(($AT15*Rndtrp_eff)>Effective_Battery_Capacity,BatteryPower,(($AT15*Rndtrp_eff)/Effective_Battery_Capacity)*BatteryPower))) -> 0 | CX15: 1,480.47 | CY15: 1,480.47 | CZ15: 1,480.47 | DA15: 1,480.47 | DC15: =IF($BV15=0,0,IF($CB15=0,INDEX('Time Series Data'!N$7:N$8790,MATCH(1,(MONTH($AM15)='Time Series Data'!$E$7:$E$8790)*(DAY($AM15)='Time Series Data'!$F$7:$F$8790)*(HOUR(VLOOKUP('Time Series Data'!$AM15,'Coincident Peak'!$D$5:$I$16,2))='Time Series Data'!$G$7:$G$8790),0)),IF(($AT15*Rndtrp_eff)>Effective_Battery_Capacity,BatteryPower,(($AT15*Rndtrp_eff)/Effective_Battery_Capacity)*BatteryPower))) -> 0 | DD15: 0 | DF15: 0 | DG15: 0 | DH15: 1,480 | DI15: 1,480.47 | DJ15: 1,480.47 | DK15: 1,480.47 | DM15: 0 | DN15: 0 | DO15: 1,480 | DP15: 0 | DR15: 0 | DS15: 1,480.47 | DT15: 1,480.47 | DU15: 1,480.47 | DV15: 0 | DX15: 0 | DY15: 0 | DZ15: 1,480.47 | EA15: 1,480.47 | EB15: 1,480.47 | EF15: 6,400.30 | EG15: 6,400.30 | EH15: 6,400.30 | EI15: 0 | EK15: 0 | EL15: 6,400.30 | EM15: 6,400.30 | EN15: 6,400.30 | EP15: =IF($BV15=0,0,IF($CC15=0,VLOOKUP('Time Series Data'!$AM15,'Coincident Peak'!$D$5:$I$16,3),BatteryPower)) -> 0 | EQ15: 6,400.30 | ER15: 6,400.30 | ES15: 6,400.30 | EU15: =IF($BV15=0,0,IF($CC15=0,VLOOKUP('Time Series Data'!$AM15,'Coincident Peak'!$D$5:$I$16,3),BatteryPower)) -> 0 | EV15: 0 | EX15: 0 | EY15: 0 | EZ15: 6,400.30 | FA15: 6,400.30 | FB15: 6,400.30 | FD15: 0 | FE15: 0 | FF15: 0 | FH15: 0 | FI15: 6,400.30 | FJ15: 6,400.30 | FK15: 6,400.30 | FL15: 0 | FN15: 0 | FO15: 0 | FP15: 6,400.30 | FQ15: 6,400.30 | FR15: 6,400.30
B16: =DATE(Load_Profile_Year,E16,F16)+TIME(G16,0,0) -> 2020-01-01T09:00:00 | C16: 2020-01-01 | D16: 76,622 | E16: 1 | F16: 1 | G16: 9 | H16: 3 | I16: =INDEX(Values!$V$6:$AG$29,'Time Series Data'!G16+1,'Time Series Data'!E16) -> 1 | J16: 9.5 | K16: 76622 | L16: 0 | M16: 140.972405 | N16: 0 | O16: 0 | P16: 51.604248 | T16: 140.97 | U16: 140.97 | V16: 76,622 | W16: =IF(V16+O16>VLOOKUP(E16,'Coincident Peak'!$C$22:$I$33,7),0,1) -> 1 | X16: =IF((AND(E16=MONTH(VLOOKUP('Time Series Data'!E16,'Coincident Peak'!$C$5:$D$16,2)),F16=DAY(VLOOKUP('Time Series Data'!E16,'Coincident Peak'!$C$5:$D$16,2)),IF(AND(G16<=HOUR(VLOOKUP('Time Series Data'!E16,'Coincident Peak'!$C$5:$E$16,3))+Values!$E$5,G16>=HOUR(VLOOKUP('Time Series Data'!E16,'Coincident Peak'!$C$5:$E$16,3))-Values!$E$5),"TRUE","FALSE"))),BatteryPower,0) -> 0.00 | Y16: =IF((AND(E16=MONTH(VLOOKUP('Time Series Data'!E16,'Coincident Peak'!$C$5:$D$16,2)),F16=DAY(VLOOKUP('Time Series Data'!E16,'Coincident Peak'!$C$5:$D$16,2)))),0,N16) -> 0.00 | Z16: =IF((AND(E16=MONTH(VLOOKUP('Time Series Data'!E16,'Coincident Peak'!$C$5:$D$16,2)),F16=DAY(VLOOKUP('Time Series Data'!E16,'Coincident Peak'!$C$5:$D$16,2)),IF(AND(G16<=HOUR(VLOOKUP('Time Series Data'!E16,'Coincident Peak'!$C$5:$E$16,3))+Values!$E$5,G16>=HOUR(VLOOKUP('Time Series Data'!E16,'Coincident Peak'!$C$5:$E$16,3))-Values!$E$5),"TRUE","FALSE"))),BatteryPower,Y16) -> 0.00 | AA16: =IF((AND(E16=MONTH(VLOOKUP('Time Series Data'!E16,'Coincident Peak'!$C$5:$D$16,2)),F16=DAY(VLOOKUP('Time Series Data'!E16,'Coincident Peak'!$C$5:$D$16,2))-1)),VLOOKUP(E16,'Coincident Peak'!$C$5:$N$16,11)*Z16,Z16) -> 0.00 | AB16: =IF((AND(E16=MONTH(VLOOKUP('Time Series Data'!E16,'Coincident Peak'!$C$5:$D$16,2)),F16=DAY(VLOOKUP('Time Series Data'!E16,'Coincident Peak'!$C$5:$D$16,2))+1)),VLOOKUP(E16,'Coincident Peak'!$C$5:$N$16,12)*AA16,AA16) -> 0.00 | AC16: =IF((AND(E16=MONTH(VLOOKUP('Time Series Data'!E16,'Coincident Peak'!$C$5:$D$16,2)),F16=DAY(VLOOKUP('Time Series Data'!E16,'Coincident Peak'!$C$5:$D$16,2)))),0,O16) -> 0.00 | AD16: =IF((AND(E16=MONTH(VLOOKUP('Time Series Data'!E16,'Coincident Peak'!$C$5:$D$16,2)),F16=DAY(VLOOKUP('Time Series Data'!E16,'Coincident Peak'!$C$5:$D$16,2))-1)),VLOOKUP(E16,'Coincident Peak'!$C$5:$N$16,11)*AC16,AC16) -> 0.00 | AE16: =IF((AND(E16=MONTH(VLOOKUP('Time Series Data'!E16,'Coincident Peak'!$C$5:$D$16,2)),F16=DAY(VLOOKUP('Time Series Data'!E16,'Coincident Peak'!$C$5:$D$16,2))+1)),VLOOKUP(E16,'Coincident Peak'!$C$5:$N$16,12)*AD16,AD16) -> 0.00 | AF16: 76,622 | AG16: =IF((AND(E16=MONTH(VLOOKUP('Time Series Data'!E16,'Coincident Peak'!$C$5:$D$16,2)),F16=DAY(VLOOKUP('Time Series Data'!E16,'Coincident Peak'!$C$5:$D$16,2)))),U16,O16) -> 0.00 | AH16: 76,622 | AL16: 9 | AM16: 2020-01-10 | AN16: 1 | AO16: 0 | AP16: 0 | AQ16: 0 | AR16: 9,398.91 | AS16: 6,848.35 | AT16: =IF(ISNA(MATCH(AM16,'Coincident Peak'!$D$5:$D$16,0))=TRUE,0,SUMIFS($O$7:$O$8790,$F$7:$F$8790,DAY(AM16),$E$7:$E$8790,MONTH(AM16),$G$7:$G$8790,"<"&HOUR(VLOOKUP(AM16,'Coincident Peak'!$D$5:$E$16,2))-Values!$E$5)) -> 0 | AU16: 0 | AV16: 0 | AW16: 0 | AX16: 1,982 | AY16: =IF(ISNA(MATCH(AM16,'Coincident Peak'!$D$5:$D$16,0))=TRUE,0,SUMIFS($O$7:$O$8790,$F$7:$F$8790,DAY(AM16),$E$7:$E$8790,MONTH(AM16),$G$7:$G$8790,"<"&HOUR(VLOOKUP(AM16,'Coincident Peak'!$D$5:$E$16,2))-Values!$E$5,$I$7:$I$8790,1)) -> 0 | AZ16: 1,982 | BA16: 1,982 | BB16: 0 | BD16: 1,982 | BE16: 6,932 | BF16: 0 | BG16: =IF(IF(ISNA(MATCH(AM16,'Coincident Peak'!$D$5:$D$16,0))=TRUE,0,SUMIFS($O$7:$O$8790,$F$7:$F$8790,DAY(AM16),$E$7:$E$8790,MONTH(AM16),$G$7:$G$8790,"<"&HOUR(VLOOKUP(AM16,'Coincident Peak'!$D$5:$E$16,2))-Values!$E$5,$I$7:$I$8790,0))>(Effective_Battery_Capacity/Rndtrp_eff),(Effective_Battery_Capacity/Rndtrp_eff),IF(ISNA(MATCH(AM16,'Coincident Peak'!$D$5:$D$16,0))=TRUE,0,SUMIFS($O$7:$O$8790,$F$7:$F$8790,DAY(AM16),$E$7:$E$8790,MONTH(AM16),$G$7:$G$8790,"<"&HOUR(VLOOKUP(AM16,'Coincident Peak'!$D$5:$E$16,2))-Values!$E$5,$I$7:$I$8790,0))) -> 0 | BH16: =IF((IF(ISNA(MATCH(AM16,'Coincident Peak'!$D$5:$D$16,0))=TRUE,0,SUMIFS($O$7:$O$8790,$F$7:$F$8790,DAY(AM16),$E$7:$E$8790,MONTH(AM16),$G$7:$G$8790,"<"&HOUR(VLOOKUP(AM16,'Coincident Peak'!$D$5:$E$16,2))-Values!$E$5)))>(Effective_Battery_Capacity/Rndtrp_eff),(Effective_Battery_Capacity/Rndtrp_eff),(IF(ISNA(MATCH(AM16,'Coincident Peak'!$D$5:$D$16,0))=TRUE,0,SUMIFS($O$7:$O$8790,$F$7:$F$8790,DAY(AM16),$E$7:$E$8790,MONTH(AM16),$G$7:$G$8790,"<"&HOUR(VLOOKUP(AM16,'Coincident Peak'!$D$5:$E$16,2))-Values!$E$5)))) -> 0 | BI16: 0 | BJ16: 0 | BK16: =IF(WholesaleEnergyCost_2>PPACostPerKWh,(IF((SUMIFS('Time Series Data'!$AG$7:$AG$8790,'Time Series Data'!$I$7:$I$8790,1,$F$7:$F$8790,DAY(AM16),$E$7:$E$8790,MONTH(AM16))-BP16)>(Effective_Battery_Capacity/Rndtrp_eff),(Effective_Battery_Capacity/Rndtrp_eff),(SUMIFS('Time Series Data'!$AG$7:$AG$8790,'Time Series Data'!$I$7:$I$8790,1,$F$7:$F$8790,DAY(AM16),$E$7:$E$8790,MONTH(AM16))))-BP16),0) -> 0 | BL16: 0 | BM16: =SUMIFS('Time Series Data'!$AG$7:$AG$8790,$F$7:$F$8790,DAY(AM16),$E$7:$E$8790,MONTH(AM16),'Time Series Data'!$I$7:$I$8790,1)-BL16-BP16 -> 7,417 | BN16: =SUMIFS('Time Series Data'!$AG$7:$AG$8790,'Time Series Data'!$I$7:$I$8790,0,$F$7:$F$8790,DAY(AM16),$E$7:$E$8790,MONTH(AM16))-BQ16 -> 1,982 | BO16: =IF((IF(ISNA(MATCH(AM16,'Coincident Peak'!$D$5:$D$16,0))=TRUE,0,SUMIFS($U$7:$U$8790,$F$7:$F$8790,DAY(AM16),$E$7:$E$8790,MONTH(AM16),$G$7:$G$8790,"<"&HOUR(VLOOKUP(AM16,'Coincident Peak'!$D$5:$E$16,2))-Values!$E$5)))>(Effective_Battery_Capacity/Rndtrp_eff),(Effective_Battery_Capacity/Rndtrp_eff),(IF(ISNA(MATCH(AM16,'Coincident Peak'!$D$5:$D$16,0))=TRUE,0,SUMIFS($U$7:$U$8790,$F$7:$F$8790,DAY(AM16),$E$7:$E$8790,MONTH(AM16),$G$7:$G$8790,"<"&HOUR(VLOOKUP(AM16,'Coincident Peak'!$D$5:$E$16,2))-Values!$E$5)))) -> 0 | BP16: =IF(WholesaleEnergyCost_2>PPACostPerKWh,(IF((IF(ISNA(MATCH(AM16,'Coincident Peak'!$D$5:$D$16,0))=TRUE,0,SUMIFS($U$7:$U$8790,$F$7:$F$8790,DAY(AM16),$E$7:$E$8790,MONTH(AM16),$G$7:$G$8790,"<"&HOUR(VLOOKUP(AM16,'Coincident Peak'!$D$5:$E$16,2))-Values!$E$5,$I$7:$I$8790,1)))>(Effective_Battery_Capacity/Rndtrp_eff),(Effective_Battery_Capacity/Rndtrp_eff),(IF(ISNA(MATCH(AM16,'Coincident Peak'!$D$5:$D$16,0))=TRUE,0,SUMIFS($U$7:$U$8790,$F$7:$F$8790,DAY(AM16),$E$7:$E$8790,MONTH(AM16),$G$7:$G$8790,"<"&HOUR(VLOOKUP(AM16,'Coincident Peak'!$D$5:$E$16,2))-Values!$E$5,$I$7:$I$8790,1))))),0) -> 0 | BQ16: =IF(WholesaleEnergyCost_1>PPACostPerKWh,(IF((IF(ISNA(MATCH(AM16,'Coincident Peak'!$D$5:$D$16,0))=TRUE,0,SUMIFS($U$7:$U$8790,$F$7:$F$8790,DAY(AM16),$E$7:$E$8790,MONTH(AM16),$G$7:$G$8790,"<"&HOUR(VLOOKUP(AM16,'Coincident Peak'!$D$5:$E$16,2))-Values!$E$5,$I$7:$I$8790,0)))>(Effective_Battery_Capacity/Rndtrp_eff),(Effective_Battery_Capacity/Rndtrp_eff),(IF(ISNA(MATCH(AM16,'Coincident Peak'!$D$5:$D$16,0))=TRUE,0,SUMIFS($U$7:$U$8790,$F$7:$F$8790,DAY(AM16),$E$7:$E$8790,MONTH(AM16),$G$7:$G$8790,"<"&HOUR(VLOOKUP(AM16,'Coincident Peak'!$D$5:$E$16,2))-Values!$E$5,$I$7:$I$8790,0))))),0) -> 0 | BR16: 0 | BS16: 6,932 | BT16: 0 | BV16: =IF(ISNA(MATCH(AM16,'Coincident Peak'!$D$5:$D$16,0))=TRUE,0,1) -> 0 | BW16: 0 | BX16: 0 | BY16: 0 | BZ16: 0 | CA16: 0 | CB16: 1 | CC16: 1 | CD16: =IF(ISNA(MATCH(AM16,'Coincident Peak'!$D$5:$D$16,0))=TRUE,1,0) -> 1 | CE16: =VLOOKUP(MONTH($AM16),'Value Stacking Basis'!$B$37:$D$48,3) -> 3 | CF16: =VLOOKUP(MONTH($AM16),'Value Stacking Basis'!$B$37:$F$48,5) -> 2 | CG16: 1 | CK16: 6,848.35 | CL16: 6,400.30 | CM16: 6,400.30 | CN16: 6,400.30 | CO16: 0 | CQ16: 0 | CR16: 6,848.35 | CS16: 6,400.30 | CT16: 6,400.30 | CU16: 6,400.30 | CW16: =IF($BV16=0,0,IF($CB16=0,INDEX('Time Series Data'!N$7:N$8790,MATCH(1,(MONTH($AM16)='Time Series Data'!$E$7:$E$8790)*(DAY($AM16)='Time Series Data'!$F$7:$F$8790)*(HOUR(VLOOKUP('Time Series Data'!$AM16,'Coincident Peak'!$D$5:$I$16,2))='Time Series Data'!$G$7:$G$8790),0)),IF(($AT16*Rndtrp_eff)>Effective_Battery_Capacity,BatteryPower,(($AT16*Rndtrp_eff)/Effective_Battery_Capacity)*BatteryPower))) -> 0 | CX16: 6,848.35 | CY16: 6,400.30 | CZ16: 6,400.30 | DA16: 6,400.30 | DC16: =IF($BV16=0,0,IF($CB16=0,INDEX('Time Series Data'!N$7:N$8790,MATCH(1,(MONTH($AM16)='Time Series Data'!$E$7:$E$8790)*(DAY($AM16)='Time Series Data'!$F$7:$F$8790)*(HOUR(VLOOKUP('Time Series Data'!$AM16,'Coincident Peak'!$D$5:$I$16,2))='Time Series Data'!$G$7:$G$8790),0)),IF(($AT16*Rndtrp_eff)>Effective_Battery_Capacity,BatteryPower,(($AT16*Rndtrp_eff)/Effective_Battery_Capacity)*BatteryPower))) -> 0 | DD16: 0 | DF16: 0 | DG16: 0 | DH16: 6,848 | DI16: 6,400.30 | DJ16: 6,400.30 | DK16: 6,400.30 | DM16: 0 | DN16: 0 | DO16: 6,848 | DP16: 0 | DR16: 0 | DS16: 6,400.30 | DT16: 6,400.30 | DU16: 6,400.30 | DV16: 0 | DX16: 0 | DY16: 0 | DZ16: 6,400.30 | EA16: 6,400.30 | EB16: 6,400.30 | EF16: 6,400.30 | EG16: 6,400.30 | EH16: 6,400.30 | EI16: 0 | EK16: 0 | EL16: 6,400.30 | EM16: 6,400.30 | EN16: 6,400.30 | EP16: =IF($BV16=0,0,IF($CC16=0,VLOOKUP('Time Series Data'!$AM16,'Coincident Peak'!$D$5:$I$16,3),BatteryPower)) -> 0 | EQ16: 6,400.30 | ER16: 6,400.30 | ES16: 6,400.30 | EU16: =IF($BV16=0,0,IF($CC16=0,VLOOKUP('Time Series Data'!$AM16,'Coincident Peak'!$D$5:$I$16,3),BatteryPower)) -> 0 | EV16: 0 | EX16: 0 | EY16: 0 | EZ16: 6,400.30 | FA16: 6,400.30 | FB16: 6,400.30 | FD16: 0 | FE16: 0 | FF16: 0 | FH16: 0 | FI16: 6,400.30 | FJ16: 6,400.30 | FK16: 6,400.30 | FL16: 0 | FN16: 0 | FO16: 0 | FP16: 6,400.30 | FQ16: 6,400.30 | FR16: 6,400.30
B17: =DATE(Load_Profile_Year,E17,F17)+TIME(G17,0,0) -> 2020-01-01T10:00:00 | C17: 2020-01-01 | D17: 75,720 | E17: 1 | F17: 1 | G17: 10 | H17: 3 | I17: =INDEX(Values!$V$6:$AG$29,'Time Series Data'!G17+1,'Time Series Data'!E17) -> 1 | J17: 10.5 | K17: 75720 | L17: 0 | M17: 801.462235 | N17: 0 | O17: 0.167152 | P17: 59.998222 | T17: 801.46 | U17: 801.63 | V17: 75,720 | W17: =IF(V17+O17>VLOOKUP(E17,'Coincident Peak'!$C$22:$I$33,7),0,1) -> 1 | X17: =IF((AND(E17=MONTH(VLOOKUP('Time Series Data'!E17,'Coincident Peak'!$C$5:$D$16,2)),F17=DAY(VLOOKUP('Time Series Data'!E17,'Coincident Peak'!$C$5:$D$16,2)),IF(AND(G17<=HOUR(VLOOKUP('Time Series Data'!E17,'Coincident Peak'!$C$5:$E$16,3))+Values!$E$5,G17>=HOUR(VLOOKUP('Time Series Data'!E17,'Coincident Peak'!$C$5:$E$16,3))-Values!$E$5),"TRUE","FALSE"))),BatteryPower,0) -> 0.00 | Y17: =IF((AND(E17=MONTH(VLOOKUP('Time Series Data'!E17,'Coincident Peak'!$C$5:$D$16,2)),F17=DAY(VLOOKUP('Time Series Data'!E17,'Coincident Peak'!$C$5:$D$16,2)))),0,N17) -> 0.00 | Z17: =IF((AND(E17=MONTH(VLOOKUP('Time Series Data'!E17,'Coincident Peak'!$C$5:$D$16,2)),F17=DAY(VLOOKUP('Time Series Data'!E17,'Coincident Peak'!$C$5:$D$16,2)),IF(AND(G17<=HOUR(VLOOKUP('Time Series Data'!E17,'Coincident Peak'!$C$5:$E$16,3))+Values!$E$5,G17>=HOUR(VLOOKUP('Time Series Data'!E17,'Coincident Peak'!$C$5:$E$16,3))-Values!$E$5),"TRUE","FALSE"))),BatteryPower,Y17) -> 0.00 | AA17: =IF((AND(E17=MONTH(VLOOKUP('Time Series Data'!E17,'Coincident Peak'!$C$5:$D$16,2)),F17=DAY(VLOOKUP('Time Series Data'!E17,'Coincident Peak'!$C$5:$D$16,2))-1)),VLOOKUP(E17,'Coincident Peak'!$C$5:$N$16,11)*Z17,Z17) -> 0.00 | AB17: =IF((AND(E17=MONTH(VLOOKUP('Time Series Data'!E17,'Coincident Peak'!$C$5:$D$16,2)),F17=DAY(VLOOKUP('Time Series Data'!E17,'Coincident Peak'!$C$5:$D$16,2))+1)),VLOOKUP(E17,'Coincident Peak'!$C$5:$N$16,12)*AA17,AA17) -> 0.00 | AC17: =IF((AND(E17=MONTH(VLOOKUP('Time Series Data'!E17,'Coincident Peak'!$C$5:$D$16,2)),F17=DAY(VLOOKUP('Time Series Data'!E17,'Coincident Peak'!$C$5:$D$16,2)))),0,O17) -> 0.17 | AD17: =IF((AND(E17=MONTH(VLOOKUP('Time Series Data'!E17,'Coincident Peak'!$C$5:$D$16,2)),F17=DAY(VLOOKUP('Time Series Data'!E17,'Coincident Peak'!$C$5:$D$16,2))-1)),VLOOKUP(E17,'Coincident Peak'!$C$5:$N$16,11)*AC17,AC17) -> 0.17 | AE17: =IF((AND(E17=MONTH(VLOOKUP('Time Series Data'!E17,'Coincident Peak'!$C$5:$D$16,2)),F17=DAY(VLOOKUP('Time Series Data'!E17,'Coincident Peak'!$C$5:$D$16,2))+1)),VLOOKUP(E17,'Coincident Peak'!$C$5:$N$16,12)*AD17,AD17) -> 0.17 | AF17: 75,720 | AG17: =IF((AND(E17=MONTH(VLOOKUP('Time Series Data'!E17,'Coincident Peak'!$C$5:$D$16,2)),F17=DAY(VLOOKUP('Time Series Data'!E17,'Coincident Peak'!$C$5:$D$16,2)))),U17,O17) -> 0.17 | AH17: 75,720 | AL17: 10 | AM17: 2020-01-11 | AN17: 0 | AO17: 0 | AP17: 0 | AQ17: 0 | AR17: 9,027.45 | AS17: 7,120.38 | AT17: =IF(ISNA(MATCH(AM17,'Coincident Peak'!$D$5:$D$16,0))=TRUE,0,SUMIFS($O$7:$O$8790,$F$7:$F$8790,DAY(AM17),$E$7:$E$8790,MONTH(AM17),$G$7:$G$8790,"<"&HOUR(VLOOKUP(AM17,'Coincident Peak'!$D$5:$E$16,2))-Values!$E$5)) -> 0 | AU17: 0 | AV17: 0 | AW17: 0 | AX17: 0 | AY17: =IF(ISNA(MATCH(AM17,'Coincident Peak'!$D$5:$D$16,0))=TRUE,0,SUMIFS($O$7:$O$8790,$F$7:$F$8790,DAY(AM17),$E$7:$E$8790,MONTH(AM17),$G$7:$G$8790,"<"&HOUR(VLOOKUP(AM17,'Coincident Peak'!$D$5:$E$16,2))-Values!$E$5,$I$7:$I$8790,1)) -> 0 | AZ17: 0 | BA17: 0 | BB17: 0 | BD17: 0 | BE17: 0 | BF17: 0 | BG17: =IF(IF(ISNA(MATCH(AM17,'Coincident Peak'!$D$5:$D$16,0))=TRUE,0,SUMIFS($O$7:$O$8790,$F$7:$F$8790,DAY(AM17),$E$7:$E$8790,MONTH(AM17),$G$7:$G$8790,"<"&HOUR(VLOOKUP(AM17,'Coincident Peak'!$D$5:$E$16,2))-Values!$E$5,$I$7:$I$8790,0))>(Effective_Battery_Capacity/Rndtrp_eff),(Effective_Battery_Capacity/Rndtrp_eff),IF(ISNA(MATCH(AM17,'Coincident Peak'!$D$5:$D$16,0))=TRUE,0,SUMIFS($O$7:$O$8790,$F$7:$F$8790,DAY(AM17),$E$7:$E$8790,MONTH(AM17),$G$7:$G$8790,"<"&HOUR(VLOOKUP(AM17,'Coincident Peak'!$D$5:$E$16,2))-Values!$E$5,$I$7:$I$8790,0))) -> 0 | BH17: =IF((IF(ISNA(MATCH(AM17,'Coincident Peak'!$D$5:$D$16,0))=TRUE,0,SUMIFS($O$7:$O$8790,$F$7:$F$8790,DAY(AM17),$E$7:$E$8790,MONTH(AM17),$G$7:$G$8790,"<"&HOUR(VLOOKUP(AM17,'Coincident Peak'!$D$5:$E$16,2))-Values!$E$5)))>(Effective_Battery_Capacity/Rndtrp_eff),(Effective_Battery_Capacity/Rndtrp_eff),(IF(ISNA(MATCH(AM17,'Coincident Peak'!$D$5:$D$16,0))=TRUE,0,SUMIFS($O$7:$O$8790,$F$7:$F$8790,DAY(AM17),$E$7:$E$8790,MONTH(AM17),$G$7:$G$8790,"<"&HOUR(VLOOKUP(AM17,'Coincident Peak'!$D$5:$E$16,2))-Values!$E$5)))) -> 0 | BI17: 0 | BJ17: 0 | BK17: =IF(WholesaleEnergyCost_2>PPACostPerKWh,(IF((SUMIFS('Time Series Data'!$AG$7:$AG$8790,'Time Series Data'!$I$7:$I$8790,1,$F$7:$F$8790,DAY(AM17),$E$7:$E$8790,MONTH(AM17))-BP17)>(Effective_Battery_Capacity/Rndtrp_eff),(Effective_Battery_Capacity/Rndtrp_eff),(SUMIFS('Time Series Data'!$AG$7:$AG$8790,'Time Series Data'!$I$7:$I$8790,1,$F$7:$F$8790,DAY(AM17),$E$7:$E$8790,MONTH(AM17))))-BP17),0) -> 0 | BL17: 0 | BM17: =SUMIFS('Time Series Data'!$AG$7:$AG$8790,$F$7:$F$8790,DAY(AM17),$E$7:$E$8790,MONTH(AM17),'Time Series Data'!$I$7:$I$8790,1)-BL17-BP17 -> 7,711 | BN17: =SUMIFS('Time Series Data'!$AG$7:$AG$8790,'Time Series Data'!$I$7:$I$8790,0,$F$7:$F$8790,DAY(AM17),$E$7:$E$8790,MONTH(AM17))-BQ17 -> 1,316 | BO17: =IF((IF(ISNA(MATCH(AM17,'Coincident Peak'!$D$5:$D$16,0))=TRUE,0,SUMIFS($U$7:$U$8790,$F$7:$F$8790,DAY(AM17),$E$7:$E$8790,MONTH(AM17),$G$7:$G$8790,"<"&HOUR(VLOOKUP(AM17,'Coincident Peak'!$D$5:$E$16,2))-Values!$E$5)))>(Effective_Battery_Capacity/Rndtrp_eff),(Effective_Battery_Capacity/Rndtrp_eff),(IF(ISNA(MATCH(AM17,'Coincident Peak'!$D$5:$D$16,0))=TRUE,0,SUMIFS($U$7:$U$8790,$F$7:$F$8790,DAY(AM17),$E$7:$E$8790,MONTH(AM17),$G$7:$G$8790,"<"&HOUR(VLOOKUP(AM17,'Coincident Peak'!$D$5:$E$16,2))-Values!$E$5)))) -> 0 | BP17: =IF(WholesaleEnergyCost_2>PPACostPerKWh,(IF((IF(ISNA(MATCH(AM17,'Coincident Peak'!$D$5:$D$16,0))=TRUE,0,SUMIFS($U$7:$U$8790,$F$7:$F$8790,DAY(AM17),$E$7:$E$8790,MONTH(AM17),$G$7:$G$8790,"<"&HOUR(VLOOKUP(AM17,'Coincident Peak'!$D$5:$E$16,2))-Values!$E$5,$I$7:$I$8790,1)))>(Effective_Battery_Capacity/Rndtrp_eff),(Effective_Battery_Capacity/Rndtrp_eff),(IF(ISNA(MATCH(AM17,'Coincident Peak'!$D$5:$D$16,0))=TRUE,0,SUMIFS($U$7:$U$8790,$F$7:$F$8790,DAY(AM17),$E$7:$E$8790,MONTH(AM17),$G$7:$G$8790,"<"&HOUR(VLOOKUP(AM17,'Coincident Peak'!$D$5:$E$16,2))-Values!$E$5,$I$7:$I$8790,1))))),0) -> 0 | BQ17: =IF(WholesaleEnergyCost_1>PPACostPerKWh,(IF((IF(ISNA(MATCH(AM17,'Coincident Peak'!$D$5:$D$16,0))=TRUE,0,SUMIFS($U$7:$U$8790,$F$7:$F$8790,DAY(AM17),$E$7:$E$8790,MONTH(AM17),$G$7:$G$8790,"<"&HOUR(VLOOKUP(AM17,'Coincident Peak'!$D$5:$E$16,2))-Values!$E$5,$I$7:$I$8790,0)))>(Effective_Battery_Capacity/Rndtrp_eff),(Effective_Battery_Capacity/Rndtrp_eff),(IF(ISNA(MATCH(AM17,'Coincident Peak'!$D$5:$D$16,0))=TRUE,0,SUMIFS($U$7:$U$8790,$F$7:$F$8790,DAY(AM17),$E$7:$E$8790,MONTH(AM17),$G$7:$G$8790,"<"&HOUR(VLOOKUP(AM17,'Coincident Peak'!$D$5:$E$16,2))-Values!$E$5,$I$7:$I$8790,0))))),0) -> 0 | BR17: 0 | BS17: 6,932 | BT17: 0 | BV17: =IF(ISNA(MATCH(AM17,'Coincident Peak'!$D$5:$D$16,0))=TRUE,0,1) -> 0 | BW17: 0 | BX17: 0 | BY17: 0 | BZ17: 0 | CA17: 0 | CB17: 1 | CC17: 1 | CD17: =IF(ISNA(MATCH(AM17,'Coincident Peak'!$D$5:$D$16,0))=TRUE,1,0) -> 1 | CE17: =VLOOKUP(MONTH($AM17),'Value Stacking Basis'!$B$37:$D$48,3) -> 3 | CF17: =VLOOKUP(MONTH($AM17),'Value Stacking Basis'!$B$37:$F$48,5) -> 2 | CG17: 1 | CK17: 7,120.38 | CL17: 6,400.30 | CM17: 0 | CN17: 0 | CO17: 24.00 | CQ17: 24.00 | CR17: 0 | CS17: 0 | CT17: 0 | CU17: 0 | CW17: =IF($BV17=0,0,IF($CB17=0,INDEX('Time Series Data'!N$7:N$8790,MATCH(1,(MONTH($AM17)='Time Series Data'!$E$7:$E$8790)*(DAY($AM17)='Time Series Data'!$F$7:$F$8790)*(HOUR(VLOOKUP('Time Series Data'!$AM17,'Coincident Peak'!$D$5:$I$16,2))='Time Series Data'!$G$7:$G$8790),0)),IF(($AT17*Rndtrp_eff)>Effective_Battery_Capacity,BatteryPower,(($AT17*Rndtrp_eff)/Effective_Battery_Capacity)*BatteryPower))) -> 0 | CX17: 7,120.38 | CY17: 6,400.30 | CZ17: 0 | DA17: 0 | DC17: =IF($BV17=0,0,IF($CB17=0,INDEX('Time Series Data'!N$7:N$8790,MATCH(1,(MONTH($AM17)='Time Series Data'!$E$7:$E$8790)*(DAY($AM17)='Time Series Data'!$F$7:$F$8790)*(HOUR(VLOOKUP('Time Series Data'!$AM17,'Coincident Peak'!$D$5:$I$16,2))='Time Series Data'!$G$7:$G$8790),0)),IF(($AT17*Rndtrp_eff)>Effective_Battery_Capacity,BatteryPower,(($AT17*Rndtrp_eff)/Effective_Battery_Capacity)*BatteryPower))) -> 0 | DD17: 24.00 | DF17: 0 | DG17: 0 | DH17: 7,120 | DI17: 6,400.30 | DJ17: 0 | DK17: 0 | DM17: 0 | DN17: 0 | DO17: 7,120 | DP17: 24 | DR17: 0 | DS17: 6,400.30 | DT17: 0 | DU17: 0 | DV17: 24.00 | DX17: 0 | DY17: 24.00 | DZ17: 0 | EA17: 0 | EB17: 0 | EF17: 6,400.30 | EG17: 0 | EH17: 0 | EI17: 24.00 | EK17: 24.00 | EL17: 0 | EM17: 0 | EN17: 0 | EP17: =IF($BV17=0,0,IF($CC17=0,VLOOKUP('Time Series Data'!$AM17,'Coincident Peak'!$D$5:$I$16,3),BatteryPower)) -> 0 | EQ17: 6,400.30 | ER17: 0 | ES17: 0 | EU17: =IF($BV17=0,0,IF($CC17=0,VLOOKUP('Time Series Data'!$AM17,'Coincident Peak'!$D$5:$I$16,3),BatteryPower)) -> 0 | EV17: 24.00 | EX17: 0 | EY17: 0 | EZ17: 6,400.30 | FA17: 0 | FB17: 0 | FD17: 0 | FE17: 0 | FF17: 24 | FH17: 0 | FI17: 6,400.30 | FJ17: 0 | FK17: 0 | FL17: 24.00 | FN17: 0 | FO17: 24.00 | FP17: 0 | FQ17: 0 | FR17: 0
B18: =DATE(Load_Profile_Year,E18,F18)+TIME(G18,0,0) -> 2020-01-01T11:00:00 | C18: 2020-01-01 | D18: 74,654 | E18: 1 | F18: 1 | G18: 11 | H18: 3 | I18: =INDEX(Values!$V$6:$AG$29,'Time Series Data'!G18+1,'Time Series Data'!E18) -> 1 | J18: 11.5 | K18: 74654 | L18: 0 | M18: 1373.179481 | N18: 0 | O18: 0.302103 | P18: 74.286031 | T18: 1,373.18 | U18: 1,373.48 | V18: 74,654 | W18: =IF(V18+O18>VLOOKUP(E18,'Coincident Peak'!$C$22:$I$33,7),0,1) -> 1 | X18: =IF((AND(E18=MONTH(VLOOKUP('Time Series Data'!E18,'Coincident Peak'!$C$5:$D$16,2)),F18=DAY(VLOOKUP('Time Series Data'!E18,'Coincident Peak'!$C$5:$D$16,2)),IF(AND(G18<=HOUR(VLOOKUP('Time Series Data'!E18,'Coincident Peak'!$C$5:$E$16,3))+Values!$E$5,G18>=HOUR(VLOOKUP('Time Series Data'!E18,'Coincident Peak'!$C$5:$E$16,3))-Values!$E$5),"TRUE","FALSE"))),BatteryPower,0) -> 0.00 | Y18: =IF((AND(E18=MONTH(VLOOKUP('Time Series Data'!E18,'Coincident Peak'!$C$5:$D$16,2)),F18=DAY(VLOOKUP('Time Series Data'!E18,'Coincident Peak'!$C$5:$D$16,2)))),0,N18) -> 0.00 | Z18: =IF((AND(E18=MONTH(VLOOKUP('Time Series Data'!E18,'Coincident Peak'!$C$5:$D$16,2)),F18=DAY(VLOOKUP('Time Series Data'!E18,'Coincident Peak'!$C$5:$D$16,2)),IF(AND(G18<=HOUR(VLOOKUP('Time Series Data'!E18,'Coincident Peak'!$C$5:$E$16,3))+Values!$E$5,G18>=HOUR(VLOOKUP('Time Series Data'!E18,'Coincident Peak'!$C$5:$E$16,3))-Values!$E$5),"TRUE","FALSE"))),BatteryPower,Y18) -> 0.00 | AA18: =IF((AND(E18=MONTH(VLOOKUP('Time Series Data'!E18,'Coincident Peak'!$C$5:$D$16,2)),F18=DAY(VLOOKUP('Time Series Data'!E18,'Coincident Peak'!$C$5:$D$16,2))-1)),VLOOKUP(E18,'Coincident Peak'!$C$5:$N$16,11)*Z18,Z18) -> 0.00 | AB18: =IF((AND(E18=MONTH(VLOOKUP('Time Series Data'!E18,'Coincident Peak'!$C$5:$D$16,2)),F18=DAY(VLOOKUP('Time Series Data'!E18,'Coincident Peak'!$C$5:$D$16,2))+1)),VLOOKUP(E18,'Coincident Peak'!$C$5:$N$16,12)*AA18,AA18) -> 0.00 | AC18: =IF((AND(E18=MONTH(VLOOKUP('Time Series Data'!E18,'Coincident Peak'!$C$5:$D$16,2)),F18=DAY(VLOOKUP('Time Series Data'!E18,'Coincident Peak'!$C$5:$D$16,2)))),0,O18) -> 0.30 | AD18: =IF((AND(E18=MONTH(VLOOKUP('Time Series Data'!E18,'Coincident Peak'!$C$5:$D$16,2)),F18=DAY(VLOOKUP('Time Series Data'!E18,'Coincident Peak'!$C$5:$D$16,2))-1)),VLOOKUP(E18,'Coincident Peak'!$C$5:$N$16,11)*AC18,AC18) -> 0.30 | AE18: =IF((AND(E18=MONTH(VLOOKUP('Time Series Data'!E18,'Coincident Peak'!$C$5:$D$16,2)),F18=DAY(VLOOKUP('Time Series Data'!E18,'Coincident Peak'!$C$5:$D$16,2))+1)),VLOOKUP(E18,'Coincident Peak'!$C$5:$N$16,12)*AD18,AD18) -> 0.30 | AF18: 74,654 | AG18: =IF((AND(E18=MONTH(VLOOKUP('Time Series Data'!E18,'Coincident Peak'!$C$5:$D$16,2)),F18=DAY(VLOOKUP('Time Series Data'!E18,'Coincident Peak'!$C$5:$D$16,2)))),U18,O18) -> 0.30 | AH18: 74,654 | AL18: 11 | AM18: 2020-01-12 | AN18: 0 | AO18: 0 | AP18: 0 | AQ18: 0 | AR18: 6,283.37 | AS18: 4,683.94 | AT18: =IF(ISNA(MATCH(AM18,'Coincident Peak'!$D$5:$D$16,0))=TRUE,0,SUMIFS($O$7:$O$8790,$F$7:$F$8790,DAY(AM18),$E$7:$E$8790,MONTH(AM18),$G$7:$G$8790,"<"&HOUR(VLOOKUP(AM18,'Coincident Peak'!$D$5:$E$16,2))-Values!$E$5)) -> 0 | AU18: 0 | AV18: 0 | AW18: 0 | AX18: 0 | AY18: =IF(ISNA(MATCH(AM18,'Coincident Peak'!$D$5:$D$16,0))=TRUE,0,SUMIFS($O$7:$O$8790,$F$7:$F$8790,DAY(AM18),$E$7:$E$8790,MONTH(AM18),$G$7:$G$8790,"<"&HOUR(VLOOKUP(AM18,'Coincident Peak'!$D$5:$E$16,2))-Values!$E$5,$I$7:$I$8790,1)) -> 0 | AZ18: 0 | BA18: 0 | BB18: 0 | BD18: 0 | BE18: 0 | BF18: 0 | BG18: =IF(IF(ISNA(MATCH(AM18,'Coincident Peak'!$D$5:$D$16,0))=TRUE,0,SUMIFS($O$7:$O$8790,$F$7:$F$8790,DAY(AM18),$E$7:$E$8790,MONTH(AM18),$G$7:$G$8790,"<"&HOUR(VLOOKUP(AM18,'Coincident Peak'!$D$5:$E$16,2))-Values!$E$5,$I$7:$I$8790,0))>(Effective_Battery_Capacity/Rndtrp_eff),(Effective_Battery_Capacity/Rndtrp_eff),IF(ISNA(MATCH(AM18,'Coincident Peak'!$D$5:$D$16,0))=TRUE,0,SUMIFS($O$7:$O$8790,$F$7:$F$8790,DAY(AM18),$E$7:$E$8790,MONTH(AM18),$G$7:$G$8790,"<"&HOUR(VLOOKUP(AM18,'Coincident Peak'!$D$5:$E$16,2))-Values!$E$5,$I$7:$I$8790,0))) -> 0 | BH18: =IF((IF(ISNA(MATCH(AM18,'Coincident Peak'!$D$5:$D$16,0))=TRUE,0,SUMIFS($O$7:$O$8790,$F$7:$F$8790,DAY(AM18),$E$7:$E$8790,MONTH(AM18),$G$7:$G$8790,"<"&HOUR(VLOOKUP(AM18,'Coincident Peak'!$D$5:$E$16,2))-Values!$E$5)))>(Effective_Battery_Capacity/Rndtrp_eff),(Effective_Battery_Capacity/Rndtrp_eff),(IF(ISNA(MATCH(AM18,'Coincident Peak'!$D$5:$D$16,0))=TRUE,0,SUMIFS($O$7:$O$8790,$F$7:$F$8790,DAY(AM18),$E$7:$E$8790,MONTH(AM18),$G$7:$G$8790,"<"&HOUR(VLOOKUP(AM18,'Coincident Peak'!$D$5:$E$16,2))-Values!$E$5)))) -> 0 | BI18: 0 | BJ18: 0 | BK18: =IF(WholesaleEnergyCost_2>PPACostPerKWh,(IF((SUMIFS('Time Series Data'!$AG$7:$AG$8790,'Time Series Data'!$I$7:$I$8790,1,$F$7:$F$8790,DAY(AM18),$E$7:$E$8790,MONTH(AM18))-BP18)>(Effective_Battery_Capacity/Rndtrp_eff),(Effective_Battery_Capacity/Rndtrp_eff),(SUMIFS('Time Series Data'!$AG$7:$AG$8790,'Time Series Data'!$I$7:$I$8790,1,$F$7:$F$8790,DAY(AM18),$E$7:$E$8790,MONTH(AM18))))-BP18),0) -> 0 | BL18: 0 | BM18: =SUMIFS('Time Series Data'!$AG$7:$AG$8790,$F$7:$F$8790,DAY(AM18),$E$7:$E$8790,MONTH(AM18),'Time Series Data'!$I$7:$I$8790,1)-BL18-BP18 -> 5,073 | BN18: =SUMIFS('Time Series Data'!$AG$7:$AG$8790,'Time Series Data'!$I$7:$I$8790,0,$F$7:$F$8790,DAY(AM18),$E$7:$E$8790,MONTH(AM18))-BQ18 -> 1,211 | BO18: =IF((IF(ISNA(MATCH(AM18,'Coincident Peak'!$D$5:$D$16,0))=TRUE,0,SUMIFS($U$7:$U$8790,$F$7:$F$8790,DAY(AM18),$E$7:$E$8790,MONTH(AM18),$G$7:$G$8790,"<"&HOUR(VLOOKUP(AM18,'Coincident Peak'!$D$5:$E$16,2))-Values!$E$5)))>(Effective_Battery_Capacity/Rndtrp_eff),(Effective_Battery_Capacity/Rndtrp_eff),(IF(ISNA(MATCH(AM18,'Coincident Peak'!$D$5:$D$16,0))=TRUE,0,SUMIFS($U$7:$U$8790,$F$7:$F$8790,DAY(AM18),$E$7:$E$8790,MONTH(AM18),$G$7:$G$8790,"<"&HOUR(VLOOKUP(AM18,'Coincident Peak'!$D$5:$E$16,2))-Values!$E$5)))) -> 0 | BP18: =IF(WholesaleEnergyCost_2>PPACostPerKWh,(IF((IF(ISNA(MATCH(AM18,'Coincident Peak'!$D$5:$D$16,0))=TRUE,0,SUMIFS($U$7:$U$8790,$F$7:$F$8790,DAY(AM18),$E$7:$E$8790,MONTH(AM18),$G$7:$G$8790,"<"&HOUR(VLOOKUP(AM18,'Coincident Peak'!$D$5:$E$16,2))-Values!$E$5,$I$7:$I$8790,1)))>(Effective_Battery_Capacity/Rndtrp_eff),(Effective_Battery_Capacity/Rndtrp_eff),(IF(ISNA(MATCH(AM18,'Coincident Peak'!$D$5:$D$16,0))=TRUE,0,SUMIFS($U$7:$U$8790,$F$7:$F$8790,DAY(AM18),$E$7:$E$8790,MONTH(AM18),$G$7:$G$8790,"<"&HOUR(VLOOKUP(AM18,'Coincident Peak'!$D$5:$E$16,2))-Values!$E$5,$I$7:$I$8790,1))))),0) -> 0 | BQ18: =IF(WholesaleEnergyCost_1>PPACostPerKWh,(IF((IF(ISNA(MATCH(AM18,'Coincident Peak'!$D$5:$D$16,0))=TRUE,0,SUMIFS($U$7:$U$8790,$F$7:$F$8790,DAY(AM18),$E$7:$E$8790,MONTH(AM18),$G$7:$G$8790,"<"&HOUR(VLOOKUP(AM18,'Coincident Peak'!$D$5:$E$16,2))-Values!$E$5,$I$7:$I$8790,0)))>(Effective_Battery_Capacity/Rndtrp_eff),(Effective_Battery_Capacity/Rndtrp_eff),(IF(ISNA(MATCH(AM18,'Coincident Peak'!$D$5:$D$16,0))=TRUE,0,SUMIFS($U$7:$U$8790,$F$7:$F$8790,DAY(AM18),$E$7:$E$8790,MONTH(AM18),$G$7:$G$8790,"<"&HOUR(VLOOKUP(AM18,'Coincident Peak'!$D$5:$E$16,2))-Values!$E$5,$I$7:$I$8790,0))))),0) -> 0 | BR18: 0 | BS18: 5,073 | BT18: 0 | BV18: =IF(ISNA(MATCH(AM18,'Coincident Peak'!$D$5:$D$16,0))=TRUE,0,1) -> 0 | BW18: 0 | BX18: 0 | BY18: 0 | BZ18: 0 | CA18: 0 | CB18: 1 | CC18: 1 | CD18: =IF(ISNA(MATCH(AM18,'Coincident Peak'!$D$5:$D$16,0))=TRUE,1,0) -> 1 | CE18: =VLOOKUP(MONTH($AM18),'Value Stacking Basis'!$B$37:$D$48,3) -> 3 | CF18: =VLOOKUP(MONTH($AM18),'Value Stacking Basis'!$B$37:$F$48,5) -> 2 | CG18: 1 | CK18: 4,683.94 | CL18: 4,683.94 | CM18: 0 | CN18: 0 | CO18: 24.00 | CQ18: 24.00 | CR18: 0 | CS18: 0 | CT18: 0 | CU18: 0 | CW18: =IF($BV18=0,0,IF($CB18=0,INDEX('Time Series Data'!N$7:N$8790,MATCH(1,(MONTH($AM18)='Time Series Data'!$E$7:$E$8790)*(DAY($AM18)='Time Series Data'!$F$7:$F$8790)*(HOUR(VLOOKUP('Time Series Data'!$AM18,'Coincident Peak'!$D$5:$I$16,2))='Time Series Data'!$G$7:$G$8790),0)),IF(($AT18*Rndtrp_eff)>Effective_Battery_Capacity,BatteryPower,(($AT18*Rndtrp_eff)/Effective_Battery_Capacity)*BatteryPower))) -> 0 | CX18: 4,683.94 | CY18: 4,683.94 | CZ18: 0 | DA18: 0 | DC18: =IF($BV18=0,0,IF($CB18=0,INDEX('Time Series Data'!N$7:N$8790,MATCH(1,(MONTH($AM18)='Time Series Data'!$E$7:$E$8790)*(DAY($AM18)='Time Series Data'!$F$7:$F$8790)*(HOUR(VLOOKUP('Time Series Data'!$AM18,'Coincident Peak'!$D$5:$I$16,2))='Time Series Data'!$G$7:$G$8790),0)),IF(($AT18*Rndtrp_eff)>Effective_Battery_Capacity,BatteryPower,(($AT18*Rndtrp_eff)/Effective_Battery_Capacity)*BatteryPower))) -> 0 | DD18: 24.00 | DF18: 0 | DG18: 0 | DH18: 4,684 | DI18: 4,683.94 | DJ18: 0 | DK18: 0 | DM18: 0 | DN18: 0 | DO18: 4,684 | DP18: 24 | DR18: 0 | DS18: 4,683.94 | DT18: 0 | DU18: 0 | DV18: 24.00 | DX18: 0 | DY18: 24.00 | DZ18: 0 | EA18: 0 | EB18: 0 | EF18: 6,400.30 | EG18: 0 | EH18: 0 | EI18: 24.00 | EK18: 24.00 | EL18: 0 | EM18: 0 | EN18: 0 | EP18: =IF($BV18=0,0,IF($CC18=0,VLOOKUP('Time Series Data'!$AM18,'Coincident Peak'!$D$5:$I$16,3),BatteryPower)) -> 0 | EQ18: 6,400.30 | ER18: 0 | ES18: 0 | EU18: =IF($BV18=0,0,IF($CC18=0,VLOOKUP('Time Series Data'!$AM18,'Coincident Peak'!$D$5:$I$16,3),BatteryPower)) -> 0 | EV18: 24.00 | EX18: 0 | EY18: 0 | EZ18: 6,400.30 | FA18: 0 | FB18: 0 | FD18: 0 | FE18: 0 | FF18: 24 | FH18: 0 | FI18: 6,400.30 | FJ18: 0 | FK18: 0 | FL18: 24.00 | FN18: 0 | FO18: 24.00 | FP18: 0 | FQ18: 0 | FR18: 0
B19: =DATE(Load_Profile_Year,E19,F19)+TIME(G19,0,0) -> 2020-01-01T12:00:00 | C19: 2020-01-01 | D19: 73,863 | E19: 1 | F19: 1 | G19: 12 | H19: 3 | I19: =INDEX(Values!$V$6:$AG$29,'Time Series Data'!G19+1,'Time Series Data'!E19) -> 1 | J19: 12.5 | K19: 73863 | L19: 0 | M19: 1158.661574 | N19: 0 | O19: 0 | P19: 86.296716 | T19: 1,158.66 | U19: 1,158.66 | V19: 73,863 | W19: =IF(V19+O19>VLOOKUP(E19,'Coincident Peak'!$C$22:$I$33,7),0,1) -> 1 | X19: =IF((AND(E19=MONTH(VLOOKUP('Time Series Data'!E19,'Coincident Peak'!$C$5:$D$16,2)),F19=DAY(VLOOKUP('Time Series Data'!E19,'Coincident Peak'!$C$5:$D$16,2)),IF(AND(G19<=HOUR(VLOOKUP('Time Series Data'!E19,'Coincident Peak'!$C$5:$E$16,3))+Values!$E$5,G19>=HOUR(VLOOKUP('Time Series Data'!E19,'Coincident Peak'!$C$5:$E$16,3))-Values!$E$5),"TRUE","FALSE"))),BatteryPower,0) -> 0.00 | Y19: =IF((AND(E19=MONTH(VLOOKUP('Time Series Data'!E19,'Coincident Peak'!$C$5:$D$16,2)),F19=DAY(VLOOKUP('Time Series Data'!E19,'Coincident Peak'!$C$5:$D$16,2)))),0,N19) -> 0.00 | Z19: =IF((AND(E19=MONTH(VLOOKUP('Time Series Data'!E19,'Coincident Peak'!$C$5:$D$16,2)),F19=DAY(VLOOKUP('Time Series Data'!E19,'Coincident Peak'!$C$5:$D$16,2)),IF(AND(G19<=HOUR(VLOOKUP('Time Series Data'!E19,'Coincident Peak'!$C$5:$E$16,3))+Values!$E$5,G19>=HOUR(VLOOKUP('Time Series Data'!E19,'Coincident Peak'!$C$5:$E$16,3))-Values!$E$5),"TRUE","FALSE"))),BatteryPower,Y19) -> 0.00 | AA19: =IF((AND(E19=MONTH(VLOOKUP('Time Series Data'!E19,'Coincident Peak'!$C$5:$D$16,2)),F19=DAY(VLOOKUP('Time Series Data'!E19,'Coincident Peak'!$C$5:$D$16,2))-1)),VLOOKUP(E19,'Coincident Peak'!$C$5:$N$16,11)*Z19,Z19) -> 0.00 | AB19: =IF((AND(E19=MONTH(VLOOKUP('Time Series Data'!E19,'Coincident Peak'!$C$5:$D$16,2)),F19=DAY(VLOOKUP('Time Series Data'!E19,'Coincident Peak'!$C$5:$D$16,2))+1)),VLOOKUP(E19,'Coincident Peak'!$C$5:$N$16,12)*AA19,AA19) -> 0.00 | AC19: =IF((AND(E19=MONTH(VLOOKUP('Time Series Data'!E19,'Coincident Peak'!$C$5:$D$16,2)),F19=DAY(VLOOKUP('Time Series Data'!E19,'Coincident Peak'!$C$5:$D$16,2)))),0,O19) -> 0.00 | AD19: =IF((AND(E19=MONTH(VLOOKUP('Time Series Data'!E19,'Coincident Peak'!$C$5:$D$16,2)),F19=DAY(VLOOKUP('Time Series Data'!E19,'Coincident Peak'!$C$5:$D$16,2))-1)),VLOOKUP(E19,'Coincident Peak'!$C$5:$N$16,11)*AC19,AC19) -> 0.00 | AE19: =IF((AND(E19=MONTH(VLOOKUP('Time Series Data'!E19,'Coincident Peak'!$C$5:$D$16,2)),F19=DAY(VLOOKUP('Time Series Data'!E19,'Coincident Peak'!$C$5:$D$16,2))+1)),VLOOKUP(E19,'Coincident Peak'!$C$5:$N$16,12)*AD19,AD19) -> 0.00 | AF19: 73,863 | AG19: =IF((AND(E19=MONTH(VLOOKUP('Time Series Data'!E19,'Coincident Peak'!$C$5:$D$16,2)),F19=DAY(VLOOKUP('Time Series Data'!E19,'Coincident Peak'!$C$5:$D$16,2)))),U19,O19) -> 0.00 | AH19: 73,863 | AL19: 12 | AM19: 2020-01-13 | AN19: 1 | AO19: 0 | AP19: 0 | AQ19: 0 | AR19: 6,866.47 | AS19: 4,962.27 | AT19: =IF(ISNA(MATCH(AM19,'Coincident Peak'!$D$5:$D$16,0))=TRUE,0,SUMIFS($O$7:$O$8790,$F$7:$F$8790,DAY(AM19),$E$7:$E$8790,MONTH(AM19),$G$7:$G$8790,"<"&HOUR(VLOOKUP(AM19,'Coincident Peak'!$D$5:$E$16,2))-Values!$E$5)) -> 0 | AU19: 0 | AV19: 0 | AW19: 0 | AX19: 1,492 | AY19: =IF(ISNA(MATCH(AM19,'Coincident Peak'!$D$5:$D$16,0))=TRUE,0,SUMIFS($O$7:$O$8790,$F$7:$F$8790,DAY(AM19),$E$7:$E$8790,MONTH(AM19),$G$7:$G$8790,"<"&HOUR(VLOOKUP(AM19,'Coincident Peak'!$D$5:$E$16,2))-Values!$E$5,$I$7:$I$8790,1)) -> 0 | AZ19: 1,492 | BA19: 1,492 | BB19: 0 | BD19: 1,492 | BE19: 5,374 | BF19: 0 | BG19: =IF(IF(ISNA(MATCH(AM19,'Coincident Peak'!$D$5:$D$16,0))=TRUE,0,SUMIFS($O$7:$O$8790,$F$7:$F$8790,DAY(AM19),$E$7:$E$8790,MONTH(AM19),$G$7:$G$8790,"<"&HOUR(VLOOKUP(AM19,'Coincident Peak'!$D$5:$E$16,2))-Values!$E$5,$I$7:$I$8790,0))>(Effective_Battery_Capacity/Rndtrp_eff),(Effective_Battery_Capacity/Rndtrp_eff),IF(ISNA(MATCH(AM19,'Coincident Peak'!$D$5:$D$16,0))=TRUE,0,SUMIFS($O$7:$O$8790,$F$7:$F$8790,DAY(AM19),$E$7:$E$8790,MONTH(AM19),$G$7:$G$8790,"<"&HOUR(VLOOKUP(AM19,'Coincident Peak'!$D$5:$E$16,2))-Values!$E$5,$I$7:$I$8790,0))) -> 0 | BH19: =IF((IF(ISNA(MATCH(AM19,'Coincident Peak'!$D$5:$D$16,0))=TRUE,0,SUMIFS($O$7:$O$8790,$F$7:$F$8790,DAY(AM19),$E$7:$E$8790,MONTH(AM19),$G$7:$G$8790,"<"&HOUR(VLOOKUP(AM19,'Coincident Peak'!$D$5:$E$16,2))-Values!$E$5)))>(Effective_Battery_Capacity/Rndtrp_eff),(Effective_Battery_Capacity/Rndtrp_eff),(IF(ISNA(MATCH(AM19,'Coincident Peak'!$D$5:$D$16,0))=TRUE,0,SUMIFS($O$7:$O$8790,$F$7:$F$8790,DAY(AM19),$E$7:$E$8790,MONTH(AM19),$G$7:$G$8790,"<"&HOUR(VLOOKUP(AM19,'Coincident Peak'!$D$5:$E$16,2))-Values!$E$5)))) -> 0 | BI19: 0 | BJ19: 0 | BK19: =IF(WholesaleEnergyCost_2>PPACostPerKWh,(IF((SUMIFS('Time Series Data'!$AG$7:$AG$8790,'Time Series Data'!$I$7:$I$8790,1,$F$7:$F$8790,DAY(AM19),$E$7:$E$8790,MONTH(AM19))-BP19)>(Effective_Battery_Capacity/Rndtrp_eff),(Effective_Battery_Capacity/Rndtrp_eff),(SUMIFS('Time Series Data'!$AG$7:$AG$8790,'Time Series Data'!$I$7:$I$8790,1,$F$7:$F$8790,DAY(AM19),$E$7:$E$8790,MONTH(AM19))))-BP19),0) -> 0 | BL19: 0 | BM19: =SUMIFS('Time Series Data'!$AG$7:$AG$8790,$F$7:$F$8790,DAY(AM19),$E$7:$E$8790,MONTH(AM19),'Time Series Data'!$I$7:$I$8790,1)-BL19-BP19 -> 5,374 | BN19: =SUMIFS('Time Series Data'!$AG$7:$AG$8790,'Time Series Data'!$I$7:$I$8790,0,$F$7:$F$8790,DAY(AM19),$E$7:$E$8790,MONTH(AM19))-BQ19 -> 1,492 | BO19: =IF((IF(ISNA(MATCH(AM19,'Coincident Peak'!$D$5:$D$16,0))=TRUE,0,SUMIFS($U$7:$U$8790,$F$7:$F$8790,DAY(AM19),$E$7:$E$8790,MONTH(AM19),$G$7:$G$8790,"<"&HOUR(VLOOKUP(AM19,'Coincident Peak'!$D$5:$E$16,2))-Values!$E$5)))>(Effective_Battery_Capacity/Rndtrp_eff),(Effective_Battery_Capacity/Rndtrp_eff),(IF(ISNA(MATCH(AM19,'Coincident Peak'!$D$5:$D$16,0))=TRUE,0,SUMIFS($U$7:$U$8790,$F$7:$F$8790,DAY(AM19),$E$7:$E$8790,MONTH(AM19),$G$7:$G$8790,"<"&HOUR(VLOOKUP(AM19,'Coincident Peak'!$D$5:$E$16,2))-Values!$E$5)))) -> 0 | BP19: =IF(WholesaleEnergyCost_2>PPACostPerKWh,(IF((IF(ISNA(MATCH(AM19,'Coincident Peak'!$D$5:$D$16,0))=TRUE,0,SUMIFS($U$7:$U$8790,$F$7:$F$8790,DAY(AM19),$E$7:$E$8790,MONTH(AM19),$G$7:$G$8790,"<"&HOUR(VLOOKUP(AM19,'Coincident Peak'!$D$5:$E$16,2))-Values!$E$5,$I$7:$I$8790,1)))>(Effective_Battery_Capacity/Rndtrp_eff),(Effective_Battery_Capacity/Rndtrp_eff),(IF(ISNA(MATCH(AM19,'Coincident Peak'!$D$5:$D$16,0))=TRUE,0,SUMIFS($U$7:$U$8790,$F$7:$F$8790,DAY(AM19),$E$7:$E$8790,MONTH(AM19),$G$7:$G$8790,"<"&HOUR(VLOOKUP(AM19,'Coincident Peak'!$D$5:$E$16,2))-Values!$E$5,$I$7:$I$8790,1))))),0) -> 0 | BQ19: =IF(WholesaleEnergyCost_1>PPACostPerKWh,(IF((IF(ISNA(MATCH(AM19,'Coincident Peak'!$D$5:$D$16,0))=TRUE,0,SUMIFS($U$7:$U$8790,$F$7:$F$8790,DAY(AM19),$E$7:$E$8790,MONTH(AM19),$G$7:$G$8790,"<"&HOUR(VLOOKUP(AM19,'Coincident Peak'!$D$5:$E$16,2))-Values!$E$5,$I$7:$I$8790,0)))>(Effective_Battery_Capacity/Rndtrp_eff),(Effective_Battery_Capacity/Rndtrp_eff),(IF(ISNA(MATCH(AM19,'Coincident Peak'!$D$5:$D$16,0))=TRUE,0,SUMIFS($U$7:$U$8790,$F$7:$F$8790,DAY(AM19),$E$7:$E$8790,MONTH(AM19),$G$7:$G$8790,"<"&HOUR(VLOOKUP(AM19,'Coincident Peak'!$D$5:$E$16,2))-Values!$E$5,$I$7:$I$8790,0))))),0) -> 0 | BR19: 0 | BS19: 5,374 | BT19: 0 | BV19: =IF(ISNA(MATCH(AM19,'Coincident Peak'!$D$5:$D$16,0))=TRUE,0,1) -> 0 | BW19: 0 | BX19: 0 | BY19: 0 | BZ19: 0 | CA19: 0 | CB19: 1 | CC19: 1 | CD19: =IF(ISNA(MATCH(AM19,'Coincident Peak'!$D$5:$D$16,0))=TRUE,1,0) -> 1 | CE19: =VLOOKUP(MONTH($AM19),'Value Stacking Basis'!$B$37:$D$48,3) -> 3 | CF19: =VLOOKUP(MONTH($AM19),'Value Stacking Basis'!$B$37:$F$48,5) -> 2 | CG19: 1 | CK19: 4,962.27 | CL19: 4,962.27 | CM19: 4,962.27 | CN19: 4,962.27 | CO19: 0 | CQ19: 0 | CR19: 4,962.27 | CS19: 4,962.27 | CT19: 4,962.27 | CU19: 4,962.27 | CW19: =IF($BV19=0,0,IF($CB19=0,INDEX('Time Series Data'!N$7:N$8790,MATCH(1,(MONTH($AM19)='Time Series Data'!$E$7:$E$8790)*(DAY($AM19)='Time Series Data'!$F$7:$F$8790)*(HOUR(VLOOKUP('Time Series Data'!$AM19,'Coincident Peak'!$D$5:$I$16,2))='Time Series Data'!$G$7:$G$8790),0)),IF(($AT19*Rndtrp_eff)>Effective_Battery_Capacity,BatteryPower,(($AT19*Rndtrp_eff)/Effective_Battery_Capacity)*BatteryPower))) -> 0 | CX19: 4,962.27 | CY19: 4,962.27 | CZ19: 4,962.27 | DA19: 4,962.27 | DC19: =IF($BV19=0,0,IF($CB19=0,INDEX('Time Series Data'!N$7:N$8790,MATCH(1,(MONTH($AM19)='Time Series Data'!$E$7:$E$8790)*(DAY($AM19)='Time Series Data'!$F$7:$F$8790)*(HOUR(VLOOKUP('Time Series Data'!$AM19,'Coincident Peak'!$D$5:$I$16,2))='Time Series Data'!$G$7:$G$8790),0)),IF(($AT19*Rndtrp_eff)>Effective_Battery_Capacity,BatteryPower,(($AT19*Rndtrp_eff)/Effective_Battery_Capacity)*BatteryPower))) -> 0 | DD19: 0 | DF19: 0 | DG19: 0 | DH19: 4,962 | DI19: 4,962.27 | DJ19: 4,962.27 | DK19: 4,962.27 | DM19: 0 | DN19: 0 | DO19: 4,962 | DP19: 0 | DR19: 0 | DS19: 4,962.27 | DT19: 4,962.27 | DU19: 4,962.27 | DV19: 0 | DX19: 0 | DY19: 0 | DZ19: 4,962.27 | EA19: 4,962.27 | EB19: 4,962.27 | EF19: 6,400.30 | EG19: 6,400.30 | EH19: 6,400.30 | EI19: 0 | EK19: 0 | EL19: 6,400.30 | EM19: 6,400.30 | EN19: 6,400.30 | EP19: =IF($BV19=0,0,IF($CC19=0,VLOOKUP('Time Series Data'!$AM19,'Coincident Peak'!$D$5:$I$16,3),BatteryPower)) -> 0 | EQ19: 6,400.30 | ER19: 6,400.30 | ES19: 6,400.30 | EU19: =IF($BV19=0,0,IF($CC19=0,VLOOKUP('Time Series Data'!$AM19,'Coincident Peak'!$D$5:$I$16,3),BatteryPower)) -> 0 | EV19: 0 | EX19: 0 | EY19: 0 | EZ19: 6,400.30 | FA19: 6,400.30 | FB19: 6,400.30 | FD19: 0 | FE19: 0 | FF19: 0 | FH19: 0 | FI19: 6,400.30 | FJ19: 6,400.30 | FK19: 6,400.30 | FL19: 0 | FN19: 0 | FO19: 0 | FP19: 6,400.30 | FQ19: 6,400.30 | FR19: 6,400.30
B20: =DATE(Load_Profile_Year,E20,F20)+TIME(G20,0,0) -> 2020-01-01T13:00:00 | C20: 2020-01-01 | D20: 74,214 | E20: 1 | F20: 1 | G20: 13 | H20: 3 | I20: =INDEX(Values!$V$6:$AG$29,'Time Series Data'!G20+1,'Time Series Data'!E20) -> 1 | J20: 13.5 | K20: 74214 | L20: 0 | M20: 269.117266 | N20: 0 | O20: 0 | P20: 89.08464 | T20: 269.12 | U20: 269.12 | V20: 74,214 | W20: =IF(V20+O20>VLOOKUP(E20,'Coincident Peak'!$C$22:$I$33,7),0,1) -> 1 | X20: =IF((AND(E20=MONTH(VLOOKUP('Time Series Data'!E20,'Coincident Peak'!$C$5:$D$16,2)),F20=DAY(VLOOKUP('Time Series Data'!E20,'Coincident Peak'!$C$5:$D$16,2)),IF(AND(G20<=HOUR(VLOOKUP('Time Series Data'!E20,'Coincident Peak'!$C$5:$E$16,3))+Values!$E$5,G20>=HOUR(VLOOKUP('Time Series Data'!E20,'Coincident Peak'!$C$5:$E$16,3))-Values!$E$5),"TRUE","FALSE"))),BatteryPower,0) -> 0.00 | Y20: =IF((AND(E20=MONTH(VLOOKUP('Time Series Data'!E20,'Coincident Peak'!$C$5:$D$16,2)),F20=DAY(VLOOKUP('Time Series Data'!E20,'Coincident Peak'!$C$5:$D$16,2)))),0,N20) -> 0.00 | Z20: =IF((AND(E20=MONTH(VLOOKUP('Time Series Data'!E20,'Coincident Peak'!$C$5:$D$16,2)),F20=DAY(VLOOKUP('Time Series Data'!E20,'Coincident Peak'!$C$5:$D$16,2)),IF(AND(G20<=HOUR(VLOOKUP('Time Series Data'!E20,'Coincident Peak'!$C$5:$E$16,3))+Values!$E$5,G20>=HOUR(VLOOKUP('Time Series Data'!E20,'Coincident Peak'!$C$5:$E$16,3))-Values!$E$5),"TRUE","FALSE"))),BatteryPower,Y20) -> 0.00 | AA20: =IF((AND(E20=MONTH(VLOOKUP('Time Series Data'!E20,'Coincident Peak'!$C$5:$D$16,2)),F20=DAY(VLOOKUP('Time Series Data'!E20,'Coincident Peak'!$C$5:$D$16,2))-1)),VLOOKUP(E20,'Coincident Peak'!$C$5:$N$16,11)*Z20,Z20) -> 0.00 | AB20: =IF((AND(E20=MONTH(VLOOKUP('Time Series Data'!E20,'Coincident Peak'!$C$5:$D$16,2)),F20=DAY(VLOOKUP('Time Series Data'!E20,'Coincident Peak'!$C$5:$D$16,2))+1)),VLOOKUP(E20,'Coincident Peak'!$C$5:$N$16,12)*AA20,AA20) -> 0.00 | AC20: =IF((AND(E20=MONTH(VLOOKUP('Time Series Data'!E20,'Coincident Peak'!$C$5:$D$16,2)),F20=DAY(VLOOKUP('Time Series Data'!E20,'Coincident Peak'!$C$5:$D$16,2)))),0,O20) -> 0.00 | AD20: =IF((AND(E20=MONTH(VLOOKUP('Time Series Data'!E20,'Coincident Peak'!$C$5:$D$16,2)),F20=DAY(VLOOKUP('Time Series Data'!E20,'Coincident Peak'!$C$5:$D$16,2))-1)),VLOOKUP(E20,'Coincident Peak'!$C$5:$N$16,11)*AC20,AC20) -> 0.00 | AE20: =IF((AND(E20=MONTH(VLOOKUP('Time Series Data'!E20,'Coincident Peak'!$C$5:$D$16,2)),F20=DAY(VLOOKUP('Time Series Data'!E20,'Coincident Peak'!$C$5:$D$16,2))+1)),VLOOKUP(E20,'Coincident Peak'!$C$5:$N$16,12)*AD20,AD20) -> 0.00 | AF20: 74,214 | AG20: =IF((AND(E20=MONTH(VLOOKUP('Time Series Data'!E20,'Coincident Peak'!$C$5:$D$16,2)),F20=DAY(VLOOKUP('Time Series Data'!E20,'Coincident Peak'!$C$5:$D$16,2)))),U20,O20) -> 0.00 | AH20: 74,214 | AL20: 13 | AM20: 2020-01-14 | AN20: 1 | AO20: 0 | AP20: 0 | AQ20: 0 | AR20: 9,007.83 | AS20: 6,515.86 | AT20: =IF(ISNA(MATCH(AM20,'Coincident Peak'!$D$5:$D$16,0))=TRUE,0,SUMIFS($O$7:$O$8790,$F$7:$F$8790,DAY(AM20),$E$7:$E$8790,MONTH(AM20),$G$7:$G$8790,"<"&HOUR(VLOOKUP(AM20,'Coincident Peak'!$D$5:$E$16,2))-Values!$E$5)) -> 0 | AU20: 0 | AV20: 0 | AW20: 0 | AX20: 1,951 | AY20: =IF(ISNA(MATCH(AM20,'Coincident Peak'!$D$5:$D$16,0))=TRUE,0,SUMIFS($O$7:$O$8790,$F$7:$F$8790,DAY(AM20),$E$7:$E$8790,MONTH(AM20),$G$7:$G$8790,"<"&HOUR(VLOOKUP(AM20,'Coincident Peak'!$D$5:$E$16,2))-Values!$E$5,$I$7:$I$8790,1)) -> 0 | AZ20: 1,951 | BA20: 1,951 | BB20: 0 | BD20: 1,951 | BE20: 6,932 | BF20: 0 | BG20: =IF(IF(ISNA(MATCH(AM20,'Coincident Peak'!$D$5:$D$16,0))=TRUE,0,SUMIFS($O$7:$O$8790,$F$7:$F$8790,DAY(AM20),$E$7:$E$8790,MONTH(AM20),$G$7:$G$8790,"<"&HOUR(VLOOKUP(AM20,'Coincident Peak'!$D$5:$E$16,2))-Values!$E$5,$I$7:$I$8790,0))>(Effective_Battery_Capacity/Rndtrp_eff),(Effective_Battery_Capacity/Rndtrp_eff),IF(ISNA(MATCH(AM20,'Coincident Peak'!$D$5:$D$16,0))=TRUE,0,SUMIFS($O$7:$O$8790,$F$7:$F$8790,DAY(AM20),$E$7:$E$8790,MONTH(AM20),$G$7:$G$8790,"<"&HOUR(VLOOKUP(AM20,'Coincident Peak'!$D$5:$E$16,2))-Values!$E$5,$I$7:$I$8790,0))) -> 0 | BH20: =IF((IF(ISNA(MATCH(AM20,'Coincident Peak'!$D$5:$D$16,0))=TRUE,0,SUMIFS($O$7:$O$8790,$F$7:$F$8790,DAY(AM20),$E$7:$E$8790,MONTH(AM20),$G$7:$G$8790,"<"&HOUR(VLOOKUP(AM20,'Coincident Peak'!$D$5:$E$16,2))-Values!$E$5)))>(Effective_Battery_Capacity/Rndtrp_eff),(Effective_Battery_Capacity/Rndtrp_eff),(IF(ISNA(MATCH(AM20,'Coincident Peak'!$D$5:$D$16,0))=TRUE,0,SUMIFS($O$7:$O$8790,$F$7:$F$8790,DAY(AM20),$E$7:$E$8790,MONTH(AM20),$G$7:$G$8790,"<"&HOUR(VLOOKUP(AM20,'Coincident Peak'!$D$5:$E$16,2))-Values!$E$5)))) -> 0 | BI20: 0 | BJ20: 0 | BK20: =IF(WholesaleEnergyCost_2>PPACostPerKWh,(IF((SUMIFS('Time Series Data'!$AG$7:$AG$8790,'Time Series Data'!$I$7:$I$8790,1,$F$7:$F$8790,DAY(AM20),$E$7:$E$8790,MONTH(AM20))-BP20)>(Effective_Battery_Capacity/Rndtrp_eff),(Effective_Battery_Capacity/Rndtrp_eff),(SUMIFS('Time Series Data'!$AG$7:$AG$8790,'Time Series Data'!$I$7:$I$8790,1,$F$7:$F$8790,DAY(AM20),$E$7:$E$8790,MONTH(AM20))))-BP20),0) -> 0 | BL20: 0 | BM20: =SUMIFS('Time Series Data'!$AG$7:$AG$8790,$F$7:$F$8790,DAY(AM20),$E$7:$E$8790,MONTH(AM20),'Time Series Data'!$I$7:$I$8790,1)-BL20-BP20 -> 7,057 | BN20: =SUMIFS('Time Series Data'!$AG$7:$AG$8790,'Time Series Data'!$I$7:$I$8790,0,$F$7:$F$8790,DAY(AM20),$E$7:$E$8790,MONTH(AM20))-BQ20 -> 1,951 | BO20: =IF((IF(ISNA(MATCH(AM20,'Coincident Peak'!$D$5:$D$16,0))=TRUE,0,SUMIFS($U$7:$U$8790,$F$7:$F$8790,DAY(AM20),$E$7:$E$8790,MONTH(AM20),$G$7:$G$8790,"<"&HOUR(VLOOKUP(AM20,'Coincident Peak'!$D$5:$E$16,2))-Values!$E$5)))>(Effective_Battery_Capacity/Rndtrp_eff),(Effective_Battery_Capacity/Rndtrp_eff),(IF(ISNA(MATCH(AM20,'Coincident Peak'!$D$5:$D$16,0))=TRUE,0,SUMIFS($U$7:$U$8790,$F$7:$F$8790,DAY(AM20),$E$7:$E$8790,MONTH(AM20),$G$7:$G$8790,"<"&HOUR(VLOOKUP(AM20,'Coincident Peak'!$D$5:$E$16,2))-Values!$E$5)))) -> 0 | BP20: =IF(WholesaleEnergyCost_2>PPACostPerKWh,(IF((IF(ISNA(MATCH(AM20,'Coincident Peak'!$D$5:$D$16,0))=TRUE,0,SUMIFS($U$7:$U$8790,$F$7:$F$8790,DAY(AM20),$E$7:$E$8790,MONTH(AM20),$G$7:$G$8790,"<"&HOUR(VLOOKUP(AM20,'Coincident Peak'!$D$5:$E$16,2))-Values!$E$5,$I$7:$I$8790,1)))>(Effective_Battery_Capacity/Rndtrp_eff),(Effective_Battery_Capacity/Rndtrp_eff),(IF(ISNA(MATCH(AM20,'Coincident Peak'!$D$5:$D$16,0))=TRUE,0,SUMIFS($U$7:$U$8790,$F$7:$F$8790,DAY(AM20),$E$7:$E$8790,MONTH(AM20),$G$7:$G$8790,"<"&HOUR(VLOOKUP(AM20,'Coincident Peak'!$D$5:$E$16,2))-Values!$E$5,$I$7:$I$8790,1))))),0) -> 0 | BQ20: =IF(WholesaleEnergyCost_1>PPACostPerKWh,(IF((IF(ISNA(MATCH(AM20,'Coincident Peak'!$D$5:$D$16,0))=TRUE,0,SUMIFS($U$7:$U$8790,$F$7:$F$8790,DAY(AM20),$E$7:$E$8790,MONTH(AM20),$G$7:$G$8790,"<"&HOUR(VLOOKUP(AM20,'Coincident Peak'!$D$5:$E$16,2))-Values!$E$5,$I$7:$I$8790,0)))>(Effective_Battery_Capacity/Rndtrp_eff),(Effective_Battery_Capacity/Rndtrp_eff),(IF(ISNA(MATCH(AM20,'Coincident Peak'!$D$5:$D$16,0))=TRUE,0,SUMIFS($U$7:$U$8790,$F$7:$F$8790,DAY(AM20),$E$7:$E$8790,MONTH(AM20),$G$7:$G$8790,"<"&HOUR(VLOOKUP(AM20,'Coincident Peak'!$D$5:$E$16,2))-Values!$E$5,$I$7:$I$8790,0))))),0) -> 0 | BR20: 0 | BS20: 6,932 | BT20: 0 | BV20: =IF(ISNA(MATCH(AM20,'Coincident Peak'!$D$5:$D$16,0))=TRUE,0,1) -> 0 | BW20: 0 | BX20: 0 | BY20: 0 | BZ20: 0 | CA20: 0 | CB20: 1 | CC20: 1 | CD20: =IF(ISNA(MATCH(AM20,'Coincident Peak'!$D$5:$D$16,0))=TRUE,1,0) -> 1 | CE20: =VLOOKUP(MONTH($AM20),'Value Stacking Basis'!$B$37:$D$48,3) -> 3 | CF20: =VLOOKUP(MONTH($AM20),'Value Stacking Basis'!$B$37:$F$48,5) -> 2 | CG20: 1 | CK20: 6,515.86 | CL20: 6,400.30 | CM20: 6,400.30 | CN20: 6,400.30 | CO20: 0 | CQ20: 0 | CR20: 6,515.86 | CS20: 6,400.30 | CT20: 6,400.30 | CU20: 6,400.30 | CW20: =IF($BV20=0,0,IF($CB20=0,INDEX('Time Series Data'!N$7:N$8790,MATCH(1,(MONTH($AM20)='Time Series Data'!$E$7:$E$8790)*(DAY($AM20)='Time Series Data'!$F$7:$F$8790)*(HOUR(VLOOKUP('Time Series Data'!$AM20,'Coincident Peak'!$D$5:$I$16,2))='Time Series Data'!$G$7:$G$8790),0)),IF(($AT20*Rndtrp_eff)>Effective_Battery_Capacity,BatteryPower,(($AT20*Rndtrp_eff)/Effective_Battery_Capacity)*BatteryPower))) -> 0 | CX20: 6,515.86 | CY20: 6,400.30 | CZ20: 6,400.30 | DA20: 6,400.30 | DC20: =IF($BV20=0,0,IF($CB20=0,INDEX('Time Series Data'!N$7:N$8790,MATCH(1,(MONTH($AM20)='Time Series Data'!$E$7:$E$8790)*(DAY($AM20)='Time Series Data'!$F$7:$F$8790)*(HOUR(VLOOKUP('Time Series Data'!$AM20,'Coincident Peak'!$D$5:$I$16,2))='Time Series Data'!$G$7:$G$8790),0)),IF(($AT20*Rndtrp_eff)>Effective_Battery_Capacity,BatteryPower,(($AT20*Rndtrp_eff)/Effective_Battery_Capacity)*BatteryPower))) -> 0 | DD20: 0 | DF20: 0 | DG20: 0 | DH20: 6,516 | DI20: 6,400.30 | DJ20: 6,400.30 | DK20: 6,400.30 | DM20: 0 | DN20: 0 | DO20: 6,516 | DP20: 0 | DR20: 0 | DS20: 6,400.30 | DT20: 6,400.30 | DU20: 6,400.30 | DV20: 0 | DX20: 0 | DY20: 0 | DZ20: 6,400.30 | EA20: 6,400.30 | EB20: 6,400.30 | EF20: 6,400.30 | EG20: 6,400.30 | EH20: 6,400.30 | EI20: 0 | EK20: 0 | EL20: 6,400.30 | EM20: 6,400.30 | EN20: 6,400.30 | EP20: =IF($BV20=0,0,IF($CC20=0,VLOOKUP('Time Series Data'!$AM20,'Coincident Peak'!$D$5:$I$16,3),BatteryPower)) -> 0 | EQ20: 6,400.30 | ER20: 6,400.30 | ES20: 6,400.30 | EU20: =IF($BV20=0,0,IF($CC20=0,VLOOKUP('Time Series Data'!$AM20,'Coincident Peak'!$D$5:$I$16,3),BatteryPower)) -> 0 | EV20: 0 | EX20: 0 | EY20: 0 | EZ20: 6,400.30 | FA20: 6,400.30 | FB20: 6,400.30 | FD20: 0 | FE20: 0 | FF20: 0 | FH20: 0 | FI20: 6,400.30 | FJ20: 6,400.30 | FK20: 6,400.30 | FL20: 0 | FN20: 0 | FO20: 0 | FP20: 6,400.30 | FQ20: 6,400.30 | FR20: 6,400.30
B21: =DATE(Load_Profile_Year,E21,F21)+TIME(G21,0,0) -> 2020-01-01T14:00:00 | C21: 2020-01-01 | D21: 75,021 | E21: 1 | F21: 1 | G21: 14 | H21: 3 | I21: =INDEX(Values!$V$6:$AG$29,'Time Series Data'!G21+1,'Time Series Data'!E21) -> 0 | J21: 14.5 | K21: 75021 | L21: 0 | M21: 571.830448 | N21: 0 | O21: 137.213195 | P21: 95 | T21: 571.83 | U21: 709.04 | V21: 74,884 | W21: =IF(V21+O21>VLOOKUP(E21,'Coincident Peak'!$C$22:$I$33,7),0,1) -> 1 | X21: =IF((AND(E21=MONTH(VLOOKUP('Time Series Data'!E21,'Coincident Peak'!$C$5:$D$16,2)),F21=DAY(VLOOKUP('Time Series Data'!E21,'Coincident Peak'!$C$5:$D$16,2)),IF(AND(G21<=HOUR(VLOOKUP('Time Series Data'!E21,'Coincident Peak'!$C$5:$E$16,3))+Values!$E$5,G21>=HOUR(VLOOKUP('Time Series Data'!E21,'Coincident Peak'!$C$5:$E$16,3))-Values!$E$5),"TRUE","FALSE"))),BatteryPower,0) -> 0.00 | Y21: =IF((AND(E21=MONTH(VLOOKUP('Time Series Data'!E21,'Coincident Peak'!$C$5:$D$16,2)),F21=DAY(VLOOKUP('Time Series Data'!E21,'Coincident Peak'!$C$5:$D$16,2)))),0,N21) -> 0.00 | Z21: =IF((AND(E21=MONTH(VLOOKUP('Time Series Data'!E21,'Coincident Peak'!$C$5:$D$16,2)),F21=DAY(VLOOKUP('Time Series Data'!E21,'Coincident Peak'!$C$5:$D$16,2)),IF(AND(G21<=HOUR(VLOOKUP('Time Series Data'!E21,'Coincident Peak'!$C$5:$E$16,3))+Values!$E$5,G21>=HOUR(VLOOKUP('Time Series Data'!E21,'Coincident Peak'!$C$5:$E$16,3))-Values!$E$5),"TRUE","FALSE"))),BatteryPower,Y21) -> 0.00 | AA21: =IF((AND(E21=MONTH(VLOOKUP('Time Series Data'!E21,'Coincident Peak'!$C$5:$D$16,2)),F21=DAY(VLOOKUP('Time Series Data'!E21,'Coincident Peak'!$C$5:$D$16,2))-1)),VLOOKUP(E21,'Coincident Peak'!$C$5:$N$16,11)*Z21,Z21) -> 0.00 | AB21: =IF((AND(E21=MONTH(VLOOKUP('Time Series Data'!E21,'Coincident Peak'!$C$5:$D$16,2)),F21=DAY(VLOOKUP('Time Series Data'!E21,'Coincident Peak'!$C$5:$D$16,2))+1)),VLOOKUP(E21,'Coincident Peak'!$C$5:$N$16,12)*AA21,AA21) -> 0.00 | AC21: =IF((AND(E21=MONTH(VLOOKUP('Time Series Data'!E21,'Coincident Peak'!$C$5:$D$16,2)),F21=DAY(VLOOKUP('Time Series Data'!E21,'Coincident Peak'!$C$5:$D$16,2)))),0,O21) -> 137.21 | AD21: =IF((AND(E21=MONTH(VLOOKUP('Time Series Data'!E21,'Coincident Peak'!$C$5:$D$16,2)),F21=DAY(VLOOKUP('Time Series Data'!E21,'Coincident Peak'!$C$5:$D$16,2))-1)),VLOOKUP(E21,'Coincident Peak'!$C$5:$N$16,11)*AC21,AC21) -> 137.21 | AE21: =IF((AND(E21=MONTH(VLOOKUP('Time Series Data'!E21,'Coincident Peak'!$C$5:$D$16,2)),F21=DAY(VLOOKUP('Time Series Data'!E21,'Coincident Peak'!$C$5:$D$16,2))+1)),VLOOKUP(E21,'Coincident Peak'!$C$5:$N$16,12)*AD21,AD21) -> 137.21 | AF21: 74,884 | AG21: =IF((AND(E21=MONTH(VLOOKUP('Time Series Data'!E21,'Coincident Peak'!$C$5:$D$16,2)),F21=DAY(VLOOKUP('Time Series Data'!E21,'Coincident Peak'!$C$5:$D$16,2)))),U21,O21) -> 137.21 | AH21: 74,884 | AL21: 14 | AM21: 2020-01-15 | AN21: 1 | AO21: 0 | AP21: 0 | AQ21: 0 | AR21: 3,218.99 | AS21: 2,439.31 | AT21: =IF(ISNA(MATCH(AM21,'Coincident Peak'!$D$5:$D$16,0))=TRUE,0,SUMIFS($O$7:$O$8790,$F$7:$F$8790,DAY(AM21),$E$7:$E$8790,MONTH(AM21),$G$7:$G$8790,"<"&HOUR(VLOOKUP(AM21,'Coincident Peak'!$D$5:$E$16,2))-Values!$E$5)) -> 0 | AU21: 0 | AV21: 0 | AW21: 0 | AX21: 577 | AY21: =IF(ISNA(MATCH(AM21,'Coincident Peak'!$D$5:$D$16,0))=TRUE,0,SUMIFS($O$7:$O$8790,$F$7:$F$8790,DAY(AM21),$E$7:$E$8790,MONTH(AM21),$G$7:$G$8790,"<"&HOUR(VLOOKUP(AM21,'Coincident Peak'!$D$5:$E$16,2))-Values!$E$5,$I$7:$I$8790,1)) -> 0 | AZ21: 577 | BA21: 577 | BB21: 0 | BD21: 577 | BE21: 2,642 | BF21: 0 | BG21: =IF(IF(ISNA(MATCH(AM21,'Coincident Peak'!$D$5:$D$16,0))=TRUE,0,SUMIFS($O$7:$O$8790,$F$7:$F$8790,DAY(AM21),$E$7:$E$8790,MONTH(AM21),$G$7:$G$8790,"<"&HOUR(VLOOKUP(AM21,'Coincident Peak'!$D$5:$E$16,2))-Values!$E$5,$I$7:$I$8790,0))>(Effective_Battery_Capacity/Rndtrp_eff),(Effective_Battery_Capacity/Rndtrp_eff),IF(ISNA(MATCH(AM21,'Coincident Peak'!$D$5:$D$16,0))=TRUE,0,SUMIFS($O$7:$O$8790,$F$7:$F$8790,DAY(AM21),$E$7:$E$8790,MONTH(AM21),$G$7:$G$8790,"<"&HOUR(VLOOKUP(AM21,'Coincident Peak'!$D$5:$E$16,2))-Values!$E$5,$I$7:$I$8790,0))) -> 0 | BH21: =IF((IF(ISNA(MATCH(AM21,'Coincident Peak'!$D$5:$D$16,0))=TRUE,0,SUMIFS($O$7:$O$8790,$F$7:$F$8790,DAY(AM21),$E$7:$E$8790,MONTH(AM21),$G$7:$G$8790,"<"&HOUR(VLOOKUP(AM21,'Coincident Peak'!$D$5:$E$16,2))-Values!$E$5)))>(Effective_Battery_Capacity/Rndtrp_eff),(Effective_Battery_Capacity/Rndtrp_eff),(IF(ISNA(MATCH(AM21,'Coincident Peak'!$D$5:$D$16,0))=TRUE,0,SUMIFS($O$7:$O$8790,$F$7:$F$8790,DAY(AM21),$E$7:$E$8790,MONTH(AM21),$G$7:$G$8790,"<"&HOUR(VLOOKUP(AM21,'Coincident Peak'!$D$5:$E$16,2))-Values!$E$5)))) -> 0 | BI21: 0 | BJ21: 0 | BK21: =IF(WholesaleEnergyCost_2>PPACostPerKWh,(IF((SUMIFS('Time Series Data'!$AG$7:$AG$8790,'Time Series Data'!$I$7:$I$8790,1,$F$7:$F$8790,DAY(AM21),$E$7:$E$8790,MONTH(AM21))-BP21)>(Effective_Battery_Capacity/Rndtrp_eff),(Effective_Battery_Capacity/Rndtrp_eff),(SUMIFS('Time Series Data'!$AG$7:$AG$8790,'Time Series Data'!$I$7:$I$8790,1,$F$7:$F$8790,DAY(AM21),$E$7:$E$8790,MONTH(AM21))))-BP21),0) -> 0 | BL21: 0 | BM21: =SUMIFS('Time Series Data'!$AG$7:$AG$8790,$F$7:$F$8790,DAY(AM21),$E$7:$E$8790,MONTH(AM21),'Time Series Data'!$I$7:$I$8790,1)-BL21-BP21 -> 2,642 | BN21: =SUMIFS('Time Series Data'!$AG$7:$AG$8790,'Time Series Data'!$I$7:$I$8790,0,$F$7:$F$8790,DAY(AM21),$E$7:$E$8790,MONTH(AM21))-BQ21 -> 577 | BO21: =IF((IF(ISNA(MATCH(AM21,'Coincident Peak'!$D$5:$D$16,0))=TRUE,0,SUMIFS($U$7:$U$8790,$F$7:$F$8790,DAY(AM21),$E$7:$E$8790,MONTH(AM21),$G$7:$G$8790,"<"&HOUR(VLOOKUP(AM21,'Coincident Peak'!$D$5:$E$16,2))-Values!$E$5)))>(Effective_Battery_Capacity/Rndtrp_eff),(Effective_Battery_Capacity/Rndtrp_eff),(IF(ISNA(MATCH(AM21,'Coincident Peak'!$D$5:$D$16,0))=TRUE,0,SUMIFS($U$7:$U$8790,$F$7:$F$8790,DAY(AM21),$E$7:$E$8790,MONTH(AM21),$G$7:$G$8790,"<"&HOUR(VLOOKUP(AM21,'Coincident Peak'!$D$5:$E$16,2))-Values!$E$5)))) -> 0 | BP21: =IF(WholesaleEnergyCost_2>PPACostPerKWh,(IF((IF(ISNA(MATCH(AM21,'Coincident Peak'!$D$5:$D$16,0))=TRUE,0,SUMIFS($U$7:$U$8790,$F$7:$F$8790,DAY(AM21),$E$7:$E$8790,MONTH(AM21),$G$7:$G$8790,"<"&HOUR(VLOOKUP(AM21,'Coincident Peak'!$D$5:$E$16,2))-Values!$E$5,$I$7:$I$8790,1)))>(Effective_Battery_Capacity/Rndtrp_eff),(Effective_Battery_Capacity/Rndtrp_eff),(IF(ISNA(MATCH(AM21,'Coincident Peak'!$D$5:$D$16,0))=TRUE,0,SUMIFS($U$7:$U$8790,$F$7:$F$8790,DAY(AM21),$E$7:$E$8790,MONTH(AM21),$G$7:$G$8790,"<"&HOUR(VLOOKUP(AM21,'Coincident Peak'!$D$5:$E$16,2))-Values!$E$5,$I$7:$I$8790,1))))),0) -> 0 | BQ21: =IF(WholesaleEnergyCost_1>PPACostPerKWh,(IF((IF(ISNA(MATCH(AM21,'Coincident Peak'!$D$5:$D$16,0))=TRUE,0,SUMIFS($U$7:$U$8790,$F$7:$F$8790,DAY(AM21),$E$7:$E$8790,MONTH(AM21),$G$7:$G$8790,"<"&HOUR(VLOOKUP(AM21,'Coincident Peak'!$D$5:$E$16,2))-Values!$E$5,$I$7:$I$8790,0)))>(Effective_Battery_Capacity/Rndtrp_eff),(Effective_Battery_Capacity/Rndtrp_eff),(IF(ISNA(MATCH(AM21,'Coincident Peak'!$D$5:$D$16,0))=TRUE,0,SUMIFS($U$7:$U$8790,$F$7:$F$8790,DAY(AM21),$E$7:$E$8790,MONTH(AM21),$G$7:$G$8790,"<"&HOUR(VLOOKUP(AM21,'Coincident Peak'!$D$5:$E$16,2))-Values!$E$5,$I$7:$I$8790,0))))),0) -> 0 | BR21: 0 | BS21: 2,642 | BT21: 0 | BV21: =IF(ISNA(MATCH(AM21,'Coincident Peak'!$D$5:$D$16,0))=TRUE,0,1) -> 0 | BW21: 0 | BX21: 0 | BY21: 0 | BZ21: 0 | CA21: 0 | CB21: 1 | CC21: 1 | CD21: =IF(ISNA(MATCH(AM21,'Coincident Peak'!$D$5:$D$16,0))=TRUE,1,0) -> 1 | CE21: =VLOOKUP(MONTH($AM21),'Value Stacking Basis'!$B$37:$D$48,3) -> 3 | CF21: =VLOOKUP(MONTH($AM21),'Value Stacking Basis'!$B$37:$F$48,5) -> 2 | CG21: 1 | CK21: 2,439.31 | CL21: 2,439.31 | CM21: 2,439.31 | CN21: 2,439.31 | CO21: 0 | CQ21: 0 | CR21: 2,439.31 | CS21: 2,439.31 | CT21: 2,439.31 | CU21: 2,439.31 | CW21: =IF($BV21=0,0,IF($CB21=0,INDEX('Time Series Data'!N$7:N$8790,MATCH(1,(MONTH($AM21)='Time Series Data'!$E$7:$E$8790)*(DAY($AM21)='Time Series Data'!$F$7:$F$8790)*(HOUR(VLOOKUP('Time Series Data'!$AM21,'Coincident Peak'!$D$5:$I$16,2))='Time Series Data'!$G$7:$G$8790),0)),IF(($AT21*Rndtrp_eff)>Effective_Battery_Capacity,BatteryPower,(($AT21*Rndtrp_eff)/Effective_Battery_Capacity)*BatteryPower))) -> 0 | CX21: 2,439.31 | CY21: 2,439.31 | CZ21: 2,439.31 | DA21: 2,439.31 | DC21: =IF($BV21=0,0,IF($CB21=0,INDEX('Time Series Data'!N$7:N$8790,MATCH(1,(MONTH($AM21)='Time Series Data'!$E$7:$E$8790)*(DAY($AM21)='Time Series Data'!$F$7:$F$8790)*(HOUR(VLOOKUP('Time Series Data'!$AM21,'Coincident Peak'!$D$5:$I$16,2))='Time Series Data'!$G$7:$G$8790),0)),IF(($AT21*Rndtrp_eff)>Effective_Battery_Capacity,BatteryPower,(($AT21*Rndtrp_eff)/Effective_Battery_Capacity)*BatteryPower))) -> 0 | DD21: 0 | DF21: 0 | DG21: 0 | DH21: 2,439 | DI21: 2,439.31 | DJ21: 2,439.31 | DK21: 2,439.31 | DM21: 0 | DN21: 0 | DO21: 2,439 | DP21: 0 | DR21: 0 | DS21: 2,439.31 | DT21: 2,439.31 | DU21: 2,439.31 | DV21: 0 | DX21: 0 | DY21: 0 | DZ21: 2,439.31 | EA21: 2,439.31 | EB21: 2,439.31 | EF21: 6,400.30 | EG21: 6,400.30 | EH21: 6,400.30 | EI21: 0 | EK21: 0 | EL21: 6,400.30 | EM21: 6,400.30 | EN21: 6,400.30 | EP21: =IF($BV21=0,0,IF($CC21=0,VLOOKUP('Time Series Data'!$AM21,'Coincident Peak'!$D$5:$I$16,3),BatteryPower)) -> 0 | EQ21: 6,400.30 | ER21: 6,400.30 | ES21: 6,400.30 | EU21: =IF($BV21=0,0,IF($CC21=0,VLOOKUP('Time Series Data'!$AM21,'Coincident Peak'!$D$5:$I$16,3),BatteryPower)) -> 0 | EV21: 0 | EX21: 0 | EY21: 0 | EZ21: 6,400.30 | FA21: 6,400.30 | FB21: 6,400.30 | FD21: 0 | FE21: 0 | FF21: 0 | FH21: 0 | FI21: 6,400.30 | FJ21: 6,400.30 | FK21: 6,400.30 | FL21: 0 | FN21: 0 | FO21: 0 | FP21: 6,400.30 | FQ21: 6,400.30 | FR21: 6,400.30
B22: =DATE(Load_Profile_Year,E22,F22)+TIME(G22,0,0) -> 2020-01-01T15:00:00 | C22: 2020-01-01 | D22: 74,280 | E22: 1 | F22: 1 | G22: 15 | H22: 3 | I22: =INDEX(Values!$V$6:$AG$29,'Time Series Data'!G22+1,'Time Series Data'!E22) -> 0 | J22: 15.5 | K22: 74280 | L22: 0 | M22: 0 | N22: 0 | O22: 580.273541 | P22: 95 | T22: 0.00 | U22: 580.27 | V22: 73,700 | W22: =IF(V22+O22>VLOOKUP(E22,'Coincident Peak'!$C$22:$I$33,7),0,1) -> 1 | X22: =IF((AND(E22=MONTH(VLOOKUP('Time Series Data'!E22,'Coincident Peak'!$C$5:$D$16,2)),F22=DAY(VLOOKUP('Time Series Data'!E22,'Coincident Peak'!$C$5:$D$16,2)),IF(AND(G22<=HOUR(VLOOKUP('Time Series Data'!E22,'Coincident Peak'!$C$5:$E$16,3))+Values!$E$5,G22>=HOUR(VLOOKUP('Time Series Data'!E22,'Coincident Peak'!$C$5:$E$16,3))-Values!$E$5),"TRUE","FALSE"))),BatteryPower,0) -> 0.00 | Y22: =IF((AND(E22=MONTH(VLOOKUP('Time Series Data'!E22,'Coincident Peak'!$C$5:$D$16,2)),F22=DAY(VLOOKUP('Time Series Data'!E22,'Coincident Peak'!$C$5:$D$16,2)))),0,N22) -> 0.00 | Z22: =IF((AND(E22=MONTH(VLOOKUP('Time Series Data'!E22,'Coincident Peak'!$C$5:$D$16,2)),F22=DAY(VLOOKUP('Time Series Data'!E22,'Coincident Peak'!$C$5:$D$16,2)),IF(AND(G22<=HOUR(VLOOKUP('Time Series Data'!E22,'Coincident Peak'!$C$5:$E$16,3))+Values!$E$5,G22>=HOUR(VLOOKUP('Time Series Data'!E22,'Coincident Peak'!$C$5:$E$16,3))-Values!$E$5),"TRUE","FALSE"))),BatteryPower,Y22) -> 0.00 | AA22: =IF((AND(E22=MONTH(VLOOKUP('Time Series Data'!E22,'Coincident Peak'!$C$5:$D$16,2)),F22=DAY(VLOOKUP('Time Series Data'!E22,'Coincident Peak'!$C$5:$D$16,2))-1)),VLOOKUP(E22,'Coincident Peak'!$C$5:$N$16,11)*Z22,Z22) -> 0.00 | AB22: =IF((AND(E22=MONTH(VLOOKUP('Time Series Data'!E22,'Coincident Peak'!$C$5:$D$16,2)),F22=DAY(VLOOKUP('Time Series Data'!E22,'Coincident Peak'!$C$5:$D$16,2))+1)),VLOOKUP(E22,'Coincident Peak'!$C$5:$N$16,12)*AA22,AA22) -> 0.00 | AC22: =IF((AND(E22=MONTH(VLOOKUP('Time Series Data'!E22,'Coincident Peak'!$C$5:$D$16,2)),F22=DAY(VLOOKUP('Time Series Data'!E22,'Coincident Peak'!$C$5:$D$16,2)))),0,O22) -> 580.27 | AD22: =IF((AND(E22=MONTH(VLOOKUP('Time Series Data'!E22,'Coincident Peak'!$C$5:$D$16,2)),F22=DAY(VLOOKUP('Time Series Data'!E22,'Coincident Peak'!$C$5:$D$16,2))-1)),VLOOKUP(E22,'Coincident Peak'!$C$5:$N$16,11)*AC22,AC22) -> 580.27 | AE22: =IF((AND(E22=MONTH(VLOOKUP('Time Series Data'!E22,'Coincident Peak'!$C$5:$D$16,2)),F22=DAY(VLOOKUP('Time Series Data'!E22,'Coincident Peak'!$C$5:$D$16,2))+1)),VLOOKUP(E22,'Coincident Peak'!$C$5:$N$16,12)*AD22,AD22) -> 580.27 | AF22: 73,700 | AG22: =IF((AND(E22=MONTH(VLOOKUP('Time Series Data'!E22,'Coincident Peak'!$C$5:$D$16,2)),F22=DAY(VLOOKUP('Time Series Data'!E22,'Coincident Peak'!$C$5:$D$16,2)))),U22,O22) -> 580.27 | AH22: 73,700 | AL22: 15 | AM22: 2020-01-16 | AN22: 1 | AO22: 0 | AP22: 0 | AQ22: 0 | AR22: 3,696.61 | AS22: 2,146.78 | AT22: =IF(ISNA(MATCH(AM22,'Coincident Peak'!$D$5:$D$16,0))=TRUE,0,SUMIFS($O$7:$O$8790,$F$7:$F$8790,DAY(AM22),$E$7:$E$8790,MONTH(AM22),$G$7:$G$8790,"<"&HOUR(VLOOKUP(AM22,'Coincident Peak'!$D$5:$E$16,2))-Values!$E$5)) -> 0 | AU22: 0 | AV22: 0 | AW22: 0 | AX22: 1,372 | AY22: =IF(ISNA(MATCH(AM22,'Coincident Peak'!$D$5:$D$16,0))=TRUE,0,SUMIFS($O$7:$O$8790,$F$7:$F$8790,DAY(AM22),$E$7:$E$8790,MONTH(AM22),$G$7:$G$8790,"<"&HOUR(VLOOKUP(AM22,'Coincident Peak'!$D$5:$E$16,2))-Values!$E$5,$I$7:$I$8790,1)) -> 0 | AZ22: 1,372 | BA22: 1,372 | BB22: 0 | BD22: 1,372 | BE22: 2,325 | BF22: 0 | BG22: =IF(IF(ISNA(MATCH(AM22,'Coincident Peak'!$D$5:$D$16,0))=TRUE,0,SUMIFS($O$7:$O$8790,$F$7:$F$8790,DAY(AM22),$E$7:$E$8790,MONTH(AM22),$G$7:$G$8790,"<"&HOUR(VLOOKUP(AM22,'Coincident Peak'!$D$5:$E$16,2))-Values!$E$5,$I$7:$I$8790,0))>(Effective_Battery_Capacity/Rndtrp_eff),(Effective_Battery_Capacity/Rndtrp_eff),IF(ISNA(MATCH(AM22,'Coincident Peak'!$D$5:$D$16,0))=TRUE,0,SUMIFS($O$7:$O$8790,$F$7:$F$8790,DAY(AM22),$E$7:$E$8790,MONTH(AM22),$G$7:$G$8790,"<"&HOUR(VLOOKUP(AM22,'Coincident Peak'!$D$5:$E$16,2))-Values!$E$5,$I$7:$I$8790,0))) -> 0 | BH22: =IF((IF(ISNA(MATCH(AM22,'Coincident Peak'!$D$5:$D$16,0))=TRUE,0,SUMIFS($O$7:$O$8790,$F$7:$F$8790,DAY(AM22),$E$7:$E$8790,MONTH(AM22),$G$7:$G$8790,"<"&HOUR(VLOOKUP(AM22,'Coincident Peak'!$D$5:$E$16,2))-Values!$E$5)))>(Effective_Battery_Capacity/Rndtrp_eff),(Effective_Battery_Capacity/Rndtrp_eff),(IF(ISNA(MATCH(AM22,'Coincident Peak'!$D$5:$D$16,0))=TRUE,0,SUMIFS($O$7:$O$8790,$F$7:$F$8790,DAY(AM22),$E$7:$E$8790,MONTH(AM22),$G$7:$G$8790,"<"&HOUR(VLOOKUP(AM22,'Coincident Peak'!$D$5:$E$16,2))-Values!$E$5)))) -> 0 | BI22: 0 | BJ22: 0 | BK22: =IF(WholesaleEnergyCost_2>PPACostPerKWh,(IF((SUMIFS('Time Series Data'!$AG$7:$AG$8790,'Time Series Data'!$I$7:$I$8790,1,$F$7:$F$8790,DAY(AM22),$E$7:$E$8790,MONTH(AM22))-BP22)>(Effective_Battery_Capacity/Rndtrp_eff),(Effective_Battery_Capacity/Rndtrp_eff),(SUMIFS('Time Series Data'!$AG$7:$AG$8790,'Time Series Data'!$I$7:$I$8790,1,$F$7:$F$8790,DAY(AM22),$E$7:$E$8790,MONTH(AM22))))-BP22),0) -> 0 | BL22: 0 | BM22: =SUMIFS('Time Series Data'!$AG$7:$AG$8790,$F$7:$F$8790,DAY(AM22),$E$7:$E$8790,MONTH(AM22),'Time Series Data'!$I$7:$I$8790,1)-BL22-BP22 -> 2,325 | BN22: =SUMIFS('Time Series Data'!$AG$7:$AG$8790,'Time Series Data'!$I$7:$I$8790,0,$F$7:$F$8790,DAY(AM22),$E$7:$E$8790,MONTH(AM22))-BQ22 -> 1,372 | BO22: =IF((IF(ISNA(MATCH(AM22,'Coincident Peak'!$D$5:$D$16,0))=TRUE,0,SUMIFS($U$7:$U$8790,$F$7:$F$8790,DAY(AM22),$E$7:$E$8790,MONTH(AM22),$G$7:$G$8790,"<"&HOUR(VLOOKUP(AM22,'Coincident Peak'!$D$5:$E$16,2))-Values!$E$5)))>(Effective_Battery_Capacity/Rndtrp_eff),(Effective_Battery_Capacity/Rndtrp_eff),(IF(ISNA(MATCH(AM22,'Coincident Peak'!$D$5:$D$16,0))=TRUE,0,SUMIFS($U$7:$U$8790,$F$7:$F$8790,DAY(AM22),$E$7:$E$8790,MONTH(AM22),$G$7:$G$8790,"<"&HOUR(VLOOKUP(AM22,'Coincident Peak'!$D$5:$E$16,2))-Values!$E$5)))) -> 0 | BP22: =IF(WholesaleEnergyCost_2>PPACostPerKWh,(IF((IF(ISNA(MATCH(AM22,'Coincident Peak'!$D$5:$D$16,0))=TRUE,0,SUMIFS($U$7:$U$8790,$F$7:$F$8790,DAY(AM22),$E$7:$E$8790,MONTH(AM22),$G$7:$G$8790,"<"&HOUR(VLOOKUP(AM22,'Coincident Peak'!$D$5:$E$16,2))-Values!$E$5,$I$7:$I$8790,1)))>(Effective_Battery_Capacity/Rndtrp_eff),(Effective_Battery_Capacity/Rndtrp_eff),(IF(ISNA(MATCH(AM22,'Coincident Peak'!$D$5:$D$16,0))=TRUE,0,SUMIFS($U$7:$U$8790,$F$7:$F$8790,DAY(AM22),$E$7:$E$8790,MONTH(AM22),$G$7:$G$8790,"<"&HOUR(VLOOKUP(AM22,'Coincident Peak'!$D$5:$E$16,2))-Values!$E$5,$I$7:$I$8790,1))))),0) -> 0 | BQ22: =IF(WholesaleEnergyCost_1>PPACostPerKWh,(IF((IF(ISNA(MATCH(AM22,'Coincident Peak'!$D$5:$D$16,0))=TRUE,0,SUMIFS($U$7:$U$8790,$F$7:$F$8790,DAY(AM22),$E$7:$E$8790,MONTH(AM22),$G$7:$G$8790,"<"&HOUR(VLOOKUP(AM22,'Coincident Peak'!$D$5:$E$16,2))-Values!$E$5,$I$7:$I$8790,0)))>(Effective_Battery_Capacity/Rndtrp_eff),(Effective_Battery_Capacity/Rndtrp_eff),(IF(ISNA(MATCH(AM22,'Coincident Peak'!$D$5:$D$16,0))=TRUE,0,SUMIFS($U$7:$U$8790,$F$7:$F$8790,DAY(AM22),$E$7:$E$8790,MONTH(AM22),$G$7:$G$8790,"<"&HOUR(VLOOKUP(AM22,'Coincident Peak'!$D$5:$E$16,2))-Values!$E$5,$I$7:$I$8790,0))))),0) -> 0 | BR22: 0 | BS22: 2,325 | BT22: 0 | BV22: =IF(ISNA(MATCH(AM22,'Coincident Peak'!$D$5:$D$16,0))=TRUE,0,1) -> 0 | BW22: 0 | BX22: 0 | BY22: 0 | BZ22: 0 | CA22: 0 | CB22: 1 | CC22: 1 | CD22: =IF(ISNA(MATCH(AM22,'Coincident Peak'!$D$5:$D$16,0))=TRUE,1,0) -> 1 | CE22: =VLOOKUP(MONTH($AM22),'Value Stacking Basis'!$B$37:$D$48,3) -> 3 | CF22: =VLOOKUP(MONTH($AM22),'Value Stacking Basis'!$B$37:$F$48,5) -> 2 | CG22: 1 | CK22: 2,146.78 | CL22: 2,146.78 | CM22: 2,146.78 | CN22: 2,146.78 | CO22: 0 | CQ22: 0 | CR22: 2,146.78 | CS22: 2,146.78 | CT22: 2,146.78 | CU22: 2,146.78 | CW22: =IF($BV22=0,0,IF($CB22=0,INDEX('Time Series Data'!N$7:N$8790,MATCH(1,(MONTH($AM22)='Time Series Data'!$E$7:$E$8790)*(DAY($AM22)='Time Series Data'!$F$7:$F$8790)*(HOUR(VLOOKUP('Time Series Data'!$AM22,'Coincident Peak'!$D$5:$I$16,2))='Time Series Data'!$G$7:$G$8790),0)),IF(($AT22*Rndtrp_eff)>Effective_Battery_Capacity,BatteryPower,(($AT22*Rndtrp_eff)/Effective_Battery_Capacity)*BatteryPower))) -> 0 | CX22: 2,146.78 | CY22: 2,146.78 | CZ22: 2,146.78 | DA22: 2,146.78 | DC22: =IF($BV22=0,0,IF($CB22=0,INDEX('Time Series Data'!N$7:N$8790,MATCH(1,(MONTH($AM22)='Time Series Data'!$E$7:$E$8790)*(DAY($AM22)='Time Series Data'!$F$7:$F$8790)*(HOUR(VLOOKUP('Time Series Data'!$AM22,'Coincident Peak'!$D$5:$I$16,2))='Time Series Data'!$G$7:$G$8790),0)),IF(($AT22*Rndtrp_eff)>Effective_Battery_Capacity,BatteryPower,(($AT22*Rndtrp_eff)/Effective_Battery_Capacity)*BatteryPower))) -> 0 | DD22: 0 | DF22: 0 | DG22: 0 | DH22: 2,147 | DI22: 2,146.78 | DJ22: 2,146.78 | DK22: 2,146.78 | DM22: 0 | DN22: 0 | DO22: 2,147 | DP22: 0 | DR22: 0 | DS22: 2,146.78 | DT22: 2,146.78 | DU22: 2,146.78 | DV22: 0 | DX22: 0 | DY22: 0 | DZ22: 2,146.78 | EA22: 2,146.78 | EB22: 2,146.78 | EF22: 6,400.30 | EG22: 6,400.30 | EH22: 6,400.30 | EI22: 0 | EK22: 0 | EL22: 6,400.30 | EM22: 6,400.30 | EN22: 6,400.30 | EP22: =IF($BV22=0,0,IF($CC22=0,VLOOKUP('Time Series Data'!$AM22,'Coincident Peak'!$D$5:$I$16,3),BatteryPower)) -> 0 | EQ22: 6,400.30 | ER22: 6,400.30 | ES22: 6,400.30 | EU22: =IF($BV22=0,0,IF($CC22=0,VLOOKUP('Time Series Data'!$AM22,'Coincident Peak'!$D$5:$I$16,3),BatteryPower)) -> 0 | EV22: 0 | EX22: 0 | EY22: 0 | EZ22: 6,400.30 | FA22: 6,400.30 | FB22: 6,400.30 | FD22: 0 | FE22: 0 | FF22: 0 | FH22: 0 | FI22: 6,400.30 | FJ22: 6,400.30 | FK22: 6,400.30 | FL22: 0 | FN22: 0 | FO22: 0 | FP22: 6,400.30 | FQ22: 6,400.30 | FR22: 6,400.30
B23: =DATE(Load_Profile_Year,E23,F23)+TIME(G23,0,0) -> 2020-01-01T16:00:00 | C23: 2020-01-01 | D23: 80,742 | E23: 1 | F23: 1 | G23: 16 | H23: 3 | I23: =INDEX(Values!$V$6:$AG$29,'Time Series Data'!G23+1,'Time Series Data'!E23) -> 0 | J23: 16.5 | K23: 80742 | L23: 0 | M23: 0 | N23: 0 | O23: 24.428933 | P23: 95 | T23: 0.00 | U23: 24.43 | V23: 80,718 | W23: =IF(V23+O23>VLOOKUP(E23,'Coincident Peak'!$C$22:$I$33,7),0,1) -> 1 | X23: =IF((AND(E23=MONTH(VLOOKUP('Time Series Data'!E23,'Coincident Peak'!$C$5:$D$16,2)),F23=DAY(VLOOKUP('Time Series Data'!E23,'Coincident Peak'!$C$5:$D$16,2)),IF(AND(G23<=HOUR(VLOOKUP('Time Series Data'!E23,'Coincident Peak'!$C$5:$E$16,3))+Values!$E$5,G23>=HOUR(VLOOKUP('Time Series Data'!E23,'Coincident Peak'!$C$5:$E$16,3))-Values!$E$5),"TRUE","FALSE"))),BatteryPower,0) -> 0.00 | Y23: =IF((AND(E23=MONTH(VLOOKUP('Time Series Data'!E23,'Coincident Peak'!$C$5:$D$16,2)),F23=DAY(VLOOKUP('Time Series Data'!E23,'Coincident Peak'!$C$5:$D$16,2)))),0,N23) -> 0.00 | Z23: =IF((AND(E23=MONTH(VLOOKUP('Time Series Data'!E23,'Coincident Peak'!$C$5:$D$16,2)),F23=DAY(VLOOKUP('Time Series Data'!E23,'Coincident Peak'!$C$5:$D$16,2)),IF(AND(G23<=HOUR(VLOOKUP('Time Series Data'!E23,'Coincident Peak'!$C$5:$E$16,3))+Values!$E$5,G23>=HOUR(VLOOKUP('Time Series Data'!E23,'Coincident Peak'!$C$5:$E$16,3))-Values!$E$5),"TRUE","FALSE"))),BatteryPower,Y23) -> 0.00 | AA23: =IF((AND(E23=MONTH(VLOOKUP('Time Series Data'!E23,'Coincident Peak'!$C$5:$D$16,2)),F23=DAY(VLOOKUP('Time Series Data'!E23,'Coincident Peak'!$C$5:$D$16,2))-1)),VLOOKUP(E23,'Coincident Peak'!$C$5:$N$16,11)*Z23,Z23) -> 0.00 | AB23: =IF((AND(E23=MONTH(VLOOKUP('Time Series Data'!E23,'Coincident Peak'!$C$5:$D$16,2)),F23=DAY(VLOOKUP('Time Series Data'!E23,'Coincident Peak'!$C$5:$D$16,2))+1)),VLOOKUP(E23,'Coincident Peak'!$C$5:$N$16,12)*AA23,AA23) -> 0.00 | AC23: =IF((AND(E23=MONTH(VLOOKUP('Time Series Data'!E23,'Coincident Peak'!$C$5:$D$16,2)),F23=DAY(VLOOKUP('Time Series Data'!E23,'Coincident Peak'!$C$5:$D$16,2)))),0,O23) -> 24.43 | AD23: =IF((AND(E23=MONTH(VLOOKUP('Time Series Data'!E23,'Coincident Peak'!$C$5:$D$16,2)),F23=DAY(VLOOKUP('Time Series Data'!E23,'Coincident Peak'!$C$5:$D$16,2))-1)),VLOOKUP(E23,'Coincident Peak'!$C$5:$N$16,11)*AC23,AC23) -> 24.43 | AE23: =IF((AND(E23=MONTH(VLOOKUP('Time Series Data'!E23,'Coincident Peak'!$C$5:$D$16,2)),F23=DAY(VLOOKUP('Time Series Data'!E23,'Coincident Peak'!$C$5:$D$16,2))+1)),VLOOKUP(E23,'Coincident Peak'!$C$5:$N$16,12)*AD23,AD23) -> 24.43 | AF23: 80,718 | AG23: =IF((AND(E23=MONTH(VLOOKUP('Time Series Data'!E23,'Coincident Peak'!$C$5:$D$16,2)),F23=DAY(VLOOKUP('Time Series Data'!E23,'Coincident Peak'!$C$5:$D$16,2)))),U23,O23) -> 24.43 | AH23: 80,718 | AL23: 16 | AM23: 2020-01-17 | AN23: 1 | AO23: 0 | AP23: 0 | AQ23: 0 | AR23: 7,480.55 | AS23: 5,278.13 | AT23: =IF(ISNA(MATCH(AM23,'Coincident Peak'!$D$5:$D$16,0))=TRUE,0,SUMIFS($O$7:$O$8790,$F$7:$F$8790,DAY(AM23),$E$7:$E$8790,MONTH(AM23),$G$7:$G$8790,"<"&HOUR(VLOOKUP(AM23,'Coincident Peak'!$D$5:$E$16,2))-Values!$E$5)) -> 0 | AU23: 0 | AV23: 0 | AW23: 0 | AX23: 1,764 | AY23: =IF(ISNA(MATCH(AM23,'Coincident Peak'!$D$5:$D$16,0))=TRUE,0,SUMIFS($O$7:$O$8790,$F$7:$F$8790,DAY(AM23),$E$7:$E$8790,MONTH(AM23),$G$7:$G$8790,"<"&HOUR(VLOOKUP(AM23,'Coincident Peak'!$D$5:$E$16,2))-Values!$E$5,$I$7:$I$8790,1)) -> 0 | AZ23: 1,764 | BA23: 1,764 | BB23: 0 | BD23: 1,764 | BE23: 5,716 | BF23: 0 | BG23: =IF(IF(ISNA(MATCH(AM23,'Coincident Peak'!$D$5:$D$16,0))=TRUE,0,SUMIFS($O$7:$O$8790,$F$7:$F$8790,DAY(AM23),$E$7:$E$8790,MONTH(AM23),$G$7:$G$8790,"<"&HOUR(VLOOKUP(AM23,'Coincident Peak'!$D$5:$E$16,2))-Values!$E$5,$I$7:$I$8790,0))>(Effective_Battery_Capacity/Rndtrp_eff),(Effective_Battery_Capacity/Rndtrp_eff),IF(ISNA(MATCH(AM23,'Coincident Peak'!$D$5:$D$16,0))=TRUE,0,SUMIFS($O$7:$O$8790,$F$7:$F$8790,DAY(AM23),$E$7:$E$8790,MONTH(AM23),$G$7:$G$8790,"<"&HOUR(VLOOKUP(AM23,'Coincident Peak'!$D$5:$E$16,2))-Values!$E$5,$I$7:$I$8790,0))) -> 0 | BH23: =IF((IF(ISNA(MATCH(AM23,'Coincident Peak'!$D$5:$D$16,0))=TRUE,0,SUMIFS($O$7:$O$8790,$F$7:$F$8790,DAY(AM23),$E$7:$E$8790,MONTH(AM23),$G$7:$G$8790,"<"&HOUR(VLOOKUP(AM23,'Coincident Peak'!$D$5:$E$16,2))-Values!$E$5)))>(Effective_Battery_Capacity/Rndtrp_eff),(Effective_Battery_Capacity/Rndtrp_eff),(IF(ISNA(MATCH(AM23,'Coincident Peak'!$D$5:$D$16,0))=TRUE,0,SUMIFS($O$7:$O$8790,$F$7:$F$8790,DAY(AM23),$E$7:$E$8790,MONTH(AM23),$G$7:$G$8790,"<"&HOUR(VLOOKUP(AM23,'Coincident Peak'!$D$5:$E$16,2))-Values!$E$5)))) -> 0 | BI23: 0 | BJ23: 0 | BK23: =IF(WholesaleEnergyCost_2>PPACostPerKWh,(IF((SUMIFS('Time Series Data'!$AG$7:$AG$8790,'Time Series Data'!$I$7:$I$8790,1,$F$7:$F$8790,DAY(AM23),$E$7:$E$8790,MONTH(AM23))-BP23)>(Effective_Battery_Capacity/Rndtrp_eff),(Effective_Battery_Capacity/Rndtrp_eff),(SUMIFS('Time Series Data'!$AG$7:$AG$8790,'Time Series Data'!$I$7:$I$8790,1,$F$7:$F$8790,DAY(AM23),$E$7:$E$8790,MONTH(AM23))))-BP23),0) -> 0 | BL23: 0 | BM23: =SUMIFS('Time Series Data'!$AG$7:$AG$8790,$F$7:$F$8790,DAY(AM23),$E$7:$E$8790,MONTH(AM23),'Time Series Data'!$I$7:$I$8790,1)-BL23-BP23 -> 5,716 | BN23: =SUMIFS('Time Series Data'!$AG$7:$AG$8790,'Time Series Data'!$I$7:$I$8790,0,$F$7:$F$8790,DAY(AM23),$E$7:$E$8790,MONTH(AM23))-BQ23 -> 1,764 | BO23: =IF((IF(ISNA(MATCH(AM23,'Coincident Peak'!$D$5:$D$16,0))=TRUE,0,SUMIFS($U$7:$U$8790,$F$7:$F$8790,DAY(AM23),$E$7:$E$8790,MONTH(AM23),$G$7:$G$8790,"<"&HOUR(VLOOKUP(AM23,'Coincident Peak'!$D$5:$E$16,2))-Values!$E$5)))>(Effective_Battery_Capacity/Rndtrp_eff),(Effective_Battery_Capacity/Rndtrp_eff),(IF(ISNA(MATCH(AM23,'Coincident Peak'!$D$5:$D$16,0))=TRUE,0,SUMIFS($U$7:$U$8790,$F$7:$F$8790,DAY(AM23),$E$7:$E$8790,MONTH(AM23),$G$7:$G$8790,"<"&HOUR(VLOOKUP(AM23,'Coincident Peak'!$D$5:$E$16,2))-Values!$E$5)))) -> 0 | BP23: =IF(WholesaleEnergyCost_2>PPACostPerKWh,(IF((IF(ISNA(MATCH(AM23,'Coincident Peak'!$D$5:$D$16,0))=TRUE,0,SUMIFS($U$7:$U$8790,$F$7:$F$8790,DAY(AM23),$E$7:$E$8790,MONTH(AM23),$G$7:$G$8790,"<"&HOUR(VLOOKUP(AM23,'Coincident Peak'!$D$5:$E$16,2))-Values!$E$5,$I$7:$I$8790,1)))>(Effective_Battery_Capacity/Rndtrp_eff),(Effective_Battery_Capacity/Rndtrp_eff),(IF(ISNA(MATCH(AM23,'Coincident Peak'!$D$5:$D$16,0))=TRUE,0,SUMIFS($U$7:$U$8790,$F$7:$F$8790,DAY(AM23),$E$7:$E$8790,MONTH(AM23),$G$7:$G$8790,"<"&HOUR(VLOOKUP(AM23,'Coincident Peak'!$D$5:$E$16,2))-Values!$E$5,$I$7:$I$8790,1))))),0) -> 0 | BQ23: =IF(WholesaleEnergyCost_1>PPACostPerKWh,(IF((IF(ISNA(MATCH(AM23,'Coincident Peak'!$D$5:$D$16,0))=TRUE,0,SUMIFS($U$7:$U$8790,$F$7:$F$8790,DAY(AM23),$E$7:$E$8790,MONTH(AM23),$G$7:$G$8790,"<"&HOUR(VLOOKUP(AM23,'Coincident Peak'!$D$5:$E$16,2))-Values!$E$5,$I$7:$I$8790,0)))>(Effective_Battery_Capacity/Rndtrp_eff),(Effective_Battery_Capacity/Rndtrp_eff),(IF(ISNA(MATCH(AM23,'Coincident Peak'!$D$5:$D$16,0))=TRUE,0,SUMIFS($U$7:$U$8790,$F$7:$F$8790,DAY(AM23),$E$7:$E$8790,MONTH(AM23),$G$7:$G$8790,"<"&HOUR(VLOOKUP(AM23,'Coincident Peak'!$D$5:$E$16,2))-Values!$E$5,$I$7:$I$8790,0))))),0) -> 0 | BR23: 0 | BS23: 5,716 | BT23: 0 | BV23: =IF(ISNA(MATCH(AM23,'Coincident Peak'!$D$5:$D$16,0))=TRUE,0,1) -> 0 | BW23: 0 | BX23: 0 | BY23: 0 | BZ23: 0 | CA23: 0 | CB23: 1 | CC23: 1 | CD23: =IF(ISNA(MATCH(AM23,'Coincident Peak'!$D$5:$D$16,0))=TRUE,1,0) -> 1 | CE23: =VLOOKUP(MONTH($AM23),'Value Stacking Basis'!$B$37:$D$48,3) -> 3 | CF23: =VLOOKUP(MONTH($AM23),'Value Stacking Basis'!$B$37:$F$48,5) -> 2 | CG23: 1 | CK23: 5,278.13 | CL23: 5,278.13 | CM23: 5,278.13 | CN23: 5,278.13 | CO23: 0 | CQ23: 0 | CR23: 5,278.13 | CS23: 5,278.13 | CT23: 5,278.13 | CU23: 5,278.13 | CW23: =IF($BV23=0,0,IF($CB23=0,INDEX('Time Series Data'!N$7:N$8790,MATCH(1,(MONTH($AM23)='Time Series Data'!$E$7:$E$8790)*(DAY($AM23)='Time Series Data'!$F$7:$F$8790)*(HOUR(VLOOKUP('Time Series Data'!$AM23,'Coincident Peak'!$D$5:$I$16,2))='Time Series Data'!$G$7:$G$8790),0)),IF(($AT23*Rndtrp_eff)>Effective_Battery_Capacity,BatteryPower,(($AT23*Rndtrp_eff)/Effective_Battery_Capacity)*BatteryPower))) -> 0 | CX23: 5,278.13 | CY23: 5,278.13 | CZ23: 5,278.13 | DA23: 5,278.13 | DC23: =IF($BV23=0,0,IF($CB23=0,INDEX('Time Series Data'!N$7:N$8790,MATCH(1,(MONTH($AM23)='Time Series Data'!$E$7:$E$8790)*(DAY($AM23)='Time Series Data'!$F$7:$F$8790)*(HOUR(VLOOKUP('Time Series Data'!$AM23,'Coincident Peak'!$D$5:$I$16,2))='Time Series Data'!$G$7:$G$8790),0)),IF(($AT23*Rndtrp_eff)>Effective_Battery_Capacity,BatteryPower,(($AT23*Rndtrp_eff)/Effective_Battery_Capacity)*BatteryPower))) -> 0 | DD23: 0 | DF23: 0 | DG23: 0 | DH23: 5,278 | DI23: 5,278.13 | DJ23: 5,278.13 | DK23: 5,278.13 | DM23: 0 | DN23: 0 | DO23: 5,278 | DP23: 0 | DR23: 0 | DS23: 5,278.13 | DT23: 5,278.13 | DU23: 5,278.13 | DV23: 0 | DX23: 0 | DY23: 0 | DZ23: 5,278.13 | EA23: 5,278.13 | EB23: 5,278.13 | EF23: 6,400.30 | EG23: 6,400.30 | EH23: 6,400.30 | EI23: 0 | EK23: 0 | EL23: 6,400.30 | EM23: 6,400.30 | EN23: 6,400.30 | EP23: =IF($BV23=0,0,IF($CC23=0,VLOOKUP('Time Series Data'!$AM23,'Coincident Peak'!$D$5:$I$16,3),BatteryPower)) -> 0 | EQ23: 6,400.30 | ER23: 6,400.30 | ES23: 6,400.30 | EU23: =IF($BV23=0,0,IF($CC23=0,VLOOKUP('Time Series Data'!$AM23,'Coincident Peak'!$D$5:$I$16,3),BatteryPower)) -> 0 | EV23: 0 | EX23: 0 | EY23: 0 | EZ23: 6,400.30 | FA23: 6,400.30 | FB23: 6,400.30 | FD23: 0 | FE23: 0 | FF23: 0 | FH23: 0 | FI23: 6,400.30 | FJ23: 6,400.30 | FK23: 6,400.30 | FL23: 0 | FN23: 0 | FO23: 0 | FP23: 6,400.30 | FQ23: 6,400.30 | FR23: 6,400.30
B24: =DATE(Load_Profile_Year,E24,F24)+TIME(G24,0,0) -> 2020-01-01T17:00:00 | C24: 2020-01-01 | D24: 81,184 | E24: 1 | F24: 1 | G24: 17 | H24: 3 | I24: =INDEX(Values!$V$6:$AG$29,'Time Series Data'!G24+1,'Time Series Data'!E24) -> 0 | J24: 17.5 | K24: 81184 | L24: 0 | M24: 0 | N24: 54.187805 | O24: 0 | P24: 94.303124 | T24: 0.00 | U24: 0.00 | V24: 81,130 | W24: =IF(V24+O24>VLOOKUP(E24,'Coincident Peak'!$C$22:$I$33,7),0,1) -> 1 | X24: =IF((AND(E24=MONTH(VLOOKUP('Time Series Data'!E24,'Coincident Peak'!$C$5:$D$16,2)),F24=DAY(VLOOKUP('Time Series Data'!E24,'Coincident Peak'!$C$5:$D$16,2)),IF(AND(G24<=HOUR(VLOOKUP('Time Series Data'!E24,'Coincident Peak'!$C$5:$E$16,3))+Values!$E$5,G24>=HOUR(VLOOKUP('Time Series Data'!E24,'Coincident Peak'!$C$5:$E$16,3))-Values!$E$5),"TRUE","FALSE"))),BatteryPower,0) -> 0.00 | Y24: =IF((AND(E24=MONTH(VLOOKUP('Time Series Data'!E24,'Coincident Peak'!$C$5:$D$16,2)),F24=DAY(VLOOKUP('Time Series Data'!E24,'Coincident Peak'!$C$5:$D$16,2)))),0,N24) -> 54.19 | Z24: =IF((AND(E24=MONTH(VLOOKUP('Time Series Data'!E24,'Coincident Peak'!$C$5:$D$16,2)),F24=DAY(VLOOKUP('Time Series Data'!E24,'Coincident Peak'!$C$5:$D$16,2)),IF(AND(G24<=HOUR(VLOOKUP('Time Series Data'!E24,'Coincident Peak'!$C$5:$E$16,3))+Values!$E$5,G24>=HOUR(VLOOKUP('Time Series Data'!E24,'Coincident Peak'!$C$5:$E$16,3))-Values!$E$5),"TRUE","FALSE"))),BatteryPower,Y24) -> 54.19 | AA24: =IF((AND(E24=MONTH(VLOOKUP('Time Series Data'!E24,'Coincident Peak'!$C$5:$D$16,2)),F24=DAY(VLOOKUP('Time Series Data'!E24,'Coincident Peak'!$C$5:$D$16,2))-1)),VLOOKUP(E24,'Coincident Peak'!$C$5:$N$16,11)*Z24,Z24) -> 54.19 | AB24: =IF((AND(E24=MONTH(VLOOKUP('Time Series Data'!E24,'Coincident Peak'!$C$5:$D$16,2)),F24=DAY(VLOOKUP('Time Series Data'!E24,'Coincident Peak'!$C$5:$D$16,2))+1)),VLOOKUP(E24,'Coincident Peak'!$C$5:$N$16,12)*AA24,AA24) -> 54.19 | AC24: =IF((AND(E24=MONTH(VLOOKUP('Time Series Data'!E24,'Coincident Peak'!$C$5:$D$16,2)),F24=DAY(VLOOKUP('Time Series Data'!E24,'Coincident Peak'!$C$5:$D$16,2)))),0,O24) -> 0.00 | AD24: =IF((AND(E24=MONTH(VLOOKUP('Time Series Data'!E24,'Coincident Peak'!$C$5:$D$16,2)),F24=DAY(VLOOKUP('Time Series Data'!E24,'Coincident Peak'!$C$5:$D$16,2))-1)),VLOOKUP(E24,'Coincident Peak'!$C$5:$N$16,11)*AC24,AC24) -> 0.00 | AE24: =IF((AND(E24=MONTH(VLOOKUP('Time Series Data'!E24,'Coincident Peak'!$C$5:$D$16,2)),F24=DAY(VLOOKUP('Time Series Data'!E24,'Coincident Peak'!$C$5:$D$16,2))+1)),VLOOKUP(E24,'Coincident Peak'!$C$5:$N$16,12)*AD24,AD24) -> 0.00 | AF24: 81,130 | AG24: =IF((AND(E24=MONTH(VLOOKUP('Time Series Data'!E24,'Coincident Peak'!$C$5:$D$16,2)),F24=DAY(VLOOKUP('Time Series Data'!E24,'Coincident Peak'!$C$5:$D$16,2)))),U24,O24) -> 0.00 | AH24: 81,130 | AL24: 17 | AM24: 2020-01-18 | AN24: 0 | AO24: 0 | AP24: 0 | AQ24: 0 | AR24: 6,895.09 | AS24: 5,558.83 | AT24: =IF(ISNA(MATCH(AM24,'Coincident Peak'!$D$5:$D$16,0))=TRUE,0,SUMIFS($O$7:$O$8790,$F$7:$F$8790,DAY(AM24),$E$7:$E$8790,MONTH(AM24),$G$7:$G$8790,"<"&HOUR(VLOOKUP(AM24,'Coincident Peak'!$D$5:$E$16,2))-Values!$E$5)) -> 0 | AU24: 0 | AV24: 0 | AW24: 0 | AX24: 0 | AY24: =IF(ISNA(MATCH(AM24,'Coincident Peak'!$D$5:$D$16,0))=TRUE,0,SUMIFS($O$7:$O$8790,$F$7:$F$8790,DAY(AM24),$E$7:$E$8790,MONTH(AM24),$G$7:$G$8790,"<"&HOUR(VLOOKUP(AM24,'Coincident Peak'!$D$5:$E$16,2))-Values!$E$5,$I$7:$I$8790,1)) -> 0 | AZ24: 0 | BA24: 0 | BB24: 0 | BD24: 0 | BE24: 0 | BF24: 0 | BG24: =IF(IF(ISNA(MATCH(AM24,'Coincident Peak'!$D$5:$D$16,0))=TRUE,0,SUMIFS($O$7:$O$8790,$F$7:$F$8790,DAY(AM24),$E$7:$E$8790,MONTH(AM24),$G$7:$G$8790,"<"&HOUR(VLOOKUP(AM24,'Coincident Peak'!$D$5:$E$16,2))-Values!$E$5,$I$7:$I$8790,0))>(Effective_Battery_Capacity/Rndtrp_eff),(Effective_Battery_Capacity/Rndtrp_eff),IF(ISNA(MATCH(AM24,'Coincident Peak'!$D$5:$D$16,0))=TRUE,0,SUMIFS($O$7:$O$8790,$F$7:$F$8790,DAY(AM24),$E$7:$E$8790,MONTH(AM24),$G$7:$G$8790,"<"&HOUR(VLOOKUP(AM24,'Coincident Peak'!$D$5:$E$16,2))-Values!$E$5,$I$7:$I$8790,0))) -> 0 | BH24: =IF((IF(ISNA(MATCH(AM24,'Coincident Peak'!$D$5:$D$16,0))=TRUE,0,SUMIFS($O$7:$O$8790,$F$7:$F$8790,DAY(AM24),$E$7:$E$8790,MONTH(AM24),$G$7:$G$8790,"<"&HOUR(VLOOKUP(AM24,'Coincident Peak'!$D$5:$E$16,2))-Values!$E$5)))>(Effective_Battery_Capacity/Rndtrp_eff),(Effective_Battery_Capacity/Rndtrp_eff),(IF(ISNA(MATCH(AM24,'Coincident Peak'!$D$5:$D$16,0))=TRUE,0,SUMIFS($O$7:$O$8790,$F$7:$F$8790,DAY(AM24),$E$7:$E$8790,MONTH(AM24),$G$7:$G$8790,"<"&HOUR(VLOOKUP(AM24,'Coincident Peak'!$D$5:$E$16,2))-Values!$E$5)))) -> 0 | BI24: 0 | BJ24: 0 | BK24: =IF(WholesaleEnergyCost_2>PPACostPerKWh,(IF((SUMIFS('Time Series Data'!$AG$7:$AG$8790,'Time Series Data'!$I$7:$I$8790,1,$F$7:$F$8790,DAY(AM24),$E$7:$E$8790,MONTH(AM24))-BP24)>(Effective_Battery_Capacity/Rndtrp_eff),(Effective_Battery_Capacity/Rndtrp_eff),(SUMIFS('Time Series Data'!$AG$7:$AG$8790,'Time Series Data'!$I$7:$I$8790,1,$F$7:$F$8790,DAY(AM24),$E$7:$E$8790,MONTH(AM24))))-BP24),0) -> 0 | BL24: 0 | BM24: =SUMIFS('Time Series Data'!$AG$7:$AG$8790,$F$7:$F$8790,DAY(AM24),$E$7:$E$8790,MONTH(AM24),'Time Series Data'!$I$7:$I$8790,1)-BL24-BP24 -> 6,020 | BN24: =SUMIFS('Time Series Data'!$AG$7:$AG$8790,'Time Series Data'!$I$7:$I$8790,0,$F$7:$F$8790,DAY(AM24),$E$7:$E$8790,MONTH(AM24))-BQ24 -> 875 | BO24: =IF((IF(ISNA(MATCH(AM24,'Coincident Peak'!$D$5:$D$16,0))=TRUE,0,SUMIFS($U$7:$U$8790,$F$7:$F$8790,DAY(AM24),$E$7:$E$8790,MONTH(AM24),$G$7:$G$8790,"<"&HOUR(VLOOKUP(AM24,'Coincident Peak'!$D$5:$E$16,2))-Values!$E$5)))>(Effective_Battery_Capacity/Rndtrp_eff),(Effective_Battery_Capacity/Rndtrp_eff),(IF(ISNA(MATCH(AM24,'Coincident Peak'!$D$5:$D$16,0))=TRUE,0,SUMIFS($U$7:$U$8790,$F$7:$F$8790,DAY(AM24),$E$7:$E$8790,MONTH(AM24),$G$7:$G$8790,"<"&HOUR(VLOOKUP(AM24,'Coincident Peak'!$D$5:$E$16,2))-Values!$E$5)))) -> 0 | BP24: =IF(WholesaleEnergyCost_2>PPACostPerKWh,(IF((IF(ISNA(MATCH(AM24,'Coincident Peak'!$D$5:$D$16,0))=TRUE,0,SUMIFS($U$7:$U$8790,$F$7:$F$8790,DAY(AM24),$E$7:$E$8790,MONTH(AM24),$G$7:$G$8790,"<"&HOUR(VLOOKUP(AM24,'Coincident Peak'!$D$5:$E$16,2))-Values!$E$5,$I$7:$I$8790,1)))>(Effective_Battery_Capacity/Rndtrp_eff),(Effective_Battery_Capacity/Rndtrp_eff),(IF(ISNA(MATCH(AM24,'Coincident Peak'!$D$5:$D$16,0))=TRUE,0,SUMIFS($U$7:$U$8790,$F$7:$F$8790,DAY(AM24),$E$7:$E$8790,MONTH(AM24),$G$7:$G$8790,"<"&HOUR(VLOOKUP(AM24,'Coincident Peak'!$D$5:$E$16,2))-Values!$E$5,$I$7:$I$8790,1))))),0) -> 0 | BQ24: =IF(WholesaleEnergyCost_1>PPACostPerKWh,(IF((IF(ISNA(MATCH(AM24,'Coincident Peak'!$D$5:$D$16,0))=TRUE,0,SUMIFS($U$7:$U$8790,$F$7:$F$8790,DAY(AM24),$E$7:$E$8790,MONTH(AM24),$G$7:$G$8790,"<"&HOUR(VLOOKUP(AM24,'Coincident Peak'!$D$5:$E$16,2))-Values!$E$5,$I$7:$I$8790,0)))>(Effective_Battery_Capacity/Rndtrp_eff),(Effective_Battery_Capacity/Rndtrp_eff),(IF(ISNA(MATCH(AM24,'Coincident Peak'!$D$5:$D$16,0))=TRUE,0,SUMIFS($U$7:$U$8790,$F$7:$F$8790,DAY(AM24),$E$7:$E$8790,MONTH(AM24),$G$7:$G$8790,"<"&HOUR(VLOOKUP(AM24,'Coincident Peak'!$D$5:$E$16,2))-Values!$E$5,$I$7:$I$8790,0))))),0) -> 0 | BR24: 0 | BS24: 6,020 | BT24: 0 | BV24: =IF(ISNA(MATCH(AM24,'Coincident Peak'!$D$5:$D$16,0))=TRUE,0,1) -> 0 | BW24: 0 | BX24: 0 | BY24: 0 | BZ24: 0 | CA24: 0 | CB24: 1 | CC24: 1 | CD24: =IF(ISNA(MATCH(AM24,'Coincident Peak'!$D$5:$D$16,0))=TRUE,1,0) -> 1 | CE24: =VLOOKUP(MONTH($AM24),'Value Stacking Basis'!$B$37:$D$48,3) -> 3 | CF24: =VLOOKUP(MONTH($AM24),'Value Stacking Basis'!$B$37:$F$48,5) -> 2 | CG24: 1 | CK24: 5,558.83 | CL24: 5,558.83 | CM24: 0 | CN24: 0 | CO24: 24.00 | CQ24: 24.00 | CR24: 0 | CS24: 0 | CT24: 0 | CU24: 0 | CW24: =IF($BV24=0,0,IF($CB24=0,INDEX('Time Series Data'!N$7:N$8790,MATCH(1,(MONTH($AM24)='Time Series Data'!$E$7:$E$8790)*(DAY($AM24)='Time Series Data'!$F$7:$F$8790)*(HOUR(VLOOKUP('Time Series Data'!$AM24,'Coincident Peak'!$D$5:$I$16,2))='Time Series Data'!$G$7:$G$8790),0)),IF(($AT24*Rndtrp_eff)>Effective_Battery_Capacity,BatteryPower,(($AT24*Rndtrp_eff)/Effective_Battery_Capacity)*BatteryPower))) -> 0 | CX24: 5,558.83 | CY24: 5,558.83 | CZ24: 0 | DA24: 0 | DC24: =IF($BV24=0,0,IF($CB24=0,INDEX('Time Series Data'!N$7:N$8790,MATCH(1,(MONTH($AM24)='Time Series Data'!$E$7:$E$8790)*(DAY($AM24)='Time Series Data'!$F$7:$F$8790)*(HOUR(VLOOKUP('Time Series Data'!$AM24,'Coincident Peak'!$D$5:$I$16,2))='Time Series Data'!$G$7:$G$8790),0)),IF(($AT24*Rndtrp_eff)>Effective_Battery_Capacity,BatteryPower,(($AT24*Rndtrp_eff)/Effective_Battery_Capacity)*BatteryPower))) -> 0 | DD24: 24.00 | DF24: 0 | DG24: 0 | DH24: 5,559 | DI24: 5,558.83 | DJ24: 0 | DK24: 0 | DM24: 0 | DN24: 0 | DO24: 5,559 | DP24: 24 | DR24: 0 | DS24: 5,558.83 | DT24: 0 | DU24: 0 | DV24: 24.00 | DX24: 0 | DY24: 24.00 | DZ24: 0 | EA24: 0 | EB24: 0 | EF24: 6,400.30 | EG24: 0 | EH24: 0 | EI24: 24.00 | EK24: 24.00 | EL24: 0 | EM24: 0 | EN24: 0 | EP24: =IF($BV24=0,0,IF($CC24=0,VLOOKUP('Time Series Data'!$AM24,'Coincident Peak'!$D$5:$I$16,3),BatteryPower)) -> 0 | EQ24: 6,400.30 | ER24: 0 | ES24: 0 | EU24: =IF($BV24=0,0,IF($CC24=0,VLOOKUP('Time Series Data'!$AM24,'Coincident Peak'!$D$5:$I$16,3),BatteryPower)) -> 0 | EV24: 24.00 | EX24: 0 | EY24: 0 | EZ24: 6,400.30 | FA24: 0 | FB24: 0 | FD24: 0 | FE24: 0 | FF24: 24 | FH24: 0 | FI24: 6,400.30 | FJ24: 0 | FK24: 0 | FL24: 24.00 | FN24: 0 | FO24: 24.00 | FP24: 0 | FQ24: 0 | FR24: 0
B25: =DATE(Load_Profile_Year,E25,F25)+TIME(G25,0,0) -> 2020-01-01T18:00:00 | C25: 2020-01-01 | D25: 80,607 | E25: 1 | F25: 1 | G25: 18 | H25: 3 | I25: =INDEX(Values!$V$6:$AG$29,'Time Series Data'!G25+1,'Time Series Data'!E25) -> 1 | J25: 18.5 | K25: 80607 | L25: 0 | M25: 0 | N25: 0 | O25: 0 | P25: 94.303124 | T25: 0.00 | U25: 0.00 | V25: 80,607 | W25: =IF(V25+O25>VLOOKUP(E25,'Coincident Peak'!$C$22:$I$33,7),0,1) -> 1 | X25: =IF((AND(E25=MONTH(VLOOKUP('Time Series Data'!E25,'Coincident Peak'!$C$5:$D$16,2)),F25=DAY(VLOOKUP('Time Series Data'!E25,'Coincident Peak'!$C$5:$D$16,2)),IF(AND(G25<=HOUR(VLOOKUP('Time Series Data'!E25,'Coincident Peak'!$C$5:$E$16,3))+Values!$E$5,G25>=HOUR(VLOOKUP('Time Series Data'!E25,'Coincident Peak'!$C$5:$E$16,3))-Values!$E$5),"TRUE","FALSE"))),BatteryPower,0) -> 0.00 | Y25: =IF((AND(E25=MONTH(VLOOKUP('Time Series Data'!E25,'Coincident Peak'!$C$5:$D$16,2)),F25=DAY(VLOOKUP('Time Series Data'!E25,'Coincident Peak'!$C$5:$D$16,2)))),0,N25) -> 0.00 | Z25: =IF((AND(E25=MONTH(VLOOKUP('Time Series Data'!E25,'Coincident Peak'!$C$5:$D$16,2)),F25=DAY(VLOOKUP('Time Series Data'!E25,'Coincident Peak'!$C$5:$D$16,2)),IF(AND(G25<=HOUR(VLOOKUP('Time Series Data'!E25,'Coincident Peak'!$C$5:$E$16,3))+Values!$E$5,G25>=HOUR(VLOOKUP('Time Series Data'!E25,'Coincident Peak'!$C$5:$E$16,3))-Values!$E$5),"TRUE","FALSE"))),BatteryPower,Y25) -> 0.00 | AA25: =IF((AND(E25=MONTH(VLOOKUP('Time Series Data'!E25,'Coincident Peak'!$C$5:$D$16,2)),F25=DAY(VLOOKUP('Time Series Data'!E25,'Coincident Peak'!$C$5:$D$16,2))-1)),VLOOKUP(E25,'Coincident Peak'!$C$5:$N$16,11)*Z25,Z25) -> 0.00 | AB25: =IF((AND(E25=MONTH(VLOOKUP('Time Series Data'!E25,'Coincident Peak'!$C$5:$D$16,2)),F25=DAY(VLOOKUP('Time Series Data'!E25,'Coincident Peak'!$C$5:$D$16,2))+1)),VLOOKUP(E25,'Coincident Peak'!$C$5:$N$16,12)*AA25,AA25) -> 0.00 | AC25: =IF((AND(E25=MONTH(VLOOKUP('Time Series Data'!E25,'Coincident Peak'!$C$5:$D$16,2)),F25=DAY(VLOOKUP('Time Series Data'!E25,'Coincident Peak'!$C$5:$D$16,2)))),0,O25) -> 0.00 | AD25: =IF((AND(E25=MONTH(VLOOKUP('Time Series Data'!E25,'Coincident Peak'!$C$5:$D$16,2)),F25=DAY(VLOOKUP('Time Series Data'!E25,'Coincident Peak'!$C$5:$D$16,2))-1)),VLOOKUP(E25,'Coincident Peak'!$C$5:$N$16,11)*AC25,AC25) -> 0.00 | AE25: =IF((AND(E25=MONTH(VLOOKUP('Time Series Data'!E25,'Coincident Peak'!$C$5:$D$16,2)),F25=DAY(VLOOKUP('Time Series Data'!E25,'Coincident Peak'!$C$5:$D$16,2))+1)),VLOOKUP(E25,'Coincident Peak'!$C$5:$N$16,12)*AD25,AD25) -> 0.00 | AF25: 80,607 | AG25: =IF((AND(E25=MONTH(VLOOKUP('Time Series Data'!E25,'Coincident Peak'!$C$5:$D$16,2)),F25=DAY(VLOOKUP('Time Series Data'!E25,'Coincident Peak'!$C$5:$D$16,2)))),U25,O25) -> 0.00 | AH25: 80,607 | AL25: 18 | AM25: 2020-01-19 | AN25: 0 | AO25: 0 | AP25: 0 | AQ25: 0 | AR25: 3,487.80 | AS25: 2,979.58 | AT25: =IF(ISNA(MATCH(AM25,'Coincident Peak'!$D$5:$D$16,0))=TRUE,0,SUMIFS($O$7:$O$8790,$F$7:$F$8790,DAY(AM25),$E$7:$E$8790,MONTH(AM25),$G$7:$G$8790,"<"&HOUR(VLOOKUP(AM25,'Coincident Peak'!$D$5:$E$16,2))-Values!$E$5)) -> 0 | AU25: 0 | AV25: 0 | AW25: 0 | AX25: 0 | AY25: =IF(ISNA(MATCH(AM25,'Coincident Peak'!$D$5:$D$16,0))=TRUE,0,SUMIFS($O$7:$O$8790,$F$7:$F$8790,DAY(AM25),$E$7:$E$8790,MONTH(AM25),$G$7:$G$8790,"<"&HOUR(VLOOKUP(AM25,'Coincident Peak'!$D$5:$E$16,2))-Values!$E$5,$I$7:$I$8790,1)) -> 0 | AZ25: 0 | BA25: 0 | BB25: 0 | BD25: 0 | BE25: 0 | BF25: 0 | BG25: =IF(IF(ISNA(MATCH(AM25,'Coincident Peak'!$D$5:$D$16,0))=TRUE,0,SUMIFS($O$7:$O$8790,$F$7:$F$8790,DAY(AM25),$E$7:$E$8790,MONTH(AM25),$G$7:$G$8790,"<"&HOUR(VLOOKUP(AM25,'Coincident Peak'!$D$5:$E$16,2))-Values!$E$5,$I$7:$I$8790,0))>(Effective_Battery_Capacity/Rndtrp_eff),(Effective_Battery_Capacity/Rndtrp_eff),IF(ISNA(MATCH(AM25,'Coincident Peak'!$D$5:$D$16,0))=TRUE,0,SUMIFS($O$7:$O$8790,$F$7:$F$8790,DAY(AM25),$E$7:$E$8790,MONTH(AM25),$G$7:$G$8790,"<"&HOUR(VLOOKUP(AM25,'Coincident Peak'!$D$5:$E$16,2))-Values!$E$5,$I$7:$I$8790,0))) -> 0 | BH25: =IF((IF(ISNA(MATCH(AM25,'Coincident Peak'!$D$5:$D$16,0))=TRUE,0,SUMIFS($O$7:$O$8790,$F$7:$F$8790,DAY(AM25),$E$7:$E$8790,MONTH(AM25),$G$7:$G$8790,"<"&HOUR(VLOOKUP(AM25,'Coincident Peak'!$D$5:$E$16,2))-Values!$E$5)))>(Effective_Battery_Capacity/Rndtrp_eff),(Effective_Battery_Capacity/Rndtrp_eff),(IF(ISNA(MATCH(AM25,'Coincident Peak'!$D$5:$D$16,0))=TRUE,0,SUMIFS($O$7:$O$8790,$F$7:$F$8790,DAY(AM25),$E$7:$E$8790,MONTH(AM25),$G$7:$G$8790,"<"&HOUR(VLOOKUP(AM25,'Coincident Peak'!$D$5:$E$16,2))-Values!$E$5)))) -> 0 | BI25: 0 | BJ25: 0 | BK25: =IF(WholesaleEnergyCost_2>PPACostPerKWh,(IF((SUMIFS('Time Series Data'!$AG$7:$AG$8790,'Time Series Data'!$I$7:$I$8790,1,$F$7:$F$8790,DAY(AM25),$E$7:$E$8790,MONTH(AM25))-BP25)>(Effective_Battery_Capacity/Rndtrp_eff),(Effective_Battery_Capacity/Rndtrp_eff),(SUMIFS('Time Series Data'!$AG$7:$AG$8790,'Time Series Data'!$I$7:$I$8790,1,$F$7:$F$8790,DAY(AM25),$E$7:$E$8790,MONTH(AM25))))-BP25),0) -> 0 | BL25: 0 | BM25: =SUMIFS('Time Series Data'!$AG$7:$AG$8790,$F$7:$F$8790,DAY(AM25),$E$7:$E$8790,MONTH(AM25),'Time Series Data'!$I$7:$I$8790,1)-BL25-BP25 -> 3,227 | BN25: =SUMIFS('Time Series Data'!$AG$7:$AG$8790,'Time Series Data'!$I$7:$I$8790,0,$F$7:$F$8790,DAY(AM25),$E$7:$E$8790,MONTH(AM25))-BQ25 -> 261 | BO25: =IF((IF(ISNA(MATCH(AM25,'Coincident Peak'!$D$5:$D$16,0))=TRUE,0,SUMIFS($U$7:$U$8790,$F$7:$F$8790,DAY(AM25),$E$7:$E$8790,MONTH(AM25),$G$7:$G$8790,"<"&HOUR(VLOOKUP(AM25,'Coincident Peak'!$D$5:$E$16,2))-Values!$E$5)))>(Effective_Battery_Capacity/Rndtrp_eff),(Effective_Battery_Capacity/Rndtrp_eff),(IF(ISNA(MATCH(AM25,'Coincident Peak'!$D$5:$D$16,0))=TRUE,0,SUMIFS($U$7:$U$8790,$F$7:$F$8790,DAY(AM25),$E$7:$E$8790,MONTH(AM25),$G$7:$G$8790,"<"&HOUR(VLOOKUP(AM25,'Coincident Peak'!$D$5:$E$16,2))-Values!$E$5)))) -> 0 | BP25: =IF(WholesaleEnergyCost_2>PPACostPerKWh,(IF((IF(ISNA(MATCH(AM25,'Coincident Peak'!$D$5:$D$16,0))=TRUE,0,SUMIFS($U$7:$U$8790,$F$7:$F$8790,DAY(AM25),$E$7:$E$8790,MONTH(AM25),$G$7:$G$8790,"<"&HOUR(VLOOKUP(AM25,'Coincident Peak'!$D$5:$E$16,2))-Values!$E$5,$I$7:$I$8790,1)))>(Effective_Battery_Capacity/Rndtrp_eff),(Effective_Battery_Capacity/Rndtrp_eff),(IF(ISNA(MATCH(AM25,'Coincident Peak'!$D$5:$D$16,0))=TRUE,0,SUMIFS($U$7:$U$8790,$F$7:$F$8790,DAY(AM25),$E$7:$E$8790,MONTH(AM25),$G$7:$G$8790,"<"&HOUR(VLOOKUP(AM25,'Coincident Peak'!$D$5:$E$16,2))-Values!$E$5,$I$7:$I$8790,1))))),0) -> 0 | BQ25: =IF(WholesaleEnergyCost_1>PPACostPerKWh,(IF((IF(ISNA(MATCH(AM25,'Coincident Peak'!$D$5:$D$16,0))=TRUE,0,SUMIFS($U$7:$U$8790,$F$7:$F$8790,DAY(AM25),$E$7:$E$8790,MONTH(AM25),$G$7:$G$8790,"<"&HOUR(VLOOKUP(AM25,'Coincident Peak'!$D$5:$E$16,2))-Values!$E$5,$I$7:$I$8790,0)))>(Effective_Battery_Capacity/Rndtrp_eff),(Effective_Battery_Capacity/Rndtrp_eff),(IF(ISNA(MATCH(AM25,'Coincident Peak'!$D$5:$D$16,0))=TRUE,0,SUMIFS($U$7:$U$8790,$F$7:$F$8790,DAY(AM25),$E$7:$E$8790,MONTH(AM25),$G$7:$G$8790,"<"&HOUR(VLOOKUP(AM25,'Coincident Peak'!$D$5:$E$16,2))-Values!$E$5,$I$7:$I$8790,0))))),0) -> 0 | BR25: 0 | BS25: 3,227 | BT25: 0 | BV25: =IF(ISNA(MATCH(AM25,'Coincident Peak'!$D$5:$D$16,0))=TRUE,0,1) -> 0 | BW25: 0 | BX25: 0 | BY25: 0 | BZ25: 0 | CA25: 0 | CB25: 1 | CC25: 1 | CD25: =IF(ISNA(MATCH(AM25,'Coincident Peak'!$D$5:$D$16,0))=TRUE,1,0) -> 1 | CE25: =VLOOKUP(MONTH($AM25),'Value Stacking Basis'!$B$37:$D$48,3) -> 3 | CF25: =VLOOKUP(MONTH($AM25),'Value Stacking Basis'!$B$37:$F$48,5) -> 2 | CG25: 1 | CK25: 2,979.58 | CL25: 2,979.58 | CM25: 0 | CN25: 0 | CO25: 24.00 | CQ25: 24.00 | CR25: 0 | CS25: 0 | CT25: 0 | CU25: 0 | CW25: =IF($BV25=0,0,IF($CB25=0,INDEX('Time Series Data'!N$7:N$8790,MATCH(1,(MONTH($AM25)='Time Series Data'!$E$7:$E$8790)*(DAY($AM25)='Time Series Data'!$F$7:$F$8790)*(HOUR(VLOOKUP('Time Series Data'!$AM25,'Coincident Peak'!$D$5:$I$16,2))='Time Series Data'!$G$7:$G$8790),0)),IF(($AT25*Rndtrp_eff)>Effective_Battery_Capacity,BatteryPower,(($AT25*Rndtrp_eff)/Effective_Battery_Capacity)*BatteryPower))) -> 0 | CX25: 2,979.58 | CY25: 2,979.58 | CZ25: 0 | DA25: 0 | DC25: =IF($BV25=0,0,IF($CB25=0,INDEX('Time Series Data'!N$7:N$8790,MATCH(1,(MONTH($AM25)='Time Series Data'!$E$7:$E$8790)*(DAY($AM25)='Time Series Data'!$F$7:$F$8790)*(HOUR(VLOOKUP('Time Series Data'!$AM25,'Coincident Peak'!$D$5:$I$16,2))='Time Series Data'!$G$7:$G$8790),0)),IF(($AT25*Rndtrp_eff)>Effective_Battery_Capacity,BatteryPower,(($AT25*Rndtrp_eff)/Effective_Battery_Capacity)*BatteryPower))) -> 0 | DD25: 24.00 | DF25: 0 | DG25: 0 | DH25: 2,980 | DI25: 2,979.58 | DJ25: 0 | DK25: 0 | DM25: 0 | DN25: 0 | DO25: 2,980 | DP25: 24 | DR25: 0 | DS25: 2,979.58 | DT25: 0 | DU25: 0 | DV25: 24.00 | DX25: 0 | DY25: 24.00 | DZ25: 0 | EA25: 0 | EB25: 0 | EF25: 6,400.30 | EG25: 0 | EH25: 0 | EI25: 24.00 | EK25: 24.00 | EL25: 0 | EM25: 0 | EN25: 0 | EP25: =IF($BV25=0,0,IF($CC25=0,VLOOKUP('Time Series Data'!$AM25,'Coincident Peak'!$D$5:$I$16,3),BatteryPower)) -> 0 | EQ25: 6,400.30 | ER25: 0 | ES25: 0 | EU25: =IF($BV25=0,0,IF($CC25=0,VLOOKUP('Time Series Data'!$AM25,'Coincident Peak'!$D$5:$I$16,3),BatteryPower)) -> 0 | EV25: 24.00 | EX25: 0 | EY25: 0 | EZ25: 6,400.30 | FA25: 0 | FB25: 0 | FD25: 0 | FE25: 0 | FF25: 24 | FH25: 0 | FI25: 6,400.30 | FJ25: 0 | FK25: 0 | FL25: 24.00 | FN25: 0 | FO25: 24.00 | FP25: 0 | FQ25: 0 | FR25: 0
B26: =DATE(Load_Profile_Year,E26,F26)+TIME(G26,0,0) -> 2020-01-01T19:00:00 | C26: 2020-01-01 | D26: 79,467 | E26: 1 | F26: 1 | G26: 19 | H26: 3 | I26: =INDEX(Values!$V$6:$AG$29,'Time Series Data'!G26+1,'Time Series Data'!E26) -> 1 | J26: 19.5 | K26: 79467 | L26: 0 | M26: 0 | N26: 0 | O26: 0 | P26: 94.303124 | T26: 0.00 | U26: 0.00 | V26: 79,467 | W26: =IF(V26+O26>VLOOKUP(E26,'Coincident Peak'!$C$22:$I$33,7),0,1) -> 1 | X26: =IF((AND(E26=MONTH(VLOOKUP('Time Series Data'!E26,'Coincident Peak'!$C$5:$D$16,2)),F26=DAY(VLOOKUP('Time Series Data'!E26,'Coincident Peak'!$C$5:$D$16,2)),IF(AND(G26<=HOUR(VLOOKUP('Time Series Data'!E26,'Coincident Peak'!$C$5:$E$16,3))+Values!$E$5,G26>=HOUR(VLOOKUP('Time Series Data'!E26,'Coincident Peak'!$C$5:$E$16,3))-Values!$E$5),"TRUE","FALSE"))),BatteryPower,0) -> 0.00 | Y26: =IF((AND(E26=MONTH(VLOOKUP('Time Series Data'!E26,'Coincident Peak'!$C$5:$D$16,2)),F26=DAY(VLOOKUP('Time Series Data'!E26,'Coincident Peak'!$C$5:$D$16,2)))),0,N26) -> 0.00 | Z26: =IF((AND(E26=MONTH(VLOOKUP('Time Series Data'!E26,'Coincident Peak'!$C$5:$D$16,2)),F26=DAY(VLOOKUP('Time Series Data'!E26,'Coincident Peak'!$C$5:$D$16,2)),IF(AND(G26<=HOUR(VLOOKUP('Time Series Data'!E26,'Coincident Peak'!$C$5:$E$16,3))+Values!$E$5,G26>=HOUR(VLOOKUP('Time Series Data'!E26,'Coincident Peak'!$C$5:$E$16,3))-Values!$E$5),"TRUE","FALSE"))),BatteryPower,Y26) -> 0.00 | AA26: =IF((AND(E26=MONTH(VLOOKUP('Time Series Data'!E26,'Coincident Peak'!$C$5:$D$16,2)),F26=DAY(VLOOKUP('Time Series Data'!E26,'Coincident Peak'!$C$5:$D$16,2))-1)),VLOOKUP(E26,'Coincident Peak'!$C$5:$N$16,11)*Z26,Z26) -> 0.00 | AB26: =IF((AND(E26=MONTH(VLOOKUP('Time Series Data'!E26,'Coincident Peak'!$C$5:$D$16,2)),F26=DAY(VLOOKUP('Time Series Data'!E26,'Coincident Peak'!$C$5:$D$16,2))+1)),VLOOKUP(E26,'Coincident Peak'!$C$5:$N$16,12)*AA26,AA26) -> 0.00 | AC26: =IF((AND(E26=MONTH(VLOOKUP('Time Series Data'!E26,'Coincident Peak'!$C$5:$D$16,2)),F26=DAY(VLOOKUP('Time Series Data'!E26,'Coincident Peak'!$C$5:$D$16,2)))),0,O26) -> 0.00 | AD26: =IF((AND(E26=MONTH(VLOOKUP('Time Series Data'!E26,'Coincident Peak'!$C$5:$D$16,2)),F26=DAY(VLOOKUP('Time Series Data'!E26,'Coincident Peak'!$C$5:$D$16,2))-1)),VLOOKUP(E26,'Coincident Peak'!$C$5:$N$16,11)*AC26,AC26) -> 0.00 | AE26: =IF((AND(E26=MONTH(VLOOKUP('Time Series Data'!E26,'Coincident Peak'!$C$5:$D$16,2)),F26=DAY(VLOOKUP('Time Series Data'!E26,'Coincident Peak'!$C$5:$D$16,2))+1)),VLOOKUP(E26,'Coincident Peak'!$C$5:$N$16,12)*AD26,AD26) -> 0.00 | AF26: 79,467 | AG26: =IF((AND(E26=MONTH(VLOOKUP('Time Series Data'!E26,'Coincident Peak'!$C$5:$D$16,2)),F26=DAY(VLOOKUP('Time Series Data'!E26,'Coincident Peak'!$C$5:$D$16,2)))),U26,O26) -> 0.00 | AH26: 79,467 | AL26: 19 | AM26: 2020-01-20 | AN26: 1 | AO26: 0 | AP26: 0 | AQ26: 0 | AR26: 9,649.71 | AS26: 7,061.67 | AT26: =IF(ISNA(MATCH(AM26,'Coincident Peak'!$D$5:$D$16,0))=TRUE,0,SUMIFS($O$7:$O$8790,$F$7:$F$8790,DAY(AM26),$E$7:$E$8790,MONTH(AM26),$G$7:$G$8790,"<"&HOUR(VLOOKUP(AM26,'Coincident Peak'!$D$5:$E$16,2))-Values!$E$5)) -> 0 | AU26: 0 | AV26: 0 | AW26: 0 | AX26: 2,002 | AY26: =IF(ISNA(MATCH(AM26,'Coincident Peak'!$D$5:$D$16,0))=TRUE,0,SUMIFS($O$7:$O$8790,$F$7:$F$8790,DAY(AM26),$E$7:$E$8790,MONTH(AM26),$G$7:$G$8790,"<"&HOUR(VLOOKUP(AM26,'Coincident Peak'!$D$5:$E$16,2))-Values!$E$5,$I$7:$I$8790,1)) -> 0 | AZ26: 2,002 | BA26: 2,002 | BB26: 0 | BD26: 2,002 | BE26: 6,932 | BF26: 0 | BG26: =IF(IF(ISNA(MATCH(AM26,'Coincident Peak'!$D$5:$D$16,0))=TRUE,0,SUMIFS($O$7:$O$8790,$F$7:$F$8790,DAY(AM26),$E$7:$E$8790,MONTH(AM26),$G$7:$G$8790,"<"&HOUR(VLOOKUP(AM26,'Coincident Peak'!$D$5:$E$16,2))-Values!$E$5,$I$7:$I$8790,0))>(Effective_Battery_Capacity/Rndtrp_eff),(Effective_Battery_Capacity/Rndtrp_eff),IF(ISNA(MATCH(AM26,'Coincident Peak'!$D$5:$D$16,0))=TRUE,0,SUMIFS($O$7:$O$8790,$F$7:$F$8790,DAY(AM26),$E$7:$E$8790,MONTH(AM26),$G$7:$G$8790,"<"&HOUR(VLOOKUP(AM26,'Coincident Peak'!$D$5:$E$16,2))-Values!$E$5,$I$7:$I$8790,0))) -> 0 | BH26: =IF((IF(ISNA(MATCH(AM26,'Coincident Peak'!$D$5:$D$16,0))=TRUE,0,SUMIFS($O$7:$O$8790,$F$7:$F$8790,DAY(AM26),$E$7:$E$8790,MONTH(AM26),$G$7:$G$8790,"<"&HOUR(VLOOKUP(AM26,'Coincident Peak'!$D$5:$E$16,2))-Values!$E$5)))>(Effective_Battery_Capacity/Rndtrp_eff),(Effective_Battery_Capacity/Rndtrp_eff),(IF(ISNA(MATCH(AM26,'Coincident Peak'!$D$5:$D$16,0))=TRUE,0,SUMIFS($O$7:$O$8790,$F$7:$F$8790,DAY(AM26),$E$7:$E$8790,MONTH(AM26),$G$7:$G$8790,"<"&HOUR(VLOOKUP(AM26,'Coincident Peak'!$D$5:$E$16,2))-Values!$E$5)))) -> 0 | BI26: 0 | BJ26: 0 | BK26: =IF(WholesaleEnergyCost_2>PPACostPerKWh,(IF((SUMIFS('Time Series Data'!$AG$7:$AG$8790,'Time Series Data'!$I$7:$I$8790,1,$F$7:$F$8790,DAY(AM26),$E$7:$E$8790,MONTH(AM26))-BP26)>(Effective_Battery_Capacity/Rndtrp_eff),(Effective_Battery_Capacity/Rndtrp_eff),(SUMIFS('Time Series Data'!$AG$7:$AG$8790,'Time Series Data'!$I$7:$I$8790,1,$F$7:$F$8790,DAY(AM26),$E$7:$E$8790,MONTH(AM26))))-BP26),0) -> 0 | BL26: 0 | BM26: =SUMIFS('Time Series Data'!$AG$7:$AG$8790,$F$7:$F$8790,DAY(AM26),$E$7:$E$8790,MONTH(AM26),'Time Series Data'!$I$7:$I$8790,1)-BL26-BP26 -> 7,648 | BN26: =SUMIFS('Time Series Data'!$AG$7:$AG$8790,'Time Series Data'!$I$7:$I$8790,0,$F$7:$F$8790,DAY(AM26),$E$7:$E$8790,MONTH(AM26))-BQ26 -> 2,002 | BO26: =IF((IF(ISNA(MATCH(AM26,'Coincident Peak'!$D$5:$D$16,0))=TRUE,0,SUMIFS($U$7:$U$8790,$F$7:$F$8790,DAY(AM26),$E$7:$E$8790,MONTH(AM26),$G$7:$G$8790,"<"&HOUR(VLOOKUP(AM26,'Coincident Peak'!$D$5:$E$16,2))-Values!$E$5)))>(Effective_Battery_Capacity/Rndtrp_eff),(Effective_Battery_Capacity/Rndtrp_eff),(IF(ISNA(MATCH(AM26,'Coincident Peak'!$D$5:$D$16,0))=TRUE,0,SUMIFS($U$7:$U$8790,$F$7:$F$8790,DAY(AM26),$E$7:$E$8790,MONTH(AM26),$G$7:$G$8790,"<"&HOUR(VLOOKUP(AM26,'Coincident Peak'!$D$5:$E$16,2))-Values!$E$5)))) -> 0 | BP26: =IF(WholesaleEnergyCost_2>PPACostPerKWh,(IF((IF(ISNA(MATCH(AM26,'Coincident Peak'!$D$5:$D$16,0))=TRUE,0,SUMIFS($U$7:$U$8790,$F$7:$F$8790,DAY(AM26),$E$7:$E$8790,MONTH(AM26),$G$7:$G$8790,"<"&HOUR(VLOOKUP(AM26,'Coincident Peak'!$D$5:$E$16,2))-Values!$E$5,$I$7:$I$8790,1)))>(Effective_Battery_Capacity/Rndtrp_eff),(Effective_Battery_Capacity/Rndtrp_eff),(IF(ISNA(MATCH(AM26,'Coincident Peak'!$D$5:$D$16,0))=TRUE,0,SUMIFS($U$7:$U$8790,$F$7:$F$8790,DAY(AM26),$E$7:$E$8790,MONTH(AM26),$G$7:$G$8790,"<"&HOUR(VLOOKUP(AM26,'Coincident Peak'!$D$5:$E$16,2))-Values!$E$5,$I$7:$I$8790,1))))),0) -> 0 | BQ26: =IF(WholesaleEnergyCost_1>PPACostPerKWh,(IF((IF(ISNA(MATCH(AM26,'Coincident Peak'!$D$5:$D$16,0))=TRUE,0,SUMIFS($U$7:$U$8790,$F$7:$F$8790,DAY(AM26),$E$7:$E$8790,MONTH(AM26),$G$7:$G$8790,"<"&HOUR(VLOOKUP(AM26,'Coincident Peak'!$D$5:$E$16,2))-Values!$E$5,$I$7:$I$8790,0)))>(Effective_Battery_Capacity/Rndtrp_eff),(Effective_Battery_Capacity/Rndtrp_eff),(IF(ISNA(MATCH(AM26,'Coincident Peak'!$D$5:$D$16,0))=TRUE,0,SUMIFS($U$7:$U$8790,$F$7:$F$8790,DAY(AM26),$E$7:$E$8790,MONTH(AM26),$G$7:$G$8790,"<"&HOUR(VLOOKUP(AM26,'Coincident Peak'!$D$5:$E$16,2))-Values!$E$5,$I$7:$I$8790,0))))),0) -> 0 | BR26: 0 | BS26: 6,932 | BT26: 0 | BV26: =IF(ISNA(MATCH(AM26,'Coincident Peak'!$D$5:$D$16,0))=TRUE,0,1) -> 0 | BW26: 0 | BX26: 0 | BY26: 0 | BZ26: 0 | CA26: 0 | CB26: 1 | CC26: 1 | CD26: =IF(ISNA(MATCH(AM26,'Coincident Peak'!$D$5:$D$16,0))=TRUE,1,0) -> 1 | CE26: =VLOOKUP(MONTH($AM26),'Value Stacking Basis'!$B$37:$D$48,3) -> 3 | CF26: =VLOOKUP(MONTH($AM26),'Value Stacking Basis'!$B$37:$F$48,5) -> 2 | CG26: 1 | CK26: 7,061.67 | CL26: 6,400.30 | CM26: 6,400.30 | CN26: 6,400.30 | CO26: 0 | CQ26: 0 | CR26: 7,061.67 | CS26: 6,400.30 | CT26: 6,400.30 | CU26: 6,400.30 | CW26: =IF($BV26=0,0,IF($CB26=0,INDEX('Time Series Data'!N$7:N$8790,MATCH(1,(MONTH($AM26)='Time Series Data'!$E$7:$E$8790)*(DAY($AM26)='Time Series Data'!$F$7:$F$8790)*(HOUR(VLOOKUP('Time Series Data'!$AM26,'Coincident Peak'!$D$5:$I$16,2))='Time Series Data'!$G$7:$G$8790),0)),IF(($AT26*Rndtrp_eff)>Effective_Battery_Capacity,BatteryPower,(($AT26*Rndtrp_eff)/Effective_Battery_Capacity)*BatteryPower))) -> 0 | CX26: 7,061.67 | CY26: 6,400.30 | CZ26: 6,400.30 | DA26: 6,400.30 | DC26: =IF($BV26=0,0,IF($CB26=0,INDEX('Time Series Data'!N$7:N$8790,MATCH(1,(MONTH($AM26)='Time Series Data'!$E$7:$E$8790)*(DAY($AM26)='Time Series Data'!$F$7:$F$8790)*(HOUR(VLOOKUP('Time Series Data'!$AM26,'Coincident Peak'!$D$5:$I$16,2))='Time Series Data'!$G$7:$G$8790),0)),IF(($AT26*Rndtrp_eff)>Effective_Battery_Capacity,BatteryPower,(($AT26*Rndtrp_eff)/Effective_Battery_Capacity)*BatteryPower))) -> 0 | DD26: 0 | DF26: 0 | DG26: 0 | DH26: 7,062 | DI26: 6,400.30 | DJ26: 6,400.30 | DK26: 6,400.30 | DM26: 0 | DN26: 0 | DO26: 7,062 | DP26: 0 | DR26: 0 | DS26: 6,400.30 | DT26: 6,400.30 | DU26: 6,400.30 | DV26: 0 | DX26: 0 | DY26: 0 | DZ26: 6,400.30 | EA26: 6,400.30 | EB26: 6,400.30 | EF26: 6,400.30 | EG26: 6,400.30 | EH26: 6,400.30 | EI26: 0 | EK26: 0 | EL26: 6,400.30 | EM26: 6,400.30 | EN26: 6,400.30 | EP26: =IF($BV26=0,0,IF($CC26=0,VLOOKUP('Time Series Data'!$AM26,'Coincident Peak'!$D$5:$I$16,3),BatteryPower)) -> 0 | EQ26: 6,400.30 | ER26: 6,400.30 | ES26: 6,400.30 | EU26: =IF($BV26=0,0,IF($CC26=0,VLOOKUP('Time Series Data'!$AM26,'Coincident Peak'!$D$5:$I$16,3),BatteryPower)) -> 0 | EV26: 0 | EX26: 0 | EY26: 0 | EZ26: 6,400.30 | FA26: 6,400.30 | FB26: 6,400.30 | FD26: 0 | FE26: 0 | FF26: 0 | FH26: 0 | FI26: 6,400.30 | FJ26: 6,400.30 | FK26: 6,400.30 | FL26: 0 | FN26: 0 | FO26: 0 | FP26: 6,400.30 | FQ26: 6,400.30 | FR26: 6,400.30
B27: =DATE(Load_Profile_Year,E27,F27)+TIME(G27,0,0) -> 2020-01-01T20:00:00 | C27: 2020-01-01 | D27: 79,255 | E27: 1 | F27: 1 | G27: 20 | H27: 3 | I27: =INDEX(Values!$V$6:$AG$29,'Time Series Data'!G27+1,'Time Series Data'!E27) -> 1 | J27: 20.5 | K27: 79255 | L27: 0 | M27: 0 | N27: 0 | O27: 0 | P27: 94.303124 | T27: 0.00 | U27: 0.00 | V27: 79,255 | W27: =IF(V27+O27>VLOOKUP(E27,'Coincident Peak'!$C$22:$I$33,7),0,1) -> 1 | X27: =IF((AND(E27=MONTH(VLOOKUP('Time Series Data'!E27,'Coincident Peak'!$C$5:$D$16,2)),F27=DAY(VLOOKUP('Time Series Data'!E27,'Coincident Peak'!$C$5:$D$16,2)),IF(AND(G27<=HOUR(VLOOKUP('Time Series Data'!E27,'Coincident Peak'!$C$5:$E$16,3))+Values!$E$5,G27>=HOUR(VLOOKUP('Time Series Data'!E27,'Coincident Peak'!$C$5:$E$16,3))-Values!$E$5),"TRUE","FALSE"))),BatteryPower,0) -> 0.00 | Y27: =IF((AND(E27=MONTH(VLOOKUP('Time Series Data'!E27,'Coincident Peak'!$C$5:$D$16,2)),F27=DAY(VLOOKUP('Time Series Data'!E27,'Coincident Peak'!$C$5:$D$16,2)))),0,N27) -> 0.00 | Z27: =IF((AND(E27=MONTH(VLOOKUP('Time Series Data'!E27,'Coincident Peak'!$C$5:$D$16,2)),F27=DAY(VLOOKUP('Time Series Data'!E27,'Coincident Peak'!$C$5:$D$16,2)),IF(AND(G27<=HOUR(VLOOKUP('Time Series Data'!E27,'Coincident Peak'!$C$5:$E$16,3))+Values!$E$5,G27>=HOUR(VLOOKUP('Time Series Data'!E27,'Coincident Peak'!$C$5:$E$16,3))-Values!$E$5),"TRUE","FALSE"))),BatteryPower,Y27) -> 0.00 | AA27: =IF((AND(E27=MONTH(VLOOKUP('Time Series Data'!E27,'Coincident Peak'!$C$5:$D$16,2)),F27=DAY(VLOOKUP('Time Series Data'!E27,'Coincident Peak'!$C$5:$D$16,2))-1)),VLOOKUP(E27,'Coincident Peak'!$C$5:$N$16,11)*Z27,Z27) -> 0.00 | AB27: =IF((AND(E27=MONTH(VLOOKUP('Time Series Data'!E27,'Coincident Peak'!$C$5:$D$16,2)),F27=DAY(VLOOKUP('Time Series Data'!E27,'Coincident Peak'!$C$5:$D$16,2))+1)),VLOOKUP(E27,'Coincident Peak'!$C$5:$N$16,12)*AA27,AA27) -> 0.00 | AC27: =IF((AND(E27=MONTH(VLOOKUP('Time Series Data'!E27,'Coincident Peak'!$C$5:$D$16,2)),F27=DAY(VLOOKUP('Time Series Data'!E27,'Coincident Peak'!$C$5:$D$16,2)))),0,O27) -> 0.00 | AD27: =IF((AND(E27=MONTH(VLOOKUP('Time Series Data'!E27,'Coincident Peak'!$C$5:$D$16,2)),F27=DAY(VLOOKUP('Time Series Data'!E27,'Coincident Peak'!$C$5:$D$16,2))-1)),VLOOKUP(E27,'Coincident Peak'!$C$5:$N$16,11)*AC27,AC27) -> 0.00 | AE27: =IF((AND(E27=MONTH(VLOOKUP('Time Series Data'!E27,'Coincident Peak'!$C$5:$D$16,2)),F27=DAY(VLOOKUP('Time Series Data'!E27,'Coincident Peak'!$C$5:$D$16,2))+1)),VLOOKUP(E27,'Coincident Peak'!$C$5:$N$16,12)*AD27,AD27) -> 0.00 | AF27: 79,255 | AG27: =IF((AND(E27=MONTH(VLOOKUP('Time Series Data'!E27,'Coincident Peak'!$C$5:$D$16,2)),F27=DAY(VLOOKUP('Time Series Data'!E27,'Coincident Peak'!$C$5:$D$16,2)))),U27,O27) -> 0.00 | AH27: 79,255 | AL27: 20 | AM27: 2020-01-21 | AN27: 1 | AO27: 0 | AP27: 0 | AQ27: 0 | AR27: 9,818.37 | AS27: 6,976.87 | AT27: =IF(ISNA(MATCH(AM27,'Coincident Peak'!$D$5:$D$16,0))=TRUE,0,SUMIFS($O$7:$O$8790,$F$7:$F$8790,DAY(AM27),$E$7:$E$8790,MONTH(AM27),$G$7:$G$8790,"<"&HOUR(VLOOKUP(AM27,'Coincident Peak'!$D$5:$E$16,2))-Values!$E$5)) -> 0 | AU27: 0 | AV27: 0 | AW27: 0 | AX27: 2,262 | AY27: =IF(ISNA(MATCH(AM27,'Coincident Peak'!$D$5:$D$16,0))=TRUE,0,SUMIFS($O$7:$O$8790,$F$7:$F$8790,DAY(AM27),$E$7:$E$8790,MONTH(AM27),$G$7:$G$8790,"<"&HOUR(VLOOKUP(AM27,'Coincident Peak'!$D$5:$E$16,2))-Values!$E$5,$I$7:$I$8790,1)) -> 0 | AZ27: 2,262 | BA27: 2,262 | BB27: 0 | BD27: 2,262 | BE27: 6,932 | BF27: 0 | BG27: =IF(IF(ISNA(MATCH(AM27,'Coincident Peak'!$D$5:$D$16,0))=TRUE,0,SUMIFS($O$7:$O$8790,$F$7:$F$8790,DAY(AM27),$E$7:$E$8790,MONTH(AM27),$G$7:$G$8790,"<"&HOUR(VLOOKUP(AM27,'Coincident Peak'!$D$5:$E$16,2))-Values!$E$5,$I$7:$I$8790,0))>(Effective_Battery_Capacity/Rndtrp_eff),(Effective_Battery_Capacity/Rndtrp_eff),IF(ISNA(MATCH(AM27,'Coincident Peak'!$D$5:$D$16,0))=TRUE,0,SUMIFS($O$7:$O$8790,$F$7:$F$8790,DAY(AM27),$E$7:$E$8790,MONTH(AM27),$G$7:$G$8790,"<"&HOUR(VLOOKUP(AM27,'Coincident Peak'!$D$5:$E$16,2))-Values!$E$5,$I$7:$I$8790,0))) -> 0 | BH27: =IF((IF(ISNA(MATCH(AM27,'Coincident Peak'!$D$5:$D$16,0))=TRUE,0,SUMIFS($O$7:$O$8790,$F$7:$F$8790,DAY(AM27),$E$7:$E$8790,MONTH(AM27),$G$7:$G$8790,"<"&HOUR(VLOOKUP(AM27,'Coincident Peak'!$D$5:$E$16,2))-Values!$E$5)))>(Effective_Battery_Capacity/Rndtrp_eff),(Effective_Battery_Capacity/Rndtrp_eff),(IF(ISNA(MATCH(AM27,'Coincident Peak'!$D$5:$D$16,0))=TRUE,0,SUMIFS($O$7:$O$8790,$F$7:$F$8790,DAY(AM27),$E$7:$E$8790,MONTH(AM27),$G$7:$G$8790,"<"&HOUR(VLOOKUP(AM27,'Coincident Peak'!$D$5:$E$16,2))-Values!$E$5)))) -> 0 | BI27: 0 | BJ27: 0 | BK27: =IF(WholesaleEnergyCost_2>PPACostPerKWh,(IF((SUMIFS('Time Series Data'!$AG$7:$AG$8790,'Time Series Data'!$I$7:$I$8790,1,$F$7:$F$8790,DAY(AM27),$E$7:$E$8790,MONTH(AM27))-BP27)>(Effective_Battery_Capacity/Rndtrp_eff),(Effective_Battery_Capacity/Rndtrp_eff),(SUMIFS('Time Series Data'!$AG$7:$AG$8790,'Time Series Data'!$I$7:$I$8790,1,$F$7:$F$8790,DAY(AM27),$E$7:$E$8790,MONTH(AM27))))-BP27),0) -> 0 | BL27: 0 | BM27: =SUMIFS('Time Series Data'!$AG$7:$AG$8790,$F$7:$F$8790,DAY(AM27),$E$7:$E$8790,MONTH(AM27),'Time Series Data'!$I$7:$I$8790,1)-BL27-BP27 -> 7,556 | BN27: =SUMIFS('Time Series Data'!$AG$7:$AG$8790,'Time Series Data'!$I$7:$I$8790,0,$F$7:$F$8790,DAY(AM27),$E$7:$E$8790,MONTH(AM27))-BQ27 -> 2,262 | BO27: =IF((IF(ISNA(MATCH(AM27,'Coincident Peak'!$D$5:$D$16,0))=TRUE,0,SUMIFS($U$7:$U$8790,$F$7:$F$8790,DAY(AM27),$E$7:$E$8790,MONTH(AM27),$G$7:$G$8790,"<"&HOUR(VLOOKUP(AM27,'Coincident Peak'!$D$5:$E$16,2))-Values!$E$5)))>(Effective_Battery_Capacity/Rndtrp_eff),(Effective_Battery_Capacity/Rndtrp_eff),(IF(ISNA(MATCH(AM27,'Coincident Peak'!$D$5:$D$16,0))=TRUE,0,SUMIFS($U$7:$U$8790,$F$7:$F$8790,DAY(AM27),$E$7:$E$8790,MONTH(AM27),$G$7:$G$8790,"<"&HOUR(VLOOKUP(AM27,'Coincident Peak'!$D$5:$E$16,2))-Values!$E$5)))) -> 0 | BP27: =IF(WholesaleEnergyCost_2>PPACostPerKWh,(IF((IF(ISNA(MATCH(AM27,'Coincident Peak'!$D$5:$D$16,0))=TRUE,0,SUMIFS($U$7:$U$8790,$F$7:$F$8790,DAY(AM27),$E$7:$E$8790,MONTH(AM27),$G$7:$G$8790,"<"&HOUR(VLOOKUP(AM27,'Coincident Peak'!$D$5:$E$16,2))-Values!$E$5,$I$7:$I$8790,1)))>(Effective_Battery_Capacity/Rndtrp_eff),(Effective_Battery_Capacity/Rndtrp_eff),(IF(ISNA(MATCH(AM27,'Coincident Peak'!$D$5:$D$16,0))=TRUE,0,SUMIFS($U$7:$U$8790,$F$7:$F$8790,DAY(AM27),$E$7:$E$8790,MONTH(AM27),$G$7:$G$8790,"<"&HOUR(VLOOKUP(AM27,'Coincident Peak'!$D$5:$E$16,2))-Values!$E$5,$I$7:$I$8790,1))))),0) -> 0 | BQ27: =IF(WholesaleEnergyCost_1>PPACostPerKWh,(IF((IF(ISNA(MATCH(AM27,'Coincident Peak'!$D$5:$D$16,0))=TRUE,0,SUMIFS($U$7:$U$8790,$F$7:$F$8790,DAY(AM27),$E$7:$E$8790,MONTH(AM27),$G$7:$G$8790,"<"&HOUR(VLOOKUP(AM27,'Coincident Peak'!$D$5:$E$16,2))-Values!$E$5,$I$7:$I$8790,0)))>(Effective_Battery_Capacity/Rndtrp_eff),(Effective_Battery_Capacity/Rndtrp_eff),(IF(ISNA(MATCH(AM27,'Coincident Peak'!$D$5:$D$16,0))=TRUE,0,SUMIFS($U$7:$U$8790,$F$7:$F$8790,DAY(AM27),$E$7:$E$8790,MONTH(AM27),$G$7:$G$8790,"<"&HOUR(VLOOKUP(AM27,'Coincident Peak'!$D$5:$E$16,2))-Values!$E$5,$I$7:$I$8790,0))))),0) -> 0 | BR27: 0 | BS27: 6,932 | BT27: 0 | BV27: =IF(ISNA(MATCH(AM27,'Coincident Peak'!$D$5:$D$16,0))=TRUE,0,1) -> 0 | BW27: 0 | BX27: 0 | BY27: 0 | BZ27: 0 | CA27: 0 | CB27: 1 | CC27: 1 | CD27: =IF(ISNA(MATCH(AM27,'Coincident Peak'!$D$5:$D$16,0))=TRUE,1,0) -> 1 | CE27: =VLOOKUP(MONTH($AM27),'Value Stacking Basis'!$B$37:$D$48,3) -> 3 | CF27: =VLOOKUP(MONTH($AM27),'Value Stacking Basis'!$B$37:$F$48,5) -> 2 | CG27: 1 | CK27: 6,976.87 | CL27: 6,400.30 | CM27: 6,400.30 | CN27: 6,400.30 | CO27: 0 | CQ27: 0 | CR27: 6,976.87 | CS27: 6,400.30 | CT27: 6,400.30 | CU27: 6,400.30 | CW27: =IF($BV27=0,0,IF($CB27=0,INDEX('Time Series Data'!N$7:N$8790,MATCH(1,(MONTH($AM27)='Time Series Data'!$E$7:$E$8790)*(DAY($AM27)='Time Series Data'!$F$7:$F$8790)*(HOUR(VLOOKUP('Time Series Data'!$AM27,'Coincident Peak'!$D$5:$I$16,2))='Time Series Data'!$G$7:$G$8790),0)),IF(($AT27*Rndtrp_eff)>Effective_Battery_Capacity,BatteryPower,(($AT27*Rndtrp_eff)/Effective_Battery_Capacity)*BatteryPower))) -> 0 | CX27: 6,976.87 | CY27: 6,400.30 | CZ27: 6,400.30 | DA27: 6,400.30 | DC27: =IF($BV27=0,0,IF($CB27=0,INDEX('Time Series Data'!N$7:N$8790,MATCH(1,(MONTH($AM27)='Time Series Data'!$E$7:$E$8790)*(DAY($AM27)='Time Series Data'!$F$7:$F$8790)*(HOUR(VLOOKUP('Time Series Data'!$AM27,'Coincident Peak'!$D$5:$I$16,2))='Time Series Data'!$G$7:$G$8790),0)),IF(($AT27*Rndtrp_eff)>Effective_Battery_Capacity,BatteryPower,(($AT27*Rndtrp_eff)/Effective_Battery_Capacity)*BatteryPower))) -> 0 | DD27: 0 | DF27: 0 | DG27: 0 | DH27: 6,977 | DI27: 6,400.30 | DJ27: 6,400.30 | DK27: 6,400.30 | DM27: 0 | DN27: 0 | DO27: 6,977 | DP27: 0 | DR27: 0 | DS27: 6,400.30 | DT27: 6,400.30 | DU27: 6,400.30 | DV27: 0 | DX27: 0 | DY27: 0 | DZ27: 6,400.30 | EA27: 6,400.30 | EB27: 6,400.30 | EF27: 6,400.30 | EG27: 6,400.30 | EH27: 6,400.30 | EI27: 0 | EK27: 0 | EL27: 6,400.30 | EM27: 6,400.30 | EN27: 6,400.30 | EP27: =IF($BV27=0,0,IF($CC27=0,VLOOKUP('Time Series Data'!$AM27,'Coincident Peak'!$D$5:$I$16,3),BatteryPower)) -> 0 | EQ27: 6,400.30 | ER27: 6,400.30 | ES27: 6,400.30 | EU27: =IF($BV27=0,0,IF($CC27=0,VLOOKUP('Time Series Data'!$AM27,'Coincident Peak'!$D$5:$I$16,3),BatteryPower)) -> 0 | EV27: 0 | EX27: 0 | EY27: 0 | EZ27: 6,400.30 | FA27: 6,400.30 | FB27: 6,400.30 | FD27: 0 | FE27: 0 | FF27: 0 | FH27: 0 | FI27: 6,400.30 | FJ27: 6,400.30 | FK27: 6,400.30 | FL27: 0 | FN27: 0 | FO27: 0 | FP27: 6,400.30 | FQ27: 6,400.30 | FR27: 6,400.30
B28: =DATE(Load_Profile_Year,E28,F28)+TIME(G28,0,0) -> 2020-01-01T21:00:00 | C28: 2020-01-01 | D28: 74,997 | E28: 1 | F28: 1 | G28: 21 | H28: 3 | I28: =INDEX(Values!$V$6:$AG$29,'Time Series Data'!G28+1,'Time Series Data'!E28) -> 1 | J28: 21.5 | K28: 74997 | L28: 0 | M28: 0 | N28: 0 | O28: 0 | P28: 94.303124 | T28: 0.00 | U28: 0.00 | V28: 74,997 | W28: =IF(V28+O28>VLOOKUP(E28,'Coincident Peak'!$C$22:$I$33,7),0,1) -> 1 | X28: =IF((AND(E28=MONTH(VLOOKUP('Time Series Data'!E28,'Coincident Peak'!$C$5:$D$16,2)),F28=DAY(VLOOKUP('Time Series Data'!E28,'Coincident Peak'!$C$5:$D$16,2)),IF(AND(G28<=HOUR(VLOOKUP('Time Series Data'!E28,'Coincident Peak'!$C$5:$E$16,3))+Values!$E$5,G28>=HOUR(VLOOKUP('Time Series Data'!E28,'Coincident Peak'!$C$5:$E$16,3))-Values!$E$5),"TRUE","FALSE"))),BatteryPower,0) -> 0.00 | Y28: =IF((AND(E28=MONTH(VLOOKUP('Time Series Data'!E28,'Coincident Peak'!$C$5:$D$16,2)),F28=DAY(VLOOKUP('Time Series Data'!E28,'Coincident Peak'!$C$5:$D$16,2)))),0,N28) -> 0.00 | Z28: =IF((AND(E28=MONTH(VLOOKUP('Time Series Data'!E28,'Coincident Peak'!$C$5:$D$16,2)),F28=DAY(VLOOKUP('Time Series Data'!E28,'Coincident Peak'!$C$5:$D$16,2)),IF(AND(G28<=HOUR(VLOOKUP('Time Series Data'!E28,'Coincident Peak'!$C$5:$E$16,3))+Values!$E$5,G28>=HOUR(VLOOKUP('Time Series Data'!E28,'Coincident Peak'!$C$5:$E$16,3))-Values!$E$5),"TRUE","FALSE"))),BatteryPower,Y28) -> 0.00 | AA28: =IF((AND(E28=MONTH(VLOOKUP('Time Series Data'!E28,'Coincident Peak'!$C$5:$D$16,2)),F28=DAY(VLOOKUP('Time Series Data'!E28,'Coincident Peak'!$C$5:$D$16,2))-1)),VLOOKUP(E28,'Coincident Peak'!$C$5:$N$16,11)*Z28,Z28) -> 0.00 | AB28: =IF((AND(E28=MONTH(VLOOKUP('Time Series Data'!E28,'Coincident Peak'!$C$5:$D$16,2)),F28=DAY(VLOOKUP('Time Series Data'!E28,'Coincident Peak'!$C$5:$D$16,2))+1)),VLOOKUP(E28,'Coincident Peak'!$C$5:$N$16,12)*AA28,AA28) -> 0.00 | AC28: =IF((AND(E28=MONTH(VLOOKUP('Time Series Data'!E28,'Coincident Peak'!$C$5:$D$16,2)),F28=DAY(VLOOKUP('Time Series Data'!E28,'Coincident Peak'!$C$5:$D$16,2)))),0,O28) -> 0.00 | AD28: =IF((AND(E28=MONTH(VLOOKUP('Time Series Data'!E28,'Coincident Peak'!$C$5:$D$16,2)),F28=DAY(VLOOKUP('Time Series Data'!E28,'Coincident Peak'!$C$5:$D$16,2))-1)),VLOOKUP(E28,'Coincident Peak'!$C$5:$N$16,11)*AC28,AC28) -> 0.00 | AE28: =IF((AND(E28=MONTH(VLOOKUP('Time Series Data'!E28,'Coincident Peak'!$C$5:$D$16,2)),F28=DAY(VLOOKUP('Time Series Data'!E28,'Coincident Peak'!$C$5:$D$16,2))+1)),VLOOKUP(E28,'Coincident Peak'!$C$5:$N$16,12)*AD28,AD28) -> 0.00 | AF28: 74,997 | AG28: =IF((AND(E28=MONTH(VLOOKUP('Time Series Data'!E28,'Coincident Peak'!$C$5:$D$16,2)),F28=DAY(VLOOKUP('Time Series Data'!E28,'Coincident Peak'!$C$5:$D$16,2)))),U28,O28) -> 0.00 | AH28: 74,997 | AL28: 21 | AM28: 2020-01-22 | AN28: 1 | AO28: 0 | AP28: 0 | AQ28: 0 | AR28: 6,173.82 | AS28: 4,226.68 | AT28: =IF(ISNA(MATCH(AM28,'Coincident Peak'!$D$5:$D$16,0))=TRUE,0,SUMIFS($O$7:$O$8790,$F$7:$F$8790,DAY(AM28),$E$7:$E$8790,MONTH(AM28),$G$7:$G$8790,"<"&HOUR(VLOOKUP(AM28,'Coincident Peak'!$D$5:$E$16,2))-Values!$E$5)) -> 0 | AU28: 0 | AV28: 0 | AW28: 0 | AX28: 1,596 | AY28: =IF(ISNA(MATCH(AM28,'Coincident Peak'!$D$5:$D$16,0))=TRUE,0,SUMIFS($O$7:$O$8790,$F$7:$F$8790,DAY(AM28),$E$7:$E$8790,MONTH(AM28),$G$7:$G$8790,"<"&HOUR(VLOOKUP(AM28,'Coincident Peak'!$D$5:$E$16,2))-Values!$E$5,$I$7:$I$8790,1)) -> 0 | AZ28: 1,596 | BA28: 1,596 | BB28: 0 | BD28: 1,596 | BE28: 4,577 | BF28: 0 | BG28: =IF(IF(ISNA(MATCH(AM28,'Coincident Peak'!$D$5:$D$16,0))=TRUE,0,SUMIFS($O$7:$O$8790,$F$7:$F$8790,DAY(AM28),$E$7:$E$8790,MONTH(AM28),$G$7:$G$8790,"<"&HOUR(VLOOKUP(AM28,'Coincident Peak'!$D$5:$E$16,2))-Values!$E$5,$I$7:$I$8790,0))>(Effective_Battery_Capacity/Rndtrp_eff),(Effective_Battery_Capacity/Rndtrp_eff),IF(ISNA(MATCH(AM28,'Coincident Peak'!$D$5:$D$16,0))=TRUE,0,SUMIFS($O$7:$O$8790,$F$7:$F$8790,DAY(AM28),$E$7:$E$8790,MONTH(AM28),$G$7:$G$8790,"<"&HOUR(VLOOKUP(AM28,'Coincident Peak'!$D$5:$E$16,2))-Values!$E$5,$I$7:$I$8790,0))) -> 0 | BH28: =IF((IF(ISNA(MATCH(AM28,'Coincident Peak'!$D$5:$D$16,0))=TRUE,0,SUMIFS($O$7:$O$8790,$F$7:$F$8790,DAY(AM28),$E$7:$E$8790,MONTH(AM28),$G$7:$G$8790,"<"&HOUR(VLOOKUP(AM28,'Coincident Peak'!$D$5:$E$16,2))-Values!$E$5)))>(Effective_Battery_Capacity/Rndtrp_eff),(Effective_Battery_Capacity/Rndtrp_eff),(IF(ISNA(MATCH(AM28,'Coincident Peak'!$D$5:$D$16,0))=TRUE,0,SUMIFS($O$7:$O$8790,$F$7:$F$8790,DAY(AM28),$E$7:$E$8790,MONTH(AM28),$G$7:$G$8790,"<"&HOUR(VLOOKUP(AM28,'Coincident Peak'!$D$5:$E$16,2))-Values!$E$5)))) -> 0 | BI28: 0 | BJ28: 0 | BK28: =IF(WholesaleEnergyCost_2>PPACostPerKWh,(IF((SUMIFS('Time Series Data'!$AG$7:$AG$8790,'Time Series Data'!$I$7:$I$8790,1,$F$7:$F$8790,DAY(AM28),$E$7:$E$8790,MONTH(AM28))-BP28)>(Effective_Battery_Capacity/Rndtrp_eff),(Effective_Battery_Capacity/Rndtrp_eff),(SUMIFS('Time Series Data'!$AG$7:$AG$8790,'Time Series Data'!$I$7:$I$8790,1,$F$7:$F$8790,DAY(AM28),$E$7:$E$8790,MONTH(AM28))))-BP28),0) -> 0 | BL28: 0 | BM28: =SUMIFS('Time Series Data'!$AG$7:$AG$8790,$F$7:$F$8790,DAY(AM28),$E$7:$E$8790,MONTH(AM28),'Time Series Data'!$I$7:$I$8790,1)-BL28-BP28 -> 4,577 | BN28: =SUMIFS('Time Series Data'!$AG$7:$AG$8790,'Time Series Data'!$I$7:$I$8790,0,$F$7:$F$8790,DAY(AM28),$E$7:$E$8790,MONTH(AM28))-BQ28 -> 1,596 | BO28: =IF((IF(ISNA(MATCH(AM28,'Coincident Peak'!$D$5:$D$16,0))=TRUE,0,SUMIFS($U$7:$U$8790,$F$7:$F$8790,DAY(AM28),$E$7:$E$8790,MONTH(AM28),$G$7:$G$8790,"<"&HOUR(VLOOKUP(AM28,'Coincident Peak'!$D$5:$E$16,2))-Values!$E$5)))>(Effective_Battery_Capacity/Rndtrp_eff),(Effective_Battery_Capacity/Rndtrp_eff),(IF(ISNA(MATCH(AM28,'Coincident Peak'!$D$5:$D$16,0))=TRUE,0,SUMIFS($U$7:$U$8790,$F$7:$F$8790,DAY(AM28),$E$7:$E$8790,MONTH(AM28),$G$7:$G$8790,"<"&HOUR(VLOOKUP(AM28,'Coincident Peak'!$D$5:$E$16,2))-Values!$E$5)))) -> 0 | BP28: =IF(WholesaleEnergyCost_2>PPACostPerKWh,(IF((IF(ISNA(MATCH(AM28,'Coincident Peak'!$D$5:$D$16,0))=TRUE,0,SUMIFS($U$7:$U$8790,$F$7:$F$8790,DAY(AM28),$E$7:$E$8790,MONTH(AM28),$G$7:$G$8790,"<"&HOUR(VLOOKUP(AM28,'Coincident Peak'!$D$5:$E$16,2))-Values!$E$5,$I$7:$I$8790,1)))>(Effective_Battery_Capacity/Rndtrp_eff),(Effective_Battery_Capacity/Rndtrp_eff),(IF(ISNA(MATCH(AM28,'Coincident Peak'!$D$5:$D$16,0))=TRUE,0,SUMIFS($U$7:$U$8790,$F$7:$F$8790,DAY(AM28),$E$7:$E$8790,MONTH(AM28),$G$7:$G$8790,"<"&HOUR(VLOOKUP(AM28,'Coincident Peak'!$D$5:$E$16,2))-Values!$E$5,$I$7:$I$8790,1))))),0) -> 0 | BQ28: =IF(WholesaleEnergyCost_1>PPACostPerKWh,(IF((IF(ISNA(MATCH(AM28,'Coincident Peak'!$D$5:$D$16,0))=TRUE,0,SUMIFS($U$7:$U$8790,$F$7:$F$8790,DAY(AM28),$E$7:$E$8790,MONTH(AM28),$G$7:$G$8790,"<"&HOUR(VLOOKUP(AM28,'Coincident Peak'!$D$5:$E$16,2))-Values!$E$5,$I$7:$I$8790,0)))>(Effective_Battery_Capacity/Rndtrp_eff),(Effective_Battery_Capacity/Rndtrp_eff),(IF(ISNA(MATCH(AM28,'Coincident Peak'!$D$5:$D$16,0))=TRUE,0,SUMIFS($U$7:$U$8790,$F$7:$F$8790,DAY(AM28),$E$7:$E$8790,MONTH(AM28),$G$7:$G$8790,"<"&HOUR(VLOOKUP(AM28,'Coincident Peak'!$D$5:$E$16,2))-Values!$E$5,$I$7:$I$8790,0))))),0) -> 0 | BR28: 0 | BS28: 4,577 | BT28: 0 | BV28: =IF(ISNA(MATCH(AM28,'Coincident Peak'!$D$5:$D$16,0))=TRUE,0,1) -> 0 | BW28: 0 | BX28: 0 | BY28: 0 | BZ28: 0 | CA28: 0 | CB28: 1 | CC28: 1 | CD28: =IF(ISNA(MATCH(AM28,'Coincident Peak'!$D$5:$D$16,0))=TRUE,1,0) -> 1 | CE28: =VLOOKUP(MONTH($AM28),'Value Stacking Basis'!$B$37:$D$48,3) -> 3 | CF28: =VLOOKUP(MONTH($AM28),'Value Stacking Basis'!$B$37:$F$48,5) -> 2 | CG28: 1 | CK28: 4,226.68 | CL28: 4,226.68 | CM28: 4,226.68 | CN28: 4,226.68 | CO28: 0 | CQ28: 0 | CR28: 4,226.68 | CS28: 4,226.68 | CT28: 4,226.68 | CU28: 4,226.68 | CW28: =IF($BV28=0,0,IF($CB28=0,INDEX('Time Series Data'!N$7:N$8790,MATCH(1,(MONTH($AM28)='Time Series Data'!$E$7:$E$8790)*(DAY($AM28)='Time Series Data'!$F$7:$F$8790)*(HOUR(VLOOKUP('Time Series Data'!$AM28,'Coincident Peak'!$D$5:$I$16,2))='Time Series Data'!$G$7:$G$8790),0)),IF(($AT28*Rndtrp_eff)>Effective_Battery_Capacity,BatteryPower,(($AT28*Rndtrp_eff)/Effective_Battery_Capacity)*BatteryPower))) -> 0 | CX28: 4,226.68 | CY28: 4,226.68 | CZ28: 4,226.68 | DA28: 4,226.68 | DC28: =IF($BV28=0,0,IF($CB28=0,INDEX('Time Series Data'!N$7:N$8790,MATCH(1,(MONTH($AM28)='Time Series Data'!$E$7:$E$8790)*(DAY($AM28)='Time Series Data'!$F$7:$F$8790)*(HOUR(VLOOKUP('Time Series Data'!$AM28,'Coincident Peak'!$D$5:$I$16,2))='Time Series Data'!$G$7:$G$8790),0)),IF(($AT28*Rndtrp_eff)>Effective_Battery_Capacity,BatteryPower,(($AT28*Rndtrp_eff)/Effective_Battery_Capacity)*BatteryPower))) -> 0 | DD28: 0 | DF28: 0 | DG28: 0 | DH28: 4,227 | DI28: 4,226.68 | DJ28: 4,226.68 | DK28: 4,226.68 | DM28: 0 | DN28: 0 | DO28: 4,227 | DP28: 0 | DR28: 0 | DS28: 4,226.68 | DT28: 4,226.68 | DU28: 4,226.68 | DV28: 0 | DX28: 0 | DY28: 0 | DZ28: 4,226.68 | EA28: 4,226.68 | EB28: 4,226.68 | EF28: 6,400.30 | EG28: 6,400.30 | EH28: 6,400.30 | EI28: 0 | EK28: 0 | EL28: 6,400.30 | EM28: 6,400.30 | EN28: 6,400.30 | EP28: =IF($BV28=0,0,IF($CC28=0,VLOOKUP('Time Series Data'!$AM28,'Coincident Peak'!$D$5:$I$16,3),BatteryPower)) -> 0 | EQ28: 6,400.30 | ER28: 6,400.30 | ES28: 6,400.30 | EU28: =IF($BV28=0,0,IF($CC28=0,VLOOKUP('Time Series Data'!$AM28,'Coincident Peak'!$D$5:$I$16,3),BatteryPower)) -> 0 | EV28: 0 | EX28: 0 | EY28: 0 | EZ28: 6,400.30 | FA28: 6,400.30 | FB28: 6,400.30 | FD28: 0 | FE28: 0 | FF28: 0 | FH28: 0 | FI28: 6,400.30 | FJ28: 6,400.30 | FK28: 6,400.30 | FL28: 0 | FN28: 0 | FO28: 0 | FP28: 6,400.30 | FQ28: 6,400.30 | FR28: 6,400.30
